Workbook

Sheet Matches
A2: Pairing_ID | B2: Round | C2: Player1 Name | D2: Player2 Name | E2: Player1 Result | F2: Player2 Result | G2: Player1 Score | H2: Player2 Score | I2: Event Name | J2: Event Date | K2: Event End Date | L2: Country | M2: Online | N2: Season | O2: Player1 Faction | P2: Battle Formation | Q2: Player2 Faction | R2: Player2 Subfaction | U2: Source | V2: Rating | W2: Rating | X2: P1 New Rating | Y2: P2 New Rating | Z2: Pairing | AA2: Nation Lookup | AB2: Missing Factions? | AC2: Mirror Match? | AD2: Within Last 60 Days? | AE2: Rounds | AF2: Event Type | AG2: Faction Pairings | AH2: Month | AI2: Players | AJ2: Battleplan
A3: 573775 | B3: 1 | C3: Zachary Shinn | D3: Jonathan Weretka | E3: 0 | F3: 1 | I3: 4th Release RTT/Party @Layton Gaming | J3: 2024-07-13T04:00:00 | K3: 2024-07-13T13:00:00 | L3: United States | M3: FALSE | N3: 2023 | O3: Kruleboyz | U3: bcp | V3: =IFERROR((IF(SUMPRODUCT(MAX(ROW($C$2:$C2)*($C3=$C$2:$C2))-1)>SUMPRODUCT(MAX(ROW($D$2:$D2)*($C3=$D$2:$D2))-1),INDEX($X$2:$X2,SUMPRODUCT(MAX(ROW($C$2:$C2)*($C3=$C$2:$C2))-1)),INDEX($Y$2:$Y2,SUMPRODUCT(MAX(ROW($D$2:$D2)*($C3=$D$2:$D2))-1)))),_xlfn.IFNA(IF(VLOOKUP(C3,'30th June Rankings (Values)'!A:D,4,FALSE)>0,VLOOKUP(C3,'30th June Rankings (Values)'!A:D,4,FALSE),400),400)) -> 645.3193312 | W3: =IFERROR((IF(SUMPRODUCT(MAX(ROW($D$2:$D2)*($D3=$D$2:$D2))-1)>SUMPRODUCT(MAX(ROW($C$2:$C2)*($D3=$C$2:$C2))-1),INDEX($Y$2:$Y2,SUMPRODUCT(MAX(ROW($D$2:$D2)*($D3=$D$2:$D2))-1)),INDEX($X$2:$X2,SUMPRODUCT(MAX(ROW($C$2:$C2)*($D3=$C$2:$C2))-1)))),_xlfn.IFNA(IF(VLOOKUP(D3,'30th June Rankings (Values)'!A:D,4,FALSE)>0,VLOOKUP(D3,'30th June Rankings (Values)'!A:D,4,FALSE),400),400)) -> 539.1453845 | X3: =20*(E3-(1/(1+(10^((W3-V3)/400)))))+V3 -> 632.3551036 | Y3: =20*(F3-(1/(1+(10^((V3-W3)/400)))))+W3 -> 552.1096122 | Z3: =C3&D3 -> Zachary ShinnJonathan Weretka | AA3: =VLOOKUP(L3,Countries!A:B,2,FALSE) -> USA | AB3: =IF(O3="","Y",(IF(Q3="","Y","N"))) -> Y | AC3: =IF(O3=Q3,"Y","N") -> N | AD3: =IF(J3<(TODAY()-60),"N","Y") -> Y | AE3: =_xlfn.MAXIFS(B:B,I:I,I3) -> 3 | AF3: =IF(AE3<5,"RTT/Casual",(IF(M3="TRUE","RTT/Casual",(IF(COUNTIF(I3,"*Team*"),"RTT/Casual",(IF(COUNTIF(I3,"*Double*"),"RTT/Casual","GT"))))))) -> RTT/Casual | AG3: =O3&Q3 -> Kruleboyz | AH3: =MONTH(J3) -> 7 | AI3: =((COUNTIFS(I:I,I3))/AE3)*2 -> 10.66666667 | AJ3: =VLOOKUP(I3,Battleplans!A:F,Matches!B3+1,FALSE) -> The Vice
A4: 573801 | B4: 1 | C4: Chris Folk | D4: Jonathan Roberts | E4: 1 | F4: 0 | I4: 4th Release RTT/Party @Layton Gaming | J4: 2024-07-13T04:00:00 | K4: 2024-07-13T13:00:00 | L4: United States | M4: FALSE | N4: 2023 | Q4: Ironjawz | R4: Ironjawz Brawl | U4: bcp | V4: =IFERROR((IF(SUMPRODUCT(MAX(ROW($C$2:$C3)*($C4=$C$2:$C3))-1)>SUMPRODUCT(MAX(ROW($D$2:$D3)*($C4=$D$2:$D3))-1),INDEX($X$2:$X3,SUMPRODUCT(MAX(ROW($C$2:$C3)*($C4=$C$2:$C3))-1)),INDEX($Y$2:$Y3,SUMPRODUCT(MAX(ROW($D$2:$D3)*($C4=$D$2:$D3))-1)))),_xlfn.IFNA(IF(VLOOKUP(C4,'30th June Rankings (Values)'!A:D,4,FALSE)>0,VLOOKUP(C4,'30th June Rankings (Values)'!A:D,4,FALSE),400),400)) -> 400 | W4: =IFERROR((IF(SUMPRODUCT(MAX(ROW($D$2:$D3)*($D4=$D$2:$D3))-1)>SUMPRODUCT(MAX(ROW($C$2:$C3)*($D4=$C$2:$C3))-1),INDEX($Y$2:$Y3,SUMPRODUCT(MAX(ROW($D$2:$D3)*($D4=$D$2:$D3))-1)),INDEX($X$2:$X3,SUMPRODUCT(MAX(ROW($C$2:$C3)*($D4=$C$2:$C3))-1)))),_xlfn.IFNA(IF(VLOOKUP(D4,'30th June Rankings (Values)'!A:D,4,FALSE)>0,VLOOKUP(D4,'30th June Rankings (Values)'!A:D,4,FALSE),400),400)) -> 497.2898646 | X4: =20*(E4-(1/(1+(10^((W4-V4)/400)))))+V4 -> 412.7292613 | Y4: =20*(F4-(1/(1+(10^((V4-W4)/400)))))+W4 -> 484.5606033 | Z4: =C4&D4 -> Chris FolkJonathan Roberts | AA4: =VLOOKUP(L4,Countries!A:B,2,FALSE) -> USA | AB4: =IF(O4="","Y",(IF(Q4="","Y","N"))) -> Y | AC4: =IF(O4=Q4,"Y","N") -> N | AD4: =IF(J4<(TODAY()-60),"N","Y") -> Y | AE4: =_xlfn.MAXIFS(B:B,I:I,I4) -> 3 | AF4: =IF(AE4<5,"RTT/Casual",(IF(M4="TRUE","RTT/Casual",(IF(COUNTIF(I4,"*Team*"),"RTT/Casual",(IF(COUNTIF(I4,"*Double*"),"RTT/Casual","GT"))))))) -> RTT/Casual | AG4: =O4&Q4 -> Ironjawz | AH4: =MONTH(J4) -> 7 | AI4: =((COUNTIFS(I:I,I4))/AE4)*2 -> 10.66666667 | AJ4: =VLOOKUP(I4,Battleplans!A:F,Matches!B4+1,FALSE) -> The Vice
A5: 573819 | B5: 1 | C5: Jacob Parson | D5: Frank Raymond | E5: 1 | F5: 0 | I5: 4th Release RTT/Party @Layton Gaming | J5: 2024-07-13T04:00:00 | K5: 2024-07-13T13:00:00 | L5: United States | M5: FALSE | N5: 2023 | Q5: Soulblight Gravelords | U5: bcp | V5: =IFERROR((IF(SUMPRODUCT(MAX(ROW($C$2:$C4)*($C5=$C$2:$C4))-1)>SUMPRODUCT(MAX(ROW($D$2:$D4)*($C5=$D$2:$D4))-1),INDEX($X$2:$X4,SUMPRODUCT(MAX(ROW($C$2:$C4)*($C5=$C$2:$C4))-1)),INDEX($Y$2:$Y4,SUMPRODUCT(MAX(ROW($D$2:$D4)*($C5=$D$2:$D4))-1)))),_xlfn.IFNA(IF(VLOOKUP(C5,'30th June Rankings (Values)'!A:D,4,FALSE)>0,VLOOKUP(C5,'30th June Rankings (Values)'!A:D,4,FALSE),400),400)) -> 400 | W5: =IFERROR((IF(SUMPRODUCT(MAX(ROW($D$2:$D4)*($D5=$D$2:$D4))-1)>SUMPRODUCT(MAX(ROW($C$2:$C4)*($D5=$C$2:$C4))-1),INDEX($Y$2:$Y4,SUMPRODUCT(MAX(ROW($D$2:$D4)*($D5=$D$2:$D4))-1)),INDEX($X$2:$X4,SUMPRODUCT(MAX(ROW($C$2:$C4)*($D5=$C$2:$C4))-1)))),_xlfn.IFNA(IF(VLOOKUP(D5,'30th June Rankings (Values)'!A:D,4,FALSE)>0,VLOOKUP(D5,'30th June Rankings (Values)'!A:D,4,FALSE),400),400)) -> 400 | X5: =20*(E5-(1/(1+(10^((W5-V5)/400)))))+V5 -> 410 | Y5: =20*(F5-(1/(1+(10^((V5-W5)/400)))))+W5 -> 390 | Z5: =C5&D5 -> Jacob ParsonFrank Raymond | AA5: =VLOOKUP(L5,Countries!A:B,2,FALSE) -> USA | AB5: =IF(O5="","Y",(IF(Q5="","Y","N"))) -> Y | AC5: =IF(O5=Q5,"Y","N") -> N | AD5: =IF(J5<(TODAY()-60),"N","Y") -> Y | AE5: =_xlfn.MAXIFS(B:B,I:I,I5) -> 3 | AF5: =IF(AE5<5,"RTT/Casual",(IF(M5="TRUE","RTT/Casual",(IF(COUNTIF(I5,"*Team*"),"RTT/Casual",(IF(COUNTIF(I5,"*Double*"),"RTT/Casual","GT"))))))) -> RTT/Casual | AG5: =O5&Q5 -> Soulblight Gravelords | AH5: =MONTH(J5) -> 7 | AI5: =((COUNTIFS(I:I,I5))/AE5)*2 -> 10.66666667 | AJ5: =VLOOKUP(I5,Battleplans!A:F,Matches!B5+1,FALSE) -> The Vice
A6: 573835 | B6: 1 | C6: Ben Salamatian | D6: David Heredia | E6: 1 | F6: 0 | I6: 4th Release RTT/Party @Layton Gaming | J6: 2024-07-13T04:00:00 | K6: 2024-07-13T13:00:00 | L6: United States | M6: FALSE | N6: 2023 | O6: Nighthaunt | U6: bcp | V6: =IFERROR((IF(SUMPRODUCT(MAX(ROW($C$2:$C5)*($C6=$C$2:$C5))-1)>SUMPRODUCT(MAX(ROW($D$2:$D5)*($C6=$D$2:$D5))-1),INDEX($X$2:$X5,SUMPRODUCT(MAX(ROW($C$2:$C5)*($C6=$C$2:$C5))-1)),INDEX($Y$2:$Y5,SUMPRODUCT(MAX(ROW($D$2:$D5)*($C6=$D$2:$D5))-1)))),_xlfn.IFNA(IF(VLOOKUP(C6,'30th June Rankings (Values)'!A:D,4,FALSE)>0,VLOOKUP(C6,'30th June Rankings (Values)'!A:D,4,FALSE),400),400)) -> 503.7250011 | W6: =IFERROR((IF(SUMPRODUCT(MAX(ROW($D$2:$D5)*($D6=$D$2:$D5))-1)>SUMPRODUCT(MAX(ROW($C$2:$C5)*($D6=$C$2:$C5))-1),INDEX($Y$2:$Y5,SUMPRODUCT(MAX(ROW($D$2:$D5)*($D6=$D$2:$D5))-1)),INDEX($X$2:$X5,SUMPRODUCT(MAX(ROW($C$2:$C5)*($D6=$C$2:$C5))-1)))),_xlfn.IFNA(IF(VLOOKUP(D6,'30th June Rankings (Values)'!A:D,4,FALSE)>0,VLOOKUP(D6,'30th June Rankings (Values)'!A:D,4,FALSE),400),400)) -> 330.1603002 | X6: =20*(E6-(1/(1+(10^((W6-V6)/400)))))+V6 -> 509.1072956 | Y6: =20*(F6-(1/(1+(10^((V6-W6)/400)))))+W6 -> 324.7780057 | Z6: =C6&D6 -> Ben SalamatianDavid Heredia | AA6: =VLOOKUP(L6,Countries!A:B,2,FALSE) -> USA | AB6: =IF(O6="","Y",(IF(Q6="","Y","N"))) -> Y | AC6: =IF(O6=Q6,"Y","N") -> N | AD6: =IF(J6<(TODAY()-60),"N","Y") -> Y | AE6: =_xlfn.MAXIFS(B:B,I:I,I6) -> 3 | AF6: =IF(AE6<5,"RTT/Casual",(IF(M6="TRUE","RTT/Casual",(IF(COUNTIF(I6,"*Team*"),"RTT/Casual",(IF(COUNTIF(I6,"*Double*"),"RTT/Casual","GT"))))))) -> RTT/Casual | AG6: =O6&Q6 -> Nighthaunt | AH6: =MONTH(J6) -> 7 | AI6: =((COUNTIFS(I:I,I6))/AE6)*2 -> 10.66666667 | AJ6: =VLOOKUP(I6,Battleplans!A:F,Matches!B6+1,FALSE) -> The Vice
A7: 573860 | B7: 1 | C7: Ian Osterhout | D7: matthew powell | E7: 0 | F7: 1 | I7: 4th Release RTT/Party @Layton Gaming | J7: 2024-07-13T04:00:00 | K7: 2024-07-13T13:00:00 | L7: United States | M7: FALSE | N7: 2023 | O7: Disciples of Tzeentch | Q7: Cities of Sigmar | R7: Ironweld Guild Army | U7: bcp | V7: =IFERROR((IF(SUMPRODUCT(MAX(ROW($C$2:$C6)*($C7=$C$2:$C6))-1)>SUMPRODUCT(MAX(ROW($D$2:$D6)*($C7=$D$2:$D6))-1),INDEX($X$2:$X6,SUMPRODUCT(MAX(ROW($C$2:$C6)*($C7=$C$2:$C6))-1)),INDEX($Y$2:$Y6,SUMPRODUCT(MAX(ROW($D$2:$D6)*($C7=$D$2:$D6))-1)))),_xlfn.IFNA(IF(VLOOKUP(C7,'30th June Rankings (Values)'!A:D,4,FALSE)>0,VLOOKUP(C7,'30th June Rankings (Values)'!A:D,4,FALSE),400),400)) -> 400 | W7: =IFERROR((IF(SUMPRODUCT(MAX(ROW($D$2:$D6)*($D7=$D$2:$D6))-1)>SUMPRODUCT(MAX(ROW($C$2:$C6)*($D7=$C$2:$C6))-1),INDEX($Y$2:$Y6,SUMPRODUCT(MAX(ROW($D$2:$D6)*($D7=$D$2:$D6))-1)),INDEX($X$2:$X6,SUMPRODUCT(MAX(ROW($C$2:$C6)*($D7=$C$2:$C6))-1)))),_xlfn.IFNA(IF(VLOOKUP(D7,'30th June Rankings (Values)'!A:D,4,FALSE)>0,VLOOKUP(D7,'30th June Rankings (Values)'!A:D,4,FALSE),400),400)) -> 619.9765376 | X7: =20*(E7-(1/(1+(10^((W7-V7)/400)))))+V7 -> 395.6021287 | Y7: =20*(F7-(1/(1+(10^((V7-W7)/400)))))+W7 -> 624.3744089 | Z7: =C7&D7 -> Ian Osterhoutmatthew powell | AA7: =VLOOKUP(L7,Countries!A:B,2,FALSE) -> USA | AB7: =IF(O7="","Y",(IF(Q7="","Y","N"))) -> N | AC7: =IF(O7=Q7,"Y","N") -> N | AD7: =IF(J7<(TODAY()-60),"N","Y") -> Y | AE7: =_xlfn.MAXIFS(B:B,I:I,I7) -> 3 | AF7: =IF(AE7<5,"RTT/Casual",(IF(M7="TRUE","RTT/Casual",(IF(COUNTIF(I7,"*Team*"),"RTT/Casual",(IF(COUNTIF(I7,"*Double*"),"RTT/Casual","GT"))))))) -> RTT/Casual | AG7: =O7&Q7 -> Disciples of TzeentchCities of Sigmar | AH7: =MONTH(J7) -> 7 | AI7: =((COUNTIFS(I:I,I7))/AE7)*2 -> 10.66666667 | AJ7: =VLOOKUP(I7,Battleplans!A:F,Matches!B7+1,FALSE) -> The Vice
A8: 573888 | B8: 1 | C8: Jon Bingus | D8: Benjamin Fults | E8: 1 | F8: 0 | I8: 4th Release RTT/Party @Layton Gaming | J8: 2024-07-13T04:00:00 | K8: 2024-07-13T13:00:00 | L8: United States | M8: FALSE | N8: 2023 | O8: Ogor Mawtribes | Q8: Blades of Khorne | R8: Khornate Legion | U8: bcp | V8: =IFERROR((IF(SUMPRODUCT(MAX(ROW($C$2:$C7)*($C8=$C$2:$C7))-1)>SUMPRODUCT(MAX(ROW($D$2:$D7)*($C8=$D$2:$D7))-1),INDEX($X$2:$X7,SUMPRODUCT(MAX(ROW($C$2:$C7)*($C8=$C$2:$C7))-1)),INDEX($Y$2:$Y7,SUMPRODUCT(MAX(ROW($D$2:$D7)*($C8=$D$2:$D7))-1)))),_xlfn.IFNA(IF(VLOOKUP(C8,'30th June Rankings (Values)'!A:D,4,FALSE)>0,VLOOKUP(C8,'30th June Rankings (Values)'!A:D,4,FALSE),400),400)) -> 398.03689 | W8: =IFERROR((IF(SUMPRODUCT(MAX(ROW($D$2:$D7)*($D8=$D$2:$D7))-1)>SUMPRODUCT(MAX(ROW($C$2:$C7)*($D8=$C$2:$C7))-1),INDEX($Y$2:$Y7,SUMPRODUCT(MAX(ROW($D$2:$D7)*($D8=$D$2:$D7))-1)),INDEX($X$2:$X7,SUMPRODUCT(MAX(ROW($C$2:$C7)*($D8=$C$2:$C7))-1)))),_xlfn.IFNA(IF(VLOOKUP(D8,'30th June Rankings (Values)'!A:D,4,FALSE)>0,VLOOKUP(D8,'30th June Rankings (Values)'!A:D,4,FALSE),400),400)) -> 477.7695676 | X8: =20*(E8-(1/(1+(10^((W8-V8)/400)))))+V8 -> 410.2923249 | Y8: =20*(F8-(1/(1+(10^((V8-W8)/400)))))+W8 -> 465.5141327 | Z8: =C8&D8 -> Jon BingusBenjamin Fults | AA8: =VLOOKUP(L8,Countries!A:B,2,FALSE) -> USA | AB8: =IF(O8="","Y",(IF(Q8="","Y","N"))) -> N | AC8: =IF(O8=Q8,"Y","N") -> N | AD8: =IF(J8<(TODAY()-60),"N","Y") -> Y | AE8: =_xlfn.MAXIFS(B:B,I:I,I8) -> 3 | AF8: =IF(AE8<5,"RTT/Casual",(IF(M8="TRUE","RTT/Casual",(IF(COUNTIF(I8,"*Team*"),"RTT/Casual",(IF(COUNTIF(I8,"*Double*"),"RTT/Casual","GT"))))))) -> RTT/Casual | AG8: =O8&Q8 -> Ogor MawtribesBlades of Khorne | AH8: =MONTH(J8) -> 7 | AI8: =((COUNTIFS(I:I,I8))/AE8)*2 -> 10.66666667 | AJ8: =VLOOKUP(I8,Battleplans!A:F,Matches!B8+1,FALSE) -> The Vice
A9: 573913 | B9: 1 | C9: William Fahye | D9: Joe Feldhake | E9: 0 | F9: 1 | I9: 4th Release RTT/Party @Layton Gaming | J9: 2024-07-13T04:00:00 | K9: 2024-07-13T13:00:00 | L9: United States | M9: FALSE | N9: 2023 | O9: Maggotkin of Nurgle | P9: Tallyband of Nurgle | U9: bcp | V9: =IFERROR((IF(SUMPRODUCT(MAX(ROW($C$2:$C8)*($C9=$C$2:$C8))-1)>SUMPRODUCT(MAX(ROW($D$2:$D8)*($C9=$D$2:$D8))-1),INDEX($X$2:$X8,SUMPRODUCT(MAX(ROW($C$2:$C8)*($C9=$C$2:$C8))-1)),INDEX($Y$2:$Y8,SUMPRODUCT(MAX(ROW($D$2:$D8)*($C9=$D$2:$D8))-1)))),_xlfn.IFNA(IF(VLOOKUP(C9,'30th June Rankings (Values)'!A:D,4,FALSE)>0,VLOOKUP(C9,'30th June Rankings (Values)'!A:D,4,FALSE),400),400)) -> 337.508387 | W9: =IFERROR((IF(SUMPRODUCT(MAX(ROW($D$2:$D8)*($D9=$D$2:$D8))-1)>SUMPRODUCT(MAX(ROW($C$2:$C8)*($D9=$C$2:$C8))-1),INDEX($Y$2:$Y8,SUMPRODUCT(MAX(ROW($D$2:$D8)*($D9=$D$2:$D8))-1)),INDEX($X$2:$X8,SUMPRODUCT(MAX(ROW($C$2:$C8)*($D9=$C$2:$C8))-1)))),_xlfn.IFNA(IF(VLOOKUP(D9,'30th June Rankings (Values)'!A:D,4,FALSE)>0,VLOOKUP(D9,'30th June Rankings (Values)'!A:D,4,FALSE),400),400)) -> 400 | X9: =20*(E9-(1/(1+(10^((W9-V9)/400)))))+V9 -> 329.2878916 | Y9: =20*(F9-(1/(1+(10^((V9-W9)/400)))))+W9 -> 408.2204954 | Z9: =C9&D9 -> William FahyeJoe Feldhake | AA9: =VLOOKUP(L9,Countries!A:B,2,FALSE) -> USA | AB9: =IF(O9="","Y",(IF(Q9="","Y","N"))) -> Y | AC9: =IF(O9=Q9,"Y","N") -> N | AD9: =IF(J9<(TODAY()-60),"N","Y") -> Y | AE9: =_xlfn.MAXIFS(B:B,I:I,I9) -> 3 | AF9: =IF(AE9<5,"RTT/Casual",(IF(M9="TRUE","RTT/Casual",(IF(COUNTIF(I9,"*Team*"),"RTT/Casual",(IF(COUNTIF(I9,"*Double*"),"RTT/Casual","GT"))))))) -> RTT/Casual | AG9: =O9&Q9 -> Maggotkin of Nurgle | AH9: =MONTH(J9) -> 7 | AI9: =((COUNTIFS(I:I,I9))/AE9)*2 -> 10.66666667 | AJ9: =VLOOKUP(I9,Battleplans!A:F,Matches!B9+1,FALSE) -> The Vice
A10: 573953 | B10: 2 | C10: William Fahye | D10: David Heredia | E10: 1 | F10: 0 | I10: 4th Release RTT/Party @Layton Gaming | J10: 2024-07-13T04:00:00 | K10: 2024-07-13T13:00:00 | L10: United States | M10: FALSE | N10: 2023 | O10: Maggotkin of Nurgle | P10: Tallyband of Nurgle | U10: bcp | V10: =IFERROR((IF(SUMPRODUCT(MAX(ROW($C$2:$C9)*($C10=$C$2:$C9))-1)>SUMPRODUCT(MAX(ROW($D$2:$D9)*($C10=$D$2:$D9))-1),INDEX($X$2:$X9,SUMPRODUCT(MAX(ROW($C$2:$C9)*($C10=$C$2:$C9))-1)),INDEX($Y$2:$Y9,SUMPRODUCT(MAX(ROW($D$2:$D9)*($C10=$D$2:$D9))-1)))),_xlfn.IFNA(IF(VLOOKUP(C10,'30th June Rankings (Values)'!A:D,4,FALSE)>0,VLOOKUP(C10,'30th June Rankings (Values)'!A:D,4,FALSE),400),400)) -> 329.2878916 | W10: =IFERROR((IF(SUMPRODUCT(MAX(ROW($D$2:$D9)*($D10=$D$2:$D9))-1)>SUMPRODUCT(MAX(ROW($C$2:$C9)*($D10=$C$2:$C9))-1),INDEX($Y$2:$Y9,SUMPRODUCT(MAX(ROW($D$2:$D9)*($D10=$D$2:$D9))-1)),INDEX($X$2:$X9,SUMPRODUCT(MAX(ROW($C$2:$C9)*($D10=$C$2:$C9))-1)))),_xlfn.IFNA(IF(VLOOKUP(D10,'30th June Rankings (Values)'!A:D,4,FALSE)>0,VLOOKUP(D10,'30th June Rankings (Values)'!A:D,4,FALSE),400),400)) -> 324.7780057 | X10: =20*(E10-(1/(1+(10^((W10-V10)/400)))))+V10 -> 339.1580939 | Y10: =20*(F10-(1/(1+(10^((V10-W10)/400)))))+W10 -> 314.9078034 | Z10: =C10&D10 -> William FahyeDavid Heredia | AA10: =VLOOKUP(L10,Countries!A:B,2,FALSE) -> USA | AB10: =IF(O10="","Y",(IF(Q10="","Y","N"))) -> Y | AC10: =IF(O10=Q10,"Y","N") -> N | AD10: =IF(J10<(TODAY()-60),"N","Y") -> Y | AE10: =_xlfn.MAXIFS(B:B,I:I,I10) -> 3 | AF10: =IF(AE10<5,"RTT/Casual",(IF(M10="TRUE","RTT/Casual",(IF(COUNTIF(I10,"*Team*"),"RTT/Casual",(IF(COUNTIF(I10,"*Double*"),"RTT/Casual","GT"))))))) -> RTT/Casual | AG10: =O10&Q10 -> Maggotkin of Nurgle | AH10: =MONTH(J10) -> 7 | AI10: =((COUNTIFS(I:I,I10))/AE10)*2 -> 10.66666667 | AJ10: =VLOOKUP(I10,Battleplans!A:F,Matches!B10+1,FALSE) -> Jaws of Gallet
A11: 573980 | B11: 2 | C11: Benjamin Fults | D11: Frank Raymond | E11: 1 | F11: 0 | I11: 4th Release RTT/Party @Layton Gaming | J11: 2024-07-13T04:00:00 | K11: 2024-07-13T13:00:00 | L11: United States | M11: FALSE | N11: 2023 | O11: Blades of Khorne | P11: Khornate Legion | Q11: Soulblight Gravelords | U11: bcp | V11: =IFERROR((IF(SUMPRODUCT(MAX(ROW($C$2:$C10)*($C11=$C$2:$C10))-1)>SUMPRODUCT(MAX(ROW($D$2:$D10)*($C11=$D$2:$D10))-1),INDEX($X$2:$X10,SUMPRODUCT(MAX(ROW($C$2:$C10)*($C11=$C$2:$C10))-1)),INDEX($Y$2:$Y10,SUMPRODUCT(MAX(ROW($D$2:$D10)*($C11=$D$2:$D10))-1)))),_xlfn.IFNA(IF(VLOOKUP(C11,'30th June Rankings (Values)'!A:D,4,FALSE)>0,VLOOKUP(C11,'30th June Rankings (Values)'!A:D,4,FALSE),400),400)) -> 465.5141327 | W11: =IFERROR((IF(SUMPRODUCT(MAX(ROW($D$2:$D10)*($D11=$D$2:$D10))-1)>SUMPRODUCT(MAX(ROW($C$2:$C10)*($D11=$C$2:$C10))-1),INDEX($Y$2:$Y10,SUMPRODUCT(MAX(ROW($D$2:$D10)*($D11=$D$2:$D10))-1)),INDEX($X$2:$X10,SUMPRODUCT(MAX(ROW($C$2:$C10)*($D11=$C$2:$C10))-1)))),_xlfn.IFNA(IF(VLOOKUP(D11,'30th June Rankings (Values)'!A:D,4,FALSE)>0,VLOOKUP(D11,'30th June Rankings (Values)'!A:D,4,FALSE),400),400)) -> 390 | X11: =20*(E11-(1/(1+(10^((W11-V11)/400)))))+V11 -> 473.3742515 | Y11: =20*(F11-(1/(1+(10^((V11-W11)/400)))))+W11 -> 382.1398813 | Z11: =C11&D11 -> Benjamin FultsFrank Raymond | AA11: =VLOOKUP(L11,Countries!A:B,2,FALSE) -> USA | AB11: =IF(O11="","Y",(IF(Q11="","Y","N"))) -> N | AC11: =IF(O11=Q11,"Y","N") -> N | AD11: =IF(J11<(TODAY()-60),"N","Y") -> Y | AE11: =_xlfn.MAXIFS(B:B,I:I,I11) -> 3 | AF11: =IF(AE11<5,"RTT/Casual",(IF(M11="TRUE","RTT/Casual",(IF(COUNTIF(I11,"*Team*"),"RTT/Casual",(IF(COUNTIF(I11,"*Double*"),"RTT/Casual","GT"))))))) -> RTT/Casual | AG11: =O11&Q11 -> Blades of KhorneSoulblight Gravelords | AH11: =MONTH(J11) -> 7 | AI11: =((COUNTIFS(I:I,I11))/AE11)*2 -> 10.66666667 | AJ11: =VLOOKUP(I11,Battleplans!A:F,Matches!B11+1,FALSE) -> Jaws of Gallet
A12: 574008 | B12: 2 | C12: Ben Salamatian | D12: matthew powell | E12: 0 | F12: 1 | I12: 4th Release RTT/Party @Layton Gaming | J12: 2024-07-13T04:00:00 | K12: 2024-07-13T13:00:00 | L12: United States | M12: FALSE | N12: 2023 | O12: Nighthaunt | Q12: Cities of Sigmar | R12: Ironweld Guild Army | U12: bcp | V12: =IFERROR((IF(SUMPRODUCT(MAX(ROW($C$2:$C11)*($C12=$C$2:$C11))-1)>SUMPRODUCT(MAX(ROW($D$2:$D11)*($C12=$D$2:$D11))-1),INDEX($X$2:$X11,SUMPRODUCT(MAX(ROW($C$2:$C11)*($C12=$C$2:$C11))-1)),INDEX($Y$2:$Y11,SUMPRODUCT(MAX(ROW($D$2:$D11)*($C12=$D$2:$D11))-1)))),_xlfn.IFNA(IF(VLOOKUP(C12,'30th June Rankings (Values)'!A:D,4,FALSE)>0,VLOOKUP(C12,'30th June Rankings (Values)'!A:D,4,FALSE),400),400)) -> 509.1072956 | W12: =IFERROR((IF(SUMPRODUCT(MAX(ROW($D$2:$D11)*($D12=$D$2:$D11))-1)>SUMPRODUCT(MAX(ROW($C$2:$C11)*($D12=$C$2:$C11))-1),INDEX($Y$2:$Y11,SUMPRODUCT(MAX(ROW($D$2:$D11)*($D12=$D$2:$D11))-1)),INDEX($X$2:$X11,SUMPRODUCT(MAX(ROW($C$2:$C11)*($D12=$C$2:$C11))-1)))),_xlfn.IFNA(IF(VLOOKUP(D12,'30th June Rankings (Values)'!A:D,4,FALSE)>0,VLOOKUP(D12,'30th June Rankings (Values)'!A:D,4,FALSE),400),400)) -> 624.3744089 | X12: =20*(E12-(1/(1+(10^((W12-V12)/400)))))+V12 -> 502.3083575 | Y12: =20*(F12-(1/(1+(10^((V12-W12)/400)))))+W12 -> 631.173347 | Z12: =C12&D12 -> Ben Salamatianmatthew powell | AA12: =VLOOKUP(L12,Countries!A:B,2,FALSE) -> USA | AB12: =IF(O12="","Y",(IF(Q12="","Y","N"))) -> N | AC12: =IF(O12=Q12,"Y","N") -> N | AD12: =IF(J12<(TODAY()-60),"N","Y") -> Y | AE12: =_xlfn.MAXIFS(B:B,I:I,I12) -> 3 | AF12: =IF(AE12<5,"RTT/Casual",(IF(M12="TRUE","RTT/Casual",(IF(COUNTIF(I12,"*Team*"),"RTT/Casual",(IF(COUNTIF(I12,"*Double*"),"RTT/Casual","GT"))))))) -> RTT/Casual | AG12: =O12&Q12 -> NighthauntCities of Sigmar | AH12: =MONTH(J12) -> 7 | AI12: =((COUNTIFS(I:I,I12))/AE12)*2 -> 10.66666667 | AJ12: =VLOOKUP(I12,Battleplans!A:F,Matches!B12+1,FALSE) -> Jaws of Gallet
A13: 574027 | B13: 2 | C13: Zachary Shinn | D13: Ian Osterhout | E13: 1 | F13: 0 | I13: 4th Release RTT/Party @Layton Gaming | J13: 2024-07-13T04:00:00 | K13: 2024-07-13T13:00:00 | L13: United States | M13: FALSE | N13: 2023 | O13: Kruleboyz | Q13: Disciples of Tzeentch | U13: bcp | V13: =IFERROR((IF(SUMPRODUCT(MAX(ROW($C$2:$C12)*($C13=$C$2:$C12))-1)>SUMPRODUCT(MAX(ROW($D$2:$D12)*($C13=$D$2:$D12))-1),INDEX($X$2:$X12,SUMPRODUCT(MAX(ROW($C$2:$C12)*($C13=$C$2:$C12))-1)),INDEX($Y$2:$Y12,SUMPRODUCT(MAX(ROW($D$2:$D12)*($C13=$D$2:$D12))-1)))),_xlfn.IFNA(IF(VLOOKUP(C13,'30th June Rankings (Values)'!A:D,4,FALSE)>0,VLOOKUP(C13,'30th June Rankings (Values)'!A:D,4,FALSE),400),400)) -> 632.3551036 | W13: =IFERROR((IF(SUMPRODUCT(MAX(ROW($D$2:$D12)*($D13=$D$2:$D12))-1)>SUMPRODUCT(MAX(ROW($C$2:$C12)*($D13=$C$2:$C12))-1),INDEX($Y$2:$Y12,SUMPRODUCT(MAX(ROW($D$2:$D12)*($D13=$D$2:$D12))-1)),INDEX($X$2:$X12,SUMPRODUCT(MAX(ROW($C$2:$C12)*($D13=$C$2:$C12))-1)))),_xlfn.IFNA(IF(VLOOKUP(D13,'30th June Rankings (Values)'!A:D,4,FALSE)>0,VLOOKUP(D13,'30th June Rankings (Values)'!A:D,4,FALSE),400),400)) -> 395.6021287 | X13: =20*(E13-(1/(1+(10^((W13-V13)/400)))))+V13 -> 636.430622 | Y13: =20*(F13-(1/(1+(10^((V13-W13)/400)))))+W13 -> 391.5266103 | Z13: =C13&D13 -> Zachary ShinnIan Osterhout | AA13: =VLOOKUP(L13,Countries!A:B,2,FALSE) -> USA | AB13: =IF(O13="","Y",(IF(Q13="","Y","N"))) -> N | AC13: =IF(O13=Q13,"Y","N") -> N | AD13: =IF(J13<(TODAY()-60),"N","Y") -> Y | AE13: =_xlfn.MAXIFS(B:B,I:I,I13) -> 3 | AF13: =IF(AE13<5,"RTT/Casual",(IF(M13="TRUE","RTT/Casual",(IF(COUNTIF(I13,"*Team*"),"RTT/Casual",(IF(COUNTIF(I13,"*Double*"),"RTT/Casual","GT"))))))) -> RTT/Casual | AG13: =O13&Q13 -> KruleboyzDisciples of Tzeentch | AH13: =MONTH(J13) -> 7 | AI13: =((COUNTIFS(I:I,I13))/AE13)*2 -> 10.66666667 | AJ13: =VLOOKUP(I13,Battleplans!A:F,Matches!B13+1,FALSE) -> Jaws of Gallet
A14: 574054 | B14: 2 | C14: Jacob Parson | D14: Jon Bingus | E14: 0 | F14: 1 | I14: 4th Release RTT/Party @Layton Gaming | J14: 2024-07-13T04:00:00 | K14: 2024-07-13T13:00:00 | L14: United States | M14: FALSE | N14: 2023 | Q14: Sons of Behemat | U14: bcp | V14: =IFERROR((IF(SUMPRODUCT(MAX(ROW($C$2:$C13)*($C14=$C$2:$C13))-1)>SUMPRODUCT(MAX(ROW($D$2:$D13)*($C14=$D$2:$D13))-1),INDEX($X$2:$X13,SUMPRODUCT(MAX(ROW($C$2:$C13)*($C14=$C$2:$C13))-1)),INDEX($Y$2:$Y13,SUMPRODUCT(MAX(ROW($D$2:$D13)*($C14=$D$2:$D13))-1)))),_xlfn.IFNA(IF(VLOOKUP(C14,'30th June Rankings (Values)'!A:D,4,FALSE)>0,VLOOKUP(C14,'30th June Rankings (Values)'!A:D,4,FALSE),400),400)) -> 410 | W14: =IFERROR((IF(SUMPRODUCT(MAX(ROW($D$2:$D13)*($D14=$D$2:$D13))-1)>SUMPRODUCT(MAX(ROW($C$2:$C13)*($D14=$C$2:$C13))-1),INDEX($Y$2:$Y13,SUMPRODUCT(MAX(ROW($D$2:$D13)*($D14=$D$2:$D13))-1)),INDEX($X$2:$X13,SUMPRODUCT(MAX(ROW($C$2:$C13)*($D14=$C$2:$C13))-1)))),_xlfn.IFNA(IF(VLOOKUP(D14,'30th June Rankings (Values)'!A:D,4,FALSE)>0,VLOOKUP(D14,'30th June Rankings (Values)'!A:D,4,FALSE),400),400)) -> 410.2923249 | X14: =20*(E14-(1/(1+(10^((W14-V14)/400)))))+V14 -> 400.0084138 | Y14: =20*(F14-(1/(1+(10^((V14-W14)/400)))))+W14 -> 420.2839111 | Z14: =C14&D14 -> Jacob ParsonJon Bingus | AA14: =VLOOKUP(L14,Countries!A:B,2,FALSE) -> USA | AB14: =IF(O14="","Y",(IF(Q14="","Y","N"))) -> Y | AC14: =IF(O14=Q14,"Y","N") -> N | AD14: =IF(J14<(TODAY()-60),"N","Y") -> Y | AE14: =_xlfn.MAXIFS(B:B,I:I,I14) -> 3 | AF14: =IF(AE14<5,"RTT/Casual",(IF(M14="TRUE","RTT/Casual",(IF(COUNTIF(I14,"*Team*"),"RTT/Casual",(IF(COUNTIF(I14,"*Double*"),"RTT/Casual","GT"))))))) -> RTT/Casual | AG14: =O14&Q14 -> Sons of Behemat | AH14: =MONTH(J14) -> 7 | AI14: =((COUNTIFS(I:I,I14))/AE14)*2 -> 10.66666667 | AJ14: =VLOOKUP(I14,Battleplans!A:F,Matches!B14+1,FALSE) -> Jaws of Gallet
A15: 574097 | B15: 3 | C15: Benjamin Fults | D15: Zachary Shinn | E15: 0 | F15: 1 | I15: 4th Release RTT/Party @Layton Gaming | J15: 2024-07-13T04:00:00 | K15: 2024-07-13T13:00:00 | L15: United States | M15: FALSE | N15: 2023 | O15: Blades of Khorne | P15: Khornate Legion | Q15: Kruleboyz | U15: bcp | V15: =IFERROR((IF(SUMPRODUCT(MAX(ROW($C$2:$C14)*($C15=$C$2:$C14))-1)>SUMPRODUCT(MAX(ROW($D$2:$D14)*($C15=$D$2:$D14))-1),INDEX($X$2:$X14,SUMPRODUCT(MAX(ROW($C$2:$C14)*($C15=$C$2:$C14))-1)),INDEX($Y$2:$Y14,SUMPRODUCT(MAX(ROW($D$2:$D14)*($C15=$D$2:$D14))-1)))),_xlfn.IFNA(IF(VLOOKUP(C15,'30th June Rankings (Values)'!A:D,4,FALSE)>0,VLOOKUP(C15,'30th June Rankings (Values)'!A:D,4,FALSE),400),400)) -> 473.3742515 | W15: =IFERROR((IF(SUMPRODUCT(MAX(ROW($D$2:$D14)*($D15=$D$2:$D14))-1)>SUMPRODUCT(MAX(ROW($C$2:$C14)*($D15=$C$2:$C14))-1),INDEX($Y$2:$Y14,SUMPRODUCT(MAX(ROW($D$2:$D14)*($D15=$D$2:$D14))-1)),INDEX($X$2:$X14,SUMPRODUCT(MAX(ROW($C$2:$C14)*($D15=$C$2:$C14))-1)))),_xlfn.IFNA(IF(VLOOKUP(D15,'30th June Rankings (Values)'!A:D,4,FALSE)>0,VLOOKUP(D15,'30th June Rankings (Values)'!A:D,4,FALSE),400),400)) -> 636.430622 | X15: =20*(E15-(1/(1+(10^((W15-V15)/400)))))+V15 -> 467.7506999 | Y15: =20*(F15-(1/(1+(10^((V15-W15)/400)))))+W15 -> 642.0541736 | Z15: =C15&D15 -> Benjamin FultsZachary Shinn | AA15: =VLOOKUP(L15,Countries!A:B,2,FALSE) -> USA | AB15: =IF(O15="","Y",(IF(Q15="","Y","N"))) -> N | AC15: =IF(O15=Q15,"Y","N") -> N | AD15: =IF(J15<(TODAY()-60),"N","Y") -> Y | AE15: =_xlfn.MAXIFS(B:B,I:I,I15) -> 3 | AF15: =IF(AE15<5,"RTT/Casual",(IF(M15="TRUE","RTT/Casual",(IF(COUNTIF(I15,"*Team*"),"RTT/Casual",(IF(COUNTIF(I15,"*Double*"),"RTT/Casual","GT"))))))) -> RTT/Casual | AG15: =O15&Q15 -> Blades of KhorneKruleboyz | AH15: =MONTH(J15) -> 7 | AI15: =((COUNTIFS(I:I,I15))/AE15)*2 -> 10.66666667 | AJ15: =VLOOKUP(I15,Battleplans!A:F,Matches!B15+1,FALSE) -> Border War
A16: 574121 | B16: 3 | C16: Jon Bingus | D16: Jonathan Weretka | E16: 0 | F16: 1 | I16: 4th Release RTT/Party @Layton Gaming | J16: 2024-07-13T04:00:00 | K16: 2024-07-13T13:00:00 | L16: United States | M16: FALSE | N16: 2023 | O16: Ogor Mawtribes | U16: bcp | V16: =IFERROR((IF(SUMPRODUCT(MAX(ROW($C$2:$C15)*($C16=$C$2:$C15))-1)>SUMPRODUCT(MAX(ROW($D$2:$D15)*($C16=$D$2:$D15))-1),INDEX($X$2:$X15,SUMPRODUCT(MAX(ROW($C$2:$C15)*($C16=$C$2:$C15))-1)),INDEX($Y$2:$Y15,SUMPRODUCT(MAX(ROW($D$2:$D15)*($C16=$D$2:$D15))-1)))),_xlfn.IFNA(IF(VLOOKUP(C16,'30th June Rankings (Values)'!A:D,4,FALSE)>0,VLOOKUP(C16,'30th June Rankings (Values)'!A:D,4,FALSE),400),400)) -> 420.2839111 | W16: =IFERROR((IF(SUMPRODUCT(MAX(ROW($D$2:$D15)*($D16=$D$2:$D15))-1)>SUMPRODUCT(MAX(ROW($C$2:$C15)*($D16=$C$2:$C15))-1),INDEX($Y$2:$Y15,SUMPRODUCT(MAX(ROW($D$2:$D15)*($D16=$D$2:$D15))-1)),INDEX($X$2:$X15,SUMPRODUCT(MAX(ROW($C$2:$C15)*($D16=$C$2:$C15))-1)))),_xlfn.IFNA(IF(VLOOKUP(D16,'30th June Rankings (Values)'!A:D,4,FALSE)>0,VLOOKUP(D16,'30th June Rankings (Values)'!A:D,4,FALSE),400),400)) -> 552.1096122 | X16: =20*(E16-(1/(1+(10^((W16-V16)/400)))))+V16 -> 413.90599 | Y16: =20*(F16-(1/(1+(10^((V16-W16)/400)))))+W16 -> 558.4875332 | Z16: =C16&D16 -> Jon BingusJonathan Weretka | AA16: =VLOOKUP(L16,Countries!A:B,2,FALSE) -> USA | AB16: =IF(O16="","Y",(IF(Q16="","Y","N"))) -> Y | AC16: =IF(O16=Q16,"Y","N") -> N | AD16: =IF(J16<(TODAY()-60),"N","Y") -> Y | AE16: =_xlfn.MAXIFS(B:B,I:I,I16) -> 3 | AF16: =IF(AE16<5,"RTT/Casual",(IF(M16="TRUE","RTT/Casual",(IF(COUNTIF(I16,"*Team*"),"RTT/Casual",(IF(COUNTIF(I16,"*Double*"),"RTT/Casual","GT"))))))) -> RTT/Casual | AG16: =O16&Q16 -> Ogor Mawtribes | AH16: =MONTH(J16) -> 7 | AI16: =((COUNTIFS(I:I,I16))/AE16)*2 -> 10.66666667 | AJ16: =VLOOKUP(I16,Battleplans!A:F,Matches!B16+1,FALSE) -> Border War
A17: 574147 | B17: 3 | C17: Ben Salamatian | D17: William Fahye | E17: 1 | F17: 0 | I17: 4th Release RTT/Party @Layton Gaming | J17: 2024-07-13T04:00:00 | K17: 2024-07-13T13:00:00 | L17: United States | M17: FALSE | N17: 2023 | O17: Nighthaunt | Q17: Maggotkin of Nurgle | R17: Tallyband of Nurgle | U17: bcp | V17: =IFERROR((IF(SUMPRODUCT(MAX(ROW($C$2:$C16)*($C17=$C$2:$C16))-1)>SUMPRODUCT(MAX(ROW($D$2:$D16)*($C17=$D$2:$D16))-1),INDEX($X$2:$X16,SUMPRODUCT(MAX(ROW($C$2:$C16)*($C17=$C$2:$C16))-1)),INDEX($Y$2:$Y16,SUMPRODUCT(MAX(ROW($D$2:$D16)*($C17=$D$2:$D16))-1)))),_xlfn.IFNA(IF(VLOOKUP(C17,'30th June Rankings (Values)'!A:D,4,FALSE)>0,VLOOKUP(C17,'30th June Rankings (Values)'!A:D,4,FALSE),400),400)) -> 502.3083575 | W17: =IFERROR((IF(SUMPRODUCT(MAX(ROW($D$2:$D16)*($D17=$D$2:$D16))-1)>SUMPRODUCT(MAX(ROW($C$2:$C16)*($D17=$C$2:$C16))-1),INDEX($Y$2:$Y16,SUMPRODUCT(MAX(ROW($D$2:$D16)*($D17=$D$2:$D16))-1)),INDEX($X$2:$X16,SUMPRODUCT(MAX(ROW($C$2:$C16)*($D17=$C$2:$C16))-1)))),_xlfn.IFNA(IF(VLOOKUP(D17,'30th June Rankings (Values)'!A:D,4,FALSE)>0,VLOOKUP(D17,'30th June Rankings (Values)'!A:D,4,FALSE),400),400)) -> 339.1580939 | X17: =20*(E17-(1/(1+(10^((W17-V17)/400)))))+V17 -> 507.9297245 | Y17: =20*(F17-(1/(1+(10^((V17-W17)/400)))))+W17 -> 333.5367269 | Z17: =C17&D17 -> Ben SalamatianWilliam Fahye | AA17: =VLOOKUP(L17,Countries!A:B,2,FALSE) -> USA | AB17: =IF(O17="","Y",(IF(Q17="","Y","N"))) -> N | AC17: =IF(O17=Q17,"Y","N") -> N | AD17: =IF(J17<(TODAY()-60),"N","Y") -> Y | AE17: =_xlfn.MAXIFS(B:B,I:I,I17) -> 3 | AF17: =IF(AE17<5,"RTT/Casual",(IF(M17="TRUE","RTT/Casual",(IF(COUNTIF(I17,"*Team*"),"RTT/Casual",(IF(COUNTIF(I17,"*Double*"),"RTT/Casual","GT"))))))) -> RTT/Casual | AG17: =O17&Q17 -> NighthauntMaggotkin of Nurgle | AH17: =MONTH(J17) -> 7 | AI17: =((COUNTIFS(I:I,I17))/AE17)*2 -> 10.66666667 | AJ17: =VLOOKUP(I17,Battleplans!A:F,Matches!B17+1,FALSE) -> Border War
A18: 574166 | B18: 3 | C18: David Heredia | D18: Frank Raymond | E18: 1 | F18: 0 | I18: 4th Release RTT/Party @Layton Gaming | J18: 2024-07-13T04:00:00 | K18: 2024-07-13T13:00:00 | L18: United States | M18: FALSE | N18: 2023 | Q18: Soulblight Gravelords | U18: bcp | V18: =IFERROR((IF(SUMPRODUCT(MAX(ROW($C$2:$C17)*($C18=$C$2:$C17))-1)>SUMPRODUCT(MAX(ROW($D$2:$D17)*($C18=$D$2:$D17))-1),INDEX($X$2:$X17,SUMPRODUCT(MAX(ROW($C$2:$C17)*($C18=$C$2:$C17))-1)),INDEX($Y$2:$Y17,SUMPRODUCT(MAX(ROW($D$2:$D17)*($C18=$D$2:$D17))-1)))),_xlfn.IFNA(IF(VLOOKUP(C18,'30th June Rankings (Values)'!A:D,4,FALSE)>0,VLOOKUP(C18,'30th June Rankings (Values)'!A:D,4,FALSE),400),400)) -> 314.9078034 | W18: =IFERROR((IF(SUMPRODUCT(MAX(ROW($D$2:$D17)*($D18=$D$2:$D17))-1)>SUMPRODUCT(MAX(ROW($C$2:$C17)*($D18=$C$2:$C17))-1),INDEX($Y$2:$Y17,SUMPRODUCT(MAX(ROW($D$2:$D17)*($D18=$D$2:$D17))-1)),INDEX($X$2:$X17,SUMPRODUCT(MAX(ROW($C$2:$C17)*($D18=$C$2:$C17))-1)))),_xlfn.IFNA(IF(VLOOKUP(D18,'30th June Rankings (Values)'!A:D,4,FALSE)>0,VLOOKUP(D18,'30th June Rankings (Values)'!A:D,4,FALSE),400),400)) -> 382.1398813 | X18: =20*(E18-(1/(1+(10^((W18-V18)/400)))))+V18 -> 326.8191007 | Y18: =20*(F18-(1/(1+(10^((V18-W18)/400)))))+W18 -> 370.2285839 | Z18: =C18&D18 -> David HerediaFrank Raymond | AA18: =VLOOKUP(L18,Countries!A:B,2,FALSE) -> USA | AB18: =IF(O18="","Y",(IF(Q18="","Y","N"))) -> Y | AC18: =IF(O18=Q18,"Y","N") -> N | AD18: =IF(J18<(TODAY()-60),"N","Y") -> Y | AE18: =_xlfn.MAXIFS(B:B,I:I,I18) -> 3 | AF18: =IF(AE18<5,"RTT/Casual",(IF(M18="TRUE","RTT/Casual",(IF(COUNTIF(I18,"*Team*"),"RTT/Casual",(IF(COUNTIF(I18,"*Double*"),"RTT/Casual","GT"))))))) -> RTT/Casual | AG18: =O18&Q18 -> Soulblight Gravelords | AH18: =MONTH(J18) -> 7 | AI18: =((COUNTIFS(I:I,I18))/AE18)*2 -> 10.66666667 | AJ18: =VLOOKUP(I18,Battleplans!A:F,Matches!B18+1,FALSE) -> Border War
A19: 574632 | B19: 1 | C19: Toby Gilham | D19: Peter Twigg | E19: 0 | F19: 1 | G19: 0 | H19: 20 | I19: Age of Sigmar 4 Bootcamp 1 | J19: 2024-07-13T08:30:00 | K19: 2024-07-14T16:30:00 | L19: GB | M19: FALSE | N19: 2023 | O19: Ossiarch Bonereapers | P19: Mortisan Council | Q19: Cities of Sigmar | R19: Ironweld Guild Army | U19: bcp | V19: =IFERROR((IF(SUMPRODUCT(MAX(ROW($C$2:$C18)*($C19=$C$2:$C18))-1)>SUMPRODUCT(MAX(ROW($D$2:$D18)*($C19=$D$2:$D18))-1),INDEX($X$2:$X18,SUMPRODUCT(MAX(ROW($C$2:$C18)*($C19=$C$2:$C18))-1)),INDEX($Y$2:$Y18,SUMPRODUCT(MAX(ROW($D$2:$D18)*($C19=$D$2:$D18))-1)))),_xlfn.IFNA(IF(VLOOKUP(C19,'30th June Rankings (Values)'!A:D,4,FALSE)>0,VLOOKUP(C19,'30th June Rankings (Values)'!A:D,4,FALSE),400),400)) -> 400 | W19: =IFERROR((IF(SUMPRODUCT(MAX(ROW($D$2:$D18)*($D19=$D$2:$D18))-1)>SUMPRODUCT(MAX(ROW($C$2:$C18)*($D19=$C$2:$C18))-1),INDEX($Y$2:$Y18,SUMPRODUCT(MAX(ROW($D$2:$D18)*($D19=$D$2:$D18))-1)),INDEX($X$2:$X18,SUMPRODUCT(MAX(ROW($C$2:$C18)*($D19=$C$2:$C18))-1)))),_xlfn.IFNA(IF(VLOOKUP(D19,'30th June Rankings (Values)'!A:D,4,FALSE)>0,VLOOKUP(D19,'30th June Rankings (Values)'!A:D,4,FALSE),400),400)) -> 568.4032913 | X19: =20*(E19-(1/(1+(10^((W19-V19)/400)))))+V19 -> 394.5000268 | Y19: =20*(F19-(1/(1+(10^((V19-W19)/400)))))+W19 -> 573.9032645 | Z19: =C19&D19 -> Toby GilhamPeter Twigg | AA19: =VLOOKUP(L19,Countries!A:B,2,FALSE) -> GBR | AB19: =IF(O19="","Y",(IF(Q19="","Y","N"))) -> N | AC19: =IF(O19=Q19,"Y","N") -> N | AD19: =IF(J19<(TODAY()-60),"N","Y") -> Y | AE19: =_xlfn.MAXIFS(B:B,I:I,I19) -> 5 | AF19: =IF(AE19<5,"RTT/Casual",(IF(M19="TRUE","RTT/Casual",(IF(COUNTIF(I19,"*Team*"),"RTT/Casual",(IF(COUNTIF(I19,"*Double*"),"RTT/Casual","GT"))))))) -> GT | AG19: =O19&Q19 -> Ossiarch BonereapersCities of Sigmar | AH19: =MONTH(J19) -> 7 | AI19: =((COUNTIFS(I:I,I19))/AE19)*2 -> 20 | AJ19: =VLOOKUP(I19,Battleplans!A:F,Matches!B19+1,FALSE) -> 0
A20: 574659 | B20: 1 | C20: Thom Ashworth | D20: Jon Serrano Martin | E20: 0 | F20: 1 | G20: 4 | H20: 16 | I20: Age of Sigmar 4 Bootcamp 1 | J20: 2024-07-13T08:30:00 | K20: 2024-07-14T16:30:00 | L20: GB | M20: FALSE | N20: 2023 | O20: Stormcast Eternals | P20: Various subfactions | Q20: Soulblight Gravelords | R20: Deathstench Drove | U20: bcp | V20: =IFERROR((IF(SUMPRODUCT(MAX(ROW($C$2:$C19)*($C20=$C$2:$C19))-1)>SUMPRODUCT(MAX(ROW($D$2:$D19)*($C20=$D$2:$D19))-1),INDEX($X$2:$X19,SUMPRODUCT(MAX(ROW($C$2:$C19)*($C20=$C$2:$C19))-1)),INDEX($Y$2:$Y19,SUMPRODUCT(MAX(ROW($D$2:$D19)*($C20=$D$2:$D19))-1)))),_xlfn.IFNA(IF(VLOOKUP(C20,'30th June Rankings (Values)'!A:D,4,FALSE)>0,VLOOKUP(C20,'30th June Rankings (Values)'!A:D,4,FALSE),400),400)) -> 400 | W20: =IFERROR((IF(SUMPRODUCT(MAX(ROW($D$2:$D19)*($D20=$D$2:$D19))-1)>SUMPRODUCT(MAX(ROW($C$2:$C19)*($D20=$C$2:$C19))-1),INDEX($Y$2:$Y19,SUMPRODUCT(MAX(ROW($D$2:$D19)*($D20=$D$2:$D19))-1)),INDEX($X$2:$X19,SUMPRODUCT(MAX(ROW($C$2:$C19)*($D20=$C$2:$C19))-1)))),_xlfn.IFNA(IF(VLOOKUP(D20,'30th June Rankings (Values)'!A:D,4,FALSE)>0,VLOOKUP(D20,'30th June Rankings (Values)'!A:D,4,FALSE),400),400)) -> 376.4257271 | X20: =20*(E20-(1/(1+(10^((W20-V20)/400)))))+V20 -> 389.3225173 | Y20: =20*(F20-(1/(1+(10^((V20-W20)/400)))))+W20 -> 387.1032098 | Z20: =C20&D20 -> Thom AshworthJon Serrano Martin | AA20: =VLOOKUP(L20,Countries!A:B,2,FALSE) -> GBR | AB20: =IF(O20="","Y",(IF(Q20="","Y","N"))) -> N | AC20: =IF(O20=Q20,"Y","N") -> N | AD20: =IF(J20<(TODAY()-60),"N","Y") -> Y | AE20: =_xlfn.MAXIFS(B:B,I:I,I20) -> 5 | AF20: =IF(AE20<5,"RTT/Casual",(IF(M20="TRUE","RTT/Casual",(IF(COUNTIF(I20,"*Team*"),"RTT/Casual",(IF(COUNTIF(I20,"*Double*"),"RTT/Casual","GT"))))))) -> GT | AG20: =O20&Q20 -> Stormcast EternalsSoulblight Gravelords | AH20: =MONTH(J20) -> 7 | AI20: =((COUNTIFS(I:I,I20))/AE20)*2 -> 20 | AJ20: =VLOOKUP(I20,Battleplans!A:F,Matches!B20+1,FALSE) -> 0
A21: 574690 | B21: 1 | C21: Daniel Bean | D21: Dave Mazzocchi-Jones | E21: 0.5 | F21: 0.5 | G21: 10 | H21: 10 | I21: Age of Sigmar 4 Bootcamp 1 | J21: 2024-07-13T08:30:00 | K21: 2024-07-14T16:30:00 | L21: GB | M21: FALSE | N21: 2023 | O21: Soulblight Gravelords | P21: Kritzka | Q21: Ossiarch Bonereapers | R21: Kavalos Lance | U21: bcp | V21: =IFERROR((IF(SUMPRODUCT(MAX(ROW($C$2:$C20)*($C21=$C$2:$C20))-1)>SUMPRODUCT(MAX(ROW($D$2:$D20)*($C21=$D$2:$D20))-1),INDEX($X$2:$X20,SUMPRODUCT(MAX(ROW($C$2:$C20)*($C21=$C$2:$C20))-1)),INDEX($Y$2:$Y20,SUMPRODUCT(MAX(ROW($D$2:$D20)*($C21=$D$2:$D20))-1)))),_xlfn.IFNA(IF(VLOOKUP(C21,'30th June Rankings (Values)'!A:D,4,FALSE)>0,VLOOKUP(C21,'30th June Rankings (Values)'!A:D,4,FALSE),400),400)) -> 489.9560953 | W21: =IFERROR((IF(SUMPRODUCT(MAX(ROW($D$2:$D20)*($D21=$D$2:$D20))-1)>SUMPRODUCT(MAX(ROW($C$2:$C20)*($D21=$C$2:$C20))-1),INDEX($Y$2:$Y20,SUMPRODUCT(MAX(ROW($D$2:$D20)*($D21=$D$2:$D20))-1)),INDEX($X$2:$X20,SUMPRODUCT(MAX(ROW($C$2:$C20)*($D21=$C$2:$C20))-1)))),_xlfn.IFNA(IF(VLOOKUP(D21,'30th June Rankings (Values)'!A:D,4,FALSE)>0,VLOOKUP(D21,'30th June Rankings (Values)'!A:D,4,FALSE),400),400)) -> 400 | X21: =20*(E21-(1/(1+(10^((W21-V21)/400)))))+V21 -> 487.4232962 | Y21: =20*(F21-(1/(1+(10^((V21-W21)/400)))))+W21 -> 402.5327991 | Z21: =C21&D21 -> Daniel BeanDave Mazzocchi-Jones | AA21: =VLOOKUP(L21,Countries!A:B,2,FALSE) -> GBR | AB21: =IF(O21="","Y",(IF(Q21="","Y","N"))) -> N | AC21: =IF(O21=Q21,"Y","N") -> N | AD21: =IF(J21<(TODAY()-60),"N","Y") -> Y | AE21: =_xlfn.MAXIFS(B:B,I:I,I21) -> 5 | AF21: =IF(AE21<5,"RTT/Casual",(IF(M21="TRUE","RTT/Casual",(IF(COUNTIF(I21,"*Team*"),"RTT/Casual",(IF(COUNTIF(I21,"*Double*"),"RTT/Casual","GT"))))))) -> GT | AG21: =O21&Q21 -> Soulblight GravelordsOssiarch Bonereapers | AH21: =MONTH(J21) -> 7 | AI21: =((COUNTIFS(I:I,I21))/AE21)*2 -> 20 | AJ21: =VLOOKUP(I21,Battleplans!A:F,Matches!B21+1,FALSE) -> 0
A22: 574717 | B22: 1 | C22: Paul Willis | D22: Claire Lavender | E22: 1 | F22: 0 | G22: 16 | H22: 4 | I22: Age of Sigmar 4 Bootcamp 1 | J22: 2024-07-13T08:30:00 | K22: 2024-07-14T16:30:00 | L22: GB | M22: FALSE | N22: 2023 | O22: Hedonites of Slaanesh | P22: Seeker Cavalcade | Q22: Daughters of Khaine | R22: Slaughter Troupe | U22: bcp | V22: =IFERROR((IF(SUMPRODUCT(MAX(ROW($C$2:$C21)*($C22=$C$2:$C21))-1)>SUMPRODUCT(MAX(ROW($D$2:$D21)*($C22=$D$2:$D21))-1),INDEX($X$2:$X21,SUMPRODUCT(MAX(ROW($C$2:$C21)*($C22=$C$2:$C21))-1)),INDEX($Y$2:$Y21,SUMPRODUCT(MAX(ROW($D$2:$D21)*($C22=$D$2:$D21))-1)))),_xlfn.IFNA(IF(VLOOKUP(C22,'30th June Rankings (Values)'!A:D,4,FALSE)>0,VLOOKUP(C22,'30th June Rankings (Values)'!A:D,4,FALSE),400),400)) -> 389.0442439 | W22: =IFERROR((IF(SUMPRODUCT(MAX(ROW($D$2:$D21)*($D22=$D$2:$D21))-1)>SUMPRODUCT(MAX(ROW($C$2:$C21)*($D22=$C$2:$C21))-1),INDEX($Y$2:$Y21,SUMPRODUCT(MAX(ROW($D$2:$D21)*($D22=$D$2:$D21))-1)),INDEX($X$2:$X21,SUMPRODUCT(MAX(ROW($C$2:$C21)*($D22=$C$2:$C21))-1)))),_xlfn.IFNA(IF(VLOOKUP(D22,'30th June Rankings (Values)'!A:D,4,FALSE)>0,VLOOKUP(D22,'30th June Rankings (Values)'!A:D,4,FALSE),400),400)) -> 400 | X22: =20*(E22-(1/(1+(10^((W22-V22)/400)))))+V22 -> 399.3594715 | Y22: =20*(F22-(1/(1+(10^((V22-W22)/400)))))+W22 -> 389.6847725 | Z22: =C22&D22 -> Paul WillisClaire Lavender | AA22: =VLOOKUP(L22,Countries!A:B,2,FALSE) -> GBR | AB22: =IF(O22="","Y",(IF(Q22="","Y","N"))) -> N | AC22: =IF(O22=Q22,"Y","N") -> N | AD22: =IF(J22<(TODAY()-60),"N","Y") -> Y | AE22: =_xlfn.MAXIFS(B:B,I:I,I22) -> 5 | AF22: =IF(AE22<5,"RTT/Casual",(IF(M22="TRUE","RTT/Casual",(IF(COUNTIF(I22,"*Team*"),"RTT/Casual",(IF(COUNTIF(I22,"*Double*"),"RTT/Casual","GT"))))))) -> GT | AG22: =O22&Q22 -> Hedonites of SlaaneshDaughters of Khaine | AH22: =MONTH(J22) -> 7 | AI22: =((COUNTIFS(I:I,I22))/AE22)*2 -> 20 | AJ22: =VLOOKUP(I22,Battleplans!A:F,Matches!B22+1,FALSE) -> 0
A23: 574740 | B23: 1 | C23: Declan McKitrick | D23: Hazel Moon | E23: 0 | F23: 1 | G23: 3 | H23: 17 | I23: Age of Sigmar 4 Bootcamp 1 | J23: 2024-07-13T08:30:00 | K23: 2024-07-14T16:30:00 | L23: GB | M23: FALSE | N23: 2023 | O23: Blades of Khorne | Q23: Idoneth Deepkin | R23: Akhelian Beastmasters | U23: bcp | V23: =IFERROR((IF(SUMPRODUCT(MAX(ROW($C$2:$C22)*($C23=$C$2:$C22))-1)>SUMPRODUCT(MAX(ROW($D$2:$D22)*($C23=$D$2:$D22))-1),INDEX($X$2:$X22,SUMPRODUCT(MAX(ROW($C$2:$C22)*($C23=$C$2:$C22))-1)),INDEX($Y$2:$Y22,SUMPRODUCT(MAX(ROW($D$2:$D22)*($C23=$D$2:$D22))-1)))),_xlfn.IFNA(IF(VLOOKUP(C23,'30th June Rankings (Values)'!A:D,4,FALSE)>0,VLOOKUP(C23,'30th June Rankings (Values)'!A:D,4,FALSE),400),400)) -> 543.7415095 | W23: =IFERROR((IF(SUMPRODUCT(MAX(ROW($D$2:$D22)*($D23=$D$2:$D22))-1)>SUMPRODUCT(MAX(ROW($C$2:$C22)*($D23=$C$2:$C22))-1),INDEX($Y$2:$Y22,SUMPRODUCT(MAX(ROW($D$2:$D22)*($D23=$D$2:$D22))-1)),INDEX($X$2:$X22,SUMPRODUCT(MAX(ROW($C$2:$C22)*($D23=$C$2:$C22))-1)))),_xlfn.IFNA(IF(VLOOKUP(D23,'30th June Rankings (Values)'!A:D,4,FALSE)>0,VLOOKUP(D23,'30th June Rankings (Values)'!A:D,4,FALSE),400),400)) -> 724.1794079 | X23: =20*(E23-(1/(1+(10^((W23-V23)/400)))))+V23 -> 538.5134297 | Y23: =20*(F23-(1/(1+(10^((V23-W23)/400)))))+W23 -> 729.4074877 | Z23: =C23&D23 -> Declan McKitrickHazel Moon | AA23: =VLOOKUP(L23,Countries!A:B,2,FALSE) -> GBR | AB23: =IF(O23="","Y",(IF(Q23="","Y","N"))) -> N | AC23: =IF(O23=Q23,"Y","N") -> N | AD23: =IF(J23<(TODAY()-60),"N","Y") -> Y | AE23: =_xlfn.MAXIFS(B:B,I:I,I23) -> 5 | AF23: =IF(AE23<5,"RTT/Casual",(IF(M23="TRUE","RTT/Casual",(IF(COUNTIF(I23,"*Team*"),"RTT/Casual",(IF(COUNTIF(I23,"*Double*"),"RTT/Casual","GT"))))))) -> GT | AG23: =O23&Q23 -> Blades of KhorneIdoneth Deepkin | AH23: =MONTH(J23) -> 7 | AI23: =((COUNTIFS(I:I,I23))/AE23)*2 -> 20 | AJ23: =VLOOKUP(I23,Battleplans!A:F,Matches!B23+1,FALSE) -> 0
A24: 574763 | B24: 1 | C24: Brett Packham | D24: Tom Whitbrook | E24: 0 | F24: 1 | G24: 5 | H24: 15 | I24: Age of Sigmar 4 Bootcamp 1 | J24: 2024-07-13T08:30:00 | K24: 2024-07-14T16:30:00 | L24: GB | M24: FALSE | N24: 2023 | O24: Sylvaneth | P24: Lords of the Clan | Q24: Nighthaunt | R24: Death Stalkers | U24: bcp | V24: =IFERROR((IF(SUMPRODUCT(MAX(ROW($C$2:$C23)*($C24=$C$2:$C23))-1)>SUMPRODUCT(MAX(ROW($D$2:$D23)*($C24=$D$2:$D23))-1),INDEX($X$2:$X23,SUMPRODUCT(MAX(ROW($C$2:$C23)*($C24=$C$2:$C23))-1)),INDEX($Y$2:$Y23,SUMPRODUCT(MAX(ROW($D$2:$D23)*($C24=$D$2:$D23))-1)))),_xlfn.IFNA(IF(VLOOKUP(C24,'30th June Rankings (Values)'!A:D,4,FALSE)>0,VLOOKUP(C24,'30th June Rankings (Values)'!A:D,4,FALSE),400),400)) -> 385.0535452 | W24: =IFERROR((IF(SUMPRODUCT(MAX(ROW($D$2:$D23)*($D24=$D$2:$D23))-1)>SUMPRODUCT(MAX(ROW($C$2:$C23)*($D24=$C$2:$C23))-1),INDEX($Y$2:$Y23,SUMPRODUCT(MAX(ROW($D$2:$D23)*($D24=$D$2:$D23))-1)),INDEX($X$2:$X23,SUMPRODUCT(MAX(ROW($C$2:$C23)*($D24=$C$2:$C23))-1)))),_xlfn.IFNA(IF(VLOOKUP(D24,'30th June Rankings (Values)'!A:D,4,FALSE)>0,VLOOKUP(D24,'30th June Rankings (Values)'!A:D,4,FALSE),400),400)) -> 401.8805599 | X24: =20*(E24-(1/(1+(10^((W24-V24)/400)))))+V24 -> 375.5374873 | Y24: =20*(F24-(1/(1+(10^((V24-W24)/400)))))+W24 -> 411.3966179 | Z24: =C24&D24 -> Brett PackhamTom Whitbrook | AA24: =VLOOKUP(L24,Countries!A:B,2,FALSE) -> GBR | AB24: =IF(O24="","Y",(IF(Q24="","Y","N"))) -> N | AC24: =IF(O24=Q24,"Y","N") -> N | AD24: =IF(J24<(TODAY()-60),"N","Y") -> Y | AE24: =_xlfn.MAXIFS(B:B,I:I,I24) -> 5 | AF24: =IF(AE24<5,"RTT/Casual",(IF(M24="TRUE","RTT/Casual",(IF(COUNTIF(I24,"*Team*"),"RTT/Casual",(IF(COUNTIF(I24,"*Double*"),"RTT/Casual","GT"))))))) -> GT | AG24: =O24&Q24 -> SylvanethNighthaunt | AH24: =MONTH(J24) -> 7 | AI24: =((COUNTIFS(I:I,I24))/AE24)*2 -> 20 | AJ24: =VLOOKUP(I24,Battleplans!A:F,Matches!B24+1,FALSE) -> 0
A25: 574791 | B25: 1 | C25: Matthew Willacy | D25: Dennis Tatarkov | E25: 0 | F25: 1 | G25: 3 | H25: 17 | I25: Age of Sigmar 4 Bootcamp 1 | J25: 2024-07-13T08:30:00 | K25: 2024-07-14T16:30:00 | L25: GB | M25: FALSE | N25: 2023 | O25: Gloomspite Gitz | P25: Troggherd | Q25: Nighthaunt | R25: Death Stalkers | U25: bcp | V25: =IFERROR((IF(SUMPRODUCT(MAX(ROW($C$2:$C24)*($C25=$C$2:$C24))-1)>SUMPRODUCT(MAX(ROW($D$2:$D24)*($C25=$D$2:$D24))-1),INDEX($X$2:$X24,SUMPRODUCT(MAX(ROW($C$2:$C24)*($C25=$C$2:$C24))-1)),INDEX($Y$2:$Y24,SUMPRODUCT(MAX(ROW($D$2:$D24)*($C25=$D$2:$D24))-1)))),_xlfn.IFNA(IF(VLOOKUP(C25,'30th June Rankings (Values)'!A:D,4,FALSE)>0,VLOOKUP(C25,'30th June Rankings (Values)'!A:D,4,FALSE),400),400)) -> 367.4754268 | W25: =IFERROR((IF(SUMPRODUCT(MAX(ROW($D$2:$D24)*($D25=$D$2:$D24))-1)>SUMPRODUCT(MAX(ROW($C$2:$C24)*($D25=$C$2:$C24))-1),INDEX($Y$2:$Y24,SUMPRODUCT(MAX(ROW($D$2:$D24)*($D25=$D$2:$D24))-1)),INDEX($X$2:$X24,SUMPRODUCT(MAX(ROW($C$2:$C24)*($D25=$C$2:$C24))-1)))),_xlfn.IFNA(IF(VLOOKUP(D25,'30th June Rankings (Values)'!A:D,4,FALSE)>0,VLOOKUP(D25,'30th June Rankings (Values)'!A:D,4,FALSE),400),400)) -> 536.4153306 | X25: =20*(E25-(1/(1+(10^((W25-V25)/400)))))+V25 -> 361.9877623 | Y25: =20*(F25-(1/(1+(10^((V25-W25)/400)))))+W25 -> 541.9029951 | Z25: =C25&D25 -> Matthew WillacyDennis Tatarkov | AA25: =VLOOKUP(L25,Countries!A:B,2,FALSE) -> GBR | AB25: =IF(O25="","Y",(IF(Q25="","Y","N"))) -> N | AC25: =IF(O25=Q25,"Y","N") -> N | AD25: =IF(J25<(TODAY()-60),"N","Y") -> Y | AE25: =_xlfn.MAXIFS(B:B,I:I,I25) -> 5 | AF25: =IF(AE25<5,"RTT/Casual",(IF(M25="TRUE","RTT/Casual",(IF(COUNTIF(I25,"*Team*"),"RTT/Casual",(IF(COUNTIF(I25,"*Double*"),"RTT/Casual","GT"))))))) -> GT | AG25: =O25&Q25 -> Gloomspite GitzNighthaunt | AH25: =MONTH(J25) -> 7 | AI25: =((COUNTIFS(I:I,I25))/AE25)*2 -> 20 | AJ25: =VLOOKUP(I25,Battleplans!A:F,Matches!B25+1,FALSE) -> 0
A26: 574819 | B26: 1 | C26: Elliot Marshall | D26: Kieron Bailey | E26: 0 | F26: 1 | G26: 6 | H26: 14 | I26: Age of Sigmar 4 Bootcamp 1 | J26: 2024-07-13T08:30:00 | K26: 2024-07-14T16:30:00 | L26: GB | M26: FALSE | N26: 2023 | O26: Kruleboyz | P26: Trophy Finga | Q26: Kruleboyz | R26: Trophy Finga | U26: bcp | V26: =IFERROR((IF(SUMPRODUCT(MAX(ROW($C$2:$C25)*($C26=$C$2:$C25))-1)>SUMPRODUCT(MAX(ROW($D$2:$D25)*($C26=$D$2:$D25))-1),INDEX($X$2:$X25,SUMPRODUCT(MAX(ROW($C$2:$C25)*($C26=$C$2:$C25))-1)),INDEX($Y$2:$Y25,SUMPRODUCT(MAX(ROW($D$2:$D25)*($C26=$D$2:$D25))-1)))),_xlfn.IFNA(IF(VLOOKUP(C26,'30th June Rankings (Values)'!A:D,4,FALSE)>0,VLOOKUP(C26,'30th June Rankings (Values)'!A:D,4,FALSE),400),400)) -> 327.1690839 | W26: =IFERROR((IF(SUMPRODUCT(MAX(ROW($D$2:$D25)*($D26=$D$2:$D25))-1)>SUMPRODUCT(MAX(ROW($C$2:$C25)*($D26=$C$2:$C25))-1),INDEX($Y$2:$Y25,SUMPRODUCT(MAX(ROW($D$2:$D25)*($D26=$D$2:$D25))-1)),INDEX($X$2:$X25,SUMPRODUCT(MAX(ROW($C$2:$C25)*($D26=$C$2:$C25))-1)))),_xlfn.IFNA(IF(VLOOKUP(D26,'30th June Rankings (Values)'!A:D,4,FALSE)>0,VLOOKUP(D26,'30th June Rankings (Values)'!A:D,4,FALSE),400),400)) -> 372.5383324 | X26: =20*(E26-(1/(1+(10^((W26-V26)/400)))))+V26 -> 318.4675438 | Y26: =20*(F26-(1/(1+(10^((V26-W26)/400)))))+W26 -> 381.2398726 | Z26: =C26&D26 -> Elliot MarshallKieron Bailey | AA26: =VLOOKUP(L26,Countries!A:B,2,FALSE) -> GBR | AB26: =IF(O26="","Y",(IF(Q26="","Y","N"))) -> N | AC26: =IF(O26=Q26,"Y","N") -> Y | AD26: =IF(J26<(TODAY()-60),"N","Y") -> Y | AE26: =_xlfn.MAXIFS(B:B,I:I,I26) -> 5 | AF26: =IF(AE26<5,"RTT/Casual",(IF(M26="TRUE","RTT/Casual",(IF(COUNTIF(I26,"*Team*"),"RTT/Casual",(IF(COUNTIF(I26,"*Double*"),"RTT/Casual","GT"))))))) -> GT | AG26: =O26&Q26 -> KruleboyzKruleboyz | AH26: =MONTH(J26) -> 7 | AI26: =((COUNTIFS(I:I,I26))/AE26)*2 -> 20 | AJ26: =VLOOKUP(I26,Battleplans!A:F,Matches!B26+1,FALSE) -> 0
A27: 574845 | B27: 1 | C27: Matt Hull | D27: Andy Ransome | E27: 0 | F27: 1 | G27: 3 | H27: 17 | I27: Age of Sigmar 4 Bootcamp 1 | J27: 2024-07-13T08:30:00 | K27: 2024-07-14T16:30:00 | L27: GB | M27: FALSE | N27: 2023 | O27: Slaves to Darkness | P27: Godswrath Warband | Q27: Stormcast Eternals | R27: Lightning Echelon | U27: bcp | V27: =IFERROR((IF(SUMPRODUCT(MAX(ROW($C$2:$C26)*($C27=$C$2:$C26))-1)>SUMPRODUCT(MAX(ROW($D$2:$D26)*($C27=$D$2:$D26))-1),INDEX($X$2:$X26,SUMPRODUCT(MAX(ROW($C$2:$C26)*($C27=$C$2:$C26))-1)),INDEX($Y$2:$Y26,SUMPRODUCT(MAX(ROW($D$2:$D26)*($C27=$D$2:$D26))-1)))),_xlfn.IFNA(IF(VLOOKUP(C27,'30th June Rankings (Values)'!A:D,4,FALSE)>0,VLOOKUP(C27,'30th June Rankings (Values)'!A:D,4,FALSE),400),400)) -> 385.0302566 | W27: =IFERROR((IF(SUMPRODUCT(MAX(ROW($D$2:$D26)*($D27=$D$2:$D26))-1)>SUMPRODUCT(MAX(ROW($C$2:$C26)*($D27=$C$2:$C26))-1),INDEX($Y$2:$Y26,SUMPRODUCT(MAX(ROW($D$2:$D26)*($D27=$D$2:$D26))-1)),INDEX($X$2:$X26,SUMPRODUCT(MAX(ROW($C$2:$C26)*($D27=$C$2:$C26))-1)))),_xlfn.IFNA(IF(VLOOKUP(D27,'30th June Rankings (Values)'!A:D,4,FALSE)>0,VLOOKUP(D27,'30th June Rankings (Values)'!A:D,4,FALSE),400),400)) -> 371.0090795 | X27: =20*(E27-(1/(1+(10^((W27-V27)/400)))))+V27 -> 374.6269136 | Y27: =20*(F27-(1/(1+(10^((V27-W27)/400)))))+W27 -> 381.4124225 | Z27: =C27&D27 -> Matt HullAndy Ransome | AA27: =VLOOKUP(L27,Countries!A:B,2,FALSE) -> GBR | AB27: =IF(O27="","Y",(IF(Q27="","Y","N"))) -> N | AC27: =IF(O27=Q27,"Y","N") -> N | AD27: =IF(J27<(TODAY()-60),"N","Y") -> Y | AE27: =_xlfn.MAXIFS(B:B,I:I,I27) -> 5 | AF27: =IF(AE27<5,"RTT/Casual",(IF(M27="TRUE","RTT/Casual",(IF(COUNTIF(I27,"*Team*"),"RTT/Casual",(IF(COUNTIF(I27,"*Double*"),"RTT/Casual","GT"))))))) -> GT | AG27: =O27&Q27 -> Slaves to DarknessStormcast Eternals | AH27: =MONTH(J27) -> 7 | AI27: =((COUNTIFS(I:I,I27))/AE27)*2 -> 20 | AJ27: =VLOOKUP(I27,Battleplans!A:F,Matches!B27+1,FALSE) -> 0
A28: 574875 | B28: 1 | C28: Marc Colwill | D28: Robert Symes | E28: 0 | F28: 1 | G28: 4 | H28: 16 | I28: Age of Sigmar 4 Bootcamp 1 | J28: 2024-07-13T08:30:00 | K28: 2024-07-14T16:30:00 | L28: GB | M28: FALSE | N28: 2023 | O28: Seraphon | P28: Sunclaw Starhost | Q28: Blades of Khorne | R28: Bloodbound Warhorde | U28: bcp | V28: =IFERROR((IF(SUMPRODUCT(MAX(ROW($C$2:$C27)*($C28=$C$2:$C27))-1)>SUMPRODUCT(MAX(ROW($D$2:$D27)*($C28=$D$2:$D27))-1),INDEX($X$2:$X27,SUMPRODUCT(MAX(ROW($C$2:$C27)*($C28=$C$2:$C27))-1)),INDEX($Y$2:$Y27,SUMPRODUCT(MAX(ROW($D$2:$D27)*($C28=$D$2:$D27))-1)))),_xlfn.IFNA(IF(VLOOKUP(C28,'30th June Rankings (Values)'!A:D,4,FALSE)>0,VLOOKUP(C28,'30th June Rankings (Values)'!A:D,4,FALSE),400),400)) -> 381.8201243 | W28: =IFERROR((IF(SUMPRODUCT(MAX(ROW($D$2:$D27)*($D28=$D$2:$D27))-1)>SUMPRODUCT(MAX(ROW($C$2:$C27)*($D28=$C$2:$C27))-1),INDEX($Y$2:$Y27,SUMPRODUCT(MAX(ROW($D$2:$D27)*($D28=$D$2:$D27))-1)),INDEX($X$2:$X27,SUMPRODUCT(MAX(ROW($C$2:$C27)*($D28=$C$2:$C27))-1)))),_xlfn.IFNA(IF(VLOOKUP(D28,'30th June Rankings (Values)'!A:D,4,FALSE)>0,VLOOKUP(D28,'30th June Rankings (Values)'!A:D,4,FALSE),400),400)) -> 446.6047044 | X28: =20*(E28-(1/(1+(10^((W28-V28)/400)))))+V28 -> 373.66346 | Y28: =20*(F28-(1/(1+(10^((V28-W28)/400)))))+W28 -> 454.7613687 | Z28: =C28&D28 -> Marc ColwillRobert Symes | AA28: =VLOOKUP(L28,Countries!A:B,2,FALSE) -> GBR | AB28: =IF(O28="","Y",(IF(Q28="","Y","N"))) -> N | AC28: =IF(O28=Q28,"Y","N") -> N | AD28: =IF(J28<(TODAY()-60),"N","Y") -> Y | AE28: =_xlfn.MAXIFS(B:B,I:I,I28) -> 5 | AF28: =IF(AE28<5,"RTT/Casual",(IF(M28="TRUE","RTT/Casual",(IF(COUNTIF(I28,"*Team*"),"RTT/Casual",(IF(COUNTIF(I28,"*Double*"),"RTT/Casual","GT"))))))) -> GT | AG28: =O28&Q28 -> SeraphonBlades of Khorne | AH28: =MONTH(J28) -> 7 | AI28: =((COUNTIFS(I:I,I28))/AE28)*2 -> 20 | AJ28: =VLOOKUP(I28,Battleplans!A:F,Matches!B28+1,FALSE) -> 0
A29: 574922 | B29: 2 | C29: Jon Serrano Martin | D29: Daniel Bean | E29: 0.5 | F29: 0.5 | G29: 0 | H29: 0 | I29: Age of Sigmar 4 Bootcamp 1 | J29: 2024-07-13T08:30:00 | K29: 2024-07-14T16:30:00 | L29: GB | M29: FALSE | N29: 2023 | O29: Soulblight Gravelords | P29: Deathstench Drove | Q29: Soulblight Gravelords | R29: Kritzka | U29: bcp | V29: =IFERROR((IF(SUMPRODUCT(MAX(ROW($C$2:$C28)*($C29=$C$2:$C28))-1)>SUMPRODUCT(MAX(ROW($D$2:$D28)*($C29=$D$2:$D28))-1),INDEX($X$2:$X28,SUMPRODUCT(MAX(ROW($C$2:$C28)*($C29=$C$2:$C28))-1)),INDEX($Y$2:$Y28,SUMPRODUCT(MAX(ROW($D$2:$D28)*($C29=$D$2:$D28))-1)))),_xlfn.IFNA(IF(VLOOKUP(C29,'30th June Rankings (Values)'!A:D,4,FALSE)>0,VLOOKUP(C29,'30th June Rankings (Values)'!A:D,4,FALSE),400),400)) -> 387.1032098 | W29: =IFERROR((IF(SUMPRODUCT(MAX(ROW($D$2:$D28)*($D29=$D$2:$D28))-1)>SUMPRODUCT(MAX(ROW($C$2:$C28)*($D29=$C$2:$C28))-1),INDEX($Y$2:$Y28,SUMPRODUCT(MAX(ROW($D$2:$D28)*($D29=$D$2:$D28))-1)),INDEX($X$2:$X28,SUMPRODUCT(MAX(ROW($C$2:$C28)*($D29=$C$2:$C28))-1)))),_xlfn.IFNA(IF(VLOOKUP(D29,'30th June Rankings (Values)'!A:D,4,FALSE)>0,VLOOKUP(D29,'30th June Rankings (Values)'!A:D,4,FALSE),400),400)) -> 487.4232962 | X29: =20*(E29-(1/(1+(10^((W29-V29)/400)))))+V29 -> 389.9129975 | Y29: =20*(F29-(1/(1+(10^((V29-W29)/400)))))+W29 -> 484.6135086 | Z29: =C29&D29 -> Jon Serrano MartinDaniel Bean | AA29: =VLOOKUP(L29,Countries!A:B,2,FALSE) -> GBR | AB29: =IF(O29="","Y",(IF(Q29="","Y","N"))) -> N | AC29: =IF(O29=Q29,"Y","N") -> Y | AD29: =IF(J29<(TODAY()-60),"N","Y") -> Y | AE29: =_xlfn.MAXIFS(B:B,I:I,I29) -> 5 | AF29: =IF(AE29<5,"RTT/Casual",(IF(M29="TRUE","RTT/Casual",(IF(COUNTIF(I29,"*Team*"),"RTT/Casual",(IF(COUNTIF(I29,"*Double*"),"RTT/Casual","GT"))))))) -> GT | AG29: =O29&Q29 -> Soulblight GravelordsSoulblight Gravelords | AH29: =MONTH(J29) -> 7 | AI29: =((COUNTIFS(I:I,I29))/AE29)*2 -> 20 | AJ29: =VLOOKUP(I29,Battleplans!A:F,Matches!B29+1,FALSE) -> 0
A30: 574947 | B30: 2 | C30: Peter Twigg | D30: Andy Ransome | E30: 1 | F30: 0 | G30: 15 | H30: 5 | I30: Age of Sigmar 4 Bootcamp 1 | J30: 2024-07-13T08:30:00 | K30: 2024-07-14T16:30:00 | L30: GB | M30: FALSE | N30: 2023 | O30: Cities of Sigmar | P30: Ironweld Guild Army | Q30: Stormcast Eternals | R30: Lightning Echelon | U30: bcp | V30: =IFERROR((IF(SUMPRODUCT(MAX(ROW($C$2:$C29)*($C30=$C$2:$C29))-1)>SUMPRODUCT(MAX(ROW($D$2:$D29)*($C30=$D$2:$D29))-1),INDEX($X$2:$X29,SUMPRODUCT(MAX(ROW($C$2:$C29)*($C30=$C$2:$C29))-1)),INDEX($Y$2:$Y29,SUMPRODUCT(MAX(ROW($D$2:$D29)*($C30=$D$2:$D29))-1)))),_xlfn.IFNA(IF(VLOOKUP(C30,'30th June Rankings (Values)'!A:D,4,FALSE)>0,VLOOKUP(C30,'30th June Rankings (Values)'!A:D,4,FALSE),400),400)) -> 573.9032645 | W30: =IFERROR((IF(SUMPRODUCT(MAX(ROW($D$2:$D29)*($D30=$D$2:$D29))-1)>SUMPRODUCT(MAX(ROW($C$2:$C29)*($D30=$C$2:$C29))-1),INDEX($Y$2:$Y29,SUMPRODUCT(MAX(ROW($D$2:$D29)*($D30=$D$2:$D29))-1)),INDEX($X$2:$X29,SUMPRODUCT(MAX(ROW($C$2:$C29)*($D30=$C$2:$C29))-1)))),_xlfn.IFNA(IF(VLOOKUP(D30,'30th June Rankings (Values)'!A:D,4,FALSE)>0,VLOOKUP(D30,'30th June Rankings (Values)'!A:D,4,FALSE),400),400)) -> 381.4124225 | X30: =20*(E30-(1/(1+(10^((W30-V30)/400)))))+V30 -> 578.8678956 | Y30: =20*(F30-(1/(1+(10^((V30-W30)/400)))))+W30 -> 376.4477914 | Z30: =C30&D30 -> Peter TwiggAndy Ransome | AA30: =VLOOKUP(L30,Countries!A:B,2,FALSE) -> GBR | AB30: =IF(O30="","Y",(IF(Q30="","Y","N"))) -> N | AC30: =IF(O30=Q30,"Y","N") -> N | AD30: =IF(J30<(TODAY()-60),"N","Y") -> Y | AE30: =_xlfn.MAXIFS(B:B,I:I,I30) -> 5 | AF30: =IF(AE30<5,"RTT/Casual",(IF(M30="TRUE","RTT/Casual",(IF(COUNTIF(I30,"*Team*"),"RTT/Casual",(IF(COUNTIF(I30,"*Double*"),"RTT/Casual","GT"))))))) -> GT | AG30: =O30&Q30 -> Cities of SigmarStormcast Eternals | AH30: =MONTH(J30) -> 7 | AI30: =((COUNTIFS(I:I,I30))/AE30)*2 -> 20 | AJ30: =VLOOKUP(I30,Battleplans!A:F,Matches!B30+1,FALSE) -> 0
A31: 574971 | B31: 2 | C31: Hazel Moon | D31: Paul Willis | E31: 1 | F31: 0 | G31: 16 | H31: 4 | I31: Age of Sigmar 4 Bootcamp 1 | J31: 2024-07-13T08:30:00 | K31: 2024-07-14T16:30:00 | L31: GB | M31: FALSE | N31: 2023 | O31: Idoneth Deepkin | P31: Akhelian Beastmasters | Q31: Hedonites of Slaanesh | R31: Seeker Cavalcade | U31: bcp | V31: =IFERROR((IF(SUMPRODUCT(MAX(ROW($C$2:$C30)*($C31=$C$2:$C30))-1)>SUMPRODUCT(MAX(ROW($D$2:$D30)*($C31=$D$2:$D30))-1),INDEX($X$2:$X30,SUMPRODUCT(MAX(ROW($C$2:$C30)*($C31=$C$2:$C30))-1)),INDEX($Y$2:$Y30,SUMPRODUCT(MAX(ROW($D$2:$D30)*($C31=$D$2:$D30))-1)))),_xlfn.IFNA(IF(VLOOKUP(C31,'30th June Rankings (Values)'!A:D,4,FALSE)>0,VLOOKUP(C31,'30th June Rankings (Values)'!A:D,4,FALSE),400),400)) -> 729.4074877 | W31: =IFERROR((IF(SUMPRODUCT(MAX(ROW($D$2:$D30)*($D31=$D$2:$D30))-1)>SUMPRODUCT(MAX(ROW($C$2:$C30)*($D31=$C$2:$C30))-1),INDEX($Y$2:$Y30,SUMPRODUCT(MAX(ROW($D$2:$D30)*($D31=$D$2:$D30))-1)),INDEX($X$2:$X30,SUMPRODUCT(MAX(ROW($C$2:$C30)*($D31=$C$2:$C30))-1)))),_xlfn.IFNA(IF(VLOOKUP(D31,'30th June Rankings (Values)'!A:D,4,FALSE)>0,VLOOKUP(D31,'30th June Rankings (Values)'!A:D,4,FALSE),400),400)) -> 399.3594715 | X31: =20*(E31-(1/(1+(10^((W31-V31)/400)))))+V31 -> 732.009863 | Y31: =20*(F31-(1/(1+(10^((V31-W31)/400)))))+W31 -> 396.7570962 | Z31: =C31&D31 -> Hazel MoonPaul Willis | AA31: =VLOOKUP(L31,Countries!A:B,2,FALSE) -> GBR | AB31: =IF(O31="","Y",(IF(Q31="","Y","N"))) -> N | AC31: =IF(O31=Q31,"Y","N") -> N | AD31: =IF(J31<(TODAY()-60),"N","Y") -> Y | AE31: =_xlfn.MAXIFS(B:B,I:I,I31) -> 5 | AF31: =IF(AE31<5,"RTT/Casual",(IF(M31="TRUE","RTT/Casual",(IF(COUNTIF(I31,"*Team*"),"RTT/Casual",(IF(COUNTIF(I31,"*Double*"),"RTT/Casual","GT"))))))) -> GT | AG31: =O31&Q31 -> Idoneth DeepkinHedonites of Slaanesh | AH31: =MONTH(J31) -> 7 | AI31: =((COUNTIFS(I:I,I31))/AE31)*2 -> 20 | AJ31: =VLOOKUP(I31,Battleplans!A:F,Matches!B31+1,FALSE) -> 0
A32: 574999 | B32: 2 | C32: Kieron Bailey | D32: Dennis Tatarkov | E32: 0 | F32: 1 | G32: 7 | H32: 13 | I32: Age of Sigmar 4 Bootcamp 1 | J32: 2024-07-13T08:30:00 | K32: 2024-07-14T16:30:00 | L32: GB | M32: FALSE | N32: 2023 | O32: Kruleboyz | P32: Trophy Finga | Q32: Nighthaunt | R32: Death Stalkers | U32: bcp | V32: =IFERROR((IF(SUMPRODUCT(MAX(ROW($C$2:$C31)*($C32=$C$2:$C31))-1)>SUMPRODUCT(MAX(ROW($D$2:$D31)*($C32=$D$2:$D31))-1),INDEX($X$2:$X31,SUMPRODUCT(MAX(ROW($C$2:$C31)*($C32=$C$2:$C31))-1)),INDEX($Y$2:$Y31,SUMPRODUCT(MAX(ROW($D$2:$D31)*($C32=$D$2:$D31))-1)))),_xlfn.IFNA(IF(VLOOKUP(C32,'30th June Rankings (Values)'!A:D,4,FALSE)>0,VLOOKUP(C32,'30th June Rankings (Values)'!A:D,4,FALSE),400),400)) -> 381.2398726 | W32: =IFERROR((IF(SUMPRODUCT(MAX(ROW($D$2:$D31)*($D32=$D$2:$D31))-1)>SUMPRODUCT(MAX(ROW($C$2:$C31)*($D32=$C$2:$C31))-1),INDEX($Y$2:$Y31,SUMPRODUCT(MAX(ROW($D$2:$D31)*($D32=$D$2:$D31))-1)),INDEX($X$2:$X31,SUMPRODUCT(MAX(ROW($C$2:$C31)*($D32=$C$2:$C31))-1)))),_xlfn.IFNA(IF(VLOOKUP(D32,'30th June Rankings (Values)'!A:D,4,FALSE)>0,VLOOKUP(D32,'30th June Rankings (Values)'!A:D,4,FALSE),400),400)) -> 541.9029951 | X32: =20*(E32-(1/(1+(10^((W32-V32)/400)))))+V32 -> 375.5604637 | Y32: =20*(F32-(1/(1+(10^((V32-W32)/400)))))+W32 -> 547.582404 | Z32: =C32&D32 -> Kieron BaileyDennis Tatarkov | AA32: =VLOOKUP(L32,Countries!A:B,2,FALSE) -> GBR | AB32: =IF(O32="","Y",(IF(Q32="","Y","N"))) -> N | AC32: =IF(O32=Q32,"Y","N") -> N | AD32: =IF(J32<(TODAY()-60),"N","Y") -> Y | AE32: =_xlfn.MAXIFS(B:B,I:I,I32) -> 5 | AF32: =IF(AE32<5,"RTT/Casual",(IF(M32="TRUE","RTT/Casual",(IF(COUNTIF(I32,"*Team*"),"RTT/Casual",(IF(COUNTIF(I32,"*Double*"),"RTT/Casual","GT"))))))) -> GT | AG32: =O32&Q32 -> KruleboyzNighthaunt | AH32: =MONTH(J32) -> 7 | AI32: =((COUNTIFS(I:I,I32))/AE32)*2 -> 20 | AJ32: =VLOOKUP(I32,Battleplans!A:F,Matches!B32+1,FALSE) -> 0
A33: 575028 | B33: 2 | C33: Matthew Willacy | D33: Claire Lavender | E33: 1 | F33: 0 | G33: 14 | H33: 6 | I33: Age of Sigmar 4 Bootcamp 1 | J33: 2024-07-13T08:30:00 | K33: 2024-07-14T16:30:00 | L33: GB | M33: FALSE | N33: 2023 | O33: Gloomspite Gitz | P33: Troggherd | Q33: Daughters of Khaine | R33: Slaughter Troupe | U33: bcp | V33: =IFERROR((IF(SUMPRODUCT(MAX(ROW($C$2:$C32)*($C33=$C$2:$C32))-1)>SUMPRODUCT(MAX(ROW($D$2:$D32)*($C33=$D$2:$D32))-1),INDEX($X$2:$X32,SUMPRODUCT(MAX(ROW($C$2:$C32)*($C33=$C$2:$C32))-1)),INDEX($Y$2:$Y32,SUMPRODUCT(MAX(ROW($D$2:$D32)*($C33=$D$2:$D32))-1)))),_xlfn.IFNA(IF(VLOOKUP(C33,'30th June Rankings (Values)'!A:D,4,FALSE)>0,VLOOKUP(C33,'30th June Rankings (Values)'!A:D,4,FALSE),400),400)) -> 361.9877623 | W33: =IFERROR((IF(SUMPRODUCT(MAX(ROW($D$2:$D32)*($D33=$D$2:$D32))-1)>SUMPRODUCT(MAX(ROW($C$2:$C32)*($D33=$C$2:$C32))-1),INDEX($Y$2:$Y32,SUMPRODUCT(MAX(ROW($D$2:$D32)*($D33=$D$2:$D32))-1)),INDEX($X$2:$X32,SUMPRODUCT(MAX(ROW($C$2:$C32)*($D33=$C$2:$C32))-1)))),_xlfn.IFNA(IF(VLOOKUP(D33,'30th June Rankings (Values)'!A:D,4,FALSE)>0,VLOOKUP(D33,'30th June Rankings (Values)'!A:D,4,FALSE),400),400)) -> 389.6847725 | X33: =20*(E33-(1/(1+(10^((W33-V33)/400)))))+V33 -> 372.7832619 | Y33: =20*(F33-(1/(1+(10^((V33-W33)/400)))))+W33 -> 378.8892729 | Z33: =C33&D33 -> Matthew WillacyClaire Lavender | AA33: =VLOOKUP(L33,Countries!A:B,2,FALSE) -> GBR | AB33: =IF(O33="","Y",(IF(Q33="","Y","N"))) -> N | AC33: =IF(O33=Q33,"Y","N") -> N | AD33: =IF(J33<(TODAY()-60),"N","Y") -> Y | AE33: =_xlfn.MAXIFS(B:B,I:I,I33) -> 5 | AF33: =IF(AE33<5,"RTT/Casual",(IF(M33="TRUE","RTT/Casual",(IF(COUNTIF(I33,"*Team*"),"RTT/Casual",(IF(COUNTIF(I33,"*Double*"),"RTT/Casual","GT"))))))) -> GT | AG33: =O33&Q33 -> Gloomspite GitzDaughters of Khaine | AH33: =MONTH(J33) -> 7 | AI33: =((COUNTIFS(I:I,I33))/AE33)*2 -> 20 | AJ33: =VLOOKUP(I33,Battleplans!A:F,Matches!B33+1,FALSE) -> 0
A34: 575054 | B34: 2 | C34: Toby Gilham | D34: Elliot Marshall | E34: 0.5 | F34: 0.5 | G34: 0 | H34: 0 | I34: Age of Sigmar 4 Bootcamp 1 | J34: 2024-07-13T08:30:00 | K34: 2024-07-14T16:30:00 | L34: GB | M34: FALSE | N34: 2023 | O34: Ossiarch Bonereapers | P34: Mortisan Council | Q34: Kruleboyz | R34: Trophy Finga | U34: bcp | V34: =IFERROR((IF(SUMPRODUCT(MAX(ROW($C$2:$C33)*($C34=$C$2:$C33))-1)>SUMPRODUCT(MAX(ROW($D$2:$D33)*($C34=$D$2:$D33))-1),INDEX($X$2:$X33,SUMPRODUCT(MAX(ROW($C$2:$C33)*($C34=$C$2:$C33))-1)),INDEX($Y$2:$Y33,SUMPRODUCT(MAX(ROW($D$2:$D33)*($C34=$D$2:$D33))-1)))),_xlfn.IFNA(IF(VLOOKUP(C34,'30th June Rankings (Values)'!A:D,4,FALSE)>0,VLOOKUP(C34,'30th June Rankings (Values)'!A:D,4,FALSE),400),400)) -> 394.5000268 | W34: =IFERROR((IF(SUMPRODUCT(MAX(ROW($D$2:$D33)*($D34=$D$2:$D33))-1)>SUMPRODUCT(MAX(ROW($C$2:$C33)*($D34=$C$2:$C33))-1),INDEX($Y$2:$Y33,SUMPRODUCT(MAX(ROW($D$2:$D33)*($D34=$D$2:$D33))-1)),INDEX($X$2:$X33,SUMPRODUCT(MAX(ROW($C$2:$C33)*($D34=$C$2:$C33))-1)))),_xlfn.IFNA(IF(VLOOKUP(D34,'30th June Rankings (Values)'!A:D,4,FALSE)>0,VLOOKUP(D34,'30th June Rankings (Values)'!A:D,4,FALSE),400),400)) -> 318.4675438 | X34: =20*(E34-(1/(1+(10^((W34-V34)/400)))))+V34 -> 392.3459139 | Y34: =20*(F34-(1/(1+(10^((V34-W34)/400)))))+W34 -> 320.6216567 | Z34: =C34&D34 -> Toby GilhamElliot Marshall | AA34: =VLOOKUP(L34,Countries!A:B,2,FALSE) -> GBR | AB34: =IF(O34="","Y",(IF(Q34="","Y","N"))) -> N | AC34: =IF(O34=Q34,"Y","N") -> N | AD34: =IF(J34<(TODAY()-60),"N","Y") -> Y | AE34: =_xlfn.MAXIFS(B:B,I:I,I34) -> 5 | AF34: =IF(AE34<5,"RTT/Casual",(IF(M34="TRUE","RTT/Casual",(IF(COUNTIF(I34,"*Team*"),"RTT/Casual",(IF(COUNTIF(I34,"*Double*"),"RTT/Casual","GT"))))))) -> GT | AG34: =O34&Q34 -> Ossiarch BonereapersKruleboyz | AH34: =MONTH(J34) -> 7 | AI34: =((COUNTIFS(I:I,I34))/AE34)*2 -> 20 | AJ34: =VLOOKUP(I34,Battleplans!A:F,Matches!B34+1,FALSE) -> 0
A35: 575075 | B35: 2 | C35: Brett Packham | D35: Declan McKitrick | E35: 1 | F35: 0 | G35: 12 | H35: 8 | I35: Age of Sigmar 4 Bootcamp 1 | J35: 2024-07-13T08:30:00 | K35: 2024-07-14T16:30:00 | L35: GB | M35: FALSE | N35: 2023 | O35: Sylvaneth | P35: Lords of the Clan | Q35: Blades of Khorne | U35: bcp | V35: =IFERROR((IF(SUMPRODUCT(MAX(ROW($C$2:$C34)*($C35=$C$2:$C34))-1)>SUMPRODUCT(MAX(ROW($D$2:$D34)*($C35=$D$2:$D34))-1),INDEX($X$2:$X34,SUMPRODUCT(MAX(ROW($C$2:$C34)*($C35=$C$2:$C34))-1)),INDEX($Y$2:$Y34,SUMPRODUCT(MAX(ROW($D$2:$D34)*($C35=$D$2:$D34))-1)))),_xlfn.IFNA(IF(VLOOKUP(C35,'30th June Rankings (Values)'!A:D,4,FALSE)>0,VLOOKUP(C35,'30th June Rankings (Values)'!A:D,4,FALSE),400),400)) -> 375.5374873 | W35: =IFERROR((IF(SUMPRODUCT(MAX(ROW($D$2:$D34)*($D35=$D$2:$D34))-1)>SUMPRODUCT(MAX(ROW($C$2:$C34)*($D35=$C$2:$C34))-1),INDEX($Y$2:$Y34,SUMPRODUCT(MAX(ROW($D$2:$D34)*($D35=$D$2:$D34))-1)),INDEX($X$2:$X34,SUMPRODUCT(MAX(ROW($C$2:$C34)*($D35=$C$2:$C34))-1)))),_xlfn.IFNA(IF(VLOOKUP(D35,'30th June Rankings (Values)'!A:D,4,FALSE)>0,VLOOKUP(D35,'30th June Rankings (Values)'!A:D,4,FALSE),400),400)) -> 538.5134297 | X35: =20*(E35-(1/(1+(10^((W35-V35)/400)))))+V35 -> 389.912064 | Y35: =20*(F35-(1/(1+(10^((V35-W35)/400)))))+W35 -> 524.138853 | Z35: =C35&D35 -> Brett PackhamDeclan McKitrick | AA35: =VLOOKUP(L35,Countries!A:B,2,FALSE) -> GBR | AB35: =IF(O35="","Y",(IF(Q35="","Y","N"))) -> N | AC35: =IF(O35=Q35,"Y","N") -> N | AD35: =IF(J35<(TODAY()-60),"N","Y") -> Y | AE35: =_xlfn.MAXIFS(B:B,I:I,I35) -> 5 | AF35: =IF(AE35<5,"RTT/Casual",(IF(M35="TRUE","RTT/Casual",(IF(COUNTIF(I35,"*Team*"),"RTT/Casual",(IF(COUNTIF(I35,"*Double*"),"RTT/Casual","GT"))))))) -> GT | AG35: =O35&Q35 -> SylvanethBlades of Khorne | AH35: =MONTH(J35) -> 7 | AI35: =((COUNTIFS(I:I,I35))/AE35)*2 -> 20 | AJ35: =VLOOKUP(I35,Battleplans!A:F,Matches!B35+1,FALSE) -> 0
A36: 575101 | B36: 2 | C36: Robert Symes | D36: Tom Whitbrook | E36: 0 | F36: 1 | G36: 3 | H36: 17 | I36: Age of Sigmar 4 Bootcamp 1 | J36: 2024-07-13T08:30:00 | K36: 2024-07-14T16:30:00 | L36: GB | M36: FALSE | N36: 2023 | O36: Blades of Khorne | P36: Bloodbound Warhorde | Q36: Nighthaunt | R36: Death Stalkers | U36: bcp | V36: =IFERROR((IF(SUMPRODUCT(MAX(ROW($C$2:$C35)*($C36=$C$2:$C35))-1)>SUMPRODUCT(MAX(ROW($D$2:$D35)*($C36=$D$2:$D35))-1),INDEX($X$2:$X35,SUMPRODUCT(MAX(ROW($C$2:$C35)*($C36=$C$2:$C35))-1)),INDEX($Y$2:$Y35,SUMPRODUCT(MAX(ROW($D$2:$D35)*($C36=$D$2:$D35))-1)))),_xlfn.IFNA(IF(VLOOKUP(C36,'30th June Rankings (Values)'!A:D,4,FALSE)>0,VLOOKUP(C36,'30th June Rankings (Values)'!A:D,4,FALSE),400),400)) -> 454.7613687 | W36: =IFERROR((IF(SUMPRODUCT(MAX(ROW($D$2:$D35)*($D36=$D$2:$D35))-1)>SUMPRODUCT(MAX(ROW($C$2:$C35)*($D36=$C$2:$C35))-1),INDEX($Y$2:$Y35,SUMPRODUCT(MAX(ROW($D$2:$D35)*($D36=$D$2:$D35))-1)),INDEX($X$2:$X35,SUMPRODUCT(MAX(ROW($C$2:$C35)*($D36=$C$2:$C35))-1)))),_xlfn.IFNA(IF(VLOOKUP(D36,'30th June Rankings (Values)'!A:D,4,FALSE)>0,VLOOKUP(D36,'30th June Rankings (Values)'!A:D,4,FALSE),400),400)) -> 411.3966179 | X36: =20*(E36-(1/(1+(10^((W36-V36)/400)))))+V36 -> 443.5196721 | Y36: =20*(F36-(1/(1+(10^((V36-W36)/400)))))+W36 -> 422.6383145 | Z36: =C36&D36 -> Robert SymesTom Whitbrook | AA36: =VLOOKUP(L36,Countries!A:B,2,FALSE) -> GBR | AB36: =IF(O36="","Y",(IF(Q36="","Y","N"))) -> N | AC36: =IF(O36=Q36,"Y","N") -> N | AD36: =IF(J36<(TODAY()-60),"N","Y") -> Y | AE36: =_xlfn.MAXIFS(B:B,I:I,I36) -> 5 | AF36: =IF(AE36<5,"RTT/Casual",(IF(M36="TRUE","RTT/Casual",(IF(COUNTIF(I36,"*Team*"),"RTT/Casual",(IF(COUNTIF(I36,"*Double*"),"RTT/Casual","GT"))))))) -> GT | AG36: =O36&Q36 -> Blades of KhorneNighthaunt | AH36: =MONTH(J36) -> 7 | AI36: =((COUNTIFS(I:I,I36))/AE36)*2 -> 20 | AJ36: =VLOOKUP(I36,Battleplans!A:F,Matches!B36+1,FALSE) -> 0
A37: 575123 | B37: 2 | C37: Dave Mazzocchi-Jones | D37: Marc Colwill | E37: 0 | F37: 1 | G37: 4 | H37: 16 | I37: Age of Sigmar 4 Bootcamp 1 | J37: 2024-07-13T08:30:00 | K37: 2024-07-14T16:30:00 | L37: GB | M37: FALSE | N37: 2023 | O37: Ossiarch Bonereapers | P37: Kavalos Lance | Q37: Seraphon | R37: Sunclaw Starhost | U37: bcp | V37: =IFERROR((IF(SUMPRODUCT(MAX(ROW($C$2:$C36)*($C37=$C$2:$C36))-1)>SUMPRODUCT(MAX(ROW($D$2:$D36)*($C37=$D$2:$D36))-1),INDEX($X$2:$X36,SUMPRODUCT(MAX(ROW($C$2:$C36)*($C37=$C$2:$C36))-1)),INDEX($Y$2:$Y36,SUMPRODUCT(MAX(ROW($D$2:$D36)*($C37=$D$2:$D36))-1)))),_xlfn.IFNA(IF(VLOOKUP(C37,'30th June Rankings (Values)'!A:D,4,FALSE)>0,VLOOKUP(C37,'30th June Rankings (Values)'!A:D,4,FALSE),400),400)) -> 402.5327991 | W37: =IFERROR((IF(SUMPRODUCT(MAX(ROW($D$2:$D36)*($D37=$D$2:$D36))-1)>SUMPRODUCT(MAX(ROW($C$2:$C36)*($D37=$C$2:$C36))-1),INDEX($Y$2:$Y36,SUMPRODUCT(MAX(ROW($D$2:$D36)*($D37=$D$2:$D36))-1)),INDEX($X$2:$X36,SUMPRODUCT(MAX(ROW($C$2:$C36)*($D37=$C$2:$C36))-1)))),_xlfn.IFNA(IF(VLOOKUP(D37,'30th June Rankings (Values)'!A:D,4,FALSE)>0,VLOOKUP(D37,'30th June Rankings (Values)'!A:D,4,FALSE),400),400)) -> 373.66346 | X37: =20*(E37-(1/(1+(10^((W37-V37)/400)))))+V37 -> 391.7037798 | Y37: =20*(F37-(1/(1+(10^((V37-W37)/400)))))+W37 -> 384.4924793 | Z37: =C37&D37 -> Dave Mazzocchi-JonesMarc Colwill | AA37: =VLOOKUP(L37,Countries!A:B,2,FALSE) -> GBR | AB37: =IF(O37="","Y",(IF(Q37="","Y","N"))) -> N | AC37: =IF(O37=Q37,"Y","N") -> N | AD37: =IF(J37<(TODAY()-60),"N","Y") -> Y | AE37: =_xlfn.MAXIFS(B:B,I:I,I37) -> 5 | AF37: =IF(AE37<5,"RTT/Casual",(IF(M37="TRUE","RTT/Casual",(IF(COUNTIF(I37,"*Team*"),"RTT/Casual",(IF(COUNTIF(I37,"*Double*"),"RTT/Casual","GT"))))))) -> GT | AG37: =O37&Q37 -> Ossiarch BonereapersSeraphon | AH37: =MONTH(J37) -> 7 | AI37: =((COUNTIFS(I:I,I37))/AE37)*2 -> 20 | AJ37: =VLOOKUP(I37,Battleplans!A:F,Matches!B37+1,FALSE) -> 0
A38: 575150 | B38: 2 | C38: Thom Ashworth | D38: Matt Hull | E38: 0 | F38: 1 | G38: 7 | H38: 13 | I38: Age of Sigmar 4 Bootcamp 1 | J38: 2024-07-13T08:30:00 | K38: 2024-07-14T16:30:00 | L38: GB | M38: FALSE | N38: 2023 | O38: Stormcast Eternals | P38: Various subfactions | Q38: Slaves to Darkness | R38: Godswrath Warband | U38: bcp | V38: =IFERROR((IF(SUMPRODUCT(MAX(ROW($C$2:$C37)*($C38=$C$2:$C37))-1)>SUMPRODUCT(MAX(ROW($D$2:$D37)*($C38=$D$2:$D37))-1),INDEX($X$2:$X37,SUMPRODUCT(MAX(ROW($C$2:$C37)*($C38=$C$2:$C37))-1)),INDEX($Y$2:$Y37,SUMPRODUCT(MAX(ROW($D$2:$D37)*($C38=$D$2:$D37))-1)))),_xlfn.IFNA(IF(VLOOKUP(C38,'30th June Rankings (Values)'!A:D,4,FALSE)>0,VLOOKUP(C38,'30th June Rankings (Values)'!A:D,4,FALSE),400),400)) -> 389.3225173 | W38: =IFERROR((IF(SUMPRODUCT(MAX(ROW($D$2:$D37)*($D38=$D$2:$D37))-1)>SUMPRODUCT(MAX(ROW($C$2:$C37)*($D38=$C$2:$C37))-1),INDEX($Y$2:$Y37,SUMPRODUCT(MAX(ROW($D$2:$D37)*($D38=$D$2:$D37))-1)),INDEX($X$2:$X37,SUMPRODUCT(MAX(ROW($C$2:$C37)*($D38=$C$2:$C37))-1)))),_xlfn.IFNA(IF(VLOOKUP(D38,'30th June Rankings (Values)'!A:D,4,FALSE)>0,VLOOKUP(D38,'30th June Rankings (Values)'!A:D,4,FALSE),400),400)) -> 374.6269136 | X38: =20*(E38-(1/(1+(10^((W38-V38)/400)))))+V38 -> 378.8997958 | Y38: =20*(F38-(1/(1+(10^((V38-W38)/400)))))+W38 -> 385.049635 | Z38: =C38&D38 -> Thom AshworthMatt Hull | AA38: =VLOOKUP(L38,Countries!A:B,2,FALSE) -> GBR | AB38: =IF(O38="","Y",(IF(Q38="","Y","N"))) -> N | AC38: =IF(O38=Q38,"Y","N") -> N | AD38: =IF(J38<(TODAY()-60),"N","Y") -> Y | AE38: =_xlfn.MAXIFS(B:B,I:I,I38) -> 5 | AF38: =IF(AE38<5,"RTT/Casual",(IF(M38="TRUE","RTT/Casual",(IF(COUNTIF(I38,"*Team*"),"RTT/Casual",(IF(COUNTIF(I38,"*Double*"),"RTT/Casual","GT"))))))) -> GT | AG38: =O38&Q38 -> Stormcast EternalsSlaves to Darkness | AH38: =MONTH(J38) -> 7 | AI38: =((COUNTIFS(I:I,I38))/AE38)*2 -> 20 | AJ38: =VLOOKUP(I38,Battleplans!A:F,Matches!B38+1,FALSE) -> 0
A39: 575203 | B39: 3 | C39: Andy Ransome | D39: Matthew Willacy | E39: 0 | F39: 1 | G39: 7 | H39: 13 | I39: Age of Sigmar 4 Bootcamp 1 | J39: 2024-07-13T08:30:00 | K39: 2024-07-14T16:30:00 | L39: GB | M39: FALSE | N39: 2023 | O39: Stormcast Eternals | P39: Lightning Echelon | Q39: Gloomspite Gitz | R39: Troggherd | U39: bcp | V39: =IFERROR((IF(SUMPRODUCT(MAX(ROW($C$2:$C38)*($C39=$C$2:$C38))-1)>SUMPRODUCT(MAX(ROW($D$2:$D38)*($C39=$D$2:$D38))-1),INDEX($X$2:$X38,SUMPRODUCT(MAX(ROW($C$2:$C38)*($C39=$C$2:$C38))-1)),INDEX($Y$2:$Y38,SUMPRODUCT(MAX(ROW($D$2:$D38)*($C39=$D$2:$D38))-1)))),_xlfn.IFNA(IF(VLOOKUP(C39,'30th June Rankings (Values)'!A:D,4,FALSE)>0,VLOOKUP(C39,'30th June Rankings (Values)'!A:D,4,FALSE),400),400)) -> 376.4477914 | W39: =IFERROR((IF(SUMPRODUCT(MAX(ROW($D$2:$D38)*($D39=$D$2:$D38))-1)>SUMPRODUCT(MAX(ROW($C$2:$C38)*($D39=$C$2:$C38))-1),INDEX($Y$2:$Y38,SUMPRODUCT(MAX(ROW($D$2:$D38)*($D39=$D$2:$D38))-1)),INDEX($X$2:$X38,SUMPRODUCT(MAX(ROW($C$2:$C38)*($D39=$C$2:$C38))-1)))),_xlfn.IFNA(IF(VLOOKUP(D39,'30th June Rankings (Values)'!A:D,4,FALSE)>0,VLOOKUP(D39,'30th June Rankings (Values)'!A:D,4,FALSE),400),400)) -> 372.7832619 | X39: =20*(E39-(1/(1+(10^((W39-V39)/400)))))+V39 -> 366.3423217 | Y39: =20*(F39-(1/(1+(10^((V39-W39)/400)))))+W39 -> 382.8887316 | Z39: =C39&D39 -> Andy RansomeMatthew Willacy | AA39: =VLOOKUP(L39,Countries!A:B,2,FALSE) -> GBR | AB39: =IF(O39="","Y",(IF(Q39="","Y","N"))) -> N | AC39: =IF(O39=Q39,"Y","N") -> N | AD39: =IF(J39<(TODAY()-60),"N","Y") -> Y | AE39: =_xlfn.MAXIFS(B:B,I:I,I39) -> 5 | AF39: =IF(AE39<5,"RTT/Casual",(IF(M39="TRUE","RTT/Casual",(IF(COUNTIF(I39,"*Team*"),"RTT/Casual",(IF(COUNTIF(I39,"*Double*"),"RTT/Casual","GT"))))))) -> GT | AG39: =O39&Q39 -> Stormcast EternalsGloomspite Gitz | AH39: =MONTH(J39) -> 7 | AI39: =((COUNTIFS(I:I,I39))/AE39)*2 -> 20 | AJ39: =VLOOKUP(I39,Battleplans!A:F,Matches!B39+1,FALSE) -> 0
A40: 575232 | B40: 3 | C40: Dennis Tatarkov | D40: Peter Twigg | E40: 0 | F40: 1 | G40: 9 | H40: 11 | I40: Age of Sigmar 4 Bootcamp 1 | J40: 2024-07-13T08:30:00 | K40: 2024-07-14T16:30:00 | L40: GB | M40: FALSE | N40: 2023 | O40: Nighthaunt | P40: Death Stalkers | Q40: Cities of Sigmar | R40: Ironweld Guild Army | U40: bcp | V40: =IFERROR((IF(SUMPRODUCT(MAX(ROW($C$2:$C39)*($C40=$C$2:$C39))-1)>SUMPRODUCT(MAX(ROW($D$2:$D39)*($C40=$D$2:$D39))-1),INDEX($X$2:$X39,SUMPRODUCT(MAX(ROW($C$2:$C39)*($C40=$C$2:$C39))-1)),INDEX($Y$2:$Y39,SUMPRODUCT(MAX(ROW($D$2:$D39)*($C40=$D$2:$D39))-1)))),_xlfn.IFNA(IF(VLOOKUP(C40,'30th June Rankings (Values)'!A:D,4,FALSE)>0,VLOOKUP(C40,'30th June Rankings (Values)'!A:D,4,FALSE),400),400)) -> 547.582404 | W40: =IFERROR((IF(SUMPRODUCT(MAX(ROW($D$2:$D39)*($D40=$D$2:$D39))-1)>SUMPRODUCT(MAX(ROW($C$2:$C39)*($D40=$C$2:$C39))-1),INDEX($Y$2:$Y39,SUMPRODUCT(MAX(ROW($D$2:$D39)*($D40=$D$2:$D39))-1)),INDEX($X$2:$X39,SUMPRODUCT(MAX(ROW($C$2:$C39)*($D40=$C$2:$C39))-1)))),_xlfn.IFNA(IF(VLOOKUP(D40,'30th June Rankings (Values)'!A:D,4,FALSE)>0,VLOOKUP(D40,'30th June Rankings (Values)'!A:D,4,FALSE),400),400)) -> 578.8678956 | X40: =20*(E40-(1/(1+(10^((W40-V40)/400)))))+V40 -> 538.4804469 | Y40: =20*(F40-(1/(1+(10^((V40-W40)/400)))))+W40 -> 587.9698527 | Z40: =C40&D40 -> Dennis TatarkovPeter Twigg | AA40: =VLOOKUP(L40,Countries!A:B,2,FALSE) -> GBR | AB40: =IF(O40="","Y",(IF(Q40="","Y","N"))) -> N | AC40: =IF(O40=Q40,"Y","N") -> N | AD40: =IF(J40<(TODAY()-60),"N","Y") -> Y | AE40: =_xlfn.MAXIFS(B:B,I:I,I40) -> 5 | AF40: =IF(AE40<5,"RTT/Casual",(IF(M40="TRUE","RTT/Casual",(IF(COUNTIF(I40,"*Team*"),"RTT/Casual",(IF(COUNTIF(I40,"*Double*"),"RTT/Casual","GT"))))))) -> GT | AG40: =O40&Q40 -> NighthauntCities of Sigmar | AH40: =MONTH(J40) -> 7 | AI40: =((COUNTIFS(I:I,I40))/AE40)*2 -> 20 | AJ40: =VLOOKUP(I40,Battleplans!A:F,Matches!B40+1,FALSE) -> 0
A41: 575245 | B41: 3 | C41: Daniel Bean | D41: Matt Hull | E41: 1 | F41: 0 | G41: 15 | H41: 5 | I41: Age of Sigmar 4 Bootcamp 1 | J41: 2024-07-13T08:30:00 | K41: 2024-07-14T16:30:00 | L41: GB | M41: FALSE | N41: 2023 | O41: Soulblight Gravelords | P41: Kritzka | Q41: Slaves to Darkness | R41: Godswrath Warband | U41: bcp | V41: =IFERROR((IF(SUMPRODUCT(MAX(ROW($C$2:$C40)*($C41=$C$2:$C40))-1)>SUMPRODUCT(MAX(ROW($D$2:$D40)*($C41=$D$2:$D40))-1),INDEX($X$2:$X40,SUMPRODUCT(MAX(ROW($C$2:$C40)*($C41=$C$2:$C40))-1)),INDEX($Y$2:$Y40,SUMPRODUCT(MAX(ROW($D$2:$D40)*($C41=$D$2:$D40))-1)))),_xlfn.IFNA(IF(VLOOKUP(C41,'30th June Rankings (Values)'!A:D,4,FALSE)>0,VLOOKUP(C41,'30th June Rankings (Values)'!A:D,4,FALSE),400),400)) -> 484.6135086 | W41: =IFERROR((IF(SUMPRODUCT(MAX(ROW($D$2:$D40)*($D41=$D$2:$D40))-1)>SUMPRODUCT(MAX(ROW($C$2:$C40)*($D41=$C$2:$C40))-1),INDEX($Y$2:$Y40,SUMPRODUCT(MAX(ROW($D$2:$D40)*($D41=$D$2:$D40))-1)),INDEX($X$2:$X40,SUMPRODUCT(MAX(ROW($C$2:$C40)*($D41=$C$2:$C40))-1)))),_xlfn.IFNA(IF(VLOOKUP(D41,'30th June Rankings (Values)'!A:D,4,FALSE)>0,VLOOKUP(D41,'30th June Rankings (Values)'!A:D,4,FALSE),400),400)) -> 385.049635 | X41: =20*(E41-(1/(1+(10^((W41-V41)/400)))))+V41 -> 491.8237803 | Y41: =20*(F41-(1/(1+(10^((V41-W41)/400)))))+W41 -> 377.8393633 | Z41: =C41&D41 -> Daniel BeanMatt Hull | AA41: =VLOOKUP(L41,Countries!A:B,2,FALSE) -> GBR | AB41: =IF(O41="","Y",(IF(Q41="","Y","N"))) -> N | AC41: =IF(O41=Q41,"Y","N") -> N | AD41: =IF(J41<(TODAY()-60),"N","Y") -> Y | AE41: =_xlfn.MAXIFS(B:B,I:I,I41) -> 5 | AF41: =IF(AE41<5,"RTT/Casual",(IF(M41="TRUE","RTT/Casual",(IF(COUNTIF(I41,"*Team*"),"RTT/Casual",(IF(COUNTIF(I41,"*Double*"),"RTT/Casual","GT"))))))) -> GT | AG41: =O41&Q41 -> Soulblight GravelordsSlaves to Darkness | AH41: =MONTH(J41) -> 7 | AI41: =((COUNTIFS(I:I,I41))/AE41)*2 -> 20 | AJ41: =VLOOKUP(I41,Battleplans!A:F,Matches!B41+1,FALSE) -> 0
A42: 575270 | B42: 3 | C42: Elliot Marshall | D42: Claire Lavender | E42: 1 | F42: 0 | G42: 13 | H42: 7 | I42: Age of Sigmar 4 Bootcamp 1 | J42: 2024-07-13T08:30:00 | K42: 2024-07-14T16:30:00 | L42: GB | M42: FALSE | N42: 2023 | O42: Kruleboyz | P42: Trophy Finga | Q42: Daughters of Khaine | R42: Slaughter Troupe | U42: bcp | V42: =IFERROR((IF(SUMPRODUCT(MAX(ROW($C$2:$C41)*($C42=$C$2:$C41))-1)>SUMPRODUCT(MAX(ROW($D$2:$D41)*($C42=$D$2:$D41))-1),INDEX($X$2:$X41,SUMPRODUCT(MAX(ROW($C$2:$C41)*($C42=$C$2:$C41))-1)),INDEX($Y$2:$Y41,SUMPRODUCT(MAX(ROW($D$2:$D41)*($C42=$D$2:$D41))-1)))),_xlfn.IFNA(IF(VLOOKUP(C42,'30th June Rankings (Values)'!A:D,4,FALSE)>0,VLOOKUP(C42,'30th June Rankings (Values)'!A:D,4,FALSE),400),400)) -> 320.6216567 | W42: =IFERROR((IF(SUMPRODUCT(MAX(ROW($D$2:$D41)*($D42=$D$2:$D41))-1)>SUMPRODUCT(MAX(ROW($C$2:$C41)*($D42=$C$2:$C41))-1),INDEX($Y$2:$Y41,SUMPRODUCT(MAX(ROW($D$2:$D41)*($D42=$D$2:$D41))-1)),INDEX($X$2:$X41,SUMPRODUCT(MAX(ROW($C$2:$C41)*($D42=$C$2:$C41))-1)))),_xlfn.IFNA(IF(VLOOKUP(D42,'30th June Rankings (Values)'!A:D,4,FALSE)>0,VLOOKUP(D42,'30th June Rankings (Values)'!A:D,4,FALSE),400),400)) -> 378.8892729 | X42: =20*(E42-(1/(1+(10^((W42-V42)/400)))))+V42 -> 332.2831853 | Y42: =20*(F42-(1/(1+(10^((V42-W42)/400)))))+W42 -> 367.2277442 | Z42: =C42&D42 -> Elliot MarshallClaire Lavender | AA42: =VLOOKUP(L42,Countries!A:B,2,FALSE) -> GBR | AB42: =IF(O42="","Y",(IF(Q42="","Y","N"))) -> N | AC42: =IF(O42=Q42,"Y","N") -> N | AD42: =IF(J42<(TODAY()-60),"N","Y") -> Y | AE42: =_xlfn.MAXIFS(B:B,I:I,I42) -> 5 | AF42: =IF(AE42<5,"RTT/Casual",(IF(M42="TRUE","RTT/Casual",(IF(COUNTIF(I42,"*Team*"),"RTT/Casual",(IF(COUNTIF(I42,"*Double*"),"RTT/Casual","GT"))))))) -> GT | AG42: =O42&Q42 -> KruleboyzDaughters of Khaine | AH42: =MONTH(J42) -> 7 | AI42: =((COUNTIFS(I:I,I42))/AE42)*2 -> 20 | AJ42: =VLOOKUP(I42,Battleplans!A:F,Matches!B42+1,FALSE) -> 0
A43: 575304 | B43: 3 | C43: Jon Serrano Martin | D43: Robert Symes | E43: 0.5 | F43: 0.5 | G43: 11 | H43: 11 | I43: Age of Sigmar 4 Bootcamp 1 | J43: 2024-07-13T08:30:00 | K43: 2024-07-14T16:30:00 | L43: GB | M43: FALSE | N43: 2023 | O43: Soulblight Gravelords | P43: Deathstench Drove | Q43: Blades of Khorne | R43: Bloodbound Warhorde | U43: bcp | V43: =IFERROR((IF(SUMPRODUCT(MAX(ROW($C$2:$C42)*($C43=$C$2:$C42))-1)>SUMPRODUCT(MAX(ROW($D$2:$D42)*($C43=$D$2:$D42))-1),INDEX($X$2:$X42,SUMPRODUCT(MAX(ROW($C$2:$C42)*($C43=$C$2:$C42))-1)),INDEX($Y$2:$Y42,SUMPRODUCT(MAX(ROW($D$2:$D42)*($C43=$D$2:$D42))-1)))),_xlfn.IFNA(IF(VLOOKUP(C43,'30th June Rankings (Values)'!A:D,4,FALSE)>0,VLOOKUP(C43,'30th June Rankings (Values)'!A:D,4,FALSE),400),400)) -> 389.9129975 | W43: =IFERROR((IF(SUMPRODUCT(MAX(ROW($D$2:$D42)*($D43=$D$2:$D42))-1)>SUMPRODUCT(MAX(ROW($C$2:$C42)*($D43=$C$2:$C42))-1),INDEX($Y$2:$Y42,SUMPRODUCT(MAX(ROW($D$2:$D42)*($D43=$D$2:$D42))-1)),INDEX($X$2:$X42,SUMPRODUCT(MAX(ROW($C$2:$C42)*($D43=$C$2:$C42))-1)))),_xlfn.IFNA(IF(VLOOKUP(D43,'30th June Rankings (Values)'!A:D,4,FALSE)>0,VLOOKUP(D43,'30th June Rankings (Values)'!A:D,4,FALSE),400),400)) -> 443.5196721 | X43: =20*(E43-(1/(1+(10^((W43-V43)/400)))))+V43 -> 391.4437934 | Y43: =20*(F43-(1/(1+(10^((V43-W43)/400)))))+W43 -> 441.9888762 | Z43: =C43&D43 -> Jon Serrano MartinRobert Symes | AA43: =VLOOKUP(L43,Countries!A:B,2,FALSE) -> GBR | AB43: =IF(O43="","Y",(IF(Q43="","Y","N"))) -> N | AC43: =IF(O43=Q43,"Y","N") -> N | AD43: =IF(J43<(TODAY()-60),"N","Y") -> Y | AE43: =_xlfn.MAXIFS(B:B,I:I,I43) -> 5 | AF43: =IF(AE43<5,"RTT/Casual",(IF(M43="TRUE","RTT/Casual",(IF(COUNTIF(I43,"*Team*"),"RTT/Casual",(IF(COUNTIF(I43,"*Double*"),"RTT/Casual","GT"))))))) -> GT | AG43: =O43&Q43 -> Soulblight GravelordsBlades of Khorne | AH43: =MONTH(J43) -> 7 | AI43: =((COUNTIFS(I:I,I43))/AE43)*2 -> 20 | AJ43: =VLOOKUP(I43,Battleplans!A:F,Matches!B43+1,FALSE) -> 0
A44: 575337 | B44: 3 | C44: Marc Colwill | D44: Brett Packham | E44: 1 | F44: 0 | G44: 13 | H44: 7 | I44: Age of Sigmar 4 Bootcamp 1 | J44: 2024-07-13T08:30:00 | K44: 2024-07-14T16:30:00 | L44: GB | M44: FALSE | N44: 2023 | O44: Seraphon | P44: Sunclaw Starhost | Q44: Sylvaneth | R44: Lords of the Clan | U44: bcp | V44: =IFERROR((IF(SUMPRODUCT(MAX(ROW($C$2:$C43)*($C44=$C$2:$C43))-1)>SUMPRODUCT(MAX(ROW($D$2:$D43)*($C44=$D$2:$D43))-1),INDEX($X$2:$X43,SUMPRODUCT(MAX(ROW($C$2:$C43)*($C44=$C$2:$C43))-1)),INDEX($Y$2:$Y43,SUMPRODUCT(MAX(ROW($D$2:$D43)*($C44=$D$2:$D43))-1)))),_xlfn.IFNA(IF(VLOOKUP(C44,'30th June Rankings (Values)'!A:D,4,FALSE)>0,VLOOKUP(C44,'30th June Rankings (Values)'!A:D,4,FALSE),400),400)) -> 384.4924793 | W44: =IFERROR((IF(SUMPRODUCT(MAX(ROW($D$2:$D43)*($D44=$D$2:$D43))-1)>SUMPRODUCT(MAX(ROW($C$2:$C43)*($D44=$C$2:$C43))-1),INDEX($Y$2:$Y43,SUMPRODUCT(MAX(ROW($D$2:$D43)*($D44=$D$2:$D43))-1)),INDEX($X$2:$X43,SUMPRODUCT(MAX(ROW($C$2:$C43)*($D44=$C$2:$C43))-1)))),_xlfn.IFNA(IF(VLOOKUP(D44,'30th June Rankings (Values)'!A:D,4,FALSE)>0,VLOOKUP(D44,'30th June Rankings (Values)'!A:D,4,FALSE),400),400)) -> 389.912064 | X44: =20*(E44-(1/(1+(10^((W44-V44)/400)))))+V44 -> 394.6484548 | Y44: =20*(F44-(1/(1+(10^((V44-W44)/400)))))+W44 -> 379.7560885 | Z44: =C44&D44 -> Marc ColwillBrett Packham | AA44: =VLOOKUP(L44,Countries!A:B,2,FALSE) -> GBR | AB44: =IF(O44="","Y",(IF(Q44="","Y","N"))) -> N | AC44: =IF(O44=Q44,"Y","N") -> N | AD44: =IF(J44<(TODAY()-60),"N","Y") -> Y | AE44: =_xlfn.MAXIFS(B:B,I:I,I44) -> 5 | AF44: =IF(AE44<5,"RTT/Casual",(IF(M44="TRUE","RTT/Casual",(IF(COUNTIF(I44,"*Team*"),"RTT/Casual",(IF(COUNTIF(I44,"*Double*"),"RTT/Casual","GT"))))))) -> GT | AG44: =O44&Q44 -> SeraphonSylvaneth | AH44: =MONTH(J44) -> 7 | AI44: =((COUNTIFS(I:I,I44))/AE44)*2 -> 20 | AJ44: =VLOOKUP(I44,Battleplans!A:F,Matches!B44+1,FALSE) -> 0
A45: 575360 | B45: 3 | C45: Declan McKitrick | D45: Thom Ashworth | E45: 1 | F45: 0 | G45: 13 | H45: 7 | I45: Age of Sigmar 4 Bootcamp 1 | J45: 2024-07-13T08:30:00 | K45: 2024-07-14T16:30:00 | L45: GB | M45: FALSE | N45: 2023 | O45: Blades of Khorne | Q45: Stormcast Eternals | R45: Various subfactions | U45: bcp | V45: =IFERROR((IF(SUMPRODUCT(MAX(ROW($C$2:$C44)*($C45=$C$2:$C44))-1)>SUMPRODUCT(MAX(ROW($D$2:$D44)*($C45=$D$2:$D44))-1),INDEX($X$2:$X44,SUMPRODUCT(MAX(ROW($C$2:$C44)*($C45=$C$2:$C44))-1)),INDEX($Y$2:$Y44,SUMPRODUCT(MAX(ROW($D$2:$D44)*($C45=$D$2:$D44))-1)))),_xlfn.IFNA(IF(VLOOKUP(C45,'30th June Rankings (Values)'!A:D,4,FALSE)>0,VLOOKUP(C45,'30th June Rankings (Values)'!A:D,4,FALSE),400),400)) -> 524.138853 | W45: =IFERROR((IF(SUMPRODUCT(MAX(ROW($D$2:$D44)*($D45=$D$2:$D44))-1)>SUMPRODUCT(MAX(ROW($C$2:$C44)*($D45=$C$2:$C44))-1),INDEX($Y$2:$Y44,SUMPRODUCT(MAX(ROW($D$2:$D44)*($D45=$D$2:$D44))-1)),INDEX($X$2:$X44,SUMPRODUCT(MAX(ROW($C$2:$C44)*($D45=$C$2:$C44))-1)))),_xlfn.IFNA(IF(VLOOKUP(D45,'30th June Rankings (Values)'!A:D,4,FALSE)>0,VLOOKUP(D45,'30th June Rankings (Values)'!A:D,4,FALSE),400),400)) -> 378.8997958 | X45: =20*(E45-(1/(1+(10^((W45-V45)/400)))))+V45 -> 530.1861443 | Y45: =20*(F45-(1/(1+(10^((V45-W45)/400)))))+W45 -> 372.8525046 | Z45: =C45&D45 -> Declan McKitrickThom Ashworth | AA45: =VLOOKUP(L45,Countries!A:B,2,FALSE) -> GBR | AB45: =IF(O45="","Y",(IF(Q45="","Y","N"))) -> N | AC45: =IF(O45=Q45,"Y","N") -> N | AD45: =IF(J45<(TODAY()-60),"N","Y") -> Y | AE45: =_xlfn.MAXIFS(B:B,I:I,I45) -> 5 | AF45: =IF(AE45<5,"RTT/Casual",(IF(M45="TRUE","RTT/Casual",(IF(COUNTIF(I45,"*Team*"),"RTT/Casual",(IF(COUNTIF(I45,"*Double*"),"RTT/Casual","GT"))))))) -> GT | AG45: =O45&Q45 -> Blades of KhorneStormcast Eternals | AH45: =MONTH(J45) -> 7 | AI45: =((COUNTIFS(I:I,I45))/AE45)*2 -> 20 | AJ45: =VLOOKUP(I45,Battleplans!A:F,Matches!B45+1,FALSE) -> 0
A46: 575388 | B46: 3 | C46: Kieron Bailey | D46: Paul Willis | E46: 0 | F46: 1 | G46: 9 | H46: 11 | I46: Age of Sigmar 4 Bootcamp 1 | J46: 2024-07-13T08:30:00 | K46: 2024-07-14T16:30:00 | L46: GB | M46: FALSE | N46: 2023 | O46: Kruleboyz | P46: Trophy Finga | Q46: Hedonites of Slaanesh | R46: Seeker Cavalcade | U46: bcp | V46: =IFERROR((IF(SUMPRODUCT(MAX(ROW($C$2:$C45)*($C46=$C$2:$C45))-1)>SUMPRODUCT(MAX(ROW($D$2:$D45)*($C46=$D$2:$D45))-1),INDEX($X$2:$X45,SUMPRODUCT(MAX(ROW($C$2:$C45)*($C46=$C$2:$C45))-1)),INDEX($Y$2:$Y45,SUMPRODUCT(MAX(ROW($D$2:$D45)*($C46=$D$2:$D45))-1)))),_xlfn.IFNA(IF(VLOOKUP(C46,'30th June Rankings (Values)'!A:D,4,FALSE)>0,VLOOKUP(C46,'30th June Rankings (Values)'!A:D,4,FALSE),400),400)) -> 375.5604637 | W46: =IFERROR((IF(SUMPRODUCT(MAX(ROW($D$2:$D45)*($D46=$D$2:$D45))-1)>SUMPRODUCT(MAX(ROW($C$2:$C45)*($D46=$C$2:$C45))-1),INDEX($Y$2:$Y45,SUMPRODUCT(MAX(ROW($D$2:$D45)*($D46=$D$2:$D45))-1)),INDEX($X$2:$X45,SUMPRODUCT(MAX(ROW($C$2:$C45)*($D46=$C$2:$C45))-1)))),_xlfn.IFNA(IF(VLOOKUP(D46,'30th June Rankings (Values)'!A:D,4,FALSE)>0,VLOOKUP(D46,'30th June Rankings (Values)'!A:D,4,FALSE),400),400)) -> 396.7570962 | X46: =20*(E46-(1/(1+(10^((W46-V46)/400)))))+V46 -> 366.169796 | Y46: =20*(F46-(1/(1+(10^((V46-W46)/400)))))+W46 -> 406.1477639 | Z46: =C46&D46 -> Kieron BaileyPaul Willis | AA46: =VLOOKUP(L46,Countries!A:B,2,FALSE) -> GBR | AB46: =IF(O46="","Y",(IF(Q46="","Y","N"))) -> N | AC46: =IF(O46=Q46,"Y","N") -> N | AD46: =IF(J46<(TODAY()-60),"N","Y") -> Y | AE46: =_xlfn.MAXIFS(B:B,I:I,I46) -> 5 | AF46: =IF(AE46<5,"RTT/Casual",(IF(M46="TRUE","RTT/Casual",(IF(COUNTIF(I46,"*Team*"),"RTT/Casual",(IF(COUNTIF(I46,"*Double*"),"RTT/Casual","GT"))))))) -> GT | AG46: =O46&Q46 -> KruleboyzHedonites of Slaanesh | AH46: =MONTH(J46) -> 7 | AI46: =((COUNTIFS(I:I,I46))/AE46)*2 -> 20 | AJ46: =VLOOKUP(I46,Battleplans!A:F,Matches!B46+1,FALSE) -> 0
A47: 575411 | B47: 3 | C47: Tom Whitbrook | D47: Hazel Moon | E47: 0 | F47: 1 | G47: 4 | H47: 16 | I47: Age of Sigmar 4 Bootcamp 1 | J47: 2024-07-13T08:30:00 | K47: 2024-07-14T16:30:00 | L47: GB | M47: FALSE | N47: 2023 | O47: Nighthaunt | P47: Death Stalkers | Q47: Idoneth Deepkin | R47: Akhelian Beastmasters | U47: bcp | V47: =IFERROR((IF(SUMPRODUCT(MAX(ROW($C$2:$C46)*($C47=$C$2:$C46))-1)>SUMPRODUCT(MAX(ROW($D$2:$D46)*($C47=$D$2:$D46))-1),INDEX($X$2:$X46,SUMPRODUCT(MAX(ROW($C$2:$C46)*($C47=$C$2:$C46))-1)),INDEX($Y$2:$Y46,SUMPRODUCT(MAX(ROW($D$2:$D46)*($C47=$D$2:$D46))-1)))),_xlfn.IFNA(IF(VLOOKUP(C47,'30th June Rankings (Values)'!A:D,4,FALSE)>0,VLOOKUP(C47,'30th June Rankings (Values)'!A:D,4,FALSE),400),400)) -> 422.6383145 | W47: =IFERROR((IF(SUMPRODUCT(MAX(ROW($D$2:$D46)*($D47=$D$2:$D46))-1)>SUMPRODUCT(MAX(ROW($C$2:$C46)*($D47=$C$2:$C46))-1),INDEX($Y$2:$Y46,SUMPRODUCT(MAX(ROW($D$2:$D46)*($D47=$D$2:$D46))-1)),INDEX($X$2:$X46,SUMPRODUCT(MAX(ROW($C$2:$C46)*($D47=$C$2:$C46))-1)))),_xlfn.IFNA(IF(VLOOKUP(D47,'30th June Rankings (Values)'!A:D,4,FALSE)>0,VLOOKUP(D47,'30th June Rankings (Values)'!A:D,4,FALSE),400),400)) -> 732.009863 | X47: =20*(E47-(1/(1+(10^((W47-V47)/400)))))+V47 -> 419.7544387 | Y47: =20*(F47-(1/(1+(10^((V47-W47)/400)))))+W47 -> 734.8937388 | Z47: =C47&D47 -> Tom WhitbrookHazel Moon | AA47: =VLOOKUP(L47,Countries!A:B,2,FALSE) -> GBR | AB47: =IF(O47="","Y",(IF(Q47="","Y","N"))) -> N | AC47: =IF(O47=Q47,"Y","N") -> N | AD47: =IF(J47<(TODAY()-60),"N","Y") -> Y | AE47: =_xlfn.MAXIFS(B:B,I:I,I47) -> 5 | AF47: =IF(AE47<5,"RTT/Casual",(IF(M47="TRUE","RTT/Casual",(IF(COUNTIF(I47,"*Team*"),"RTT/Casual",(IF(COUNTIF(I47,"*Double*"),"RTT/Casual","GT"))))))) -> GT | AG47: =O47&Q47 -> NighthauntIdoneth Deepkin | AH47: =MONTH(J47) -> 7 | AI47: =((COUNTIFS(I:I,I47))/AE47)*2 -> 20 | AJ47: =VLOOKUP(I47,Battleplans!A:F,Matches!B47+1,FALSE) -> 0
A48: 575437 | B48: 3 | C48: Toby Gilham | D48: Dave Mazzocchi-Jones | E48: 0 | F48: 1 | G48: 5 | H48: 15 | I48: Age of Sigmar 4 Bootcamp 1 | J48: 2024-07-13T08:30:00 | K48: 2024-07-14T16:30:00 | L48: GB | M48: FALSE | N48: 2023 | O48: Ossiarch Bonereapers | P48: Mortisan Council | Q48: Ossiarch Bonereapers | R48: Kavalos Lance | U48: bcp | V48: =IFERROR((IF(SUMPRODUCT(MAX(ROW($C$2:$C47)*($C48=$C$2:$C47))-1)>SUMPRODUCT(MAX(ROW($D$2:$D47)*($C48=$D$2:$D47))-1),INDEX($X$2:$X47,SUMPRODUCT(MAX(ROW($C$2:$C47)*($C48=$C$2:$C47))-1)),INDEX($Y$2:$Y47,SUMPRODUCT(MAX(ROW($D$2:$D47)*($C48=$D$2:$D47))-1)))),_xlfn.IFNA(IF(VLOOKUP(C48,'30th June Rankings (Values)'!A:D,4,FALSE)>0,VLOOKUP(C48,'30th June Rankings (Values)'!A:D,4,FALSE),400),400)) -> 392.3459139 | W48: =IFERROR((IF(SUMPRODUCT(MAX(ROW($D$2:$D47)*($D48=$D$2:$D47))-1)>SUMPRODUCT(MAX(ROW($C$2:$C47)*($D48=$C$2:$C47))-1),INDEX($Y$2:$Y47,SUMPRODUCT(MAX(ROW($D$2:$D47)*($D48=$D$2:$D47))-1)),INDEX($X$2:$X47,SUMPRODUCT(MAX(ROW($C$2:$C47)*($D48=$C$2:$C47))-1)))),_xlfn.IFNA(IF(VLOOKUP(D48,'30th June Rankings (Values)'!A:D,4,FALSE)>0,VLOOKUP(D48,'30th June Rankings (Values)'!A:D,4,FALSE),400),400)) -> 391.7037798 | X48: =20*(E48-(1/(1+(10^((W48-V48)/400)))))+V48 -> 382.3274318 | Y48: =20*(F48-(1/(1+(10^((V48-W48)/400)))))+W48 -> 401.7222619 | Z48: =C48&D48 -> Toby GilhamDave Mazzocchi-Jones | AA48: =VLOOKUP(L48,Countries!A:B,2,FALSE) -> GBR | AB48: =IF(O48="","Y",(IF(Q48="","Y","N"))) -> N | AC48: =IF(O48=Q48,"Y","N") -> Y | AD48: =IF(J48<(TODAY()-60),"N","Y") -> Y | AE48: =_xlfn.MAXIFS(B:B,I:I,I48) -> 5 | AF48: =IF(AE48<5,"RTT/Casual",(IF(M48="TRUE","RTT/Casual",(IF(COUNTIF(I48,"*Team*"),"RTT/Casual",(IF(COUNTIF(I48,"*Double*"),"RTT/Casual","GT"))))))) -> GT | AG48: =O48&Q48 -> Ossiarch BonereapersOssiarch Bonereapers | AH48: =MONTH(J48) -> 7 | AI48: =((COUNTIFS(I:I,I48))/AE48)*2 -> 20 | AJ48: =VLOOKUP(I48,Battleplans!A:F,Matches!B48+1,FALSE) -> 0
A49: 575480 | B49: 4 | C49: Kieron Bailey | D49: Andy Ransome | E49: 1 | F49: 0 | G49: 14 | H49: 6 | I49: Age of Sigmar 4 Bootcamp 1 | J49: 2024-07-13T08:30:00 | K49: 2024-07-14T16:30:00 | L49: GB | M49: FALSE | N49: 2023 | O49: Kruleboyz | P49: Trophy Finga | Q49: Stormcast Eternals | R49: Lightning Echelon | U49: bcp | V49: =IFERROR((IF(SUMPRODUCT(MAX(ROW($C$2:$C48)*($C49=$C$2:$C48))-1)>SUMPRODUCT(MAX(ROW($D$2:$D48)*($C49=$D$2:$D48))-1),INDEX($X$2:$X48,SUMPRODUCT(MAX(ROW($C$2:$C48)*($C49=$C$2:$C48))-1)),INDEX($Y$2:$Y48,SUMPRODUCT(MAX(ROW($D$2:$D48)*($C49=$D$2:$D48))-1)))),_xlfn.IFNA(IF(VLOOKUP(C49,'30th June Rankings (Values)'!A:D,4,FALSE)>0,VLOOKUP(C49,'30th June Rankings (Values)'!A:D,4,FALSE),400),400)) -> 366.169796 | W49: =IFERROR((IF(SUMPRODUCT(MAX(ROW($D$2:$D48)*($D49=$D$2:$D48))-1)>SUMPRODUCT(MAX(ROW($C$2:$C48)*($D49=$C$2:$C48))-1),INDEX($Y$2:$Y48,SUMPRODUCT(MAX(ROW($D$2:$D48)*($D49=$D$2:$D48))-1)),INDEX($X$2:$X48,SUMPRODUCT(MAX(ROW($C$2:$C48)*($D49=$C$2:$C48))-1)))),_xlfn.IFNA(IF(VLOOKUP(D49,'30th June Rankings (Values)'!A:D,4,FALSE)>0,VLOOKUP(D49,'30th June Rankings (Values)'!A:D,4,FALSE),400),400)) -> 366.3423217 | X49: =20*(E49-(1/(1+(10^((W49-V49)/400)))))+V49 -> 376.1747617 | Y49: =20*(F49-(1/(1+(10^((V49-W49)/400)))))+W49 -> 356.337356 | Z49: =C49&D49 -> Kieron BaileyAndy Ransome | AA49: =VLOOKUP(L49,Countries!A:B,2,FALSE) -> GBR | AB49: =IF(O49="","Y",(IF(Q49="","Y","N"))) -> N | AC49: =IF(O49=Q49,"Y","N") -> N | AD49: =IF(J49<(TODAY()-60),"N","Y") -> Y | AE49: =_xlfn.MAXIFS(B:B,I:I,I49) -> 5 | AF49: =IF(AE49<5,"RTT/Casual",(IF(M49="TRUE","RTT/Casual",(IF(COUNTIF(I49,"*Team*"),"RTT/Casual",(IF(COUNTIF(I49,"*Double*"),"RTT/Casual","GT"))))))) -> GT | AG49: =O49&Q49 -> KruleboyzStormcast Eternals | AH49: =MONTH(J49) -> 7 | AI49: =((COUNTIFS(I:I,I49))/AE49)*2 -> 20 | AJ49: =VLOOKUP(I49,Battleplans!A:F,Matches!B49+1,FALSE) -> 0
A50: 575510 | B50: 4 | C50: Paul Willis | D50: Elliot Marshall | E50: 1 | F50: 0 | G50: 14 | H50: 6 | I50: Age of Sigmar 4 Bootcamp 1 | J50: 2024-07-13T08:30:00 | K50: 2024-07-14T16:30:00 | L50: GB | M50: FALSE | N50: 2023 | O50: Hedonites of Slaanesh | P50: Seeker Cavalcade | Q50: Kruleboyz | R50: Trophy Finga | U50: bcp | V50: =IFERROR((IF(SUMPRODUCT(MAX(ROW($C$2:$C49)*($C50=$C$2:$C49))-1)>SUMPRODUCT(MAX(ROW($D$2:$D49)*($C50=$D$2:$D49))-1),INDEX($X$2:$X49,SUMPRODUCT(MAX(ROW($C$2:$C49)*($C50=$C$2:$C49))-1)),INDEX($Y$2:$Y49,SUMPRODUCT(MAX(ROW($D$2:$D49)*($C50=$D$2:$D49))-1)))),_xlfn.IFNA(IF(VLOOKUP(C50,'30th June Rankings (Values)'!A:D,4,FALSE)>0,VLOOKUP(C50,'30th June Rankings (Values)'!A:D,4,FALSE),400),400)) -> 406.1477639 | W50: =IFERROR((IF(SUMPRODUCT(MAX(ROW($D$2:$D49)*($D50=$D$2:$D49))-1)>SUMPRODUCT(MAX(ROW($C$2:$C49)*($D50=$C$2:$C49))-1),INDEX($Y$2:$Y49,SUMPRODUCT(MAX(ROW($D$2:$D49)*($D50=$D$2:$D49))-1)),INDEX($X$2:$X49,SUMPRODUCT(MAX(ROW($C$2:$C49)*($D50=$C$2:$C49))-1)))),_xlfn.IFNA(IF(VLOOKUP(D50,'30th June Rankings (Values)'!A:D,4,FALSE)>0,VLOOKUP(D50,'30th June Rankings (Values)'!A:D,4,FALSE),400),400)) -> 332.2831853 | X50: =20*(E50-(1/(1+(10^((W50-V50)/400)))))+V50 -> 414.0532323 | Y50: =20*(F50-(1/(1+(10^((V50-W50)/400)))))+W50 -> 324.3777169 | Z50: =C50&D50 -> Paul WillisElliot Marshall | AA50: =VLOOKUP(L50,Countries!A:B,2,FALSE) -> GBR | AB50: =IF(O50="","Y",(IF(Q50="","Y","N"))) -> N | AC50: =IF(O50=Q50,"Y","N") -> N | AD50: =IF(J50<(TODAY()-60),"N","Y") -> Y | AE50: =_xlfn.MAXIFS(B:B,I:I,I50) -> 5 | AF50: =IF(AE50<5,"RTT/Casual",(IF(M50="TRUE","RTT/Casual",(IF(COUNTIF(I50,"*Team*"),"RTT/Casual",(IF(COUNTIF(I50,"*Double*"),"RTT/Casual","GT"))))))) -> GT | AG50: =O50&Q50 -> Hedonites of SlaaneshKruleboyz | AH50: =MONTH(J50) -> 7 | AI50: =((COUNTIFS(I:I,I50))/AE50)*2 -> 20 | AJ50: =VLOOKUP(I50,Battleplans!A:F,Matches!B50+1,FALSE) -> 0
A51: 575534 | B51: 4 | C51: Daniel Bean | D51: Marc Colwill | E51: 1 | F51: 0 | G51: 11 | H51: 9 | I51: Age of Sigmar 4 Bootcamp 1 | J51: 2024-07-13T08:30:00 | K51: 2024-07-14T16:30:00 | L51: GB | M51: FALSE | N51: 2023 | O51: Soulblight Gravelords | P51: Kritzka | Q51: Seraphon | R51: Sunclaw Starhost | U51: bcp | V51: =IFERROR((IF(SUMPRODUCT(MAX(ROW($C$2:$C50)*($C51=$C$2:$C50))-1)>SUMPRODUCT(MAX(ROW($D$2:$D50)*($C51=$D$2:$D50))-1),INDEX($X$2:$X50,SUMPRODUCT(MAX(ROW($C$2:$C50)*($C51=$C$2:$C50))-1)),INDEX($Y$2:$Y50,SUMPRODUCT(MAX(ROW($D$2:$D50)*($C51=$D$2:$D50))-1)))),_xlfn.IFNA(IF(VLOOKUP(C51,'30th June Rankings (Values)'!A:D,4,FALSE)>0,VLOOKUP(C51,'30th June Rankings (Values)'!A:D,4,FALSE),400),400)) -> 491.8237803 | W51: =IFERROR((IF(SUMPRODUCT(MAX(ROW($D$2:$D50)*($D51=$D$2:$D50))-1)>SUMPRODUCT(MAX(ROW($C$2:$C50)*($D51=$C$2:$C50))-1),INDEX($Y$2:$Y50,SUMPRODUCT(MAX(ROW($D$2:$D50)*($D51=$D$2:$D50))-1)),INDEX($X$2:$X50,SUMPRODUCT(MAX(ROW($C$2:$C50)*($D51=$C$2:$C50))-1)))),_xlfn.IFNA(IF(VLOOKUP(D51,'30th June Rankings (Values)'!A:D,4,FALSE)>0,VLOOKUP(D51,'30th June Rankings (Values)'!A:D,4,FALSE),400),400)) -> 394.6484548 | X51: =20*(E51-(1/(1+(10^((W51-V51)/400)))))+V51 -> 499.0975704 | Y51: =20*(F51-(1/(1+(10^((V51-W51)/400)))))+W51 -> 387.3746647 | Z51: =C51&D51 -> Daniel BeanMarc Colwill | AA51: =VLOOKUP(L51,Countries!A:B,2,FALSE) -> GBR | AB51: =IF(O51="","Y",(IF(Q51="","Y","N"))) -> N | AC51: =IF(O51=Q51,"Y","N") -> N | AD51: =IF(J51<(TODAY()-60),"N","Y") -> Y | AE51: =_xlfn.MAXIFS(B:B,I:I,I51) -> 5 | AF51: =IF(AE51<5,"RTT/Casual",(IF(M51="TRUE","RTT/Casual",(IF(COUNTIF(I51,"*Team*"),"RTT/Casual",(IF(COUNTIF(I51,"*Double*"),"RTT/Casual","GT"))))))) -> GT | AG51: =O51&Q51 -> Soulblight GravelordsSeraphon | AH51: =MONTH(J51) -> 7 | AI51: =((COUNTIFS(I:I,I51))/AE51)*2 -> 20 | AJ51: =VLOOKUP(I51,Battleplans!A:F,Matches!B51+1,FALSE) -> 0
A52: 575564 | B52: 4 | C52: Matthew Willacy | D52: Jon Serrano Martin | E52: 1 | F52: 0 | G52: 11 | H52: 9 | I52: Age of Sigmar 4 Bootcamp 1 | J52: 2024-07-13T08:30:00 | K52: 2024-07-14T16:30:00 | L52: GB | M52: FALSE | N52: 2023 | O52: Gloomspite Gitz | P52: Troggherd | Q52: Soulblight Gravelords | R52: Deathstench Drove | U52: bcp | V52: =IFERROR((IF(SUMPRODUCT(MAX(ROW($C$2:$C51)*($C52=$C$2:$C51))-1)>SUMPRODUCT(MAX(ROW($D$2:$D51)*($C52=$D$2:$D51))-1),INDEX($X$2:$X51,SUMPRODUCT(MAX(ROW($C$2:$C51)*($C52=$C$2:$C51))-1)),INDEX($Y$2:$Y51,SUMPRODUCT(MAX(ROW($D$2:$D51)*($C52=$D$2:$D51))-1)))),_xlfn.IFNA(IF(VLOOKUP(C52,'30th June Rankings (Values)'!A:D,4,FALSE)>0,VLOOKUP(C52,'30th June Rankings (Values)'!A:D,4,FALSE),400),400)) -> 382.8887316 | W52: =IFERROR((IF(SUMPRODUCT(MAX(ROW($D$2:$D51)*($D52=$D$2:$D51))-1)>SUMPRODUCT(MAX(ROW($C$2:$C51)*($D52=$C$2:$C51))-1),INDEX($Y$2:$Y51,SUMPRODUCT(MAX(ROW($D$2:$D51)*($D52=$D$2:$D51))-1)),INDEX($X$2:$X51,SUMPRODUCT(MAX(ROW($C$2:$C51)*($D52=$C$2:$C51))-1)))),_xlfn.IFNA(IF(VLOOKUP(D52,'30th June Rankings (Values)'!A:D,4,FALSE)>0,VLOOKUP(D52,'30th June Rankings (Values)'!A:D,4,FALSE),400),400)) -> 391.4437934 | X52: =20*(E52-(1/(1+(10^((W52-V52)/400)))))+V52 -> 393.1349163 | Y52: =20*(F52-(1/(1+(10^((V52-W52)/400)))))+W52 -> 381.1976087 | Z52: =C52&D52 -> Matthew WillacyJon Serrano Martin | AA52: =VLOOKUP(L52,Countries!A:B,2,FALSE) -> GBR | AB52: =IF(O52="","Y",(IF(Q52="","Y","N"))) -> N | AC52: =IF(O52=Q52,"Y","N") -> N | AD52: =IF(J52<(TODAY()-60),"N","Y") -> Y | AE52: =_xlfn.MAXIFS(B:B,I:I,I52) -> 5 | AF52: =IF(AE52<5,"RTT/Casual",(IF(M52="TRUE","RTT/Casual",(IF(COUNTIF(I52,"*Team*"),"RTT/Casual",(IF(COUNTIF(I52,"*Double*"),"RTT/Casual","GT"))))))) -> GT | AG52: =O52&Q52 -> Gloomspite GitzSoulblight Gravelords | AH52: =MONTH(J52) -> 7 | AI52: =((COUNTIFS(I:I,I52))/AE52)*2 -> 20 | AJ52: =VLOOKUP(I52,Battleplans!A:F,Matches!B52+1,FALSE) -> 0
A53: 575590 | B53: 4 | C53: Peter Twigg | D53: Hazel Moon | E53: 1 | F53: 0 | G53: 11 | H53: 9 | I53: Age of Sigmar 4 Bootcamp 1 | J53: 2024-07-13T08:30:00 | K53: 2024-07-14T16:30:00 | L53: GB | M53: FALSE | N53: 2023 | O53: Cities of Sigmar | P53: Ironweld Guild Army | Q53: Idoneth Deepkin | R53: Akhelian Beastmasters | U53: bcp | V53: =IFERROR((IF(SUMPRODUCT(MAX(ROW($C$2:$C52)*($C53=$C$2:$C52))-1)>SUMPRODUCT(MAX(ROW($D$2:$D52)*($C53=$D$2:$D52))-1),INDEX($X$2:$X52,SUMPRODUCT(MAX(ROW($C$2:$C52)*($C53=$C$2:$C52))-1)),INDEX($Y$2:$Y52,SUMPRODUCT(MAX(ROW($D$2:$D52)*($C53=$D$2:$D52))-1)))),_xlfn.IFNA(IF(VLOOKUP(C53,'30th June Rankings (Values)'!A:D,4,FALSE)>0,VLOOKUP(C53,'30th June Rankings (Values)'!A:D,4,FALSE),400),400)) -> 587.9698527 | W53: =IFERROR((IF(SUMPRODUCT(MAX(ROW($D$2:$D52)*($D53=$D$2:$D52))-1)>SUMPRODUCT(MAX(ROW($C$2:$C52)*($D53=$C$2:$C52))-1),INDEX($Y$2:$Y52,SUMPRODUCT(MAX(ROW($D$2:$D52)*($D53=$D$2:$D52))-1)),INDEX($X$2:$X52,SUMPRODUCT(MAX(ROW($C$2:$C52)*($D53=$C$2:$C52))-1)))),_xlfn.IFNA(IF(VLOOKUP(D53,'30th June Rankings (Values)'!A:D,4,FALSE)>0,VLOOKUP(D53,'30th June Rankings (Values)'!A:D,4,FALSE),400),400)) -> 734.8937388 | X53: =20*(E53-(1/(1+(10^((W53-V53)/400)))))+V53 -> 601.9633996 | Y53: =20*(F53-(1/(1+(10^((V53-W53)/400)))))+W53 -> 720.9001919 | Z53: =C53&D53 -> Peter TwiggHazel Moon | AA53: =VLOOKUP(L53,Countries!A:B,2,FALSE) -> GBR | AB53: =IF(O53="","Y",(IF(Q53="","Y","N"))) -> N | AC53: =IF(O53=Q53,"Y","N") -> N | AD53: =IF(J53<(TODAY()-60),"N","Y") -> Y | AE53: =_xlfn.MAXIFS(B:B,I:I,I53) -> 5 | AF53: =IF(AE53<5,"RTT/Casual",(IF(M53="TRUE","RTT/Casual",(IF(COUNTIF(I53,"*Team*"),"RTT/Casual",(IF(COUNTIF(I53,"*Double*"),"RTT/Casual","GT"))))))) -> GT | AG53: =O53&Q53 -> Cities of SigmarIdoneth Deepkin | AH53: =MONTH(J53) -> 7 | AI53: =((COUNTIFS(I:I,I53))/AE53)*2 -> 20 | AJ53: =VLOOKUP(I53,Battleplans!A:F,Matches!B53+1,FALSE) -> 0
A54: 575613 | B54: 4 | C54: Brett Packham | D54: Toby Gilham | E54: 1 | F54: 0 | G54: 17 | H54: 3 | I54: Age of Sigmar 4 Bootcamp 1 | J54: 2024-07-13T08:30:00 | K54: 2024-07-14T16:30:00 | L54: GB | M54: FALSE | N54: 2023 | O54: Sylvaneth | P54: Lords of the Clan | Q54: Ossiarch Bonereapers | R54: Mortisan Council | U54: bcp | V54: =IFERROR((IF(SUMPRODUCT(MAX(ROW($C$2:$C53)*($C54=$C$2:$C53))-1)>SUMPRODUCT(MAX(ROW($D$2:$D53)*($C54=$D$2:$D53))-1),INDEX($X$2:$X53,SUMPRODUCT(MAX(ROW($C$2:$C53)*($C54=$C$2:$C53))-1)),INDEX($Y$2:$Y53,SUMPRODUCT(MAX(ROW($D$2:$D53)*($C54=$D$2:$D53))-1)))),_xlfn.IFNA(IF(VLOOKUP(C54,'30th June Rankings (Values)'!A:D,4,FALSE)>0,VLOOKUP(C54,'30th June Rankings (Values)'!A:D,4,FALSE),400),400)) -> 379.7560885 | W54: =IFERROR((IF(SUMPRODUCT(MAX(ROW($D$2:$D53)*($D54=$D$2:$D53))-1)>SUMPRODUCT(MAX(ROW($C$2:$C53)*($D54=$C$2:$C53))-1),INDEX($Y$2:$Y53,SUMPRODUCT(MAX(ROW($D$2:$D53)*($D54=$D$2:$D53))-1)),INDEX($X$2:$X53,SUMPRODUCT(MAX(ROW($C$2:$C53)*($D54=$C$2:$C53))-1)))),_xlfn.IFNA(IF(VLOOKUP(D54,'30th June Rankings (Values)'!A:D,4,FALSE)>0,VLOOKUP(D54,'30th June Rankings (Values)'!A:D,4,FALSE),400),400)) -> 382.3274318 | X54: =20*(E54-(1/(1+(10^((W54-V54)/400)))))+V54 -> 389.8300963 | Y54: =20*(F54-(1/(1+(10^((V54-W54)/400)))))+W54 -> 372.253424 | Z54: =C54&D54 -> Brett PackhamToby Gilham | AA54: =VLOOKUP(L54,Countries!A:B,2,FALSE) -> GBR | AB54: =IF(O54="","Y",(IF(Q54="","Y","N"))) -> N | AC54: =IF(O54=Q54,"Y","N") -> N | AD54: =IF(J54<(TODAY()-60),"N","Y") -> Y | AE54: =_xlfn.MAXIFS(B:B,I:I,I54) -> 5 | AF54: =IF(AE54<5,"RTT/Casual",(IF(M54="TRUE","RTT/Casual",(IF(COUNTIF(I54,"*Team*"),"RTT/Casual",(IF(COUNTIF(I54,"*Double*"),"RTT/Casual","GT"))))))) -> GT | AG54: =O54&Q54 -> SylvanethOssiarch Bonereapers | AH54: =MONTH(J54) -> 7 | AI54: =((COUNTIFS(I:I,I54))/AE54)*2 -> 20 | AJ54: =VLOOKUP(I54,Battleplans!A:F,Matches!B54+1,FALSE) -> 0
A55: 575634 | B55: 4 | C55: Declan McKitrick | D55: Robert Symes | E55: 0.5 | F55: 0.5 | G55: 11 | H55: 11 | I55: Age of Sigmar 4 Bootcamp 1 | J55: 2024-07-13T08:30:00 | K55: 2024-07-14T16:30:00 | L55: GB | M55: FALSE | N55: 2023 | O55: Blades of Khorne | Q55: Blades of Khorne | R55: Bloodbound Warhorde | U55: bcp | V55: =IFERROR((IF(SUMPRODUCT(MAX(ROW($C$2:$C54)*($C55=$C$2:$C54))-1)>SUMPRODUCT(MAX(ROW($D$2:$D54)*($C55=$D$2:$D54))-1),INDEX($X$2:$X54,SUMPRODUCT(MAX(ROW($C$2:$C54)*($C55=$C$2:$C54))-1)),INDEX($Y$2:$Y54,SUMPRODUCT(MAX(ROW($D$2:$D54)*($C55=$D$2:$D54))-1)))),_xlfn.IFNA(IF(VLOOKUP(C55,'30th June Rankings (Values)'!A:D,4,FALSE)>0,VLOOKUP(C55,'30th June Rankings (Values)'!A:D,4,FALSE),400),400)) -> 530.1861443 | W55: =IFERROR((IF(SUMPRODUCT(MAX(ROW($D$2:$D54)*($D55=$D$2:$D54))-1)>SUMPRODUCT(MAX(ROW($C$2:$C54)*($D55=$C$2:$C54))-1),INDEX($Y$2:$Y54,SUMPRODUCT(MAX(ROW($D$2:$D54)*($D55=$D$2:$D54))-1)),INDEX($X$2:$X54,SUMPRODUCT(MAX(ROW($C$2:$C54)*($D55=$C$2:$C54))-1)))),_xlfn.IFNA(IF(VLOOKUP(D55,'30th June Rankings (Values)'!A:D,4,FALSE)>0,VLOOKUP(D55,'30th June Rankings (Values)'!A:D,4,FALSE),400),400)) -> 441.9888762 | X55: =20*(E55-(1/(1+(10^((W55-V55)/400)))))+V55 -> 527.7007812 | Y55: =20*(F55-(1/(1+(10^((V55-W55)/400)))))+W55 -> 444.4742392 | Z55: =C55&D55 -> Declan McKitrickRobert Symes | AA55: =VLOOKUP(L55,Countries!A:B,2,FALSE) -> GBR | AB55: =IF(O55="","Y",(IF(Q55="","Y","N"))) -> N | AC55: =IF(O55=Q55,"Y","N") -> Y | AD55: =IF(J55<(TODAY()-60),"N","Y") -> Y | AE55: =_xlfn.MAXIFS(B:B,I:I,I55) -> 5 | AF55: =IF(AE55<5,"RTT/Casual",(IF(M55="TRUE","RTT/Casual",(IF(COUNTIF(I55,"*Team*"),"RTT/Casual",(IF(COUNTIF(I55,"*Double*"),"RTT/Casual","GT"))))))) -> GT | AG55: =O55&Q55 -> Blades of KhorneBlades of Khorne | AH55: =MONTH(J55) -> 7 | AI55: =((COUNTIFS(I:I,I55))/AE55)*2 -> 20 | AJ55: =VLOOKUP(I55,Battleplans!A:F,Matches!B55+1,FALSE) -> 0
A56: 575663 | B56: 4 | C56: Matt Hull | D56: Dave Mazzocchi-Jones | E56: 1 | F56: 0 | G56: 14 | H56: 6 | I56: Age of Sigmar 4 Bootcamp 1 | J56: 2024-07-13T08:30:00 | K56: 2024-07-14T16:30:00 | L56: GB | M56: FALSE | N56: 2023 | O56: Slaves to Darkness | P56: Godswrath Warband | Q56: Ossiarch Bonereapers | R56: Kavalos Lance | U56: bcp | V56: =IFERROR((IF(SUMPRODUCT(MAX(ROW($C$2:$C55)*($C56=$C$2:$C55))-1)>SUMPRODUCT(MAX(ROW($D$2:$D55)*($C56=$D$2:$D55))-1),INDEX($X$2:$X55,SUMPRODUCT(MAX(ROW($C$2:$C55)*($C56=$C$2:$C55))-1)),INDEX($Y$2:$Y55,SUMPRODUCT(MAX(ROW($D$2:$D55)*($C56=$D$2:$D55))-1)))),_xlfn.IFNA(IF(VLOOKUP(C56,'30th June Rankings (Values)'!A:D,4,FALSE)>0,VLOOKUP(C56,'30th June Rankings (Values)'!A:D,4,FALSE),400),400)) -> 377.8393633 | W56: =IFERROR((IF(SUMPRODUCT(MAX(ROW($D$2:$D55)*($D56=$D$2:$D55))-1)>SUMPRODUCT(MAX(ROW($C$2:$C55)*($D56=$C$2:$C55))-1),INDEX($Y$2:$Y55,SUMPRODUCT(MAX(ROW($D$2:$D55)*($D56=$D$2:$D55))-1)),INDEX($X$2:$X55,SUMPRODUCT(MAX(ROW($C$2:$C55)*($D56=$C$2:$C55))-1)))),_xlfn.IFNA(IF(VLOOKUP(D56,'30th June Rankings (Values)'!A:D,4,FALSE)>0,VLOOKUP(D56,'30th June Rankings (Values)'!A:D,4,FALSE),400),400)) -> 401.7222619 | X56: =20*(E56-(1/(1+(10^((W56-V56)/400)))))+V56 -> 388.5256877 | Y56: =20*(F56-(1/(1+(10^((V56-W56)/400)))))+W56 -> 391.0359375 | Z56: =C56&D56 -> Matt HullDave Mazzocchi-Jones | AA56: =VLOOKUP(L56,Countries!A:B,2,FALSE) -> GBR | AB56: =IF(O56="","Y",(IF(Q56="","Y","N"))) -> N | AC56: =IF(O56=Q56,"Y","N") -> N | AD56: =IF(J56<(TODAY()-60),"N","Y") -> Y | AE56: =_xlfn.MAXIFS(B:B,I:I,I56) -> 5 | AF56: =IF(AE56<5,"RTT/Casual",(IF(M56="TRUE","RTT/Casual",(IF(COUNTIF(I56,"*Team*"),"RTT/Casual",(IF(COUNTIF(I56,"*Double*"),"RTT/Casual","GT"))))))) -> GT | AG56: =O56&Q56 -> Slaves to DarknessOssiarch Bonereapers | AH56: =MONTH(J56) -> 7 | AI56: =((COUNTIFS(I:I,I56))/AE56)*2 -> 20 | AJ56: =VLOOKUP(I56,Battleplans!A:F,Matches!B56+1,FALSE) -> 0
A57: 575693 | B57: 4 | C57: Claire Lavender | D57: Thom Ashworth | E57: 0 | F57: 1 | G57: 6 | H57: 14 | I57: Age of Sigmar 4 Bootcamp 1 | J57: 2024-07-13T08:30:00 | K57: 2024-07-14T16:30:00 | L57: GB | M57: FALSE | N57: 2023 | O57: Daughters of Khaine | P57: Slaughter Troupe | Q57: Stormcast Eternals | R57: Various subfactions | U57: bcp | V57: =IFERROR((IF(SUMPRODUCT(MAX(ROW($C$2:$C56)*($C57=$C$2:$C56))-1)>SUMPRODUCT(MAX(ROW($D$2:$D56)*($C57=$D$2:$D56))-1),INDEX($X$2:$X56,SUMPRODUCT(MAX(ROW($C$2:$C56)*($C57=$C$2:$C56))-1)),INDEX($Y$2:$Y56,SUMPRODUCT(MAX(ROW($D$2:$D56)*($C57=$D$2:$D56))-1)))),_xlfn.IFNA(IF(VLOOKUP(C57,'30th June Rankings (Values)'!A:D,4,FALSE)>0,VLOOKUP(C57,'30th June Rankings (Values)'!A:D,4,FALSE),400),400)) -> 367.2277442 | W57: =IFERROR((IF(SUMPRODUCT(MAX(ROW($D$2:$D56)*($D57=$D$2:$D56))-1)>SUMPRODUCT(MAX(ROW($C$2:$C56)*($D57=$C$2:$C56))-1),INDEX($Y$2:$Y56,SUMPRODUCT(MAX(ROW($D$2:$D56)*($D57=$D$2:$D56))-1)),INDEX($X$2:$X56,SUMPRODUCT(MAX(ROW($C$2:$C56)*($D57=$C$2:$C56))-1)))),_xlfn.IFNA(IF(VLOOKUP(D57,'30th June Rankings (Values)'!A:D,4,FALSE)>0,VLOOKUP(D57,'30th June Rankings (Values)'!A:D,4,FALSE),400),400)) -> 372.8525046 | X57: =20*(E57-(1/(1+(10^((W57-V57)/400)))))+V57 -> 357.3896237 | Y57: =20*(F57-(1/(1+(10^((V57-W57)/400)))))+W57 -> 382.6906251 | Z57: =C57&D57 -> Claire LavenderThom Ashworth | AA57: =VLOOKUP(L57,Countries!A:B,2,FALSE) -> GBR | AB57: =IF(O57="","Y",(IF(Q57="","Y","N"))) -> N | AC57: =IF(O57=Q57,"Y","N") -> N | AD57: =IF(J57<(TODAY()-60),"N","Y") -> Y | AE57: =_xlfn.MAXIFS(B:B,I:I,I57) -> 5 | AF57: =IF(AE57<5,"RTT/Casual",(IF(M57="TRUE","RTT/Casual",(IF(COUNTIF(I57,"*Team*"),"RTT/Casual",(IF(COUNTIF(I57,"*Double*"),"RTT/Casual","GT"))))))) -> GT | AG57: =O57&Q57 -> Daughters of KhaineStormcast Eternals | AH57: =MONTH(J57) -> 7 | AI57: =((COUNTIFS(I:I,I57))/AE57)*2 -> 20 | AJ57: =VLOOKUP(I57,Battleplans!A:F,Matches!B57+1,FALSE) -> 0
A58: 575711 | B58: 4 | C58: Dennis Tatarkov | D58: Tom Whitbrook | E58: 1 | F58: 0 | G58: 13 | H58: 7 | I58: Age of Sigmar 4 Bootcamp 1 | J58: 2024-07-13T08:30:00 | K58: 2024-07-14T16:30:00 | L58: GB | M58: FALSE | N58: 2023 | O58: Nighthaunt | P58: Death Stalkers | Q58: Nighthaunt | R58: Death Stalkers | U58: bcp | V58: =IFERROR((IF(SUMPRODUCT(MAX(ROW($C$2:$C57)*($C58=$C$2:$C57))-1)>SUMPRODUCT(MAX(ROW($D$2:$D57)*($C58=$D$2:$D57))-1),INDEX($X$2:$X57,SUMPRODUCT(MAX(ROW($C$2:$C57)*($C58=$C$2:$C57))-1)),INDEX($Y$2:$Y57,SUMPRODUCT(MAX(ROW($D$2:$D57)*($C58=$D$2:$D57))-1)))),_xlfn.IFNA(IF(VLOOKUP(C58,'30th June Rankings (Values)'!A:D,4,FALSE)>0,VLOOKUP(C58,'30th June Rankings (Values)'!A:D,4,FALSE),400),400)) -> 538.4804469 | W58: =IFERROR((IF(SUMPRODUCT(MAX(ROW($D$2:$D57)*($D58=$D$2:$D57))-1)>SUMPRODUCT(MAX(ROW($C$2:$C57)*($D58=$C$2:$C57))-1),INDEX($Y$2:$Y57,SUMPRODUCT(MAX(ROW($D$2:$D57)*($D58=$D$2:$D57))-1)),INDEX($X$2:$X57,SUMPRODUCT(MAX(ROW($C$2:$C57)*($D58=$C$2:$C57))-1)))),_xlfn.IFNA(IF(VLOOKUP(D58,'30th June Rankings (Values)'!A:D,4,FALSE)>0,VLOOKUP(D58,'30th June Rankings (Values)'!A:D,4,FALSE),400),400)) -> 419.7544387 | X58: =20*(E58-(1/(1+(10^((W58-V58)/400)))))+V58 -> 545.190318 | Y58: =20*(F58-(1/(1+(10^((V58-W58)/400)))))+W58 -> 413.0445676 | Z58: =C58&D58 -> Dennis TatarkovTom Whitbrook | AA58: =VLOOKUP(L58,Countries!A:B,2,FALSE) -> GBR | AB58: =IF(O58="","Y",(IF(Q58="","Y","N"))) -> N | AC58: =IF(O58=Q58,"Y","N") -> Y | AD58: =IF(J58<(TODAY()-60),"N","Y") -> Y | AE58: =_xlfn.MAXIFS(B:B,I:I,I58) -> 5 | AF58: =IF(AE58<5,"RTT/Casual",(IF(M58="TRUE","RTT/Casual",(IF(COUNTIF(I58,"*Team*"),"RTT/Casual",(IF(COUNTIF(I58,"*Double*"),"RTT/Casual","GT"))))))) -> GT | AG58: =O58&Q58 -> NighthauntNighthaunt | AH58: =MONTH(J58) -> 7 | AI58: =((COUNTIFS(I:I,I58))/AE58)*2 -> 20 | AJ58: =VLOOKUP(I58,Battleplans!A:F,Matches!B58+1,FALSE) -> 0
A59: 575756 | B59: 5 | C59: Tom Whitbrook | D59: Dave Mazzocchi-Jones | E59: 1 | F59: 0 | G59: 11 | H59: 9 | I59: Age of Sigmar 4 Bootcamp 1 | J59: 2024-07-13T08:30:00 | K59: 2024-07-14T16:30:00 | L59: GB | M59: FALSE | N59: 2023 | O59: Nighthaunt | P59: Death Stalkers | Q59: Ossiarch Bonereapers | R59: Kavalos Lance | U59: bcp | V59: =IFERROR((IF(SUMPRODUCT(MAX(ROW($C$2:$C58)*($C59=$C$2:$C58))-1)>SUMPRODUCT(MAX(ROW($D$2:$D58)*($C59=$D$2:$D58))-1),INDEX($X$2:$X58,SUMPRODUCT(MAX(ROW($C$2:$C58)*($C59=$C$2:$C58))-1)),INDEX($Y$2:$Y58,SUMPRODUCT(MAX(ROW($D$2:$D58)*($C59=$D$2:$D58))-1)))),_xlfn.IFNA(IF(VLOOKUP(C59,'30th June Rankings (Values)'!A:D,4,FALSE)>0,VLOOKUP(C59,'30th June Rankings (Values)'!A:D,4,FALSE),400),400)) -> 413.0445676 | W59: =IFERROR((IF(SUMPRODUCT(MAX(ROW($D$2:$D58)*($D59=$D$2:$D58))-1)>SUMPRODUCT(MAX(ROW($C$2:$C58)*($D59=$C$2:$C58))-1),INDEX($Y$2:$Y58,SUMPRODUCT(MAX(ROW($D$2:$D58)*($D59=$D$2:$D58))-1)),INDEX($X$2:$X58,SUMPRODUCT(MAX(ROW($C$2:$C58)*($D59=$C$2:$C58))-1)))),_xlfn.IFNA(IF(VLOOKUP(D59,'30th June Rankings (Values)'!A:D,4,FALSE)>0,VLOOKUP(D59,'30th June Rankings (Values)'!A:D,4,FALSE),400),400)) -> 391.0359375 | X59: =20*(E59-(1/(1+(10^((W59-V59)/400)))))+V59 -> 422.4119542 | Y59: =20*(F59-(1/(1+(10^((V59-W59)/400)))))+W59 -> 381.6685508 | Z59: =C59&D59 -> Tom WhitbrookDave Mazzocchi-Jones | AA59: =VLOOKUP(L59,Countries!A:B,2,FALSE) -> GBR | AB59: =IF(O59="","Y",(IF(Q59="","Y","N"))) -> N | AC59: =IF(O59=Q59,"Y","N") -> N | AD59: =IF(J59<(TODAY()-60),"N","Y") -> Y | AE59: =_xlfn.MAXIFS(B:B,I:I,I59) -> 5 | AF59: =IF(AE59<5,"RTT/Casual",(IF(M59="TRUE","RTT/Casual",(IF(COUNTIF(I59,"*Team*"),"RTT/Casual",(IF(COUNTIF(I59,"*Double*"),"RTT/Casual","GT"))))))) -> GT | AG59: =O59&Q59 -> NighthauntOssiarch Bonereapers | AH59: =MONTH(J59) -> 7 | AI59: =((COUNTIFS(I:I,I59))/AE59)*2 -> 20 | AJ59: =VLOOKUP(I59,Battleplans!A:F,Matches!B59+1,FALSE) -> 0
A60: 575773 | B60: 5 | C60: Thom Ashworth | D60: Andy Ransome | E60: 0 | F60: 1 | G60: 5 | H60: 15 | I60: Age of Sigmar 4 Bootcamp 1 | J60: 2024-07-13T08:30:00 | K60: 2024-07-14T16:30:00 | L60: GB | M60: FALSE | N60: 2023 | O60: Stormcast Eternals | P60: Various subfactions | Q60: Stormcast Eternals | R60: Lightning Echelon | U60: bcp | V60: =IFERROR((IF(SUMPRODUCT(MAX(ROW($C$2:$C59)*($C60=$C$2:$C59))-1)>SUMPRODUCT(MAX(ROW($D$2:$D59)*($C60=$D$2:$D59))-1),INDEX($X$2:$X59,SUMPRODUCT(MAX(ROW($C$2:$C59)*($C60=$C$2:$C59))-1)),INDEX($Y$2:$Y59,SUMPRODUCT(MAX(ROW($D$2:$D59)*($C60=$D$2:$D59))-1)))),_xlfn.IFNA(IF(VLOOKUP(C60,'30th June Rankings (Values)'!A:D,4,FALSE)>0,VLOOKUP(C60,'30th June Rankings (Values)'!A:D,4,FALSE),400),400)) -> 382.6906251 | W60: =IFERROR((IF(SUMPRODUCT(MAX(ROW($D$2:$D59)*($D60=$D$2:$D59))-1)>SUMPRODUCT(MAX(ROW($C$2:$C59)*($D60=$C$2:$C59))-1),INDEX($Y$2:$Y59,SUMPRODUCT(MAX(ROW($D$2:$D59)*($D60=$D$2:$D59))-1)),INDEX($X$2:$X59,SUMPRODUCT(MAX(ROW($C$2:$C59)*($D60=$C$2:$C59))-1)))),_xlfn.IFNA(IF(VLOOKUP(D60,'30th June Rankings (Values)'!A:D,4,FALSE)>0,VLOOKUP(D60,'30th June Rankings (Values)'!A:D,4,FALSE),400),400)) -> 356.337356 | X60: =20*(E60-(1/(1+(10^((W60-V60)/400)))))+V60 -> 371.9335684 | Y60: =20*(F60-(1/(1+(10^((V60-W60)/400)))))+W60 -> 367.0944127 | Z60: =C60&D60 -> Thom AshworthAndy Ransome | AA60: =VLOOKUP(L60,Countries!A:B,2,FALSE) -> GBR | AB60: =IF(O60="","Y",(IF(Q60="","Y","N"))) -> N | AC60: =IF(O60=Q60,"Y","N") -> Y | AD60: =IF(J60<(TODAY()-60),"N","Y") -> Y | AE60: =_xlfn.MAXIFS(B:B,I:I,I60) -> 5 | AF60: =IF(AE60<5,"RTT/Casual",(IF(M60="TRUE","RTT/Casual",(IF(COUNTIF(I60,"*Team*"),"RTT/Casual",(IF(COUNTIF(I60,"*Double*"),"RTT/Casual","GT"))))))) -> GT | AG60: =O60&Q60 -> Stormcast EternalsStormcast Eternals | AH60: =MONTH(J60) -> 7 | AI60: =((COUNTIFS(I:I,I60))/AE60)*2 -> 20 | AJ60: =VLOOKUP(I60,Battleplans!A:F,Matches!B60+1,FALSE) -> 0
A61: 575802 | B61: 5 | C61: Kieron Bailey | D61: Declan McKitrick | E61: 0 | F61: 0 | G61: 0 | H61: 0 | I61: Age of Sigmar 4 Bootcamp 1 | J61: 2024-07-13T08:30:00 | K61: 2024-07-14T16:30:00 | L61: GB | M61: FALSE | N61: 2023 | O61: Kruleboyz | P61: Trophy Finga | Q61: Blades of Khorne | U61: bcp | V61: =IFERROR((IF(SUMPRODUCT(MAX(ROW($C$2:$C60)*($C61=$C$2:$C60))-1)>SUMPRODUCT(MAX(ROW($D$2:$D60)*($C61=$D$2:$D60))-1),INDEX($X$2:$X60,SUMPRODUCT(MAX(ROW($C$2:$C60)*($C61=$C$2:$C60))-1)),INDEX($Y$2:$Y60,SUMPRODUCT(MAX(ROW($D$2:$D60)*($C61=$D$2:$D60))-1)))),_xlfn.IFNA(IF(VLOOKUP(C61,'30th June Rankings (Values)'!A:D,4,FALSE)>0,VLOOKUP(C61,'30th June Rankings (Values)'!A:D,4,FALSE),400),400)) -> 376.1747617 | W61: =IFERROR((IF(SUMPRODUCT(MAX(ROW($D$2:$D60)*($D61=$D$2:$D60))-1)>SUMPRODUCT(MAX(ROW($C$2:$C60)*($D61=$C$2:$C60))-1),INDEX($Y$2:$Y60,SUMPRODUCT(MAX(ROW($D$2:$D60)*($D61=$D$2:$D60))-1)),INDEX($X$2:$X60,SUMPRODUCT(MAX(ROW($C$2:$C60)*($D61=$C$2:$C60))-1)))),_xlfn.IFNA(IF(VLOOKUP(D61,'30th June Rankings (Values)'!A:D,4,FALSE)>0,VLOOKUP(D61,'30th June Rankings (Values)'!A:D,4,FALSE),400),400)) -> 527.7007812 | X61: =20*(E61-(1/(1+(10^((W61-V61)/400)))))+V61 -> 370.279051 | Y61: =20*(F61-(1/(1+(10^((V61-W61)/400)))))+W61 -> 513.5964919 | Z61: =C61&D61 -> Kieron BaileyDeclan McKitrick | AA61: =VLOOKUP(L61,Countries!A:B,2,FALSE) -> GBR | AB61: =IF(O61="","Y",(IF(Q61="","Y","N"))) -> N | AC61: =IF(O61=Q61,"Y","N") -> N | AD61: =IF(J61<(TODAY()-60),"N","Y") -> Y | AE61: =_xlfn.MAXIFS(B:B,I:I,I61) -> 5 | AF61: =IF(AE61<5,"RTT/Casual",(IF(M61="TRUE","RTT/Casual",(IF(COUNTIF(I61,"*Team*"),"RTT/Casual",(IF(COUNTIF(I61,"*Double*"),"RTT/Casual","GT"))))))) -> GT | AG61: =O61&Q61 -> KruleboyzBlades of Khorne | AH61: =MONTH(J61) -> 7 | AI61: =((COUNTIFS(I:I,I61))/AE61)*2 -> 20 | AJ61: =VLOOKUP(I61,Battleplans!A:F,Matches!B61+1,FALSE) -> 0
A62: 575832 | B62: 5 | C62: Hazel Moon | D62: Marc Colwill | E62: 1 | F62: 0 | G62: 15 | H62: 5 | I62: Age of Sigmar 4 Bootcamp 1 | J62: 2024-07-13T08:30:00 | K62: 2024-07-14T16:30:00 | L62: GB | M62: FALSE | N62: 2023 | O62: Idoneth Deepkin | P62: Akhelian Beastmasters | Q62: Seraphon | R62: Sunclaw Starhost | U62: bcp | V62: =IFERROR((IF(SUMPRODUCT(MAX(ROW($C$2:$C61)*($C62=$C$2:$C61))-1)>SUMPRODUCT(MAX(ROW($D$2:$D61)*($C62=$D$2:$D61))-1),INDEX($X$2:$X61,SUMPRODUCT(MAX(ROW($C$2:$C61)*($C62=$C$2:$C61))-1)),INDEX($Y$2:$Y61,SUMPRODUCT(MAX(ROW($D$2:$D61)*($C62=$D$2:$D61))-1)))),_xlfn.IFNA(IF(VLOOKUP(C62,'30th June Rankings (Values)'!A:D,4,FALSE)>0,VLOOKUP(C62,'30th June Rankings (Values)'!A:D,4,FALSE),400),400)) -> 720.9001919 | W62: =IFERROR((IF(SUMPRODUCT(MAX(ROW($D$2:$D61)*($D62=$D$2:$D61))-1)>SUMPRODUCT(MAX(ROW($C$2:$C61)*($D62=$C$2:$C61))-1),INDEX($Y$2:$Y61,SUMPRODUCT(MAX(ROW($D$2:$D61)*($D62=$D$2:$D61))-1)),INDEX($X$2:$X61,SUMPRODUCT(MAX(ROW($C$2:$C61)*($D62=$C$2:$C61))-1)))),_xlfn.IFNA(IF(VLOOKUP(D62,'30th June Rankings (Values)'!A:D,4,FALSE)>0,VLOOKUP(D62,'30th June Rankings (Values)'!A:D,4,FALSE),400),400)) -> 387.3746647 | X62: =20*(E62-(1/(1+(10^((W62-V62)/400)))))+V62 -> 723.4575855 | Y62: =20*(F62-(1/(1+(10^((V62-W62)/400)))))+W62 -> 384.8172712 | Z62: =C62&D62 -> Hazel MoonMarc Colwill | AA62: =VLOOKUP(L62,Countries!A:B,2,FALSE) -> GBR | AB62: =IF(O62="","Y",(IF(Q62="","Y","N"))) -> N | AC62: =IF(O62=Q62,"Y","N") -> N | AD62: =IF(J62<(TODAY()-60),"N","Y") -> Y | AE62: =_xlfn.MAXIFS(B:B,I:I,I62) -> 5 | AF62: =IF(AE62<5,"RTT/Casual",(IF(M62="TRUE","RTT/Casual",(IF(COUNTIF(I62,"*Team*"),"RTT/Casual",(IF(COUNTIF(I62,"*Double*"),"RTT/Casual","GT"))))))) -> GT | AG62: =O62&Q62 -> Idoneth DeepkinSeraphon | AH62: =MONTH(J62) -> 7 | AI62: =((COUNTIFS(I:I,I62))/AE62)*2 -> 20 | AJ62: =VLOOKUP(I62,Battleplans!A:F,Matches!B62+1,FALSE) -> 0
A63: 575862 | B63: 5 | C63: Brett Packham | D63: Robert Symes | E63: 0 | F63: 1 | G63: 0 | H63: 20 | I63: Age of Sigmar 4 Bootcamp 1 | J63: 2024-07-13T08:30:00 | K63: 2024-07-14T16:30:00 | L63: GB | M63: FALSE | N63: 2023 | O63: Sylvaneth | P63: Lords of the Clan | Q63: Blades of Khorne | R63: Bloodbound Warhorde | U63: bcp | V63: =IFERROR((IF(SUMPRODUCT(MAX(ROW($C$2:$C62)*($C63=$C$2:$C62))-1)>SUMPRODUCT(MAX(ROW($D$2:$D62)*($C63=$D$2:$D62))-1),INDEX($X$2:$X62,SUMPRODUCT(MAX(ROW($C$2:$C62)*($C63=$C$2:$C62))-1)),INDEX($Y$2:$Y62,SUMPRODUCT(MAX(ROW($D$2:$D62)*($C63=$D$2:$D62))-1)))),_xlfn.IFNA(IF(VLOOKUP(C63,'30th June Rankings (Values)'!A:D,4,FALSE)>0,VLOOKUP(C63,'30th June Rankings (Values)'!A:D,4,FALSE),400),400)) -> 389.8300963 | W63: =IFERROR((IF(SUMPRODUCT(MAX(ROW($D$2:$D62)*($D63=$D$2:$D62))-1)>SUMPRODUCT(MAX(ROW($C$2:$C62)*($D63=$C$2:$C62))-1),INDEX($Y$2:$Y62,SUMPRODUCT(MAX(ROW($D$2:$D62)*($D63=$D$2:$D62))-1)),INDEX($X$2:$X62,SUMPRODUCT(MAX(ROW($C$2:$C62)*($D63=$C$2:$C62))-1)))),_xlfn.IFNA(IF(VLOOKUP(D63,'30th June Rankings (Values)'!A:D,4,FALSE)>0,VLOOKUP(D63,'30th June Rankings (Values)'!A:D,4,FALSE),400),400)) -> 444.4742392 | X63: =20*(E63-(1/(1+(10^((W63-V63)/400)))))+V63 -> 381.3900398 | Y63: =20*(F63-(1/(1+(10^((V63-W63)/400)))))+W63 -> 452.9142957 | Z63: =C63&D63 -> Brett PackhamRobert Symes | AA63: =VLOOKUP(L63,Countries!A:B,2,FALSE) -> GBR | AB63: =IF(O63="","Y",(IF(Q63="","Y","N"))) -> N | AC63: =IF(O63=Q63,"Y","N") -> N | AD63: =IF(J63<(TODAY()-60),"N","Y") -> Y | AE63: =_xlfn.MAXIFS(B:B,I:I,I63) -> 5 | AF63: =IF(AE63<5,"RTT/Casual",(IF(M63="TRUE","RTT/Casual",(IF(COUNTIF(I63,"*Team*"),"RTT/Casual",(IF(COUNTIF(I63,"*Double*"),"RTT/Casual","GT"))))))) -> GT | AG63: =O63&Q63 -> SylvanethBlades of Khorne | AH63: =MONTH(J63) -> 7 | AI63: =((COUNTIFS(I:I,I63))/AE63)*2 -> 20 | AJ63: =VLOOKUP(I63,Battleplans!A:F,Matches!B63+1,FALSE) -> 0
A64: 575882 | B64: 5 | C64: Peter Twigg | D64: Matthew Willacy | E64: 0 | F64: 1 | G64: 4 | H64: 16 | I64: Age of Sigmar 4 Bootcamp 1 | J64: 2024-07-13T08:30:00 | K64: 2024-07-14T16:30:00 | L64: GB | M64: FALSE | N64: 2023 | O64: Cities of Sigmar | P64: Ironweld Guild Army | Q64: Gloomspite Gitz | R64: Troggherd | U64: bcp | V64: =IFERROR((IF(SUMPRODUCT(MAX(ROW($C$2:$C63)*($C64=$C$2:$C63))-1)>SUMPRODUCT(MAX(ROW($D$2:$D63)*($C64=$D$2:$D63))-1),INDEX($X$2:$X63,SUMPRODUCT(MAX(ROW($C$2:$C63)*($C64=$C$2:$C63))-1)),INDEX($Y$2:$Y63,SUMPRODUCT(MAX(ROW($D$2:$D63)*($C64=$D$2:$D63))-1)))),_xlfn.IFNA(IF(VLOOKUP(C64,'30th June Rankings (Values)'!A:D,4,FALSE)>0,VLOOKUP(C64,'30th June Rankings (Values)'!A:D,4,FALSE),400),400)) -> 601.9633996 | W64: =IFERROR((IF(SUMPRODUCT(MAX(ROW($D$2:$D63)*($D64=$D$2:$D63))-1)>SUMPRODUCT(MAX(ROW($C$2:$C63)*($D64=$C$2:$C63))-1),INDEX($Y$2:$Y63,SUMPRODUCT(MAX(ROW($D$2:$D63)*($D64=$D$2:$D63))-1)),INDEX($X$2:$X63,SUMPRODUCT(MAX(ROW($C$2:$C63)*($D64=$C$2:$C63))-1)))),_xlfn.IFNA(IF(VLOOKUP(D64,'30th June Rankings (Values)'!A:D,4,FALSE)>0,VLOOKUP(D64,'30th June Rankings (Values)'!A:D,4,FALSE),400),400)) -> 393.1349163 | X64: =20*(E64-(1/(1+(10^((W64-V64)/400)))))+V64 -> 586.585389 | Y64: =20*(F64-(1/(1+(10^((V64-W64)/400)))))+W64 -> 408.5129269 | Z64: =C64&D64 -> Peter TwiggMatthew Willacy | AA64: =VLOOKUP(L64,Countries!A:B,2,FALSE) -> GBR | AB64: =IF(O64="","Y",(IF(Q64="","Y","N"))) -> N | AC64: =IF(O64=Q64,"Y","N") -> N | AD64: =IF(J64<(TODAY()-60),"N","Y") -> Y | AE64: =_xlfn.MAXIFS(B:B,I:I,I64) -> 5 | AF64: =IF(AE64<5,"RTT/Casual",(IF(M64="TRUE","RTT/Casual",(IF(COUNTIF(I64,"*Team*"),"RTT/Casual",(IF(COUNTIF(I64,"*Double*"),"RTT/Casual","GT"))))))) -> GT | AG64: =O64&Q64 -> Cities of SigmarGloomspite Gitz | AH64: =MONTH(J64) -> 7 | AI64: =((COUNTIFS(I:I,I64))/AE64)*2 -> 20 | AJ64: =VLOOKUP(I64,Battleplans!A:F,Matches!B64+1,FALSE) -> 0
A65: 575906 | B65: 5 | C65: Toby Gilham | D65: Claire Lavender | E65: 1 | F65: 0 | G65: 11 | H65: 9 | I65: Age of Sigmar 4 Bootcamp 1 | J65: 2024-07-13T08:30:00 | K65: 2024-07-14T16:30:00 | L65: GB | M65: FALSE | N65: 2023 | O65: Ossiarch Bonereapers | P65: Mortisan Council | Q65: Daughters of Khaine | R65: Slaughter Troupe | U65: bcp | V65: =IFERROR((IF(SUMPRODUCT(MAX(ROW($C$2:$C64)*($C65=$C$2:$C64))-1)>SUMPRODUCT(MAX(ROW($D$2:$D64)*($C65=$D$2:$D64))-1),INDEX($X$2:$X64,SUMPRODUCT(MAX(ROW($C$2:$C64)*($C65=$C$2:$C64))-1)),INDEX($Y$2:$Y64,SUMPRODUCT(MAX(ROW($D$2:$D64)*($C65=$D$2:$D64))-1)))),_xlfn.IFNA(IF(VLOOKUP(C65,'30th June Rankings (Values)'!A:D,4,FALSE)>0,VLOOKUP(C65,'30th June Rankings (Values)'!A:D,4,FALSE),400),400)) -> 372.253424 | W65: =IFERROR((IF(SUMPRODUCT(MAX(ROW($D$2:$D64)*($D65=$D$2:$D64))-1)>SUMPRODUCT(MAX(ROW($C$2:$C64)*($D65=$C$2:$C64))-1),INDEX($Y$2:$Y64,SUMPRODUCT(MAX(ROW($D$2:$D64)*($D65=$D$2:$D64))-1)),INDEX($X$2:$X64,SUMPRODUCT(MAX(ROW($C$2:$C64)*($D65=$C$2:$C64))-1)))),_xlfn.IFNA(IF(VLOOKUP(D65,'30th June Rankings (Values)'!A:D,4,FALSE)>0,VLOOKUP(D65,'30th June Rankings (Values)'!A:D,4,FALSE),400),400)) -> 357.3896237 | X65: =20*(E65-(1/(1+(10^((W65-V65)/400)))))+V65 -> 381.8258702 | Y65: =20*(F65-(1/(1+(10^((V65-W65)/400)))))+W65 -> 347.8171775 | Z65: =C65&D65 -> Toby GilhamClaire Lavender | AA65: =VLOOKUP(L65,Countries!A:B,2,FALSE) -> GBR | AB65: =IF(O65="","Y",(IF(Q65="","Y","N"))) -> N | AC65: =IF(O65=Q65,"Y","N") -> N | AD65: =IF(J65<(TODAY()-60),"N","Y") -> Y | AE65: =_xlfn.MAXIFS(B:B,I:I,I65) -> 5 | AF65: =IF(AE65<5,"RTT/Casual",(IF(M65="TRUE","RTT/Casual",(IF(COUNTIF(I65,"*Team*"),"RTT/Casual",(IF(COUNTIF(I65,"*Double*"),"RTT/Casual","GT"))))))) -> GT | AG65: =O65&Q65 -> Ossiarch BonereapersDaughters of Khaine | AH65: =MONTH(J65) -> 7 | AI65: =((COUNTIFS(I:I,I65))/AE65)*2 -> 20 | AJ65: =VLOOKUP(I65,Battleplans!A:F,Matches!B65+1,FALSE) -> 0
A66: 575937 | B66: 5 | C66: Dennis Tatarkov | D66: Daniel Bean | E66: 0 | F66: 1 | G66: 9 | H66: 11 | I66: Age of Sigmar 4 Bootcamp 1 | J66: 2024-07-13T08:30:00 | K66: 2024-07-14T16:30:00 | L66: GB | M66: FALSE | N66: 2023 | O66: Nighthaunt | P66: Death Stalkers | Q66: Soulblight Gravelords | R66: Kritzka | U66: bcp | V66: =IFERROR((IF(SUMPRODUCT(MAX(ROW($C$2:$C65)*($C66=$C$2:$C65))-1)>SUMPRODUCT(MAX(ROW($D$2:$D65)*($C66=$D$2:$D65))-1),INDEX($X$2:$X65,SUMPRODUCT(MAX(ROW($C$2:$C65)*($C66=$C$2:$C65))-1)),INDEX($Y$2:$Y65,SUMPRODUCT(MAX(ROW($D$2:$D65)*($C66=$D$2:$D65))-1)))),_xlfn.IFNA(IF(VLOOKUP(C66,'30th June Rankings (Values)'!A:D,4,FALSE)>0,VLOOKUP(C66,'30th June Rankings (Values)'!A:D,4,FALSE),400),400)) -> 545.190318 | W66: =IFERROR((IF(SUMPRODUCT(MAX(ROW($D$2:$D65)*($D66=$D$2:$D65))-1)>SUMPRODUCT(MAX(ROW($C$2:$C65)*($D66=$C$2:$C65))-1),INDEX($Y$2:$Y65,SUMPRODUCT(MAX(ROW($D$2:$D65)*($D66=$D$2:$D65))-1)),INDEX($X$2:$X65,SUMPRODUCT(MAX(ROW($C$2:$C65)*($D66=$C$2:$C65))-1)))),_xlfn.IFNA(IF(VLOOKUP(D66,'30th June Rankings (Values)'!A:D,4,FALSE)>0,VLOOKUP(D66,'30th June Rankings (Values)'!A:D,4,FALSE),400),400)) -> 499.0975704 | X66: =20*(E66-(1/(1+(10^((W66-V66)/400)))))+V66 -> 533.8713908 | Y66: =20*(F66-(1/(1+(10^((V66-W66)/400)))))+W66 -> 510.4164976 | Z66: =C66&D66 -> Dennis TatarkovDaniel Bean | AA66: =VLOOKUP(L66,Countries!A:B,2,FALSE) -> GBR | AB66: =IF(O66="","Y",(IF(Q66="","Y","N"))) -> N | AC66: =IF(O66=Q66,"Y","N") -> N | AD66: =IF(J66<(TODAY()-60),"N","Y") -> Y | AE66: =_xlfn.MAXIFS(B:B,I:I,I66) -> 5 | AF66: =IF(AE66<5,"RTT/Casual",(IF(M66="TRUE","RTT/Casual",(IF(COUNTIF(I66,"*Team*"),"RTT/Casual",(IF(COUNTIF(I66,"*Double*"),"RTT/Casual","GT"))))))) -> GT | AG66: =O66&Q66 -> NighthauntSoulblight Gravelords | AH66: =MONTH(J66) -> 7 | AI66: =((COUNTIFS(I:I,I66))/AE66)*2 -> 20 | AJ66: =VLOOKUP(I66,Battleplans!A:F,Matches!B66+1,FALSE) -> 0
A67: 575965 | B67: 5 | C67: Paul Willis | D67: Matt Hull | E67: 0 | F67: 1 | G67: 8 | H67: 12 | I67: Age of Sigmar 4 Bootcamp 1 | J67: 2024-07-13T08:30:00 | K67: 2024-07-14T16:30:00 | L67: GB | M67: FALSE | N67: 2023 | O67: Hedonites of Slaanesh | P67: Seeker Cavalcade | Q67: Slaves to Darkness | R67: Godswrath Warband | U67: bcp | V67: =IFERROR((IF(SUMPRODUCT(MAX(ROW($C$2:$C66)*($C67=$C$2:$C66))-1)>SUMPRODUCT(MAX(ROW($D$2:$D66)*($C67=$D$2:$D66))-1),INDEX($X$2:$X66,SUMPRODUCT(MAX(ROW($C$2:$C66)*($C67=$C$2:$C66))-1)),INDEX($Y$2:$Y66,SUMPRODUCT(MAX(ROW($D$2:$D66)*($C67=$D$2:$D66))-1)))),_xlfn.IFNA(IF(VLOOKUP(C67,'30th June Rankings (Values)'!A:D,4,FALSE)>0,VLOOKUP(C67,'30th June Rankings (Values)'!A:D,4,FALSE),400),400)) -> 414.0532323 | W67: =IFERROR((IF(SUMPRODUCT(MAX(ROW($D$2:$D66)*($D67=$D$2:$D66))-1)>SUMPRODUCT(MAX(ROW($C$2:$C66)*($D67=$C$2:$C66))-1),INDEX($Y$2:$Y66,SUMPRODUCT(MAX(ROW($D$2:$D66)*($D67=$D$2:$D66))-1)),INDEX($X$2:$X66,SUMPRODUCT(MAX(ROW($C$2:$C66)*($D67=$C$2:$C66))-1)))),_xlfn.IFNA(IF(VLOOKUP(D67,'30th June Rankings (Values)'!A:D,4,FALSE)>0,VLOOKUP(D67,'30th June Rankings (Values)'!A:D,4,FALSE),400),400)) -> 388.5256877 | X67: =20*(E67-(1/(1+(10^((W67-V67)/400)))))+V67 -> 403.3198098 | Y67: =20*(F67-(1/(1+(10^((V67-W67)/400)))))+W67 -> 399.2591101 | Z67: =C67&D67 -> Paul WillisMatt Hull | AA67: =VLOOKUP(L67,Countries!A:B,2,FALSE) -> GBR | AB67: =IF(O67="","Y",(IF(Q67="","Y","N"))) -> N | AC67: =IF(O67=Q67,"Y","N") -> N | AD67: =IF(J67<(TODAY()-60),"N","Y") -> Y | AE67: =_xlfn.MAXIFS(B:B,I:I,I67) -> 5 | AF67: =IF(AE67<5,"RTT/Casual",(IF(M67="TRUE","RTT/Casual",(IF(COUNTIF(I67,"*Team*"),"RTT/Casual",(IF(COUNTIF(I67,"*Double*"),"RTT/Casual","GT"))))))) -> GT | AG67: =O67&Q67 -> Hedonites of SlaaneshSlaves to Darkness | AH67: =MONTH(J67) -> 7 | AI67: =((COUNTIFS(I:I,I67))/AE67)*2 -> 20 | AJ67: =VLOOKUP(I67,Battleplans!A:F,Matches!B67+1,FALSE) -> 0
A68: 575995 | B68: 5 | C68: Elliot Marshall | D68: Jon Serrano Martin | E68: 0 | F68: 1 | G68: 6 | H68: 14 | I68: Age of Sigmar 4 Bootcamp 1 | J68: 2024-07-13T08:30:00 | K68: 2024-07-14T16:30:00 | L68: GB | M68: FALSE | N68: 2023 | O68: Kruleboyz | P68: Trophy Finga | Q68: Soulblight Gravelords | R68: Deathstench Drove | U68: bcp | V68: =IFERROR((IF(SUMPRODUCT(MAX(ROW($C$2:$C67)*($C68=$C$2:$C67))-1)>SUMPRODUCT(MAX(ROW($D$2:$D67)*($C68=$D$2:$D67))-1),INDEX($X$2:$X67,SUMPRODUCT(MAX(ROW($C$2:$C67)*($C68=$C$2:$C67))-1)),INDEX($Y$2:$Y67,SUMPRODUCT(MAX(ROW($D$2:$D67)*($C68=$D$2:$D67))-1)))),_xlfn.IFNA(IF(VLOOKUP(C68,'30th June Rankings (Values)'!A:D,4,FALSE)>0,VLOOKUP(C68,'30th June Rankings (Values)'!A:D,4,FALSE),400),400)) -> 324.3777169 | W68: =IFERROR((IF(SUMPRODUCT(MAX(ROW($D$2:$D67)*($D68=$D$2:$D67))-1)>SUMPRODUCT(MAX(ROW($C$2:$C67)*($D68=$C$2:$C67))-1),INDEX($Y$2:$Y67,SUMPRODUCT(MAX(ROW($D$2:$D67)*($D68=$D$2:$D67))-1)),INDEX($X$2:$X67,SUMPRODUCT(MAX(ROW($C$2:$C67)*($D68=$C$2:$C67))-1)))),_xlfn.IFNA(IF(VLOOKUP(D68,'30th June Rankings (Values)'!A:D,4,FALSE)>0,VLOOKUP(D68,'30th June Rankings (Values)'!A:D,4,FALSE),400),400)) -> 381.1976087 | X68: =20*(E68-(1/(1+(10^((W68-V68)/400)))))+V68 -> 315.9986992 | Y68: =20*(F68-(1/(1+(10^((V68-W68)/400)))))+W68 -> 389.5766264 | Z68: =C68&D68 -> Elliot MarshallJon Serrano Martin | AA68: =VLOOKUP(L68,Countries!A:B,2,FALSE) -> GBR | AB68: =IF(O68="","Y",(IF(Q68="","Y","N"))) -> N | AC68: =IF(O68=Q68,"Y","N") -> N | AD68: =IF(J68<(TODAY()-60),"N","Y") -> Y | AE68: =_xlfn.MAXIFS(B:B,I:I,I68) -> 5 | AF68: =IF(AE68<5,"RTT/Casual",(IF(M68="TRUE","RTT/Casual",(IF(COUNTIF(I68,"*Team*"),"RTT/Casual",(IF(COUNTIF(I68,"*Double*"),"RTT/Casual","GT"))))))) -> GT | AG68: =O68&Q68 -> KruleboyzSoulblight Gravelords | AH68: =MONTH(J68) -> 7 | AI68: =((COUNTIFS(I:I,I68))/AE68)*2 -> 20 | AJ68: =VLOOKUP(I68,Battleplans!A:F,Matches!B68+1,FALSE) -> 0
A69: 574734 | B69: 1 | C69: Marco Ade | D69: Valerio Toscani | E69: 0 | F69: 1 | G69: 16 | H69: 30 | I69: Homecoming 4.0 AoS ReleaseParty | J69: 2024-07-13T12:00:00 | K69: 2024-07-13T21:00:00 | L69: Deutschland | M69: FALSE | N69: 2023 | O69: Cities of Sigmar | Q69: Slaves to Darkness | U69: bcp | V69: =IFERROR((IF(SUMPRODUCT(MAX(ROW($C$2:$C68)*($C69=$C$2:$C68))-1)>SUMPRODUCT(MAX(ROW($D$2:$D68)*($C69=$D$2:$D68))-1),INDEX($X$2:$X68,SUMPRODUCT(MAX(ROW($C$2:$C68)*($C69=$C$2:$C68))-1)),INDEX($Y$2:$Y68,SUMPRODUCT(MAX(ROW($D$2:$D68)*($C69=$D$2:$D68))-1)))),_xlfn.IFNA(IF(VLOOKUP(C69,'30th June Rankings (Values)'!A:D,4,FALSE)>0,VLOOKUP(C69,'30th June Rankings (Values)'!A:D,4,FALSE),400),400)) -> 400 | W69: =IFERROR((IF(SUMPRODUCT(MAX(ROW($D$2:$D68)*($D69=$D$2:$D68))-1)>SUMPRODUCT(MAX(ROW($C$2:$C68)*($D69=$C$2:$C68))-1),INDEX($Y$2:$Y68,SUMPRODUCT(MAX(ROW($D$2:$D68)*($D69=$D$2:$D68))-1)),INDEX($X$2:$X68,SUMPRODUCT(MAX(ROW($C$2:$C68)*($D69=$C$2:$C68))-1)))),_xlfn.IFNA(IF(VLOOKUP(D69,'30th June Rankings (Values)'!A:D,4,FALSE)>0,VLOOKUP(D69,'30th June Rankings (Values)'!A:D,4,FALSE),400),400)) -> 409.6957341 | X69: =20*(E69-(1/(1+(10^((W69-V69)/400)))))+V69 -> 390.2789932 | Y69: =20*(F69-(1/(1+(10^((V69-W69)/400)))))+W69 -> 419.4167409 | Z69: =C69&D69 -> Marco AdeValerio Toscani | AA69: =VLOOKUP(L69,Countries!A:B,2,FALSE) -> DEU | AB69: =IF(O69="","Y",(IF(Q69="","Y","N"))) -> N | AC69: =IF(O69=Q69,"Y","N") -> N | AD69: =IF(J69<(TODAY()-60),"N","Y") -> Y | AE69: =_xlfn.MAXIFS(B:B,I:I,I69) -> 3 | AF69: =IF(AE69<5,"RTT/Casual",(IF(M69="TRUE","RTT/Casual",(IF(COUNTIF(I69,"*Team*"),"RTT/Casual",(IF(COUNTIF(I69,"*Double*"),"RTT/Casual","GT"))))))) -> RTT/Casual | AG69: =O69&Q69 -> Cities of SigmarSlaves to Darkness | AH69: =MONTH(J69) -> 7 | AI69: =((COUNTIFS(I:I,I69))/AE69)*2 -> 5.333333333 | AJ69: =VLOOKUP(I69,Battleplans!A:F,Matches!B69+1,FALSE) -> 0
A70: 574760 | B70: 1 | C70: Philipp Schedl | D70: Christian Peschke | E70: 1 | F70: 0 | G70: 35 | H70: 24 | I70: Homecoming 4.0 AoS ReleaseParty | J70: 2024-07-13T12:00:00 | K70: 2024-07-13T21:00:00 | L70: Deutschland | M70: FALSE | N70: 2023 | Q70: Cities of Sigmar | U70: bcp | V70: =IFERROR((IF(SUMPRODUCT(MAX(ROW($C$2:$C69)*($C70=$C$2:$C69))-1)>SUMPRODUCT(MAX(ROW($D$2:$D69)*($C70=$D$2:$D69))-1),INDEX($X$2:$X69,SUMPRODUCT(MAX(ROW($C$2:$C69)*($C70=$C$2:$C69))-1)),INDEX($Y$2:$Y69,SUMPRODUCT(MAX(ROW($D$2:$D69)*($C70=$D$2:$D69))-1)))),_xlfn.IFNA(IF(VLOOKUP(C70,'30th June Rankings (Values)'!A:D,4,FALSE)>0,VLOOKUP(C70,'30th June Rankings (Values)'!A:D,4,FALSE),400),400)) -> 401.0595468 | W70: =IFERROR((IF(SUMPRODUCT(MAX(ROW($D$2:$D69)*($D70=$D$2:$D69))-1)>SUMPRODUCT(MAX(ROW($C$2:$C69)*($D70=$C$2:$C69))-1),INDEX($Y$2:$Y69,SUMPRODUCT(MAX(ROW($D$2:$D69)*($D70=$D$2:$D69))-1)),INDEX($X$2:$X69,SUMPRODUCT(MAX(ROW($C$2:$C69)*($D70=$C$2:$C69))-1)))),_xlfn.IFNA(IF(VLOOKUP(D70,'30th June Rankings (Values)'!A:D,4,FALSE)>0,VLOOKUP(D70,'30th June Rankings (Values)'!A:D,4,FALSE),400),400)) -> 419.1963233 | X70: =20*(E70-(1/(1+(10^((W70-V70)/400)))))+V70 -> 411.5810916 | Y70: =20*(F70-(1/(1+(10^((V70-W70)/400)))))+W70 -> 408.6747786 | Z70: =C70&D70 -> Philipp SchedlChristian Peschke | AA70: =VLOOKUP(L70,Countries!A:B,2,FALSE) -> DEU | AB70: =IF(O70="","Y",(IF(Q70="","Y","N"))) -> Y | AC70: =IF(O70=Q70,"Y","N") -> N | AD70: =IF(J70<(TODAY()-60),"N","Y") -> Y | AE70: =_xlfn.MAXIFS(B:B,I:I,I70) -> 3 | AF70: =IF(AE70<5,"RTT/Casual",(IF(M70="TRUE","RTT/Casual",(IF(COUNTIF(I70,"*Team*"),"RTT/Casual",(IF(COUNTIF(I70,"*Double*"),"RTT/Casual","GT"))))))) -> RTT/Casual | AG70: =O70&Q70 -> Cities of Sigmar | AH70: =MONTH(J70) -> 7 | AI70: =((COUNTIFS(I:I,I70))/AE70)*2 -> 5.333333333 | AJ70: =VLOOKUP(I70,Battleplans!A:F,Matches!B70+1,FALSE) -> 0
A71: 574783 | B71: 1 | C71: Jannick Wetterich | D71: Christian Hermann | E71: 1 | F71: 0 | G71: 40 | H71: 8 | I71: Homecoming 4.0 AoS ReleaseParty | J71: 2024-07-13T12:00:00 | K71: 2024-07-13T21:00:00 | L71: Deutschland | M71: FALSE | N71: 2023 | O71: Ogor Mawtribes | Q71: Daughters of Khaine | R71: Daughters of Khaine | U71: bcp | V71: =IFERROR((IF(SUMPRODUCT(MAX(ROW($C$2:$C70)*($C71=$C$2:$C70))-1)>SUMPRODUCT(MAX(ROW($D$2:$D70)*($C71=$D$2:$D70))-1),INDEX($X$2:$X70,SUMPRODUCT(MAX(ROW($C$2:$C70)*($C71=$C$2:$C70))-1)),INDEX($Y$2:$Y70,SUMPRODUCT(MAX(ROW($D$2:$D70)*($C71=$D$2:$D70))-1)))),_xlfn.IFNA(IF(VLOOKUP(C71,'30th June Rankings (Values)'!A:D,4,FALSE)>0,VLOOKUP(C71,'30th June Rankings (Values)'!A:D,4,FALSE),400),400)) -> 400 | W71: =IFERROR((IF(SUMPRODUCT(MAX(ROW($D$2:$D70)*($D71=$D$2:$D70))-1)>SUMPRODUCT(MAX(ROW($C$2:$C70)*($D71=$C$2:$C70))-1),INDEX($Y$2:$Y70,SUMPRODUCT(MAX(ROW($D$2:$D70)*($D71=$D$2:$D70))-1)),INDEX($X$2:$X70,SUMPRODUCT(MAX(ROW($C$2:$C70)*($D71=$C$2:$C70))-1)))),_xlfn.IFNA(IF(VLOOKUP(D71,'30th June Rankings (Values)'!A:D,4,FALSE)>0,VLOOKUP(D71,'30th June Rankings (Values)'!A:D,4,FALSE),400),400)) -> 381.7110554 | X71: =20*(E71-(1/(1+(10^((W71-V71)/400)))))+V71 -> 409.4740875 | Y71: =20*(F71-(1/(1+(10^((V71-W71)/400)))))+W71 -> 372.2369679 | Z71: =C71&D71 -> Jannick WetterichChristian Hermann | AA71: =VLOOKUP(L71,Countries!A:B,2,FALSE) -> DEU | AB71: =IF(O71="","Y",(IF(Q71="","Y","N"))) -> N | AC71: =IF(O71=Q71,"Y","N") -> N | AD71: =IF(J71<(TODAY()-60),"N","Y") -> Y | AE71: =_xlfn.MAXIFS(B:B,I:I,I71) -> 3 | AF71: =IF(AE71<5,"RTT/Casual",(IF(M71="TRUE","RTT/Casual",(IF(COUNTIF(I71,"*Team*"),"RTT/Casual",(IF(COUNTIF(I71,"*Double*"),"RTT/Casual","GT"))))))) -> RTT/Casual | AG71: =O71&Q71 -> Ogor MawtribesDaughters of Khaine | AH71: =MONTH(J71) -> 7 | AI71: =((COUNTIFS(I:I,I71))/AE71)*2 -> 5.333333333 | AJ71: =VLOOKUP(I71,Battleplans!A:F,Matches!B71+1,FALSE) -> 0
A72: 574830 | B72: 2 | C72: Valerio Toscani | D72: Christian Peschke | E72: 0 | F72: 1 | G72: 26 | H72: 32 | I72: Homecoming 4.0 AoS ReleaseParty | J72: 2024-07-13T12:00:00 | K72: 2024-07-13T21:00:00 | L72: Deutschland | M72: FALSE | N72: 2023 | O72: Slaves to Darkness | P72: StD | Q72: Cities of Sigmar | U72: bcp | V72: =IFERROR((IF(SUMPRODUCT(MAX(ROW($C$2:$C71)*($C72=$C$2:$C71))-1)>SUMPRODUCT(MAX(ROW($D$2:$D71)*($C72=$D$2:$D71))-1),INDEX($X$2:$X71,SUMPRODUCT(MAX(ROW($C$2:$C71)*($C72=$C$2:$C71))-1)),INDEX($Y$2:$Y71,SUMPRODUCT(MAX(ROW($D$2:$D71)*($C72=$D$2:$D71))-1)))),_xlfn.IFNA(IF(VLOOKUP(C72,'30th June Rankings (Values)'!A:D,4,FALSE)>0,VLOOKUP(C72,'30th June Rankings (Values)'!A:D,4,FALSE),400),400)) -> 419.4167409 | W72: =IFERROR((IF(SUMPRODUCT(MAX(ROW($D$2:$D71)*($D72=$D$2:$D71))-1)>SUMPRODUCT(MAX(ROW($C$2:$C71)*($D72=$C$2:$C71))-1),INDEX($Y$2:$Y71,SUMPRODUCT(MAX(ROW($D$2:$D71)*($D72=$D$2:$D71))-1)),INDEX($X$2:$X71,SUMPRODUCT(MAX(ROW($C$2:$C71)*($D72=$C$2:$C71))-1)))),_xlfn.IFNA(IF(VLOOKUP(D72,'30th June Rankings (Values)'!A:D,4,FALSE)>0,VLOOKUP(D72,'30th June Rankings (Values)'!A:D,4,FALSE),400),400)) -> 408.6747786 | X72: =20*(E72-(1/(1+(10^((W72-V72)/400)))))+V72 -> 409.1076608 | Y72: =20*(F72-(1/(1+(10^((V72-W72)/400)))))+W72 -> 418.9838586 | Z72: =C72&D72 -> Valerio ToscaniChristian Peschke | AA72: =VLOOKUP(L72,Countries!A:B,2,FALSE) -> DEU | AB72: =IF(O72="","Y",(IF(Q72="","Y","N"))) -> N | AC72: =IF(O72=Q72,"Y","N") -> N | AD72: =IF(J72<(TODAY()-60),"N","Y") -> Y | AE72: =_xlfn.MAXIFS(B:B,I:I,I72) -> 3 | AF72: =IF(AE72<5,"RTT/Casual",(IF(M72="TRUE","RTT/Casual",(IF(COUNTIF(I72,"*Team*"),"RTT/Casual",(IF(COUNTIF(I72,"*Double*"),"RTT/Casual","GT"))))))) -> RTT/Casual | AG72: =O72&Q72 -> Slaves to DarknessCities of Sigmar | AH72: =MONTH(J72) -> 7 | AI72: =((COUNTIFS(I:I,I72))/AE72)*2 -> 5.333333333 | AJ72: =VLOOKUP(I72,Battleplans!A:F,Matches!B72+1,FALSE) -> 0
A73: 574863 | B73: 2 | C73: Marco Ade | D73: Christian Hermann | E73: 1 | F73: 0 | G73: 34 | H73: 16 | I73: Homecoming 4.0 AoS ReleaseParty | J73: 2024-07-13T12:00:00 | K73: 2024-07-13T21:00:00 | L73: Deutschland | M73: FALSE | N73: 2023 | O73: Cities of Sigmar | Q73: Daughters of Khaine | R73: Daughters of Khaine | U73: bcp | V73: =IFERROR((IF(SUMPRODUCT(MAX(ROW($C$2:$C72)*($C73=$C$2:$C72))-1)>SUMPRODUCT(MAX(ROW($D$2:$D72)*($C73=$D$2:$D72))-1),INDEX($X$2:$X72,SUMPRODUCT(MAX(ROW($C$2:$C72)*($C73=$C$2:$C72))-1)),INDEX($Y$2:$Y72,SUMPRODUCT(MAX(ROW($D$2:$D72)*($C73=$D$2:$D72))-1)))),_xlfn.IFNA(IF(VLOOKUP(C73,'30th June Rankings (Values)'!A:D,4,FALSE)>0,VLOOKUP(C73,'30th June Rankings (Values)'!A:D,4,FALSE),400),400)) -> 390.2789932 | W73: =IFERROR((IF(SUMPRODUCT(MAX(ROW($D$2:$D72)*($D73=$D$2:$D72))-1)>SUMPRODUCT(MAX(ROW($C$2:$C72)*($D73=$C$2:$C72))-1),INDEX($Y$2:$Y72,SUMPRODUCT(MAX(ROW($D$2:$D72)*($D73=$D$2:$D72))-1)),INDEX($X$2:$X72,SUMPRODUCT(MAX(ROW($C$2:$C72)*($D73=$C$2:$C72))-1)))),_xlfn.IFNA(IF(VLOOKUP(D73,'30th June Rankings (Values)'!A:D,4,FALSE)>0,VLOOKUP(D73,'30th June Rankings (Values)'!A:D,4,FALSE),400),400)) -> 372.2369679 | X73: =20*(E73-(1/(1+(10^((W73-V73)/400)))))+V73 -> 399.7601683 | Y73: =20*(F73-(1/(1+(10^((V73-W73)/400)))))+W73 -> 362.7557928 | Z73: =C73&D73 -> Marco AdeChristian Hermann | AA73: =VLOOKUP(L73,Countries!A:B,2,FALSE) -> DEU | AB73: =IF(O73="","Y",(IF(Q73="","Y","N"))) -> N | AC73: =IF(O73=Q73,"Y","N") -> N | AD73: =IF(J73<(TODAY()-60),"N","Y") -> Y | AE73: =_xlfn.MAXIFS(B:B,I:I,I73) -> 3 | AF73: =IF(AE73<5,"RTT/Casual",(IF(M73="TRUE","RTT/Casual",(IF(COUNTIF(I73,"*Team*"),"RTT/Casual",(IF(COUNTIF(I73,"*Double*"),"RTT/Casual","GT"))))))) -> RTT/Casual | AG73: =O73&Q73 -> Cities of SigmarDaughters of Khaine | AH73: =MONTH(J73) -> 7 | AI73: =((COUNTIFS(I:I,I73))/AE73)*2 -> 5.333333333 | AJ73: =VLOOKUP(I73,Battleplans!A:F,Matches!B73+1,FALSE) -> 0
A74: 574884 | B74: 2 | C74: Jannick Wetterich | D74: Philipp Schedl | E74: 0 | F74: 1 | G74: 6 | H74: 32 | I74: Homecoming 4.0 AoS ReleaseParty | J74: 2024-07-13T12:00:00 | K74: 2024-07-13T21:00:00 | L74: Deutschland | M74: FALSE | N74: 2023 | O74: Ogor Mawtribes | U74: bcp | V74: =IFERROR((IF(SUMPRODUCT(MAX(ROW($C$2:$C73)*($C74=$C$2:$C73))-1)>SUMPRODUCT(MAX(ROW($D$2:$D73)*($C74=$D$2:$D73))-1),INDEX($X$2:$X73,SUMPRODUCT(MAX(ROW($C$2:$C73)*($C74=$C$2:$C73))-1)),INDEX($Y$2:$Y73,SUMPRODUCT(MAX(ROW($D$2:$D73)*($C74=$D$2:$D73))-1)))),_xlfn.IFNA(IF(VLOOKUP(C74,'30th June Rankings (Values)'!A:D,4,FALSE)>0,VLOOKUP(C74,'30th June Rankings (Values)'!A:D,4,FALSE),400),400)) -> 409.4740875 | W74: =IFERROR((IF(SUMPRODUCT(MAX(ROW($D$2:$D73)*($D74=$D$2:$D73))-1)>SUMPRODUCT(MAX(ROW($C$2:$C73)*($D74=$C$2:$C73))-1),INDEX($Y$2:$Y73,SUMPRODUCT(MAX(ROW($D$2:$D73)*($D74=$D$2:$D73))-1)),INDEX($X$2:$X73,SUMPRODUCT(MAX(ROW($C$2:$C73)*($D74=$C$2:$C73))-1)))),_xlfn.IFNA(IF(VLOOKUP(D74,'30th June Rankings (Values)'!A:D,4,FALSE)>0,VLOOKUP(D74,'30th June Rankings (Values)'!A:D,4,FALSE),400),400)) -> 411.5810916 | X74: =20*(E74-(1/(1+(10^((W74-V74)/400)))))+V74 -> 399.5347312 | Y74: =20*(F74-(1/(1+(10^((V74-W74)/400)))))+W74 -> 421.5204478 | Z74: =C74&D74 -> Jannick WetterichPhilipp Schedl | AA74: =VLOOKUP(L74,Countries!A:B,2,FALSE) -> DEU | AB74: =IF(O74="","Y",(IF(Q74="","Y","N"))) -> Y | AC74: =IF(O74=Q74,"Y","N") -> N | AD74: =IF(J74<(TODAY()-60),"N","Y") -> Y | AE74: =_xlfn.MAXIFS(B:B,I:I,I74) -> 3 | AF74: =IF(AE74<5,"RTT/Casual",(IF(M74="TRUE","RTT/Casual",(IF(COUNTIF(I74,"*Team*"),"RTT/Casual",(IF(COUNTIF(I74,"*Double*"),"RTT/Casual","GT"))))))) -> RTT/Casual | AG74: =O74&Q74 -> Ogor Mawtribes | AH74: =MONTH(J74) -> 7 | AI74: =((COUNTIFS(I:I,I74))/AE74)*2 -> 5.333333333 | AJ74: =VLOOKUP(I74,Battleplans!A:F,Matches!B74+1,FALSE) -> 0
A75: 574930 | B75: 3 | C75: Christian Peschke | D75: Jannick Wetterich | E75: 1 | F75: 0 | G75: 34 | H75: 21 | I75: Homecoming 4.0 AoS ReleaseParty | J75: 2024-07-13T12:00:00 | K75: 2024-07-13T21:00:00 | L75: Deutschland | M75: FALSE | N75: 2023 | O75: Cities of Sigmar | Q75: Ogor Mawtribes | U75: bcp | V75: =IFERROR((IF(SUMPRODUCT(MAX(ROW($C$2:$C74)*($C75=$C$2:$C74))-1)>SUMPRODUCT(MAX(ROW($D$2:$D74)*($C75=$D$2:$D74))-1),INDEX($X$2:$X74,SUMPRODUCT(MAX(ROW($C$2:$C74)*($C75=$C$2:$C74))-1)),INDEX($Y$2:$Y74,SUMPRODUCT(MAX(ROW($D$2:$D74)*($C75=$D$2:$D74))-1)))),_xlfn.IFNA(IF(VLOOKUP(C75,'30th June Rankings (Values)'!A:D,4,FALSE)>0,VLOOKUP(C75,'30th June Rankings (Values)'!A:D,4,FALSE),400),400)) -> 418.9838586 | W75: =IFERROR((IF(SUMPRODUCT(MAX(ROW($D$2:$D74)*($D75=$D$2:$D74))-1)>SUMPRODUCT(MAX(ROW($C$2:$C74)*($D75=$C$2:$C74))-1),INDEX($Y$2:$Y74,SUMPRODUCT(MAX(ROW($D$2:$D74)*($D75=$D$2:$D74))-1)),INDEX($X$2:$X74,SUMPRODUCT(MAX(ROW($C$2:$C74)*($D75=$C$2:$C74))-1)))),_xlfn.IFNA(IF(VLOOKUP(D75,'30th June Rankings (Values)'!A:D,4,FALSE)>0,VLOOKUP(D75,'30th June Rankings (Values)'!A:D,4,FALSE),400),400)) -> 399.5347312 | X75: =20*(E75-(1/(1+(10^((W75-V75)/400)))))+V75 -> 428.4246517 | Y75: =20*(F75-(1/(1+(10^((V75-W75)/400)))))+W75 -> 390.0939381 | Z75: =C75&D75 -> Christian PeschkeJannick Wetterich | AA75: =VLOOKUP(L75,Countries!A:B,2,FALSE) -> DEU | AB75: =IF(O75="","Y",(IF(Q75="","Y","N"))) -> N | AC75: =IF(O75=Q75,"Y","N") -> N | AD75: =IF(J75<(TODAY()-60),"N","Y") -> Y | AE75: =_xlfn.MAXIFS(B:B,I:I,I75) -> 3 | AF75: =IF(AE75<5,"RTT/Casual",(IF(M75="TRUE","RTT/Casual",(IF(COUNTIF(I75,"*Team*"),"RTT/Casual",(IF(COUNTIF(I75,"*Double*"),"RTT/Casual","GT"))))))) -> RTT/Casual | AG75: =O75&Q75 -> Cities of SigmarOgor Mawtribes | AH75: =MONTH(J75) -> 7 | AI75: =((COUNTIFS(I:I,I75))/AE75)*2 -> 5.333333333 | AJ75: =VLOOKUP(I75,Battleplans!A:F,Matches!B75+1,FALSE) -> 0
A76: 574940 | B76: 3 | C76: Philipp Schedl | D76: Christian Hermann | E76: 0 | F76: 1 | G76: 30 | H76: 32 | I76: Homecoming 4.0 AoS ReleaseParty | J76: 2024-07-13T12:00:00 | K76: 2024-07-13T21:00:00 | L76: Deutschland | M76: FALSE | N76: 2023 | Q76: Daughters of Khaine | R76: Daughters of Khaine | U76: bcp | V76: =IFERROR((IF(SUMPRODUCT(MAX(ROW($C$2:$C75)*($C76=$C$2:$C75))-1)>SUMPRODUCT(MAX(ROW($D$2:$D75)*($C76=$D$2:$D75))-1),INDEX($X$2:$X75,SUMPRODUCT(MAX(ROW($C$2:$C75)*($C76=$C$2:$C75))-1)),INDEX($Y$2:$Y75,SUMPRODUCT(MAX(ROW($D$2:$D75)*($C76=$D$2:$D75))-1)))),_xlfn.IFNA(IF(VLOOKUP(C76,'30th June Rankings (Values)'!A:D,4,FALSE)>0,VLOOKUP(C76,'30th June Rankings (Values)'!A:D,4,FALSE),400),400)) -> 421.5204478 | W76: =IFERROR((IF(SUMPRODUCT(MAX(ROW($D$2:$D75)*($D76=$D$2:$D75))-1)>SUMPRODUCT(MAX(ROW($C$2:$C75)*($D76=$C$2:$C75))-1),INDEX($Y$2:$Y75,SUMPRODUCT(MAX(ROW($D$2:$D75)*($D76=$D$2:$D75))-1)),INDEX($X$2:$X75,SUMPRODUCT(MAX(ROW($C$2:$C75)*($D76=$C$2:$C75))-1)))),_xlfn.IFNA(IF(VLOOKUP(D76,'30th June Rankings (Values)'!A:D,4,FALSE)>0,VLOOKUP(D76,'30th June Rankings (Values)'!A:D,4,FALSE),400),400)) -> 362.7557928 | X76: =20*(E76-(1/(1+(10^((W76-V76)/400)))))+V76 -> 409.8450115 | Y76: =20*(F76-(1/(1+(10^((V76-W76)/400)))))+W76 -> 374.4312291 | Z76: =C76&D76 -> Philipp SchedlChristian Hermann | AA76: =VLOOKUP(L76,Countries!A:B,2,FALSE) -> DEU | AB76: =IF(O76="","Y",(IF(Q76="","Y","N"))) -> Y | AC76: =IF(O76=Q76,"Y","N") -> N | AD76: =IF(J76<(TODAY()-60),"N","Y") -> Y | AE76: =_xlfn.MAXIFS(B:B,I:I,I76) -> 3 | AF76: =IF(AE76<5,"RTT/Casual",(IF(M76="TRUE","RTT/Casual",(IF(COUNTIF(I76,"*Team*"),"RTT/Casual",(IF(COUNTIF(I76,"*Double*"),"RTT/Casual","GT"))))))) -> RTT/Casual | AG76: =O76&Q76 -> Daughters of Khaine | AH76: =MONTH(J76) -> 7 | AI76: =((COUNTIFS(I:I,I76))/AE76)*2 -> 5.333333333 | AJ76: =VLOOKUP(I76,Battleplans!A:F,Matches!B76+1,FALSE) -> 0
A77: 575098 | B77: 1 | C77: Rye Anderson | D77: David Manley | E77: 1 | F77: 0 | G77: 12 | H77: 8 | I77: Age of Sigmar Grand Tournament- "Theatre of War" | J77: 2024-07-13T13:30:00 | K77: 2024-07-14T23:00:00 | L77: United States | M77: FALSE | N77: 2023 | O77: Soulblight Gravelords | P77: Tide of Bones & Blades | Q77: Sons of Behemat | R77: Breaker Tribe | U77: bcp | V77: =IFERROR((IF(SUMPRODUCT(MAX(ROW($C$2:$C76)*($C77=$C$2:$C76))-1)>SUMPRODUCT(MAX(ROW($D$2:$D76)*($C77=$D$2:$D76))-1),INDEX($X$2:$X76,SUMPRODUCT(MAX(ROW($C$2:$C76)*($C77=$C$2:$C76))-1)),INDEX($Y$2:$Y76,SUMPRODUCT(MAX(ROW($D$2:$D76)*($C77=$D$2:$D76))-1)))),_xlfn.IFNA(IF(VLOOKUP(C77,'30th June Rankings (Values)'!A:D,4,FALSE)>0,VLOOKUP(C77,'30th June Rankings (Values)'!A:D,4,FALSE),400),400)) -> 551.9328477 | W77: =IFERROR((IF(SUMPRODUCT(MAX(ROW($D$2:$D76)*($D77=$D$2:$D76))-1)>SUMPRODUCT(MAX(ROW($C$2:$C76)*($D77=$C$2:$C76))-1),INDEX($Y$2:$Y76,SUMPRODUCT(MAX(ROW($D$2:$D76)*($D77=$D$2:$D76))-1)),INDEX($X$2:$X76,SUMPRODUCT(MAX(ROW($C$2:$C76)*($D77=$C$2:$C76))-1)))),_xlfn.IFNA(IF(VLOOKUP(D77,'30th June Rankings (Values)'!A:D,4,FALSE)>0,VLOOKUP(D77,'30th June Rankings (Values)'!A:D,4,FALSE),400),400)) -> 366.8493029 | X77: =20*(E77-(1/(1+(10^((W77-V77)/400)))))+V77 -> 557.0583238 | Y77: =20*(F77-(1/(1+(10^((V77-W77)/400)))))+W77 -> 361.7238268 | Z77: =C77&D77 -> Rye AndersonDavid Manley | AA77: =VLOOKUP(L77,Countries!A:B,2,FALSE) -> USA | AB77: =IF(O77="","Y",(IF(Q77="","Y","N"))) -> N | AC77: =IF(O77=Q77,"Y","N") -> N | AD77: =IF(J77<(TODAY()-60),"N","Y") -> Y | AE77: =_xlfn.MAXIFS(B:B,I:I,I77) -> 5 | AF77: =IF(AE77<5,"RTT/Casual",(IF(M77="TRUE","RTT/Casual",(IF(COUNTIF(I77,"*Team*"),"RTT/Casual",(IF(COUNTIF(I77,"*Double*"),"RTT/Casual","GT"))))))) -> GT | AG77: =O77&Q77 -> Soulblight GravelordsSons of Behemat | AH77: =MONTH(J77) -> 7 | AI77: =((COUNTIFS(I:I,I77))/AE77)*2 -> 25.2 | AJ77: =VLOOKUP(I77,Battleplans!A:F,Matches!B77+1,FALSE) -> Jaws of Gallet
A78: 575124 | B78: 1 | C78: Corry Wiggins | D78: Caroline Kimbles | E78: 1 | F78: 0 | G78: 14 | H78: 6 | I78: Age of Sigmar Grand Tournament- "Theatre of War" | J78: 2024-07-13T13:30:00 | K78: 2024-07-14T23:00:00 | L78: United States | M78: FALSE | N78: 2023 | O78: Slaves to Darkness | P78: Godswrath Warband | Q78: Gloomspite Gitz | R78: Troggherd | U78: bcp | V78: =IFERROR((IF(SUMPRODUCT(MAX(ROW($C$2:$C77)*($C78=$C$2:$C77))-1)>SUMPRODUCT(MAX(ROW($D$2:$D77)*($C78=$D$2:$D77))-1),INDEX($X$2:$X77,SUMPRODUCT(MAX(ROW($C$2:$C77)*($C78=$C$2:$C77))-1)),INDEX($Y$2:$Y77,SUMPRODUCT(MAX(ROW($D$2:$D77)*($C78=$D$2:$D77))-1)))),_xlfn.IFNA(IF(VLOOKUP(C78,'30th June Rankings (Values)'!A:D,4,FALSE)>0,VLOOKUP(C78,'30th June Rankings (Values)'!A:D,4,FALSE),400),400)) -> 489.6760337 | W78: =IFERROR((IF(SUMPRODUCT(MAX(ROW($D$2:$D77)*($D78=$D$2:$D77))-1)>SUMPRODUCT(MAX(ROW($C$2:$C77)*($D78=$C$2:$C77))-1),INDEX($Y$2:$Y77,SUMPRODUCT(MAX(ROW($D$2:$D77)*($D78=$D$2:$D77))-1)),INDEX($X$2:$X77,SUMPRODUCT(MAX(ROW($C$2:$C77)*($D78=$C$2:$C77))-1)))),_xlfn.IFNA(IF(VLOOKUP(D78,'30th June Rankings (Values)'!A:D,4,FALSE)>0,VLOOKUP(D78,'30th June Rankings (Values)'!A:D,4,FALSE),400),400)) -> 379.3337835 | X78: =20*(E78-(1/(1+(10^((W78-V78)/400)))))+V78 -> 496.6027674 | Y78: =20*(F78-(1/(1+(10^((V78-W78)/400)))))+W78 -> 372.4070499 | Z78: =C78&D78 -> Corry WigginsCaroline Kimbles | AA78: =VLOOKUP(L78,Countries!A:B,2,FALSE) -> USA | AB78: =IF(O78="","Y",(IF(Q78="","Y","N"))) -> N | AC78: =IF(O78=Q78,"Y","N") -> N | AD78: =IF(J78<(TODAY()-60),"N","Y") -> Y | AE78: =_xlfn.MAXIFS(B:B,I:I,I78) -> 5 | AF78: =IF(AE78<5,"RTT/Casual",(IF(M78="TRUE","RTT/Casual",(IF(COUNTIF(I78,"*Team*"),"RTT/Casual",(IF(COUNTIF(I78,"*Double*"),"RTT/Casual","GT"))))))) -> GT | AG78: =O78&Q78 -> Slaves to DarknessGloomspite Gitz | AH78: =MONTH(J78) -> 7 | AI78: =((COUNTIFS(I:I,I78))/AE78)*2 -> 25.2 | AJ78: =VLOOKUP(I78,Battleplans!A:F,Matches!B78+1,FALSE) -> Jaws of Gallet
A79: 575153 | B79: 1 | C79: Alex Frederick | D79: Alex Shaffer | E79: 0 | F79: 1 | G79: 6 | H79: 14 | I79: Age of Sigmar Grand Tournament- "Theatre of War" | J79: 2024-07-13T13:30:00 | K79: 2024-07-14T23:00:00 | L79: United States | M79: FALSE | N79: 2023 | O79: Stormcast Eternals | P79: Prayers of the Stormhosts | Q79: Maggotkin of Nurgle | R79: Affliction Cyst | U79: bcp | V79: =IFERROR((IF(SUMPRODUCT(MAX(ROW($C$2:$C78)*($C79=$C$2:$C78))-1)>SUMPRODUCT(MAX(ROW($D$2:$D78)*($C79=$D$2:$D78))-1),INDEX($X$2:$X78,SUMPRODUCT(MAX(ROW($C$2:$C78)*($C79=$C$2:$C78))-1)),INDEX($Y$2:$Y78,SUMPRODUCT(MAX(ROW($D$2:$D78)*($C79=$D$2:$D78))-1)))),_xlfn.IFNA(IF(VLOOKUP(C79,'30th June Rankings (Values)'!A:D,4,FALSE)>0,VLOOKUP(C79,'30th June Rankings (Values)'!A:D,4,FALSE),400),400)) -> 392.8908414 | W79: =IFERROR((IF(SUMPRODUCT(MAX(ROW($D$2:$D78)*($D79=$D$2:$D78))-1)>SUMPRODUCT(MAX(ROW($C$2:$C78)*($D79=$C$2:$C78))-1),INDEX($Y$2:$Y78,SUMPRODUCT(MAX(ROW($D$2:$D78)*($D79=$D$2:$D78))-1)),INDEX($X$2:$X78,SUMPRODUCT(MAX(ROW($C$2:$C78)*($D79=$C$2:$C78))-1)))),_xlfn.IFNA(IF(VLOOKUP(D79,'30th June Rankings (Values)'!A:D,4,FALSE)>0,VLOOKUP(D79,'30th June Rankings (Values)'!A:D,4,FALSE),400),400)) -> 386.3838826 | X79: =20*(E79-(1/(1+(10^((W79-V79)/400)))))+V79 -> 382.7035779 | Y79: =20*(F79-(1/(1+(10^((V79-W79)/400)))))+W79 -> 396.5711461 | Z79: =C79&D79 -> Alex FrederickAlex Shaffer | AA79: =VLOOKUP(L79,Countries!A:B,2,FALSE) -> USA | AB79: =IF(O79="","Y",(IF(Q79="","Y","N"))) -> N | AC79: =IF(O79=Q79,"Y","N") -> N | AD79: =IF(J79<(TODAY()-60),"N","Y") -> Y | AE79: =_xlfn.MAXIFS(B:B,I:I,I79) -> 5 | AF79: =IF(AE79<5,"RTT/Casual",(IF(M79="TRUE","RTT/Casual",(IF(COUNTIF(I79,"*Team*"),"RTT/Casual",(IF(COUNTIF(I79,"*Double*"),"RTT/Casual","GT"))))))) -> GT | AG79: =O79&Q79 -> Stormcast EternalsMaggotkin of Nurgle | AH79: =MONTH(J79) -> 7 | AI79: =((COUNTIFS(I:I,I79))/AE79)*2 -> 25.2 | AJ79: =VLOOKUP(I79,Battleplans!A:F,Matches!B79+1,FALSE) -> Jaws of Gallet
A80: 575174 | B80: 1 | C80: Nick Rau | D80: Parker Smith | E80: 1 | F80: 0 | G80: 18 | H80: 2 | I80: Age of Sigmar Grand Tournament- "Theatre of War" | J80: 2024-07-13T13:30:00 | K80: 2024-07-14T23:00:00 | L80: United States | M80: FALSE | N80: 2023 | O80: Lumineth Realm-lords | P80: Vanari Battlehost | U80: bcp | V80: =IFERROR((IF(SUMPRODUCT(MAX(ROW($C$2:$C79)*($C80=$C$2:$C79))-1)>SUMPRODUCT(MAX(ROW($D$2:$D79)*($C80=$D$2:$D79))-1),INDEX($X$2:$X79,SUMPRODUCT(MAX(ROW($C$2:$C79)*($C80=$C$2:$C79))-1)),INDEX($Y$2:$Y79,SUMPRODUCT(MAX(ROW($D$2:$D79)*($C80=$D$2:$D79))-1)))),_xlfn.IFNA(IF(VLOOKUP(C80,'30th June Rankings (Values)'!A:D,4,FALSE)>0,VLOOKUP(C80,'30th June Rankings (Values)'!A:D,4,FALSE),400),400)) -> 495.5311124 | W80: =IFERROR((IF(SUMPRODUCT(MAX(ROW($D$2:$D79)*($D80=$D$2:$D79))-1)>SUMPRODUCT(MAX(ROW($C$2:$C79)*($D80=$C$2:$C79))-1),INDEX($Y$2:$Y79,SUMPRODUCT(MAX(ROW($D$2:$D79)*($D80=$D$2:$D79))-1)),INDEX($X$2:$X79,SUMPRODUCT(MAX(ROW($C$2:$C79)*($D80=$C$2:$C79))-1)))),_xlfn.IFNA(IF(VLOOKUP(D80,'30th June Rankings (Values)'!A:D,4,FALSE)>0,VLOOKUP(D80,'30th June Rankings (Values)'!A:D,4,FALSE),400),400)) -> 533.7362189 | X80: =20*(E80-(1/(1+(10^((W80-V80)/400)))))+V80 -> 506.6263329 | Y80: =20*(F80-(1/(1+(10^((V80-W80)/400)))))+W80 -> 522.6409984 | Z80: =C80&D80 -> Nick RauParker Smith | AA80: =VLOOKUP(L80,Countries!A:B,2,FALSE) -> USA | AB80: =IF(O80="","Y",(IF(Q80="","Y","N"))) -> Y | AC80: =IF(O80=Q80,"Y","N") -> N | AD80: =IF(J80<(TODAY()-60),"N","Y") -> Y | AE80: =_xlfn.MAXIFS(B:B,I:I,I80) -> 5 | AF80: =IF(AE80<5,"RTT/Casual",(IF(M80="TRUE","RTT/Casual",(IF(COUNTIF(I80,"*Team*"),"RTT/Casual",(IF(COUNTIF(I80,"*Double*"),"RTT/Casual","GT"))))))) -> GT | AG80: =O80&Q80 -> Lumineth Realm-lords | AH80: =MONTH(J80) -> 7 | AI80: =((COUNTIFS(I:I,I80))/AE80)*2 -> 25.2 | AJ80: =VLOOKUP(I80,Battleplans!A:F,Matches!B80+1,FALSE) -> Jaws of Gallet
A81: 575187 | B81: 1 | C81: Scott Dielman | D81: Josh Kale | E81: 0 | F81: 1 | G81: 9 | H81: 11 | I81: Age of Sigmar Grand Tournament- "Theatre of War" | J81: 2024-07-13T13:30:00 | K81: 2024-07-14T23:00:00 | L81: United States | M81: FALSE | N81: 2023 | O81: Seraphon | P81: Shadowstrike Starhost | U81: bcp | V81: =IFERROR((IF(SUMPRODUCT(MAX(ROW($C$2:$C80)*($C81=$C$2:$C80))-1)>SUMPRODUCT(MAX(ROW($D$2:$D80)*($C81=$D$2:$D80))-1),INDEX($X$2:$X80,SUMPRODUCT(MAX(ROW($C$2:$C80)*($C81=$C$2:$C80))-1)),INDEX($Y$2:$Y80,SUMPRODUCT(MAX(ROW($D$2:$D80)*($C81=$D$2:$D80))-1)))),_xlfn.IFNA(IF(VLOOKUP(C81,'30th June Rankings (Values)'!A:D,4,FALSE)>0,VLOOKUP(C81,'30th June Rankings (Values)'!A:D,4,FALSE),400),400)) -> 459.5784594 | W81: =IFERROR((IF(SUMPRODUCT(MAX(ROW($D$2:$D80)*($D81=$D$2:$D80))-1)>SUMPRODUCT(MAX(ROW($C$2:$C80)*($D81=$C$2:$C80))-1),INDEX($Y$2:$Y80,SUMPRODUCT(MAX(ROW($D$2:$D80)*($D81=$D$2:$D80))-1)),INDEX($X$2:$X80,SUMPRODUCT(MAX(ROW($C$2:$C80)*($D81=$C$2:$C80))-1)))),_xlfn.IFNA(IF(VLOOKUP(D81,'30th June Rankings (Values)'!A:D,4,FALSE)>0,VLOOKUP(D81,'30th June Rankings (Values)'!A:D,4,FALSE),400),400)) -> 370.3833947 | X81: =20*(E81-(1/(1+(10^((W81-V81)/400)))))+V81 -> 447.0661707 | Y81: =20*(F81-(1/(1+(10^((V81-W81)/400)))))+W81 -> 382.8956834 | Z81: =C81&D81 -> Scott DielmanJosh Kale | AA81: =VLOOKUP(L81,Countries!A:B,2,FALSE) -> USA | AB81: =IF(O81="","Y",(IF(Q81="","Y","N"))) -> Y | AC81: =IF(O81=Q81,"Y","N") -> N | AD81: =IF(J81<(TODAY()-60),"N","Y") -> Y | AE81: =_xlfn.MAXIFS(B:B,I:I,I81) -> 5 | AF81: =IF(AE81<5,"RTT/Casual",(IF(M81="TRUE","RTT/Casual",(IF(COUNTIF(I81,"*Team*"),"RTT/Casual",(IF(COUNTIF(I81,"*Double*"),"RTT/Casual","GT"))))))) -> GT | AG81: =O81&Q81 -> Seraphon | AH81: =MONTH(J81) -> 7 | AI81: =((COUNTIFS(I:I,I81))/AE81)*2 -> 25.2 | AJ81: =VLOOKUP(I81,Battleplans!A:F,Matches!B81+1,FALSE) -> Jaws of Gallet
A82: 575223 | B82: 1 | C82: Charlie Mahoney | D82: Adrian Ybarra | E82: 0 | F82: 1 | G82: 6 | H82: 14 | I82: Age of Sigmar Grand Tournament- "Theatre of War" | J82: 2024-07-13T13:30:00 | K82: 2024-07-14T23:00:00 | L82: United States | M82: FALSE | N82: 2023 | O82: Fyreslayers | P82: Warrior Kinband | Q82: Seraphon | R82: Sunclaw Starhost | U82: bcp | V82: =IFERROR((IF(SUMPRODUCT(MAX(ROW($C$2:$C81)*($C82=$C$2:$C81))-1)>SUMPRODUCT(MAX(ROW($D$2:$D81)*($C82=$D$2:$D81))-1),INDEX($X$2:$X81,SUMPRODUCT(MAX(ROW($C$2:$C81)*($C82=$C$2:$C81))-1)),INDEX($Y$2:$Y81,SUMPRODUCT(MAX(ROW($D$2:$D81)*($C82=$D$2:$D81))-1)))),_xlfn.IFNA(IF(VLOOKUP(C82,'30th June Rankings (Values)'!A:D,4,FALSE)>0,VLOOKUP(C82,'30th June Rankings (Values)'!A:D,4,FALSE),400),400)) -> 336.3868763 | W82: =IFERROR((IF(SUMPRODUCT(MAX(ROW($D$2:$D81)*($D82=$D$2:$D81))-1)>SUMPRODUCT(MAX(ROW($C$2:$C81)*($D82=$C$2:$C81))-1),INDEX($Y$2:$Y81,SUMPRODUCT(MAX(ROW($D$2:$D81)*($D82=$D$2:$D81))-1)),INDEX($X$2:$X81,SUMPRODUCT(MAX(ROW($C$2:$C81)*($D82=$C$2:$C81))-1)))),_xlfn.IFNA(IF(VLOOKUP(D82,'30th June Rankings (Values)'!A:D,4,FALSE)>0,VLOOKUP(D82,'30th June Rankings (Values)'!A:D,4,FALSE),400),400)) -> 494.6536507 | X82: =20*(E82-(1/(1+(10^((W82-V82)/400)))))+V82 -> 330.6512036 | Y82: =20*(F82-(1/(1+(10^((V82-W82)/400)))))+W82 -> 500.3893234 | Z82: =C82&D82 -> Charlie MahoneyAdrian Ybarra | AA82: =VLOOKUP(L82,Countries!A:B,2,FALSE) -> USA | AB82: =IF(O82="","Y",(IF(Q82="","Y","N"))) -> N | AC82: =IF(O82=Q82,"Y","N") -> N | AD82: =IF(J82<(TODAY()-60),"N","Y") -> Y | AE82: =_xlfn.MAXIFS(B:B,I:I,I82) -> 5 | AF82: =IF(AE82<5,"RTT/Casual",(IF(M82="TRUE","RTT/Casual",(IF(COUNTIF(I82,"*Team*"),"RTT/Casual",(IF(COUNTIF(I82,"*Double*"),"RTT/Casual","GT"))))))) -> GT | AG82: =O82&Q82 -> FyreslayersSeraphon | AH82: =MONTH(J82) -> 7 | AI82: =((COUNTIFS(I:I,I82))/AE82)*2 -> 25.2 | AJ82: =VLOOKUP(I82,Battleplans!A:F,Matches!B82+1,FALSE) -> Jaws of Gallet
A83: 575254 | B83: 1 | C83: Nik Greymaster | D83: Vlad Kokorev | E83: 1 | F83: 0 | G83: 14 | H83: 6 | I83: Age of Sigmar Grand Tournament- "Theatre of War" | J83: 2024-07-13T13:30:00 | K83: 2024-07-14T23:00:00 | L83: United States | M83: FALSE | N83: 2023 | O83: Lumineth Realm-lords | P83: Alarith Temple | Q83: Slaves to Darkness | R83: Godswrath Warband | U83: bcp | V83: =IFERROR((IF(SUMPRODUCT(MAX(ROW($C$2:$C82)*($C83=$C$2:$C82))-1)>SUMPRODUCT(MAX(ROW($D$2:$D82)*($C83=$D$2:$D82))-1),INDEX($X$2:$X82,SUMPRODUCT(MAX(ROW($C$2:$C82)*($C83=$C$2:$C82))-1)),INDEX($Y$2:$Y82,SUMPRODUCT(MAX(ROW($D$2:$D82)*($C83=$D$2:$D82))-1)))),_xlfn.IFNA(IF(VLOOKUP(C83,'30th June Rankings (Values)'!A:D,4,FALSE)>0,VLOOKUP(C83,'30th June Rankings (Values)'!A:D,4,FALSE),400),400)) -> 400 | W83: =IFERROR((IF(SUMPRODUCT(MAX(ROW($D$2:$D82)*($D83=$D$2:$D82))-1)>SUMPRODUCT(MAX(ROW($C$2:$C82)*($D83=$C$2:$C82))-1),INDEX($Y$2:$Y82,SUMPRODUCT(MAX(ROW($D$2:$D82)*($D83=$D$2:$D82))-1)),INDEX($X$2:$X82,SUMPRODUCT(MAX(ROW($C$2:$C82)*($D83=$C$2:$C82))-1)))),_xlfn.IFNA(IF(VLOOKUP(D83,'30th June Rankings (Values)'!A:D,4,FALSE)>0,VLOOKUP(D83,'30th June Rankings (Values)'!A:D,4,FALSE),400),400)) -> 419.6776789 | X83: =20*(E83-(1/(1+(10^((W83-V83)/400)))))+V83 -> 410.5657643 | Y83: =20*(F83-(1/(1+(10^((V83-W83)/400)))))+W83 -> 409.1119146 | Z83: =C83&D83 -> Nik GreymasterVlad Kokorev | AA83: =VLOOKUP(L83,Countries!A:B,2,FALSE) -> USA | AB83: =IF(O83="","Y",(IF(Q83="","Y","N"))) -> N | AC83: =IF(O83=Q83,"Y","N") -> N | AD83: =IF(J83<(TODAY()-60),"N","Y") -> Y | AE83: =_xlfn.MAXIFS(B:B,I:I,I83) -> 5 | AF83: =IF(AE83<5,"RTT/Casual",(IF(M83="TRUE","RTT/Casual",(IF(COUNTIF(I83,"*Team*"),"RTT/Casual",(IF(COUNTIF(I83,"*Double*"),"RTT/Casual","GT"))))))) -> GT | AG83: =O83&Q83 -> Lumineth Realm-lordsSlaves to Darkness | AH83: =MONTH(J83) -> 7 | AI83: =((COUNTIFS(I:I,I83))/AE83)*2 -> 25.2 | AJ83: =VLOOKUP(I83,Battleplans!A:F,Matches!B83+1,FALSE) -> Jaws of Gallet
A84: 575276 | B84: 1 | C84: Bill Keeler | D84: Zak Frederick | E84: 0 | F84: 1 | G84: 7 | H84: 13 | I84: Age of Sigmar Grand Tournament- "Theatre of War" | J84: 2024-07-13T13:30:00 | K84: 2024-07-14T23:00:00 | L84: United States | M84: FALSE | N84: 2023 | O84: Ironjawz | P84: Ironfist | Q84: Ironjawz | U84: bcp | V84: =IFERROR((IF(SUMPRODUCT(MAX(ROW($C$2:$C83)*($C84=$C$2:$C83))-1)>SUMPRODUCT(MAX(ROW($D$2:$D83)*($C84=$D$2:$D83))-1),INDEX($X$2:$X83,SUMPRODUCT(MAX(ROW($C$2:$C83)*($C84=$C$2:$C83))-1)),INDEX($Y$2:$Y83,SUMPRODUCT(MAX(ROW($D$2:$D83)*($C84=$D$2:$D83))-1)))),_xlfn.IFNA(IF(VLOOKUP(C84,'30th June Rankings (Values)'!A:D,4,FALSE)>0,VLOOKUP(C84,'30th June Rankings (Values)'!A:D,4,FALSE),400),400)) -> 528.8172883 | W84: =IFERROR((IF(SUMPRODUCT(MAX(ROW($D$2:$D83)*($D84=$D$2:$D83))-1)>SUMPRODUCT(MAX(ROW($C$2:$C83)*($D84=$C$2:$C83))-1),INDEX($Y$2:$Y83,SUMPRODUCT(MAX(ROW($D$2:$D83)*($D84=$D$2:$D83))-1)),INDEX($X$2:$X83,SUMPRODUCT(MAX(ROW($C$2:$C83)*($D84=$C$2:$C83))-1)))),_xlfn.IFNA(IF(VLOOKUP(D84,'30th June Rankings (Values)'!A:D,4,FALSE)>0,VLOOKUP(D84,'30th June Rankings (Values)'!A:D,4,FALSE),400),400)) -> 491.5251196 | X84: =20*(E84-(1/(1+(10^((W84-V84)/400)))))+V84 -> 517.7480365 | Y84: =20*(F84-(1/(1+(10^((V84-W84)/400)))))+W84 -> 502.5943714 | Z84: =C84&D84 -> Bill KeelerZak Frederick | AA84: =VLOOKUP(L84,Countries!A:B,2,FALSE) -> USA | AB84: =IF(O84="","Y",(IF(Q84="","Y","N"))) -> N | AC84: =IF(O84=Q84,"Y","N") -> Y | AD84: =IF(J84<(TODAY()-60),"N","Y") -> Y | AE84: =_xlfn.MAXIFS(B:B,I:I,I84) -> 5 | AF84: =IF(AE84<5,"RTT/Casual",(IF(M84="TRUE","RTT/Casual",(IF(COUNTIF(I84,"*Team*"),"RTT/Casual",(IF(COUNTIF(I84,"*Double*"),"RTT/Casual","GT"))))))) -> GT | AG84: =O84&Q84 -> IronjawzIronjawz | AH84: =MONTH(J84) -> 7 | AI84: =((COUNTIFS(I:I,I84))/AE84)*2 -> 25.2 | AJ84: =VLOOKUP(I84,Battleplans!A:F,Matches!B84+1,FALSE) -> Jaws of Gallet
A85: 575310 | B85: 1 | C85: Nick R | D85: Adam Schank | E85: 0 | F85: 1 | G85: 9 | H85: 11 | I85: Age of Sigmar Grand Tournament- "Theatre of War" | J85: 2024-07-13T13:30:00 | K85: 2024-07-14T23:00:00 | L85: United States | M85: FALSE | N85: 2023 | O85: Nighthaunt | P85: Death Stalkers | Q85: Hedonites of Slaanesh | R85: Seeker Cavalcade | U85: bcp | V85: =IFERROR((IF(SUMPRODUCT(MAX(ROW($C$2:$C84)*($C85=$C$2:$C84))-1)>SUMPRODUCT(MAX(ROW($D$2:$D84)*($C85=$D$2:$D84))-1),INDEX($X$2:$X84,SUMPRODUCT(MAX(ROW($C$2:$C84)*($C85=$C$2:$C84))-1)),INDEX($Y$2:$Y84,SUMPRODUCT(MAX(ROW($D$2:$D84)*($C85=$D$2:$D84))-1)))),_xlfn.IFNA(IF(VLOOKUP(C85,'30th June Rankings (Values)'!A:D,4,FALSE)>0,VLOOKUP(C85,'30th June Rankings (Values)'!A:D,4,FALSE),400),400)) -> 380.0057743 | W85: =IFERROR((IF(SUMPRODUCT(MAX(ROW($D$2:$D84)*($D85=$D$2:$D84))-1)>SUMPRODUCT(MAX(ROW($C$2:$C84)*($D85=$C$2:$C84))-1),INDEX($Y$2:$Y84,SUMPRODUCT(MAX(ROW($D$2:$D84)*($D85=$D$2:$D84))-1)),INDEX($X$2:$X84,SUMPRODUCT(MAX(ROW($C$2:$C84)*($D85=$C$2:$C84))-1)))),_xlfn.IFNA(IF(VLOOKUP(D85,'30th June Rankings (Values)'!A:D,4,FALSE)>0,VLOOKUP(D85,'30th June Rankings (Values)'!A:D,4,FALSE),400),400)) -> 403.3873246 | X85: =20*(E85-(1/(1+(10^((W85-V85)/400)))))+V85 -> 370.6777353 | Y85: =20*(F85-(1/(1+(10^((V85-W85)/400)))))+W85 -> 412.7153636 | Z85: =C85&D85 -> Nick RAdam Schank | AA85: =VLOOKUP(L85,Countries!A:B,2,FALSE) -> USA | AB85: =IF(O85="","Y",(IF(Q85="","Y","N"))) -> N | AC85: =IF(O85=Q85,"Y","N") -> N | AD85: =IF(J85<(TODAY()-60),"N","Y") -> Y | AE85: =_xlfn.MAXIFS(B:B,I:I,I85) -> 5 | AF85: =IF(AE85<5,"RTT/Casual",(IF(M85="TRUE","RTT/Casual",(IF(COUNTIF(I85,"*Team*"),"RTT/Casual",(IF(COUNTIF(I85,"*Double*"),"RTT/Casual","GT"))))))) -> GT | AG85: =O85&Q85 -> NighthauntHedonites of Slaanesh | AH85: =MONTH(J85) -> 7 | AI85: =((COUNTIFS(I:I,I85))/AE85)*2 -> 25.2 | AJ85: =VLOOKUP(I85,Battleplans!A:F,Matches!B85+1,FALSE) -> Jaws of Gallet
A86: 575332 | B86: 1 | C86: Christopher Gosselin | D86: Gary Keeler | E86: 1 | F86: 0 | G86: 16 | H86: 4 | I86: Age of Sigmar Grand Tournament- "Theatre of War" | J86: 2024-07-13T13:30:00 | K86: 2024-07-14T23:00:00 | L86: United States | M86: FALSE | N86: 2023 | O86: Lumineth Realm-lords | Q86: Hedonites of Slaanesh | R86: Seeker Cavalcade | U86: bcp | V86: =IFERROR((IF(SUMPRODUCT(MAX(ROW($C$2:$C85)*($C86=$C$2:$C85))-1)>SUMPRODUCT(MAX(ROW($D$2:$D85)*($C86=$D$2:$D85))-1),INDEX($X$2:$X85,SUMPRODUCT(MAX(ROW($C$2:$C85)*($C86=$C$2:$C85))-1)),INDEX($Y$2:$Y85,SUMPRODUCT(MAX(ROW($D$2:$D85)*($C86=$D$2:$D85))-1)))),_xlfn.IFNA(IF(VLOOKUP(C86,'30th June Rankings (Values)'!A:D,4,FALSE)>0,VLOOKUP(C86,'30th June Rankings (Values)'!A:D,4,FALSE),400),400)) -> 394.5505699 | W86: =IFERROR((IF(SUMPRODUCT(MAX(ROW($D$2:$D85)*($D86=$D$2:$D85))-1)>SUMPRODUCT(MAX(ROW($C$2:$C85)*($D86=$C$2:$C85))-1),INDEX($Y$2:$Y85,SUMPRODUCT(MAX(ROW($D$2:$D85)*($D86=$D$2:$D85))-1)),INDEX($X$2:$X85,SUMPRODUCT(MAX(ROW($C$2:$C85)*($D86=$C$2:$C85))-1)))),_xlfn.IFNA(IF(VLOOKUP(D86,'30th June Rankings (Values)'!A:D,4,FALSE)>0,VLOOKUP(D86,'30th June Rankings (Values)'!A:D,4,FALSE),400),400)) -> 387.578465 | X86: =20*(E86-(1/(1+(10^((W86-V86)/400)))))+V86 -> 404.3499235 | Y86: =20*(F86-(1/(1+(10^((V86-W86)/400)))))+W86 -> 377.7791114 | Z86: =C86&D86 -> Christopher GosselinGary Keeler | AA86: =VLOOKUP(L86,Countries!A:B,2,FALSE) -> USA | AB86: =IF(O86="","Y",(IF(Q86="","Y","N"))) -> N | AC86: =IF(O86=Q86,"Y","N") -> N | AD86: =IF(J86<(TODAY()-60),"N","Y") -> Y | AE86: =_xlfn.MAXIFS(B:B,I:I,I86) -> 5 | AF86: =IF(AE86<5,"RTT/Casual",(IF(M86="TRUE","RTT/Casual",(IF(COUNTIF(I86,"*Team*"),"RTT/Casual",(IF(COUNTIF(I86,"*Double*"),"RTT/Casual","GT"))))))) -> GT | AG86: =O86&Q86 -> Lumineth Realm-lordsHedonites of Slaanesh | AH86: =MONTH(J86) -> 7 | AI86: =((COUNTIFS(I:I,I86))/AE86)*2 -> 25.2 | AJ86: =VLOOKUP(I86,Battleplans!A:F,Matches!B86+1,FALSE) -> Jaws of Gallet
A87: 575359 | B87: 1 | C87: Jonathan Weaver | D87: Don Leuschner | E87: 1 | F87: 0 | G87: 11 | H87: 9 | I87: Age of Sigmar Grand Tournament- "Theatre of War" | J87: 2024-07-13T13:30:00 | K87: 2024-07-14T23:00:00 | L87: United States | M87: FALSE | N87: 2023 | Q87: Gloomspite Gitz | R87: Troggherd | U87: bcp | V87: =IFERROR((IF(SUMPRODUCT(MAX(ROW($C$2:$C86)*($C87=$C$2:$C86))-1)>SUMPRODUCT(MAX(ROW($D$2:$D86)*($C87=$D$2:$D86))-1),INDEX($X$2:$X86,SUMPRODUCT(MAX(ROW($C$2:$C86)*($C87=$C$2:$C86))-1)),INDEX($Y$2:$Y86,SUMPRODUCT(MAX(ROW($D$2:$D86)*($C87=$D$2:$D86))-1)))),_xlfn.IFNA(IF(VLOOKUP(C87,'30th June Rankings (Values)'!A:D,4,FALSE)>0,VLOOKUP(C87,'30th June Rankings (Values)'!A:D,4,FALSE),400),400)) -> 460.5042555 | W87: =IFERROR((IF(SUMPRODUCT(MAX(ROW($D$2:$D86)*($D87=$D$2:$D86))-1)>SUMPRODUCT(MAX(ROW($C$2:$C86)*($D87=$C$2:$C86))-1),INDEX($Y$2:$Y86,SUMPRODUCT(MAX(ROW($D$2:$D86)*($D87=$D$2:$D86))-1)),INDEX($X$2:$X86,SUMPRODUCT(MAX(ROW($C$2:$C86)*($D87=$C$2:$C86))-1)))),_xlfn.IFNA(IF(VLOOKUP(D87,'30th June Rankings (Values)'!A:D,4,FALSE)>0,VLOOKUP(D87,'30th June Rankings (Values)'!A:D,4,FALSE),400),400)) -> 308.7393866 | X87: =20*(E87-(1/(1+(10^((W87-V87)/400)))))+V87 -> 466.3942512 | Y87: =20*(F87-(1/(1+(10^((V87-W87)/400)))))+W87 -> 302.8493909 | Z87: =C87&D87 -> Jonathan WeaverDon Leuschner | AA87: =VLOOKUP(L87,Countries!A:B,2,FALSE) -> USA | AB87: =IF(O87="","Y",(IF(Q87="","Y","N"))) -> Y | AC87: =IF(O87=Q87,"Y","N") -> N | AD87: =IF(J87<(TODAY()-60),"N","Y") -> Y | AE87: =_xlfn.MAXIFS(B:B,I:I,I87) -> 5 | AF87: =IF(AE87<5,"RTT/Casual",(IF(M87="TRUE","RTT/Casual",(IF(COUNTIF(I87,"*Team*"),"RTT/Casual",(IF(COUNTIF(I87,"*Double*"),"RTT/Casual","GT"))))))) -> GT | AG87: =O87&Q87 -> Gloomspite Gitz | AH87: =MONTH(J87) -> 7 | AI87: =((COUNTIFS(I:I,I87))/AE87)*2 -> 25.2 | AJ87: =VLOOKUP(I87,Battleplans!A:F,Matches!B87+1,FALSE) -> Jaws of Gallet
A88: 575389 | B88: 1 | C88: Harry Isaksson | D88: Michael Giroux | E88: 1 | F88: 0 | G88: 15 | H88: 5 | I88: Age of Sigmar Grand Tournament- "Theatre of War" | J88: 2024-07-13T13:30:00 | K88: 2024-07-14T23:00:00 | L88: United States | M88: FALSE | N88: 2023 | O88: Seraphon | P88: Sunclaw Starhost | Q88: Blades of Khorne | R88: Blades of Khorne | U88: bcp | V88: =IFERROR((IF(SUMPRODUCT(MAX(ROW($C$2:$C87)*($C88=$C$2:$C87))-1)>SUMPRODUCT(MAX(ROW($D$2:$D87)*($C88=$D$2:$D87))-1),INDEX($X$2:$X87,SUMPRODUCT(MAX(ROW($C$2:$C87)*($C88=$C$2:$C87))-1)),INDEX($Y$2:$Y87,SUMPRODUCT(MAX(ROW($D$2:$D87)*($C88=$D$2:$D87))-1)))),_xlfn.IFNA(IF(VLOOKUP(C88,'30th June Rankings (Values)'!A:D,4,FALSE)>0,VLOOKUP(C88,'30th June Rankings (Values)'!A:D,4,FALSE),400),400)) -> 442.9988887 | W88: =IFERROR((IF(SUMPRODUCT(MAX(ROW($D$2:$D87)*($D88=$D$2:$D87))-1)>SUMPRODUCT(MAX(ROW($C$2:$C87)*($D88=$C$2:$C87))-1),INDEX($Y$2:$Y87,SUMPRODUCT(MAX(ROW($D$2:$D87)*($D88=$D$2:$D87))-1)),INDEX($X$2:$X87,SUMPRODUCT(MAX(ROW($C$2:$C87)*($D88=$C$2:$C87))-1)))),_xlfn.IFNA(IF(VLOOKUP(D88,'30th June Rankings (Values)'!A:D,4,FALSE)>0,VLOOKUP(D88,'30th June Rankings (Values)'!A:D,4,FALSE),400),400)) -> 363.6889381 | X88: =20*(E88-(1/(1+(10^((W88-V88)/400)))))+V88 -> 450.7550051 | Y88: =20*(F88-(1/(1+(10^((V88-W88)/400)))))+W88 -> 355.9328217 | Z88: =C88&D88 -> Harry IsakssonMichael Giroux | AA88: =VLOOKUP(L88,Countries!A:B,2,FALSE) -> USA | AB88: =IF(O88="","Y",(IF(Q88="","Y","N"))) -> N | AC88: =IF(O88=Q88,"Y","N") -> N | AD88: =IF(J88<(TODAY()-60),"N","Y") -> Y | AE88: =_xlfn.MAXIFS(B:B,I:I,I88) -> 5 | AF88: =IF(AE88<5,"RTT/Casual",(IF(M88="TRUE","RTT/Casual",(IF(COUNTIF(I88,"*Team*"),"RTT/Casual",(IF(COUNTIF(I88,"*Double*"),"RTT/Casual","GT"))))))) -> GT | AG88: =O88&Q88 -> SeraphonBlades of Khorne | AH88: =MONTH(J88) -> 7 | AI88: =((COUNTIFS(I:I,I88))/AE88)*2 -> 25.2 | AJ88: =VLOOKUP(I88,Battleplans!A:F,Matches!B88+1,FALSE) -> Jaws of Gallet
A89: 575410 | B89: 1 | C89: Andrew Hoffmann | D89: Andrew Martin | E89: 1 | F89: 0 | G89: 13 | H89: 7 | I89: Age of Sigmar Grand Tournament- "Theatre of War" | J89: 2024-07-13T13:30:00 | K89: 2024-07-14T23:00:00 | L89: United States | M89: FALSE | N89: 2023 | O89: Nighthaunt | P89: Death Stalkers | Q89: Beasts of Chaos | R89: Hungering Warherd | U89: bcp | V89: =IFERROR((IF(SUMPRODUCT(MAX(ROW($C$2:$C88)*($C89=$C$2:$C88))-1)>SUMPRODUCT(MAX(ROW($D$2:$D88)*($C89=$D$2:$D88))-1),INDEX($X$2:$X88,SUMPRODUCT(MAX(ROW($C$2:$C88)*($C89=$C$2:$C88))-1)),INDEX($Y$2:$Y88,SUMPRODUCT(MAX(ROW($D$2:$D88)*($C89=$D$2:$D88))-1)))),_xlfn.IFNA(IF(VLOOKUP(C89,'30th June Rankings (Values)'!A:D,4,FALSE)>0,VLOOKUP(C89,'30th June Rankings (Values)'!A:D,4,FALSE),400),400)) -> 414.2067526 | W89: =IFERROR((IF(SUMPRODUCT(MAX(ROW($D$2:$D88)*($D89=$D$2:$D88))-1)>SUMPRODUCT(MAX(ROW($C$2:$C88)*($D89=$C$2:$C88))-1),INDEX($Y$2:$Y88,SUMPRODUCT(MAX(ROW($D$2:$D88)*($D89=$D$2:$D88))-1)),INDEX($X$2:$X88,SUMPRODUCT(MAX(ROW($C$2:$C88)*($D89=$C$2:$C88))-1)))),_xlfn.IFNA(IF(VLOOKUP(D89,'30th June Rankings (Values)'!A:D,4,FALSE)>0,VLOOKUP(D89,'30th June Rankings (Values)'!A:D,4,FALSE),400),400)) -> 333.8033125 | X89: =20*(E89-(1/(1+(10^((W89-V89)/400)))))+V89 -> 421.9330017 | Y89: =20*(F89-(1/(1+(10^((V89-W89)/400)))))+W89 -> 326.0770635 | Z89: =C89&D89 -> Andrew HoffmannAndrew Martin | AA89: =VLOOKUP(L89,Countries!A:B,2,FALSE) -> USA | AB89: =IF(O89="","Y",(IF(Q89="","Y","N"))) -> N | AC89: =IF(O89=Q89,"Y","N") -> N | AD89: =IF(J89<(TODAY()-60),"N","Y") -> Y | AE89: =_xlfn.MAXIFS(B:B,I:I,I89) -> 5 | AF89: =IF(AE89<5,"RTT/Casual",(IF(M89="TRUE","RTT/Casual",(IF(COUNTIF(I89,"*Team*"),"RTT/Casual",(IF(COUNTIF(I89,"*Double*"),"RTT/Casual","GT"))))))) -> GT | AG89: =O89&Q89 -> NighthauntBeasts of Chaos | AH89: =MONTH(J89) -> 7 | AI89: =((COUNTIFS(I:I,I89))/AE89)*2 -> 25.2 | AJ89: =VLOOKUP(I89,Battleplans!A:F,Matches!B89+1,FALSE) -> Jaws of Gallet
A90: 575448 | B90: 2 | C90: Nik Greymaster | D90: Corry Wiggins | E90: 0 | F90: 1 | G90: 3 | H90: 17 | I90: Age of Sigmar Grand Tournament- "Theatre of War" | J90: 2024-07-13T13:30:00 | K90: 2024-07-14T23:00:00 | L90: United States | M90: FALSE | N90: 2023 | O90: Lumineth Realm-lords | P90: Alarith Temple | Q90: Slaves to Darkness | R90: Godswrath Warband | U90: bcp | V90: =IFERROR((IF(SUMPRODUCT(MAX(ROW($C$2:$C89)*($C90=$C$2:$C89))-1)>SUMPRODUCT(MAX(ROW($D$2:$D89)*($C90=$D$2:$D89))-1),INDEX($X$2:$X89,SUMPRODUCT(MAX(ROW($C$2:$C89)*($C90=$C$2:$C89))-1)),INDEX($Y$2:$Y89,SUMPRODUCT(MAX(ROW($D$2:$D89)*($C90=$D$2:$D89))-1)))),_xlfn.IFNA(IF(VLOOKUP(C90,'30th June Rankings (Values)'!A:D,4,FALSE)>0,VLOOKUP(C90,'30th June Rankings (Values)'!A:D,4,FALSE),400),400)) -> 410.5657643 | W90: =IFERROR((IF(SUMPRODUCT(MAX(ROW($D$2:$D89)*($D90=$D$2:$D89))-1)>SUMPRODUCT(MAX(ROW($C$2:$C89)*($D90=$C$2:$C89))-1),INDEX($Y$2:$Y89,SUMPRODUCT(MAX(ROW($D$2:$D89)*($D90=$D$2:$D89))-1)),INDEX($X$2:$X89,SUMPRODUCT(MAX(ROW($C$2:$C89)*($D90=$C$2:$C89))-1)))),_xlfn.IFNA(IF(VLOOKUP(D90,'30th June Rankings (Values)'!A:D,4,FALSE)>0,VLOOKUP(D90,'30th June Rankings (Values)'!A:D,4,FALSE),400),400)) -> 496.6027674 | X90: =20*(E90-(1/(1+(10^((W90-V90)/400)))))+V90 -> 402.9927011 | Y90: =20*(F90-(1/(1+(10^((V90-W90)/400)))))+W90 -> 504.1758306 | Z90: =C90&D90 -> Nik GreymasterCorry Wiggins | AA90: =VLOOKUP(L90,Countries!A:B,2,FALSE) -> USA | AB90: =IF(O90="","Y",(IF(Q90="","Y","N"))) -> N | AC90: =IF(O90=Q90,"Y","N") -> N | AD90: =IF(J90<(TODAY()-60),"N","Y") -> Y | AE90: =_xlfn.MAXIFS(B:B,I:I,I90) -> 5 | AF90: =IF(AE90<5,"RTT/Casual",(IF(M90="TRUE","RTT/Casual",(IF(COUNTIF(I90,"*Team*"),"RTT/Casual",(IF(COUNTIF(I90,"*Double*"),"RTT/Casual","GT"))))))) -> GT | AG90: =O90&Q90 -> Lumineth Realm-lordsSlaves to Darkness | AH90: =MONTH(J90) -> 7 | AI90: =((COUNTIFS(I:I,I90))/AE90)*2 -> 25.2 | AJ90: =VLOOKUP(I90,Battleplans!A:F,Matches!B90+1,FALSE) -> The Vice
A91: 575469 | B91: 2 | C91: Scott Dielman | D91: Don Leuschner | E91: 0.5 | F91: 0.5 | G91: 11 | H91: 11 | I91: Age of Sigmar Grand Tournament- "Theatre of War" | J91: 2024-07-13T13:30:00 | K91: 2024-07-14T23:00:00 | L91: United States | M91: FALSE | N91: 2023 | O91: Seraphon | P91: Shadowstrike Starhost | Q91: Gloomspite Gitz | R91: Troggherd | U91: bcp | V91: =IFERROR((IF(SUMPRODUCT(MAX(ROW($C$2:$C90)*($C91=$C$2:$C90))-1)>SUMPRODUCT(MAX(ROW($D$2:$D90)*($C91=$D$2:$D90))-1),INDEX($X$2:$X90,SUMPRODUCT(MAX(ROW($C$2:$C90)*($C91=$C$2:$C90))-1)),INDEX($Y$2:$Y90,SUMPRODUCT(MAX(ROW($D$2:$D90)*($C91=$D$2:$D90))-1)))),_xlfn.IFNA(IF(VLOOKUP(C91,'30th June Rankings (Values)'!A:D,4,FALSE)>0,VLOOKUP(C91,'30th June Rankings (Values)'!A:D,4,FALSE),400),400)) -> 447.0661707 | W91: =IFERROR((IF(SUMPRODUCT(MAX(ROW($D$2:$D90)*($D91=$D$2:$D90))-1)>SUMPRODUCT(MAX(ROW($C$2:$C90)*($D91=$C$2:$C90))-1),INDEX($Y$2:$Y90,SUMPRODUCT(MAX(ROW($D$2:$D90)*($D91=$D$2:$D90))-1)),INDEX($X$2:$X90,SUMPRODUCT(MAX(ROW($C$2:$C90)*($D91=$C$2:$C90))-1)))),_xlfn.IFNA(IF(VLOOKUP(D91,'30th June Rankings (Values)'!A:D,4,FALSE)>0,VLOOKUP(D91,'30th June Rankings (Values)'!A:D,4,FALSE),400),400)) -> 302.8493909 | X91: =20*(E91-(1/(1+(10^((W91-V91)/400)))))+V91 -> 443.1383172 | Y91: =20*(F91-(1/(1+(10^((V91-W91)/400)))))+W91 -> 306.7772444 | Z91: =C91&D91 -> Scott DielmanDon Leuschner | AA91: =VLOOKUP(L91,Countries!A:B,2,FALSE) -> USA | AB91: =IF(O91="","Y",(IF(Q91="","Y","N"))) -> N | AC91: =IF(O91=Q91,"Y","N") -> N | AD91: =IF(J91<(TODAY()-60),"N","Y") -> Y | AE91: =_xlfn.MAXIFS(B:B,I:I,I91) -> 5 | AF91: =IF(AE91<5,"RTT/Casual",(IF(M91="TRUE","RTT/Casual",(IF(COUNTIF(I91,"*Team*"),"RTT/Casual",(IF(COUNTIF(I91,"*Double*"),"RTT/Casual","GT"))))))) -> GT | AG91: =O91&Q91 -> SeraphonGloomspite Gitz | AH91: =MONTH(J91) -> 7 | AI91: =((COUNTIFS(I:I,I91))/AE91)*2 -> 25.2 | AJ91: =VLOOKUP(I91,Battleplans!A:F,Matches!B91+1,FALSE) -> The Vice
A92: 575498 | B92: 2 | C92: David Manley | D92: Nick R | E92: 1 | F92: 0 | G92: 13 | H92: 7 | I92: Age of Sigmar Grand Tournament- "Theatre of War" | J92: 2024-07-13T13:30:00 | K92: 2024-07-14T23:00:00 | L92: United States | M92: FALSE | N92: 2023 | O92: Sons of Behemat | P92: Breaker Tribe | Q92: Nighthaunt | R92: Death Stalkers | U92: bcp | V92: =IFERROR((IF(SUMPRODUCT(MAX(ROW($C$2:$C91)*($C92=$C$2:$C91))-1)>SUMPRODUCT(MAX(ROW($D$2:$D91)*($C92=$D$2:$D91))-1),INDEX($X$2:$X91,SUMPRODUCT(MAX(ROW($C$2:$C91)*($C92=$C$2:$C91))-1)),INDEX($Y$2:$Y91,SUMPRODUCT(MAX(ROW($D$2:$D91)*($C92=$D$2:$D91))-1)))),_xlfn.IFNA(IF(VLOOKUP(C92,'30th June Rankings (Values)'!A:D,4,FALSE)>0,VLOOKUP(C92,'30th June Rankings (Values)'!A:D,4,FALSE),400),400)) -> 361.7238268 | W92: =IFERROR((IF(SUMPRODUCT(MAX(ROW($D$2:$D91)*($D92=$D$2:$D91))-1)>SUMPRODUCT(MAX(ROW($C$2:$C91)*($D92=$C$2:$C91))-1),INDEX($Y$2:$Y91,SUMPRODUCT(MAX(ROW($D$2:$D91)*($D92=$D$2:$D91))-1)),INDEX($X$2:$X91,SUMPRODUCT(MAX(ROW($C$2:$C91)*($D92=$C$2:$C91))-1)))),_xlfn.IFNA(IF(VLOOKUP(D92,'30th June Rankings (Values)'!A:D,4,FALSE)>0,VLOOKUP(D92,'30th June Rankings (Values)'!A:D,4,FALSE),400),400)) -> 370.6777353 | X92: =20*(E92-(1/(1+(10^((W92-V92)/400)))))+V92 -> 371.9814839 | Y92: =20*(F92-(1/(1+(10^((V92-W92)/400)))))+W92 -> 360.4200781 | Z92: =C92&D92 -> David ManleyNick R | AA92: =VLOOKUP(L92,Countries!A:B,2,FALSE) -> USA | AB92: =IF(O92="","Y",(IF(Q92="","Y","N"))) -> N | AC92: =IF(O92=Q92,"Y","N") -> N | AD92: =IF(J92<(TODAY()-60),"N","Y") -> Y | AE92: =_xlfn.MAXIFS(B:B,I:I,I92) -> 5 | AF92: =IF(AE92<5,"RTT/Casual",(IF(M92="TRUE","RTT/Casual",(IF(COUNTIF(I92,"*Team*"),"RTT/Casual",(IF(COUNTIF(I92,"*Double*"),"RTT/Casual","GT"))))))) -> GT | AG92: =O92&Q92 -> Sons of BehematNighthaunt | AH92: =MONTH(J92) -> 7 | AI92: =((COUNTIFS(I:I,I92))/AE92)*2 -> 25.2 | AJ92: =VLOOKUP(I92,Battleplans!A:F,Matches!B92+1,FALSE) -> The Vice
A93: 575529 | B93: 2 | C93: Adrian Ybarra | D93: Andrew Hoffmann | E93: 1 | F93: 0 | G93: 15 | H93: 5 | I93: Age of Sigmar Grand Tournament- "Theatre of War" | J93: 2024-07-13T13:30:00 | K93: 2024-07-14T23:00:00 | L93: United States | M93: FALSE | N93: 2023 | O93: Seraphon | P93: Sunclaw Starhost | Q93: Nighthaunt | R93: Death Stalkers | U93: bcp | V93: =IFERROR((IF(SUMPRODUCT(MAX(ROW($C$2:$C92)*($C93=$C$2:$C92))-1)>SUMPRODUCT(MAX(ROW($D$2:$D92)*($C93=$D$2:$D92))-1),INDEX($X$2:$X92,SUMPRODUCT(MAX(ROW($C$2:$C92)*($C93=$C$2:$C92))-1)),INDEX($Y$2:$Y92,SUMPRODUCT(MAX(ROW($D$2:$D92)*($C93=$D$2:$D92))-1)))),_xlfn.IFNA(IF(VLOOKUP(C93,'30th June Rankings (Values)'!A:D,4,FALSE)>0,VLOOKUP(C93,'30th June Rankings (Values)'!A:D,4,FALSE),400),400)) -> 500.3893234 | W93: =IFERROR((IF(SUMPRODUCT(MAX(ROW($D$2:$D92)*($D93=$D$2:$D92))-1)>SUMPRODUCT(MAX(ROW($C$2:$C92)*($D93=$C$2:$C92))-1),INDEX($Y$2:$Y92,SUMPRODUCT(MAX(ROW($D$2:$D92)*($D93=$D$2:$D92))-1)),INDEX($X$2:$X92,SUMPRODUCT(MAX(ROW($C$2:$C92)*($D93=$C$2:$C92))-1)))),_xlfn.IFNA(IF(VLOOKUP(D93,'30th June Rankings (Values)'!A:D,4,FALSE)>0,VLOOKUP(D93,'30th June Rankings (Values)'!A:D,4,FALSE),400),400)) -> 421.9330017 | X93: =20*(E93-(1/(1+(10^((W93-V93)/400)))))+V93 -> 508.1687849 | Y93: =20*(F93-(1/(1+(10^((V93-W93)/400)))))+W93 -> 414.1535402 | Z93: =C93&D93 -> Adrian YbarraAndrew Hoffmann | AA93: =VLOOKUP(L93,Countries!A:B,2,FALSE) -> USA | AB93: =IF(O93="","Y",(IF(Q93="","Y","N"))) -> N | AC93: =IF(O93=Q93,"Y","N") -> N | AD93: =IF(J93<(TODAY()-60),"N","Y") -> Y | AE93: =_xlfn.MAXIFS(B:B,I:I,I93) -> 5 | AF93: =IF(AE93<5,"RTT/Casual",(IF(M93="TRUE","RTT/Casual",(IF(COUNTIF(I93,"*Team*"),"RTT/Casual",(IF(COUNTIF(I93,"*Double*"),"RTT/Casual","GT"))))))) -> GT | AG93: =O93&Q93 -> SeraphonNighthaunt | AH93: =MONTH(J93) -> 7 | AI93: =((COUNTIFS(I:I,I93))/AE93)*2 -> 25.2 | AJ93: =VLOOKUP(I93,Battleplans!A:F,Matches!B93+1,FALSE) -> The Vice
A94: 575555 | B94: 2 | C94: Andrew Martin | D94: Alex Frederick | E94: 1 | F94: 0 | G94: 14 | H94: 6 | I94: Age of Sigmar Grand Tournament- "Theatre of War" | J94: 2024-07-13T13:30:00 | K94: 2024-07-14T23:00:00 | L94: United States | M94: FALSE | N94: 2023 | O94: Beasts of Chaos | P94: Hungering Warherd | Q94: Stormcast Eternals | R94: Prayers of the Stormhosts | U94: bcp | V94: =IFERROR((IF(SUMPRODUCT(MAX(ROW($C$2:$C93)*($C94=$C$2:$C93))-1)>SUMPRODUCT(MAX(ROW($D$2:$D93)*($C94=$D$2:$D93))-1),INDEX($X$2:$X93,SUMPRODUCT(MAX(ROW($C$2:$C93)*($C94=$C$2:$C93))-1)),INDEX($Y$2:$Y93,SUMPRODUCT(MAX(ROW($D$2:$D93)*($C94=$D$2:$D93))-1)))),_xlfn.IFNA(IF(VLOOKUP(C94,'30th June Rankings (Values)'!A:D,4,FALSE)>0,VLOOKUP(C94,'30th June Rankings (Values)'!A:D,4,FALSE),400),400)) -> 326.0770635 | W94: =IFERROR((IF(SUMPRODUCT(MAX(ROW($D$2:$D93)*($D94=$D$2:$D93))-1)>SUMPRODUCT(MAX(ROW($C$2:$C93)*($D94=$C$2:$C93))-1),INDEX($Y$2:$Y93,SUMPRODUCT(MAX(ROW($D$2:$D93)*($D94=$D$2:$D93))-1)),INDEX($X$2:$X93,SUMPRODUCT(MAX(ROW($C$2:$C93)*($D94=$C$2:$C93))-1)))),_xlfn.IFNA(IF(VLOOKUP(D94,'30th June Rankings (Values)'!A:D,4,FALSE)>0,VLOOKUP(D94,'30th June Rankings (Values)'!A:D,4,FALSE),400),400)) -> 382.7035779 | X94: =20*(E94-(1/(1+(10^((W94-V94)/400)))))+V94 -> 337.6926256 | Y94: =20*(F94-(1/(1+(10^((V94-W94)/400)))))+W94 -> 371.0880157 | Z94: =C94&D94 -> Andrew MartinAlex Frederick | AA94: =VLOOKUP(L94,Countries!A:B,2,FALSE) -> USA | AB94: =IF(O94="","Y",(IF(Q94="","Y","N"))) -> N | AC94: =IF(O94=Q94,"Y","N") -> N | AD94: =IF(J94<(TODAY()-60),"N","Y") -> Y | AE94: =_xlfn.MAXIFS(B:B,I:I,I94) -> 5 | AF94: =IF(AE94<5,"RTT/Casual",(IF(M94="TRUE","RTT/Casual",(IF(COUNTIF(I94,"*Team*"),"RTT/Casual",(IF(COUNTIF(I94,"*Double*"),"RTT/Casual","GT"))))))) -> GT | AG94: =O94&Q94 -> Beasts of ChaosStormcast Eternals | AH94: =MONTH(J94) -> 7 | AI94: =((COUNTIFS(I:I,I94))/AE94)*2 -> 25.2 | AJ94: =VLOOKUP(I94,Battleplans!A:F,Matches!B94+1,FALSE) -> The Vice
A95: 575578 | B95: 2 | C95: Parker Smith | D95: Bill Keeler | E95: 1 | F95: 0 | G95: 14 | H95: 6 | I95: Age of Sigmar Grand Tournament- "Theatre of War" | J95: 2024-07-13T13:30:00 | K95: 2024-07-14T23:00:00 | L95: United States | M95: FALSE | N95: 2023 | Q95: Ironjawz | R95: Ironfist | U95: bcp | V95: =IFERROR((IF(SUMPRODUCT(MAX(ROW($C$2:$C94)*($C95=$C$2:$C94))-1)>SUMPRODUCT(MAX(ROW($D$2:$D94)*($C95=$D$2:$D94))-1),INDEX($X$2:$X94,SUMPRODUCT(MAX(ROW($C$2:$C94)*($C95=$C$2:$C94))-1)),INDEX($Y$2:$Y94,SUMPRODUCT(MAX(ROW($D$2:$D94)*($C95=$D$2:$D94))-1)))),_xlfn.IFNA(IF(VLOOKUP(C95,'30th June Rankings (Values)'!A:D,4,FALSE)>0,VLOOKUP(C95,'30th June Rankings (Values)'!A:D,4,FALSE),400),400)) -> 522.6409984 | W95: =IFERROR((IF(SUMPRODUCT(MAX(ROW($D$2:$D94)*($D95=$D$2:$D94))-1)>SUMPRODUCT(MAX(ROW($C$2:$C94)*($D95=$C$2:$C94))-1),INDEX($Y$2:$Y94,SUMPRODUCT(MAX(ROW($D$2:$D94)*($D95=$D$2:$D94))-1)),INDEX($X$2:$X94,SUMPRODUCT(MAX(ROW($C$2:$C94)*($D95=$C$2:$C94))-1)))),_xlfn.IFNA(IF(VLOOKUP(D95,'30th June Rankings (Values)'!A:D,4,FALSE)>0,VLOOKUP(D95,'30th June Rankings (Values)'!A:D,4,FALSE),400),400)) -> 517.7480365 | X95: =20*(E95-(1/(1+(10^((W95-V95)/400)))))+V95 -> 532.5001769 | Y95: =20*(F95-(1/(1+(10^((V95-W95)/400)))))+W95 -> 507.888858 | Z95: =C95&D95 -> Parker SmithBill Keeler | AA95: =VLOOKUP(L95,Countries!A:B,2,FALSE) -> USA | AB95: =IF(O95="","Y",(IF(Q95="","Y","N"))) -> Y | AC95: =IF(O95=Q95,"Y","N") -> N | AD95: =IF(J95<(TODAY()-60),"N","Y") -> Y | AE95: =_xlfn.MAXIFS(B:B,I:I,I95) -> 5 | AF95: =IF(AE95<5,"RTT/Casual",(IF(M95="TRUE","RTT/Casual",(IF(COUNTIF(I95,"*Team*"),"RTT/Casual",(IF(COUNTIF(I95,"*Double*"),"RTT/Casual","GT"))))))) -> GT | AG95: =O95&Q95 -> Ironjawz | AH95: =MONTH(J95) -> 7 | AI95: =((COUNTIFS(I:I,I95))/AE95)*2 -> 25.2 | AJ95: =VLOOKUP(I95,Battleplans!A:F,Matches!B95+1,FALSE) -> The Vice
A96: 575604 | B96: 2 | C96: Caroline Kimbles | D96: Gary Keeler | E96: 0 | F96: 1 | G96: 9 | H96: 11 | I96: Age of Sigmar Grand Tournament- "Theatre of War" | J96: 2024-07-13T13:30:00 | K96: 2024-07-14T23:00:00 | L96: United States | M96: FALSE | N96: 2023 | O96: Gloomspite Gitz | P96: Troggherd | Q96: Hedonites of Slaanesh | R96: Seeker Cavalcade | U96: bcp | V96: =IFERROR((IF(SUMPRODUCT(MAX(ROW($C$2:$C95)*($C96=$C$2:$C95))-1)>SUMPRODUCT(MAX(ROW($D$2:$D95)*($C96=$D$2:$D95))-1),INDEX($X$2:$X95,SUMPRODUCT(MAX(ROW($C$2:$C95)*($C96=$C$2:$C95))-1)),INDEX($Y$2:$Y95,SUMPRODUCT(MAX(ROW($D$2:$D95)*($C96=$D$2:$D95))-1)))),_xlfn.IFNA(IF(VLOOKUP(C96,'30th June Rankings (Values)'!A:D,4,FALSE)>0,VLOOKUP(C96,'30th June Rankings (Values)'!A:D,4,FALSE),400),400)) -> 372.4070499 | W96: =IFERROR((IF(SUMPRODUCT(MAX(ROW($D$2:$D95)*($D96=$D$2:$D95))-1)>SUMPRODUCT(MAX(ROW($C$2:$C95)*($D96=$C$2:$C95))-1),INDEX($Y$2:$Y95,SUMPRODUCT(MAX(ROW($D$2:$D95)*($D96=$D$2:$D95))-1)),INDEX($X$2:$X95,SUMPRODUCT(MAX(ROW($C$2:$C95)*($D96=$C$2:$C95))-1)))),_xlfn.IFNA(IF(VLOOKUP(D96,'30th June Rankings (Values)'!A:D,4,FALSE)>0,VLOOKUP(D96,'30th June Rankings (Values)'!A:D,4,FALSE),400),400)) -> 377.7791114 | X96: =20*(E96-(1/(1+(10^((W96-V96)/400)))))+V96 -> 362.5616579 | Y96: =20*(F96-(1/(1+(10^((V96-W96)/400)))))+W96 -> 387.6245033 | Z96: =C96&D96 -> Caroline KimblesGary Keeler | AA96: =VLOOKUP(L96,Countries!A:B,2,FALSE) -> USA | AB96: =IF(O96="","Y",(IF(Q96="","Y","N"))) -> N | AC96: =IF(O96=Q96,"Y","N") -> N | AD96: =IF(J96<(TODAY()-60),"N","Y") -> Y | AE96: =_xlfn.MAXIFS(B:B,I:I,I96) -> 5 | AF96: =IF(AE96<5,"RTT/Casual",(IF(M96="TRUE","RTT/Casual",(IF(COUNTIF(I96,"*Team*"),"RTT/Casual",(IF(COUNTIF(I96,"*Double*"),"RTT/Casual","GT"))))))) -> GT | AG96: =O96&Q96 -> Gloomspite GitzHedonites of Slaanesh | AH96: =MONTH(J96) -> 7 | AI96: =((COUNTIFS(I:I,I96))/AE96)*2 -> 25.2 | AJ96: =VLOOKUP(I96,Battleplans!A:F,Matches!B96+1,FALSE) -> The Vice
A97: 575628 | B97: 2 | C97: Adam Schank | D97: Rye Anderson | E97: 0 | F97: 1 | G97: 3 | H97: 17 | I97: Age of Sigmar Grand Tournament- "Theatre of War" | J97: 2024-07-13T13:30:00 | K97: 2024-07-14T23:00:00 | L97: United States | M97: FALSE | N97: 2023 | O97: Hedonites of Slaanesh | P97: Seeker Cavalcade | Q97: Soulblight Gravelords | R97: Tide of Bones & Blades | U97: bcp | V97: =IFERROR((IF(SUMPRODUCT(MAX(ROW($C$2:$C96)*($C97=$C$2:$C96))-1)>SUMPRODUCT(MAX(ROW($D$2:$D96)*($C97=$D$2:$D96))-1),INDEX($X$2:$X96,SUMPRODUCT(MAX(ROW($C$2:$C96)*($C97=$C$2:$C96))-1)),INDEX($Y$2:$Y96,SUMPRODUCT(MAX(ROW($D$2:$D96)*($C97=$D$2:$D96))-1)))),_xlfn.IFNA(IF(VLOOKUP(C97,'30th June Rankings (Values)'!A:D,4,FALSE)>0,VLOOKUP(C97,'30th June Rankings (Values)'!A:D,4,FALSE),400),400)) -> 412.7153636 | W97: =IFERROR((IF(SUMPRODUCT(MAX(ROW($D$2:$D96)*($D97=$D$2:$D96))-1)>SUMPRODUCT(MAX(ROW($C$2:$C96)*($D97=$C$2:$C96))-1),INDEX($Y$2:$Y96,SUMPRODUCT(MAX(ROW($D$2:$D96)*($D97=$D$2:$D96))-1)),INDEX($X$2:$X96,SUMPRODUCT(MAX(ROW($C$2:$C96)*($D97=$C$2:$C96))-1)))),_xlfn.IFNA(IF(VLOOKUP(D97,'30th June Rankings (Values)'!A:D,4,FALSE)>0,VLOOKUP(D97,'30th June Rankings (Values)'!A:D,4,FALSE),400),400)) -> 557.0583238 | X97: =20*(E97-(1/(1+(10^((W97-V97)/400)))))+V97 -> 406.6462882 | Y97: =20*(F97-(1/(1+(10^((V97-W97)/400)))))+W97 -> 563.1273993 | Z97: =C97&D97 -> Adam SchankRye Anderson | AA97: =VLOOKUP(L97,Countries!A:B,2,FALSE) -> USA | AB97: =IF(O97="","Y",(IF(Q97="","Y","N"))) -> N | AC97: =IF(O97=Q97,"Y","N") -> N | AD97: =IF(J97<(TODAY()-60),"N","Y") -> Y | AE97: =_xlfn.MAXIFS(B:B,I:I,I97) -> 5 | AF97: =IF(AE97<5,"RTT/Casual",(IF(M97="TRUE","RTT/Casual",(IF(COUNTIF(I97,"*Team*"),"RTT/Casual",(IF(COUNTIF(I97,"*Double*"),"RTT/Casual","GT"))))))) -> GT | AG97: =O97&Q97 -> Hedonites of SlaaneshSoulblight Gravelords | AH97: =MONTH(J97) -> 7 | AI97: =((COUNTIFS(I:I,I97))/AE97)*2 -> 25.2 | AJ97: =VLOOKUP(I97,Battleplans!A:F,Matches!B97+1,FALSE) -> The Vice
A98: 575652 | B98: 2 | C98: Josh Kale | D98: Alex Shaffer | E98: 1 | F98: 0 | G98: 13 | H98: 7 | I98: Age of Sigmar Grand Tournament- "Theatre of War" | J98: 2024-07-13T13:30:00 | K98: 2024-07-14T23:00:00 | L98: United States | M98: FALSE | N98: 2023 | Q98: Maggotkin of Nurgle | R98: Affliction Cyst | U98: bcp | V98: =IFERROR((IF(SUMPRODUCT(MAX(ROW($C$2:$C97)*($C98=$C$2:$C97))-1)>SUMPRODUCT(MAX(ROW($D$2:$D97)*($C98=$D$2:$D97))-1),INDEX($X$2:$X97,SUMPRODUCT(MAX(ROW($C$2:$C97)*($C98=$C$2:$C97))-1)),INDEX($Y$2:$Y97,SUMPRODUCT(MAX(ROW($D$2:$D97)*($C98=$D$2:$D97))-1)))),_xlfn.IFNA(IF(VLOOKUP(C98,'30th June Rankings (Values)'!A:D,4,FALSE)>0,VLOOKUP(C98,'30th June Rankings (Values)'!A:D,4,FALSE),400),400)) -> 382.8956834 | W98: =IFERROR((IF(SUMPRODUCT(MAX(ROW($D$2:$D97)*($D98=$D$2:$D97))-1)>SUMPRODUCT(MAX(ROW($C$2:$C97)*($D98=$C$2:$C97))-1),INDEX($Y$2:$Y97,SUMPRODUCT(MAX(ROW($D$2:$D97)*($D98=$D$2:$D97))-1)),INDEX($X$2:$X97,SUMPRODUCT(MAX(ROW($C$2:$C97)*($D98=$C$2:$C97))-1)))),_xlfn.IFNA(IF(VLOOKUP(D98,'30th June Rankings (Values)'!A:D,4,FALSE)>0,VLOOKUP(D98,'30th June Rankings (Values)'!A:D,4,FALSE),400),400)) -> 396.5711461 | X98: =20*(E98-(1/(1+(10^((W98-V98)/400)))))+V98 -> 393.2890917 | Y98: =20*(F98-(1/(1+(10^((V98-W98)/400)))))+W98 -> 386.1777378 | Z98: =C98&D98 -> Josh KaleAlex Shaffer | AA98: =VLOOKUP(L98,Countries!A:B,2,FALSE) -> USA | AB98: =IF(O98="","Y",(IF(Q98="","Y","N"))) -> Y | AC98: =IF(O98=Q98,"Y","N") -> N | AD98: =IF(J98<(TODAY()-60),"N","Y") -> Y | AE98: =_xlfn.MAXIFS(B:B,I:I,I98) -> 5 | AF98: =IF(AE98<5,"RTT/Casual",(IF(M98="TRUE","RTT/Casual",(IF(COUNTIF(I98,"*Team*"),"RTT/Casual",(IF(COUNTIF(I98,"*Double*"),"RTT/Casual","GT"))))))) -> GT | AG98: =O98&Q98 -> Maggotkin of Nurgle | AH98: =MONTH(J98) -> 7 | AI98: =((COUNTIFS(I:I,I98))/AE98)*2 -> 25.2 | AJ98: =VLOOKUP(I98,Battleplans!A:F,Matches!B98+1,FALSE) -> The Vice
A99: 575681 | B99: 2 | C99: Nick Rau | D99: Vlad Kokorev | E99: 1 | F99: 0 | G99: 17 | H99: 3 | I99: Age of Sigmar Grand Tournament- "Theatre of War" | J99: 2024-07-13T13:30:00 | K99: 2024-07-14T23:00:00 | L99: United States | M99: FALSE | N99: 2023 | O99: Lumineth Realm-lords | P99: Vanari Battlehost | Q99: Slaves to Darkness | R99: Godswrath Warband | U99: bcp | V99: =IFERROR((IF(SUMPRODUCT(MAX(ROW($C$2:$C98)*($C99=$C$2:$C98))-1)>SUMPRODUCT(MAX(ROW($D$2:$D98)*($C99=$D$2:$D98))-1),INDEX($X$2:$X98,SUMPRODUCT(MAX(ROW($C$2:$C98)*($C99=$C$2:$C98))-1)),INDEX($Y$2:$Y98,SUMPRODUCT(MAX(ROW($D$2:$D98)*($C99=$D$2:$D98))-1)))),_xlfn.IFNA(IF(VLOOKUP(C99,'30th June Rankings (Values)'!A:D,4,FALSE)>0,VLOOKUP(C99,'30th June Rankings (Values)'!A:D,4,FALSE),400),400)) -> 506.6263329 | W99: =IFERROR((IF(SUMPRODUCT(MAX(ROW($D$2:$D98)*($D99=$D$2:$D98))-1)>SUMPRODUCT(MAX(ROW($C$2:$C98)*($D99=$C$2:$C98))-1),INDEX($Y$2:$Y98,SUMPRODUCT(MAX(ROW($D$2:$D98)*($D99=$D$2:$D98))-1)),INDEX($X$2:$X98,SUMPRODUCT(MAX(ROW($C$2:$C98)*($D99=$C$2:$C98))-1)))),_xlfn.IFNA(IF(VLOOKUP(D99,'30th June Rankings (Values)'!A:D,4,FALSE)>0,VLOOKUP(D99,'30th June Rankings (Values)'!A:D,4,FALSE),400),400)) -> 409.1119146 | X99: =20*(E99-(1/(1+(10^((W99-V99)/400)))))+V99 -> 513.891091 | Y99: =20*(F99-(1/(1+(10^((V99-W99)/400)))))+W99 -> 401.8471565 | Z99: =C99&D99 -> Nick RauVlad Kokorev | AA99: =VLOOKUP(L99,Countries!A:B,2,FALSE) -> USA | AB99: =IF(O99="","Y",(IF(Q99="","Y","N"))) -> N | AC99: =IF(O99=Q99,"Y","N") -> N | AD99: =IF(J99<(TODAY()-60),"N","Y") -> Y | AE99: =_xlfn.MAXIFS(B:B,I:I,I99) -> 5 | AF99: =IF(AE99<5,"RTT/Casual",(IF(M99="TRUE","RTT/Casual",(IF(COUNTIF(I99,"*Team*"),"RTT/Casual",(IF(COUNTIF(I99,"*Double*"),"RTT/Casual","GT"))))))) -> GT | AG99: =O99&Q99 -> Lumineth Realm-lordsSlaves to Darkness | AH99: =MONTH(J99) -> 7 | AI99: =((COUNTIFS(I:I,I99))/AE99)*2 -> 25.2 | AJ99: =VLOOKUP(I99,Battleplans!A:F,Matches!B99+1,FALSE) -> The Vice
A100: 575708 | B100: 2 | C100: Zak Frederick | D100: Christopher Gosselin | E100: 0 | F100: 1 | G100: 1 | H100: 19 | I100: Age of Sigmar Grand Tournament- "Theatre of War" | J100: 2024-07-13T13:30:00 | K100: 2024-07-14T23:00:00 | L100: United States | M100: FALSE | N100: 2023 | O100: Ironjawz | Q100: Lumineth Realm-lords | U100: bcp | V100: =IFERROR((IF(SUMPRODUCT(MAX(ROW($C$2:$C99)*($C100=$C$2:$C99))-1)>SUMPRODUCT(MAX(ROW($D$2:$D99)*($C100=$D$2:$D99))-1),INDEX($X$2:$X99,SUMPRODUCT(MAX(ROW($C$2:$C99)*($C100=$C$2:$C99))-1)),INDEX($Y$2:$Y99,SUMPRODUCT(MAX(ROW($D$2:$D99)*($C100=$D$2:$D99))-1)))),_xlfn.IFNA(IF(VLOOKUP(C100,'30th June Rankings (Values)'!A:D,4,FALSE)>0,VLOOKUP(C100,'30th June Rankings (Values)'!A:D,4,FALSE),400),400)) -> 502.5943714 | W100: =IFERROR((IF(SUMPRODUCT(MAX(ROW($D$2:$D99)*($D100=$D$2:$D99))-1)>SUMPRODUCT(MAX(ROW($C$2:$C99)*($D100=$C$2:$C99))-1),INDEX($Y$2:$Y99,SUMPRODUCT(MAX(ROW($D$2:$D99)*($D100=$D$2:$D99))-1)),INDEX($X$2:$X99,SUMPRODUCT(MAX(ROW($C$2:$C99)*($D100=$C$2:$C99))-1)))),_xlfn.IFNA(IF(VLOOKUP(D100,'30th June Rankings (Values)'!A:D,4,FALSE)>0,VLOOKUP(D100,'30th June Rankings (Values)'!A:D,4,FALSE),400),400)) -> 404.3499235 | X100: =20*(E100-(1/(1+(10^((W100-V100)/400)))))+V100 -> 489.8397007 | Y100: =20*(F100-(1/(1+(10^((V100-W100)/400)))))+W100 -> 417.1045942 | Z100: =C100&D100 -> Zak FrederickChristopher Gosselin | AA100: =VLOOKUP(L100,Countries!A:B,2,FALSE) -> USA | AB100: =IF(O100="","Y",(IF(Q100="","Y","N"))) -> N | AC100: =IF(O100=Q100,"Y","N") -> N | AD100: =IF(J100<(TODAY()-60),"N","Y") -> Y | AE100: =_xlfn.MAXIFS(B:B,I:I,I100) -> 5 | AF100: =IF(AE100<5,"RTT/Casual",(IF(M100="TRUE","RTT/Casual",(IF(COUNTIF(I100,"*Team*"),"RTT/Casual",(IF(COUNTIF(I100,"*Double*"),"RTT/Casual","GT"))))))) -> GT | AG100: =O100&Q100 -> IronjawzLumineth Realm-lords | AH100: =MONTH(J100) -> 7 | AI100: =((COUNTIFS(I:I,I100))/AE100)*2 -> 25.2 | AJ100: =VLOOKUP(I100,Battleplans!A:F,Matches!B100+1,FALSE) -> The Vice
A101: 575732 | B101: 2 | C101: Michael Giroux | D101: Charlie Mahoney | E101: 0.5 | F101: 0.5 | G101: 11 | H101: 11 | I101: Age of Sigmar Grand Tournament- "Theatre of War" | J101: 2024-07-13T13:30:00 | K101: 2024-07-14T23:00:00 | L101: United States | M101: FALSE | N101: 2023 | O101: Blades of Khorne | P101: Blades of Khorne | Q101: Fyreslayers | R101: Warrior Kinband | U101: bcp | V101: =IFERROR((IF(SUMPRODUCT(MAX(ROW($C$2:$C100)*($C101=$C$2:$C100))-1)>SUMPRODUCT(MAX(ROW($D$2:$D100)*($C101=$D$2:$D100))-1),INDEX($X$2:$X100,SUMPRODUCT(MAX(ROW($C$2:$C100)*($C101=$C$2:$C100))-1)),INDEX($Y$2:$Y100,SUMPRODUCT(MAX(ROW($D$2:$D100)*($C101=$D$2:$D100))-1)))),_xlfn.IFNA(IF(VLOOKUP(C101,'30th June Rankings (Values)'!A:D,4,FALSE)>0,VLOOKUP(C101,'30th June Rankings (Values)'!A:D,4,FALSE),400),400)) -> 355.9328217 | W101: =IFERROR((IF(SUMPRODUCT(MAX(ROW($D$2:$D100)*($D101=$D$2:$D100))-1)>SUMPRODUCT(MAX(ROW($C$2:$C100)*($D101=$C$2:$C100))-1),INDEX($Y$2:$Y100,SUMPRODUCT(MAX(ROW($D$2:$D100)*($D101=$D$2:$D100))-1)),INDEX($X$2:$X100,SUMPRODUCT(MAX(ROW($C$2:$C100)*($D101=$C$2:$C100))-1)))),_xlfn.IFNA(IF(VLOOKUP(D101,'30th June Rankings (Values)'!A:D,4,FALSE)>0,VLOOKUP(D101,'30th June Rankings (Values)'!A:D,4,FALSE),400),400)) -> 330.6512036 | X101: =20*(E101-(1/(1+(10^((W101-V101)/400)))))+V101 -> 355.2064399 | Y101: =20*(F101-(1/(1+(10^((V101-W101)/400)))))+W101 -> 331.3775855 | Z101: =C101&D101 -> Michael GirouxCharlie Mahoney | AA101: =VLOOKUP(L101,Countries!A:B,2,FALSE) -> USA | AB101: =IF(O101="","Y",(IF(Q101="","Y","N"))) -> N | AC101: =IF(O101=Q101,"Y","N") -> N | AD101: =IF(J101<(TODAY()-60),"N","Y") -> Y | AE101: =_xlfn.MAXIFS(B:B,I:I,I101) -> 5 | AF101: =IF(AE101<5,"RTT/Casual",(IF(M101="TRUE","RTT/Casual",(IF(COUNTIF(I101,"*Team*"),"RTT/Casual",(IF(COUNTIF(I101,"*Double*"),"RTT/Casual","GT"))))))) -> GT | AG101: =O101&Q101 -> Blades of KhorneFyreslayers | AH101: =MONTH(J101) -> 7 | AI101: =((COUNTIFS(I:I,I101))/AE101)*2 -> 25.2 | AJ101: =VLOOKUP(I101,Battleplans!A:F,Matches!B101+1,FALSE) -> The Vice
A102: 575758 | B102: 2 | C102: Jonathan Weaver | D102: Harry Isaksson | E102: 0 | F102: 1 | G102: 4 | H102: 16 | I102: Age of Sigmar Grand Tournament- "Theatre of War" | J102: 2024-07-13T13:30:00 | K102: 2024-07-14T23:00:00 | L102: United States | M102: FALSE | N102: 2023 | Q102: Seraphon | R102: Sunclaw Starhost | U102: bcp | V102: =IFERROR((IF(SUMPRODUCT(MAX(ROW($C$2:$C101)*($C102=$C$2:$C101))-1)>SUMPRODUCT(MAX(ROW($D$2:$D101)*($C102=$D$2:$D101))-1),INDEX($X$2:$X101,SUMPRODUCT(MAX(ROW($C$2:$C101)*($C102=$C$2:$C101))-1)),INDEX($Y$2:$Y101,SUMPRODUCT(MAX(ROW($D$2:$D101)*($C102=$D$2:$D101))-1)))),_xlfn.IFNA(IF(VLOOKUP(C102,'30th June Rankings (Values)'!A:D,4,FALSE)>0,VLOOKUP(C102,'30th June Rankings (Values)'!A:D,4,FALSE),400),400)) -> 466.3942512 | W102: =IFERROR((IF(SUMPRODUCT(MAX(ROW($D$2:$D101)*($D102=$D$2:$D101))-1)>SUMPRODUCT(MAX(ROW($C$2:$C101)*($D102=$C$2:$C101))-1),INDEX($Y$2:$Y101,SUMPRODUCT(MAX(ROW($D$2:$D101)*($D102=$D$2:$D101))-1)),INDEX($X$2:$X101,SUMPRODUCT(MAX(ROW($C$2:$C101)*($D102=$C$2:$C101))-1)))),_xlfn.IFNA(IF(VLOOKUP(D102,'30th June Rankings (Values)'!A:D,4,FALSE)>0,VLOOKUP(D102,'30th June Rankings (Values)'!A:D,4,FALSE),400),400)) -> 450.7550051 | X102: =20*(E102-(1/(1+(10^((W102-V102)/400)))))+V102 -> 455.9444213 | Y102: =20*(F102-(1/(1+(10^((V102-W102)/400)))))+W102 -> 461.204835 | Z102: =C102&D102 -> Jonathan WeaverHarry Isaksson | AA102: =VLOOKUP(L102,Countries!A:B,2,FALSE) -> USA | AB102: =IF(O102="","Y",(IF(Q102="","Y","N"))) -> Y | AC102: =IF(O102=Q102,"Y","N") -> N | AD102: =IF(J102<(TODAY()-60),"N","Y") -> Y | AE102: =_xlfn.MAXIFS(B:B,I:I,I102) -> 5 | AF102: =IF(AE102<5,"RTT/Casual",(IF(M102="TRUE","RTT/Casual",(IF(COUNTIF(I102,"*Team*"),"RTT/Casual",(IF(COUNTIF(I102,"*Double*"),"RTT/Casual","GT"))))))) -> GT | AG102: =O102&Q102 -> Seraphon | AH102: =MONTH(J102) -> 7 | AI102: =((COUNTIFS(I:I,I102))/AE102)*2 -> 25.2 | AJ102: =VLOOKUP(I102,Battleplans!A:F,Matches!B102+1,FALSE) -> The Vice
A103: 575799 | B103: 3 | C103: Christopher Gosselin | D103: Adrian Ybarra | E103: 0 | F103: 1 | G103: 4 | H103: 16 | I103: Age of Sigmar Grand Tournament- "Theatre of War" | J103: 2024-07-13T13:30:00 | K103: 2024-07-14T23:00:00 | L103: United States | M103: FALSE | N103: 2023 | O103: Lumineth Realm-lords | Q103: Seraphon | R103: Sunclaw Starhost | U103: bcp | V103: =IFERROR((IF(SUMPRODUCT(MAX(ROW($C$2:$C102)*($C103=$C$2:$C102))-1)>SUMPRODUCT(MAX(ROW($D$2:$D102)*($C103=$D$2:$D102))-1),INDEX($X$2:$X102,SUMPRODUCT(MAX(ROW($C$2:$C102)*($C103=$C$2:$C102))-1)),INDEX($Y$2:$Y102,SUMPRODUCT(MAX(ROW($D$2:$D102)*($C103=$D$2:$D102))-1)))),_xlfn.IFNA(IF(VLOOKUP(C103,'30th June Rankings (Values)'!A:D,4,FALSE)>0,VLOOKUP(C103,'30th June Rankings (Values)'!A:D,4,FALSE),400),400)) -> 417.1045942 | W103: =IFERROR((IF(SUMPRODUCT(MAX(ROW($D$2:$D102)*($D103=$D$2:$D102))-1)>SUMPRODUCT(MAX(ROW($C$2:$C102)*($D103=$C$2:$C102))-1),INDEX($Y$2:$Y102,SUMPRODUCT(MAX(ROW($D$2:$D102)*($D103=$D$2:$D102))-1)),INDEX($X$2:$X102,SUMPRODUCT(MAX(ROW($C$2:$C102)*($D103=$C$2:$C102))-1)))),_xlfn.IFNA(IF(VLOOKUP(D103,'30th June Rankings (Values)'!A:D,4,FALSE)>0,VLOOKUP(D103,'30th June Rankings (Values)'!A:D,4,FALSE),400),400)) -> 508.1687849 | X103: =20*(E103-(1/(1+(10^((W103-V103)/400)))))+V103 -> 409.6672166 | Y103: =20*(F103-(1/(1+(10^((V103-W103)/400)))))+W103 -> 515.6061625 | Z103: =C103&D103 -> Christopher GosselinAdrian Ybarra | AA103: =VLOOKUP(L103,Countries!A:B,2,FALSE) -> USA | AB103: =IF(O103="","Y",(IF(Q103="","Y","N"))) -> N | AC103: =IF(O103=Q103,"Y","N") -> N | AD103: =IF(J103<(TODAY()-60),"N","Y") -> Y | AE103: =_xlfn.MAXIFS(B:B,I:I,I103) -> 5 | AF103: =IF(AE103<5,"RTT/Casual",(IF(M103="TRUE","RTT/Casual",(IF(COUNTIF(I103,"*Team*"),"RTT/Casual",(IF(COUNTIF(I103,"*Double*"),"RTT/Casual","GT"))))))) -> GT | AG103: =O103&Q103 -> Lumineth Realm-lordsSeraphon | AH103: =MONTH(J103) -> 7 | AI103: =((COUNTIFS(I:I,I103))/AE103)*2 -> 25.2 | AJ103: =VLOOKUP(I103,Battleplans!A:F,Matches!B103+1,FALSE) -> Shifting Objectives
A104: 575829 | B104: 3 | C104: Caroline Kimbles | D104: Vlad Kokorev | E104: 0 | F104: 1 | G104: 5 | H104: 15 | I104: Age of Sigmar Grand Tournament- "Theatre of War" | J104: 2024-07-13T13:30:00 | K104: 2024-07-14T23:00:00 | L104: United States | M104: FALSE | N104: 2023 | O104: Gloomspite Gitz | P104: Troggherd | Q104: Slaves to Darkness | R104: Godswrath Warband | U104: bcp | V104: =IFERROR((IF(SUMPRODUCT(MAX(ROW($C$2:$C103)*($C104=$C$2:$C103))-1)>SUMPRODUCT(MAX(ROW($D$2:$D103)*($C104=$D$2:$D103))-1),INDEX($X$2:$X103,SUMPRODUCT(MAX(ROW($C$2:$C103)*($C104=$C$2:$C103))-1)),INDEX($Y$2:$Y103,SUMPRODUCT(MAX(ROW($D$2:$D103)*($C104=$D$2:$D103))-1)))),_xlfn.IFNA(IF(VLOOKUP(C104,'30th June Rankings (Values)'!A:D,4,FALSE)>0,VLOOKUP(C104,'30th June Rankings (Values)'!A:D,4,FALSE),400),400)) -> 362.5616579 | W104: =IFERROR((IF(SUMPRODUCT(MAX(ROW($D$2:$D103)*($D104=$D$2:$D103))-1)>SUMPRODUCT(MAX(ROW($C$2:$C103)*($D104=$C$2:$C103))-1),INDEX($Y$2:$Y103,SUMPRODUCT(MAX(ROW($D$2:$D103)*($D104=$D$2:$D103))-1)),INDEX($X$2:$X103,SUMPRODUCT(MAX(ROW($C$2:$C103)*($D104=$C$2:$C103))-1)))),_xlfn.IFNA(IF(VLOOKUP(D104,'30th June Rankings (Values)'!A:D,4,FALSE)>0,VLOOKUP(D104,'30th June Rankings (Values)'!A:D,4,FALSE),400),400)) -> 401.8471565 | X104: =20*(E104-(1/(1+(10^((W104-V104)/400)))))+V104 -> 353.687591 | Y104: =20*(F104-(1/(1+(10^((V104-W104)/400)))))+W104 -> 410.7212234 | Z104: =C104&D104 -> Caroline KimblesVlad Kokorev | AA104: =VLOOKUP(L104,Countries!A:B,2,FALSE) -> USA | AB104: =IF(O104="","Y",(IF(Q104="","Y","N"))) -> N | AC104: =IF(O104=Q104,"Y","N") -> N | AD104: =IF(J104<(TODAY()-60),"N","Y") -> Y | AE104: =_xlfn.MAXIFS(B:B,I:I,I104) -> 5 | AF104: =IF(AE104<5,"RTT/Casual",(IF(M104="TRUE","RTT/Casual",(IF(COUNTIF(I104,"*Team*"),"RTT/Casual",(IF(COUNTIF(I104,"*Double*"),"RTT/Casual","GT"))))))) -> GT | AG104: =O104&Q104 -> Gloomspite GitzSlaves to Darkness | AH104: =MONTH(J104) -> 7 | AI104: =((COUNTIFS(I:I,I104))/AE104)*2 -> 25.2 | AJ104: =VLOOKUP(I104,Battleplans!A:F,Matches!B104+1,FALSE) -> Shifting Objectives
A105: 575856 | B105: 3 | C105: Harry Isaksson | D105: Adam Schank | E105: 0 | F105: 1 | G105: 1 | H105: 19 | I105: Age of Sigmar Grand Tournament- "Theatre of War" | J105: 2024-07-13T13:30:00 | K105: 2024-07-14T23:00:00 | L105: United States | M105: FALSE | N105: 2023 | O105: Seraphon | P105: Sunclaw Starhost | Q105: Hedonites of Slaanesh | R105: Seeker Cavalcade | U105: bcp | V105: =IFERROR((IF(SUMPRODUCT(MAX(ROW($C$2:$C104)*($C105=$C$2:$C104))-1)>SUMPRODUCT(MAX(ROW($D$2:$D104)*($C105=$D$2:$D104))-1),INDEX($X$2:$X104,SUMPRODUCT(MAX(ROW($C$2:$C104)*($C105=$C$2:$C104))-1)),INDEX($Y$2:$Y104,SUMPRODUCT(MAX(ROW($D$2:$D104)*($C105=$D$2:$D104))-1)))),_xlfn.IFNA(IF(VLOOKUP(C105,'30th June Rankings (Values)'!A:D,4,FALSE)>0,VLOOKUP(C105,'30th June Rankings (Values)'!A:D,4,FALSE),400),400)) -> 461.204835 | W105: =IFERROR((IF(SUMPRODUCT(MAX(ROW($D$2:$D104)*($D105=$D$2:$D104))-1)>SUMPRODUCT(MAX(ROW($C$2:$C104)*($D105=$C$2:$C104))-1),INDEX($Y$2:$Y104,SUMPRODUCT(MAX(ROW($D$2:$D104)*($D105=$D$2:$D104))-1)),INDEX($X$2:$X104,SUMPRODUCT(MAX(ROW($C$2:$C104)*($D105=$C$2:$C104))-1)))),_xlfn.IFNA(IF(VLOOKUP(D105,'30th June Rankings (Values)'!A:D,4,FALSE)>0,VLOOKUP(D105,'30th June Rankings (Values)'!A:D,4,FALSE),400),400)) -> 406.6462882 | X105: =20*(E105-(1/(1+(10^((W105-V105)/400)))))+V105 -> 449.6472953 | Y105: =20*(F105-(1/(1+(10^((V105-W105)/400)))))+W105 -> 418.2038279 | Z105: =C105&D105 -> Harry IsakssonAdam Schank | AA105: =VLOOKUP(L105,Countries!A:B,2,FALSE) -> USA | AB105: =IF(O105="","Y",(IF(Q105="","Y","N"))) -> N | AC105: =IF(O105=Q105,"Y","N") -> N | AD105: =IF(J105<(TODAY()-60),"N","Y") -> Y | AE105: =_xlfn.MAXIFS(B:B,I:I,I105) -> 5 | AF105: =IF(AE105<5,"RTT/Casual",(IF(M105="TRUE","RTT/Casual",(IF(COUNTIF(I105,"*Team*"),"RTT/Casual",(IF(COUNTIF(I105,"*Double*"),"RTT/Casual","GT"))))))) -> GT | AG105: =O105&Q105 -> SeraphonHedonites of Slaanesh | AH105: =MONTH(J105) -> 7 | AI105: =((COUNTIFS(I:I,I105))/AE105)*2 -> 25.2 | AJ105: =VLOOKUP(I105,Battleplans!A:F,Matches!B105+1,FALSE) -> Shifting Objectives
A106: 575881 | B106: 3 | C106: Michael Giroux | D106: Nick R | E106: 0 | F106: 1 | G106: 8 | H106: 12 | I106: Age of Sigmar Grand Tournament- "Theatre of War" | J106: 2024-07-13T13:30:00 | K106: 2024-07-14T23:00:00 | L106: United States | M106: FALSE | N106: 2023 | O106: Blades of Khorne | P106: Blades of Khorne | Q106: Nighthaunt | R106: Death Stalkers | U106: bcp | V106: =IFERROR((IF(SUMPRODUCT(MAX(ROW($C$2:$C105)*($C106=$C$2:$C105))-1)>SUMPRODUCT(MAX(ROW($D$2:$D105)*($C106=$D$2:$D105))-1),INDEX($X$2:$X105,SUMPRODUCT(MAX(ROW($C$2:$C105)*($C106=$C$2:$C105))-1)),INDEX($Y$2:$Y105,SUMPRODUCT(MAX(ROW($D$2:$D105)*($C106=$D$2:$D105))-1)))),_xlfn.IFNA(IF(VLOOKUP(C106,'30th June Rankings (Values)'!A:D,4,FALSE)>0,VLOOKUP(C106,'30th June Rankings (Values)'!A:D,4,FALSE),400),400)) -> 355.2064399 | W106: =IFERROR((IF(SUMPRODUCT(MAX(ROW($D$2:$D105)*($D106=$D$2:$D105))-1)>SUMPRODUCT(MAX(ROW($C$2:$C105)*($D106=$C$2:$C105))-1),INDEX($Y$2:$Y105,SUMPRODUCT(MAX(ROW($D$2:$D105)*($D106=$D$2:$D105))-1)),INDEX($X$2:$X105,SUMPRODUCT(MAX(ROW($C$2:$C105)*($D106=$C$2:$C105))-1)))),_xlfn.IFNA(IF(VLOOKUP(D106,'30th June Rankings (Values)'!A:D,4,FALSE)>0,VLOOKUP(D106,'30th June Rankings (Values)'!A:D,4,FALSE),400),400)) -> 360.4200781 | X106: =20*(E106-(1/(1+(10^((W106-V106)/400)))))+V106 -> 345.3564892 | Y106: =20*(F106-(1/(1+(10^((V106-W106)/400)))))+W106 -> 370.2700288 | Z106: =C106&D106 -> Michael GirouxNick R | AA106: =VLOOKUP(L106,Countries!A:B,2,FALSE) -> USA | AB106: =IF(O106="","Y",(IF(Q106="","Y","N"))) -> N | AC106: =IF(O106=Q106,"Y","N") -> N | AD106: =IF(J106<(TODAY()-60),"N","Y") -> Y | AE106: =_xlfn.MAXIFS(B:B,I:I,I106) -> 5 | AF106: =IF(AE106<5,"RTT/Casual",(IF(M106="TRUE","RTT/Casual",(IF(COUNTIF(I106,"*Team*"),"RTT/Casual",(IF(COUNTIF(I106,"*Double*"),"RTT/Casual","GT"))))))) -> GT | AG106: =O106&Q106 -> Blades of KhorneNighthaunt | AH106: =MONTH(J106) -> 7 | AI106: =((COUNTIFS(I:I,I106))/AE106)*2 -> 25.2 | AJ106: =VLOOKUP(I106,Battleplans!A:F,Matches!B106+1,FALSE) -> Shifting Objectives
A107: 575900 | B107: 3 | C107: Andrew Martin | D107: Jonathan Weaver | E107: 0 | F107: 1 | G107: 5 | H107: 15 | I107: Age of Sigmar Grand Tournament- "Theatre of War" | J107: 2024-07-13T13:30:00 | K107: 2024-07-14T23:00:00 | L107: United States | M107: FALSE | N107: 2023 | O107: Beasts of Chaos | P107: Hungering Warherd | U107: bcp | V107: =IFERROR((IF(SUMPRODUCT(MAX(ROW($C$2:$C106)*($C107=$C$2:$C106))-1)>SUMPRODUCT(MAX(ROW($D$2:$D106)*($C107=$D$2:$D106))-1),INDEX($X$2:$X106,SUMPRODUCT(MAX(ROW($C$2:$C106)*($C107=$C$2:$C106))-1)),INDEX($Y$2:$Y106,SUMPRODUCT(MAX(ROW($D$2:$D106)*($C107=$D$2:$D106))-1)))),_xlfn.IFNA(IF(VLOOKUP(C107,'30th June Rankings (Values)'!A:D,4,FALSE)>0,VLOOKUP(C107,'30th June Rankings (Values)'!A:D,4,FALSE),400),400)) -> 337.6926256 | W107: =IFERROR((IF(SUMPRODUCT(MAX(ROW($D$2:$D106)*($D107=$D$2:$D106))-1)>SUMPRODUCT(MAX(ROW($C$2:$C106)*($D107=$C$2:$C106))-1),INDEX($Y$2:$Y106,SUMPRODUCT(MAX(ROW($D$2:$D106)*($D107=$D$2:$D106))-1)),INDEX($X$2:$X106,SUMPRODUCT(MAX(ROW($C$2:$C106)*($D107=$C$2:$C106))-1)))),_xlfn.IFNA(IF(VLOOKUP(D107,'30th June Rankings (Values)'!A:D,4,FALSE)>0,VLOOKUP(D107,'30th June Rankings (Values)'!A:D,4,FALSE),400),400)) -> 455.9444213 | X107: =20*(E107-(1/(1+(10^((W107-V107)/400)))))+V107 -> 330.9705777 | Y107: =20*(F107-(1/(1+(10^((V107-W107)/400)))))+W107 -> 462.6664692 | Z107: =C107&D107 -> Andrew MartinJonathan Weaver | AA107: =VLOOKUP(L107,Countries!A:B,2,FALSE) -> USA | AB107: =IF(O107="","Y",(IF(Q107="","Y","N"))) -> Y | AC107: =IF(O107=Q107,"Y","N") -> N | AD107: =IF(J107<(TODAY()-60),"N","Y") -> Y | AE107: =_xlfn.MAXIFS(B:B,I:I,I107) -> 5 | AF107: =IF(AE107<5,"RTT/Casual",(IF(M107="TRUE","RTT/Casual",(IF(COUNTIF(I107,"*Team*"),"RTT/Casual",(IF(COUNTIF(I107,"*Double*"),"RTT/Casual","GT"))))))) -> GT | AG107: =O107&Q107 -> Beasts of Chaos | AH107: =MONTH(J107) -> 7 | AI107: =((COUNTIFS(I:I,I107))/AE107)*2 -> 25.2 | AJ107: =VLOOKUP(I107,Battleplans!A:F,Matches!B107+1,FALSE) -> Shifting Objectives
A108: 575932 | B108: 3 | C108: David Manley | D108: Don Leuschner | E108: 1 | F108: 0 | G108: 13 | H108: 7 | I108: Age of Sigmar Grand Tournament- "Theatre of War" | J108: 2024-07-13T13:30:00 | K108: 2024-07-14T23:00:00 | L108: United States | M108: FALSE | N108: 2023 | O108: Sons of Behemat | P108: Breaker Tribe | Q108: Gloomspite Gitz | R108: Troggherd | U108: bcp | V108: =IFERROR((IF(SUMPRODUCT(MAX(ROW($C$2:$C107)*($C108=$C$2:$C107))-1)>SUMPRODUCT(MAX(ROW($D$2:$D107)*($C108=$D$2:$D107))-1),INDEX($X$2:$X107,SUMPRODUCT(MAX(ROW($C$2:$C107)*($C108=$C$2:$C107))-1)),INDEX($Y$2:$Y107,SUMPRODUCT(MAX(ROW($D$2:$D107)*($C108=$D$2:$D107))-1)))),_xlfn.IFNA(IF(VLOOKUP(C108,'30th June Rankings (Values)'!A:D,4,FALSE)>0,VLOOKUP(C108,'30th June Rankings (Values)'!A:D,4,FALSE),400),400)) -> 371.9814839 | W108: =IFERROR((IF(SUMPRODUCT(MAX(ROW($D$2:$D107)*($D108=$D$2:$D107))-1)>SUMPRODUCT(MAX(ROW($C$2:$C107)*($D108=$C$2:$C107))-1),INDEX($Y$2:$Y107,SUMPRODUCT(MAX(ROW($D$2:$D107)*($D108=$D$2:$D107))-1)),INDEX($X$2:$X107,SUMPRODUCT(MAX(ROW($C$2:$C107)*($D108=$C$2:$C107))-1)))),_xlfn.IFNA(IF(VLOOKUP(D108,'30th June Rankings (Values)'!A:D,4,FALSE)>0,VLOOKUP(D108,'30th June Rankings (Values)'!A:D,4,FALSE),400),400)) -> 306.7772444 | X108: =20*(E108-(1/(1+(10^((W108-V108)/400)))))+V108 -> 380.1264825 | Y108: =20*(F108-(1/(1+(10^((V108-W108)/400)))))+W108 -> 298.6322459 | Z108: =C108&D108 -> David ManleyDon Leuschner | AA108: =VLOOKUP(L108,Countries!A:B,2,FALSE) -> USA | AB108: =IF(O108="","Y",(IF(Q108="","Y","N"))) -> N | AC108: =IF(O108=Q108,"Y","N") -> N | AD108: =IF(J108<(TODAY()-60),"N","Y") -> Y | AE108: =_xlfn.MAXIFS(B:B,I:I,I108) -> 5 | AF108: =IF(AE108<5,"RTT/Casual",(IF(M108="TRUE","RTT/Casual",(IF(COUNTIF(I108,"*Team*"),"RTT/Casual",(IF(COUNTIF(I108,"*Double*"),"RTT/Casual","GT"))))))) -> GT | AG108: =O108&Q108 -> Sons of BehematGloomspite Gitz | AH108: =MONTH(J108) -> 7 | AI108: =((COUNTIFS(I:I,I108))/AE108)*2 -> 25.2 | AJ108: =VLOOKUP(I108,Battleplans!A:F,Matches!B108+1,FALSE) -> Shifting Objectives
A109: 575961 | B109: 3 | C109: Corry Wiggins | D109: Josh Kale | E109: 1 | F109: 0 | G109: 20 | H109: 0 | I109: Age of Sigmar Grand Tournament- "Theatre of War" | J109: 2024-07-13T13:30:00 | K109: 2024-07-14T23:00:00 | L109: United States | M109: FALSE | N109: 2023 | O109: Slaves to Darkness | P109: Godswrath Warband | U109: bcp | V109: =IFERROR((IF(SUMPRODUCT(MAX(ROW($C$2:$C108)*($C109=$C$2:$C108))-1)>SUMPRODUCT(MAX(ROW($D$2:$D108)*($C109=$D$2:$D108))-1),INDEX($X$2:$X108,SUMPRODUCT(MAX(ROW($C$2:$C108)*($C109=$C$2:$C108))-1)),INDEX($Y$2:$Y108,SUMPRODUCT(MAX(ROW($D$2:$D108)*($C109=$D$2:$D108))-1)))),_xlfn.IFNA(IF(VLOOKUP(C109,'30th June Rankings (Values)'!A:D,4,FALSE)>0,VLOOKUP(C109,'30th June Rankings (Values)'!A:D,4,FALSE),400),400)) -> 504.1758306 | W109: =IFERROR((IF(SUMPRODUCT(MAX(ROW($D$2:$D108)*($D109=$D$2:$D108))-1)>SUMPRODUCT(MAX(ROW($C$2:$C108)*($D109=$C$2:$C108))-1),INDEX($Y$2:$Y108,SUMPRODUCT(MAX(ROW($D$2:$D108)*($D109=$D$2:$D108))-1)),INDEX($X$2:$X108,SUMPRODUCT(MAX(ROW($C$2:$C108)*($D109=$C$2:$C108))-1)))),_xlfn.IFNA(IF(VLOOKUP(D109,'30th June Rankings (Values)'!A:D,4,FALSE)>0,VLOOKUP(D109,'30th June Rankings (Values)'!A:D,4,FALSE),400),400)) -> 393.2890917 | X109: =20*(E109-(1/(1+(10^((W109-V109)/400)))))+V109 -> 511.0883795 | Y109: =20*(F109-(1/(1+(10^((V109-W109)/400)))))+W109 -> 386.3765427 | Z109: =C109&D109 -> Corry WigginsJosh Kale | AA109: =VLOOKUP(L109,Countries!A:B,2,FALSE) -> USA | AB109: =IF(O109="","Y",(IF(Q109="","Y","N"))) -> Y | AC109: =IF(O109=Q109,"Y","N") -> N | AD109: =IF(J109<(TODAY()-60),"N","Y") -> Y | AE109: =_xlfn.MAXIFS(B:B,I:I,I109) -> 5 | AF109: =IF(AE109<5,"RTT/Casual",(IF(M109="TRUE","RTT/Casual",(IF(COUNTIF(I109,"*Team*"),"RTT/Casual",(IF(COUNTIF(I109,"*Double*"),"RTT/Casual","GT"))))))) -> GT | AG109: =O109&Q109 -> Slaves to Darkness | AH109: =MONTH(J109) -> 7 | AI109: =((COUNTIFS(I:I,I109))/AE109)*2 -> 25.2 | AJ109: =VLOOKUP(I109,Battleplans!A:F,Matches!B109+1,FALSE) -> Shifting Objectives
A110: 575974 | B110: 3 | C110: Parker Smith | D110: Alex Shaffer | E110: 0 | F110: 1 | G110: 8 | H110: 12 | I110: Age of Sigmar Grand Tournament- "Theatre of War" | J110: 2024-07-13T13:30:00 | K110: 2024-07-14T23:00:00 | L110: United States | M110: FALSE | N110: 2023 | Q110: Maggotkin of Nurgle | R110: Affliction Cyst | U110: bcp | V110: =IFERROR((IF(SUMPRODUCT(MAX(ROW($C$2:$C109)*($C110=$C$2:$C109))-1)>SUMPRODUCT(MAX(ROW($D$2:$D109)*($C110=$D$2:$D109))-1),INDEX($X$2:$X109,SUMPRODUCT(MAX(ROW($C$2:$C109)*($C110=$C$2:$C109))-1)),INDEX($Y$2:$Y109,SUMPRODUCT(MAX(ROW($D$2:$D109)*($C110=$D$2:$D109))-1)))),_xlfn.IFNA(IF(VLOOKUP(C110,'30th June Rankings (Values)'!A:D,4,FALSE)>0,VLOOKUP(C110,'30th June Rankings (Values)'!A:D,4,FALSE),400),400)) -> 532.5001769 | W110: =IFERROR((IF(SUMPRODUCT(MAX(ROW($D$2:$D109)*($D110=$D$2:$D109))-1)>SUMPRODUCT(MAX(ROW($C$2:$C109)*($D110=$C$2:$C109))-1),INDEX($Y$2:$Y109,SUMPRODUCT(MAX(ROW($D$2:$D109)*($D110=$D$2:$D109))-1)),INDEX($X$2:$X109,SUMPRODUCT(MAX(ROW($C$2:$C109)*($D110=$C$2:$C109))-1)))),_xlfn.IFNA(IF(VLOOKUP(D110,'30th June Rankings (Values)'!A:D,4,FALSE)>0,VLOOKUP(D110,'30th June Rankings (Values)'!A:D,4,FALSE),400),400)) -> 386.1777378 | X110: =20*(E110-(1/(1+(10^((W110-V110)/400)))))+V110 -> 518.5211903 | Y110: =20*(F110-(1/(1+(10^((V110-W110)/400)))))+W110 -> 400.1567244 | Z110: =C110&D110 -> Parker SmithAlex Shaffer | AA110: =VLOOKUP(L110,Countries!A:B,2,FALSE) -> USA | AB110: =IF(O110="","Y",(IF(Q110="","Y","N"))) -> Y | AC110: =IF(O110=Q110,"Y","N") -> N | AD110: =IF(J110<(TODAY()-60),"N","Y") -> Y | AE110: =_xlfn.MAXIFS(B:B,I:I,I110) -> 5 | AF110: =IF(AE110<5,"RTT/Casual",(IF(M110="TRUE","RTT/Casual",(IF(COUNTIF(I110,"*Team*"),"RTT/Casual",(IF(COUNTIF(I110,"*Double*"),"RTT/Casual","GT"))))))) -> GT | AG110: =O110&Q110 -> Maggotkin of Nurgle | AH110: =MONTH(J110) -> 7 | AI110: =((COUNTIFS(I:I,I110))/AE110)*2 -> 25.2 | AJ110: =VLOOKUP(I110,Battleplans!A:F,Matches!B110+1,FALSE) -> Shifting Objectives
A111: 576004 | B111: 3 | C111: Charlie Mahoney | D111: Scott Dielman | E111: 0 | F111: 1 | G111: 5 | H111: 15 | I111: Age of Sigmar Grand Tournament- "Theatre of War" | J111: 2024-07-13T13:30:00 | K111: 2024-07-14T23:00:00 | L111: United States | M111: FALSE | N111: 2023 | O111: Fyreslayers | P111: Warrior Kinband | Q111: Seraphon | R111: Shadowstrike Starhost | U111: bcp | V111: =IFERROR((IF(SUMPRODUCT(MAX(ROW($C$2:$C110)*($C111=$C$2:$C110))-1)>SUMPRODUCT(MAX(ROW($D$2:$D110)*($C111=$D$2:$D110))-1),INDEX($X$2:$X110,SUMPRODUCT(MAX(ROW($C$2:$C110)*($C111=$C$2:$C110))-1)),INDEX($Y$2:$Y110,SUMPRODUCT(MAX(ROW($D$2:$D110)*($C111=$D$2:$D110))-1)))),_xlfn.IFNA(IF(VLOOKUP(C111,'30th June Rankings (Values)'!A:D,4,FALSE)>0,VLOOKUP(C111,'30th June Rankings (Values)'!A:D,4,FALSE),400),400)) -> 331.3775855 | W111: =IFERROR((IF(SUMPRODUCT(MAX(ROW($D$2:$D110)*($D111=$D$2:$D110))-1)>SUMPRODUCT(MAX(ROW($C$2:$C110)*($D111=$C$2:$C110))-1),INDEX($Y$2:$Y110,SUMPRODUCT(MAX(ROW($D$2:$D110)*($D111=$D$2:$D110))-1)),INDEX($X$2:$X110,SUMPRODUCT(MAX(ROW($C$2:$C110)*($D111=$C$2:$C110))-1)))),_xlfn.IFNA(IF(VLOOKUP(D111,'30th June Rankings (Values)'!A:D,4,FALSE)>0,VLOOKUP(D111,'30th June Rankings (Values)'!A:D,4,FALSE),400),400)) -> 443.1383172 | X111: =20*(E111-(1/(1+(10^((W111-V111)/400)))))+V111 -> 324.4877764 | Y111: =20*(F111-(1/(1+(10^((V111-W111)/400)))))+W111 -> 450.0281263 | Z111: =C111&D111 -> Charlie MahoneyScott Dielman | AA111: =VLOOKUP(L111,Countries!A:B,2,FALSE) -> USA | AB111: =IF(O111="","Y",(IF(Q111="","Y","N"))) -> N | AC111: =IF(O111=Q111,"Y","N") -> N | AD111: =IF(J111<(TODAY()-60),"N","Y") -> Y | AE111: =_xlfn.MAXIFS(B:B,I:I,I111) -> 5 | AF111: =IF(AE111<5,"RTT/Casual",(IF(M111="TRUE","RTT/Casual",(IF(COUNTIF(I111,"*Team*"),"RTT/Casual",(IF(COUNTIF(I111,"*Double*"),"RTT/Casual","GT"))))))) -> GT | AG111: =O111&Q111 -> FyreslayersSeraphon | AH111: =MONTH(J111) -> 7 | AI111: =((COUNTIFS(I:I,I111))/AE111)*2 -> 25.2 | AJ111: =VLOOKUP(I111,Battleplans!A:F,Matches!B111+1,FALSE) -> Shifting Objectives
A112: 576035 | B112: 3 | C112: Zak Frederick | D112: Gary Keeler | E112: 0 | F112: 1 | G112: 9 | H112: 11 | I112: Age of Sigmar Grand Tournament- "Theatre of War" | J112: 2024-07-13T13:30:00 | K112: 2024-07-14T23:00:00 | L112: United States | M112: FALSE | N112: 2023 | O112: Ironjawz | Q112: Hedonites of Slaanesh | R112: Lore of Extravagance | U112: bcp | V112: =IFERROR((IF(SUMPRODUCT(MAX(ROW($C$2:$C111)*($C112=$C$2:$C111))-1)>SUMPRODUCT(MAX(ROW($D$2:$D111)*($C112=$D$2:$D111))-1),INDEX($X$2:$X111,SUMPRODUCT(MAX(ROW($C$2:$C111)*($C112=$C$2:$C111))-1)),INDEX($Y$2:$Y111,SUMPRODUCT(MAX(ROW($D$2:$D111)*($C112=$D$2:$D111))-1)))),_xlfn.IFNA(IF(VLOOKUP(C112,'30th June Rankings (Values)'!A:D,4,FALSE)>0,VLOOKUP(C112,'30th June Rankings (Values)'!A:D,4,FALSE),400),400)) -> 489.8397007 | W112: =IFERROR((IF(SUMPRODUCT(MAX(ROW($D$2:$D111)*($D112=$D$2:$D111))-1)>SUMPRODUCT(MAX(ROW($C$2:$C111)*($D112=$C$2:$C111))-1),INDEX($Y$2:$Y111,SUMPRODUCT(MAX(ROW($D$2:$D111)*($D112=$D$2:$D111))-1)),INDEX($X$2:$X111,SUMPRODUCT(MAX(ROW($C$2:$C111)*($D112=$C$2:$C111))-1)))),_xlfn.IFNA(IF(VLOOKUP(D112,'30th June Rankings (Values)'!A:D,4,FALSE)>0,VLOOKUP(D112,'30th June Rankings (Values)'!A:D,4,FALSE),400),400)) -> 387.6245033 | X112: =20*(E112-(1/(1+(10^((W112-V112)/400)))))+V112 -> 476.9797511 | Y112: =20*(F112-(1/(1+(10^((V112-W112)/400)))))+W112 -> 400.484453 | Z112: =C112&D112 -> Zak FrederickGary Keeler | AA112: =VLOOKUP(L112,Countries!A:B,2,FALSE) -> USA | AB112: =IF(O112="","Y",(IF(Q112="","Y","N"))) -> N | AC112: =IF(O112=Q112,"Y","N") -> N | AD112: =IF(J112<(TODAY()-60),"N","Y") -> Y | AE112: =_xlfn.MAXIFS(B:B,I:I,I112) -> 5 | AF112: =IF(AE112<5,"RTT/Casual",(IF(M112="TRUE","RTT/Casual",(IF(COUNTIF(I112,"*Team*"),"RTT/Casual",(IF(COUNTIF(I112,"*Double*"),"RTT/Casual","GT"))))))) -> GT | AG112: =O112&Q112 -> IronjawzHedonites of Slaanesh | AH112: =MONTH(J112) -> 7 | AI112: =((COUNTIFS(I:I,I112))/AE112)*2 -> 25.2 | AJ112: =VLOOKUP(I112,Battleplans!A:F,Matches!B112+1,FALSE) -> Shifting Objectives
A113: 576057 | B113: 3 | C113: Bill Keeler | D113: Alex Frederick | E113: 1 | F113: 0 | G113: 20 | H113: 0 | I113: Age of Sigmar Grand Tournament- "Theatre of War" | J113: 2024-07-13T13:30:00 | K113: 2024-07-14T23:00:00 | L113: United States | M113: FALSE | N113: 2023 | O113: Ironjawz | P113: Ironfist | Q113: Stormcast Eternals | R113: Prayers of the Stormhosts | U113: bcp | V113: =IFERROR((IF(SUMPRODUCT(MAX(ROW($C$2:$C112)*($C113=$C$2:$C112))-1)>SUMPRODUCT(MAX(ROW($D$2:$D112)*($C113=$D$2:$D112))-1),INDEX($X$2:$X112,SUMPRODUCT(MAX(ROW($C$2:$C112)*($C113=$C$2:$C112))-1)),INDEX($Y$2:$Y112,SUMPRODUCT(MAX(ROW($D$2:$D112)*($C113=$D$2:$D112))-1)))),_xlfn.IFNA(IF(VLOOKUP(C113,'30th June Rankings (Values)'!A:D,4,FALSE)>0,VLOOKUP(C113,'30th June Rankings (Values)'!A:D,4,FALSE),400),400)) -> 507.888858 | W113: =IFERROR((IF(SUMPRODUCT(MAX(ROW($D$2:$D112)*($D113=$D$2:$D112))-1)>SUMPRODUCT(MAX(ROW($C$2:$C112)*($D113=$C$2:$C112))-1),INDEX($Y$2:$Y112,SUMPRODUCT(MAX(ROW($D$2:$D112)*($D113=$D$2:$D112))-1)),INDEX($X$2:$X112,SUMPRODUCT(MAX(ROW($C$2:$C112)*($D113=$C$2:$C112))-1)))),_xlfn.IFNA(IF(VLOOKUP(D113,'30th June Rankings (Values)'!A:D,4,FALSE)>0,VLOOKUP(D113,'30th June Rankings (Values)'!A:D,4,FALSE),400),400)) -> 371.0880157 | X113: =20*(E113-(1/(1+(10^((W113-V113)/400)))))+V113 -> 514.1430199 | Y113: =20*(F113-(1/(1+(10^((V113-W113)/400)))))+W113 -> 364.8338539 | Z113: =C113&D113 -> Bill KeelerAlex Frederick | AA113: =VLOOKUP(L113,Countries!A:B,2,FALSE) -> USA | AB113: =IF(O113="","Y",(IF(Q113="","Y","N"))) -> N | AC113: =IF(O113=Q113,"Y","N") -> N | AD113: =IF(J113<(TODAY()-60),"N","Y") -> Y | AE113: =_xlfn.MAXIFS(B:B,I:I,I113) -> 5 | AF113: =IF(AE113<5,"RTT/Casual",(IF(M113="TRUE","RTT/Casual",(IF(COUNTIF(I113,"*Team*"),"RTT/Casual",(IF(COUNTIF(I113,"*Double*"),"RTT/Casual","GT"))))))) -> GT | AG113: =O113&Q113 -> IronjawzStormcast Eternals | AH113: =MONTH(J113) -> 7 | AI113: =((COUNTIFS(I:I,I113))/AE113)*2 -> 25.2 | AJ113: =VLOOKUP(I113,Battleplans!A:F,Matches!B113+1,FALSE) -> Shifting Objectives
A114: 576088 | B114: 3 | C114: Andrew Hoffmann | D114: Nik Greymaster | E114: 1 | F114: 0 | G114: 12 | H114: 8 | I114: Age of Sigmar Grand Tournament- "Theatre of War" | J114: 2024-07-13T13:30:00 | K114: 2024-07-14T23:00:00 | L114: United States | M114: FALSE | N114: 2023 | O114: Nighthaunt | P114: Death Stalkers | Q114: Lumineth Realm-lords | R114: Alarith Temple | U114: bcp | V114: =IFERROR((IF(SUMPRODUCT(MAX(ROW($C$2:$C113)*($C114=$C$2:$C113))-1)>SUMPRODUCT(MAX(ROW($D$2:$D113)*($C114=$D$2:$D113))-1),INDEX($X$2:$X113,SUMPRODUCT(MAX(ROW($C$2:$C113)*($C114=$C$2:$C113))-1)),INDEX($Y$2:$Y113,SUMPRODUCT(MAX(ROW($D$2:$D113)*($C114=$D$2:$D113))-1)))),_xlfn.IFNA(IF(VLOOKUP(C114,'30th June Rankings (Values)'!A:D,4,FALSE)>0,VLOOKUP(C114,'30th June Rankings (Values)'!A:D,4,FALSE),400),400)) -> 414.1535402 | W114: =IFERROR((IF(SUMPRODUCT(MAX(ROW($D$2:$D113)*($D114=$D$2:$D113))-1)>SUMPRODUCT(MAX(ROW($C$2:$C113)*($D114=$C$2:$C113))-1),INDEX($Y$2:$Y113,SUMPRODUCT(MAX(ROW($D$2:$D113)*($D114=$D$2:$D113))-1)),INDEX($X$2:$X113,SUMPRODUCT(MAX(ROW($C$2:$C113)*($D114=$C$2:$C113))-1)))),_xlfn.IFNA(IF(VLOOKUP(D114,'30th June Rankings (Values)'!A:D,4,FALSE)>0,VLOOKUP(D114,'30th June Rankings (Values)'!A:D,4,FALSE),400),400)) -> 402.9927011 | X114: =20*(E114-(1/(1+(10^((W114-V114)/400)))))+V114 -> 423.8324158 | Y114: =20*(F114-(1/(1+(10^((V114-W114)/400)))))+W114 -> 393.3138254 | Z114: =C114&D114 -> Andrew HoffmannNik Greymaster | AA114: =VLOOKUP(L114,Countries!A:B,2,FALSE) -> USA | AB114: =IF(O114="","Y",(IF(Q114="","Y","N"))) -> N | AC114: =IF(O114=Q114,"Y","N") -> N | AD114: =IF(J114<(TODAY()-60),"N","Y") -> Y | AE114: =_xlfn.MAXIFS(B:B,I:I,I114) -> 5 | AF114: =IF(AE114<5,"RTT/Casual",(IF(M114="TRUE","RTT/Casual",(IF(COUNTIF(I114,"*Team*"),"RTT/Casual",(IF(COUNTIF(I114,"*Double*"),"RTT/Casual","GT"))))))) -> GT | AG114: =O114&Q114 -> NighthauntLumineth Realm-lords | AH114: =MONTH(J114) -> 7 | AI114: =((COUNTIFS(I:I,I114))/AE114)*2 -> 25.2 | AJ114: =VLOOKUP(I114,Battleplans!A:F,Matches!B114+1,FALSE) -> Shifting Objectives
A115: 576119 | B115: 3 | C115: Rye Anderson | D115: Nick Rau | E115: 1 | F115: 0 | G115: 11 | H115: 9 | I115: Age of Sigmar Grand Tournament- "Theatre of War" | J115: 2024-07-13T13:30:00 | K115: 2024-07-14T23:00:00 | L115: United States | M115: FALSE | N115: 2023 | O115: Soulblight Gravelords | P115: Tide of Bones & Blades | Q115: Lumineth Realm-lords | R115: Vanari Battlehost | U115: bcp | V115: =IFERROR((IF(SUMPRODUCT(MAX(ROW($C$2:$C114)*($C115=$C$2:$C114))-1)>SUMPRODUCT(MAX(ROW($D$2:$D114)*($C115=$D$2:$D114))-1),INDEX($X$2:$X114,SUMPRODUCT(MAX(ROW($C$2:$C114)*($C115=$C$2:$C114))-1)),INDEX($Y$2:$Y114,SUMPRODUCT(MAX(ROW($D$2:$D114)*($C115=$D$2:$D114))-1)))),_xlfn.IFNA(IF(VLOOKUP(C115,'30th June Rankings (Values)'!A:D,4,FALSE)>0,VLOOKUP(C115,'30th June Rankings (Values)'!A:D,4,FALSE),400),400)) -> 563.1273993 | W115: =IFERROR((IF(SUMPRODUCT(MAX(ROW($D$2:$D114)*($D115=$D$2:$D114))-1)>SUMPRODUCT(MAX(ROW($C$2:$C114)*($D115=$C$2:$C114))-1),INDEX($Y$2:$Y114,SUMPRODUCT(MAX(ROW($D$2:$D114)*($D115=$D$2:$D114))-1)),INDEX($X$2:$X114,SUMPRODUCT(MAX(ROW($C$2:$C114)*($D115=$C$2:$C114))-1)))),_xlfn.IFNA(IF(VLOOKUP(D115,'30th June Rankings (Values)'!A:D,4,FALSE)>0,VLOOKUP(D115,'30th June Rankings (Values)'!A:D,4,FALSE),400),400)) -> 513.891091 | X115: =20*(E115-(1/(1+(10^((W115-V115)/400)))))+V115 -> 571.7196755 | Y115: =20*(F115-(1/(1+(10^((V115-W115)/400)))))+W115 -> 505.2988148 | Z115: =C115&D115 -> Rye AndersonNick Rau | AA115: =VLOOKUP(L115,Countries!A:B,2,FALSE) -> USA | AB115: =IF(O115="","Y",(IF(Q115="","Y","N"))) -> N | AC115: =IF(O115=Q115,"Y","N") -> N | AD115: =IF(J115<(TODAY()-60),"N","Y") -> Y | AE115: =_xlfn.MAXIFS(B:B,I:I,I115) -> 5 | AF115: =IF(AE115<5,"RTT/Casual",(IF(M115="TRUE","RTT/Casual",(IF(COUNTIF(I115,"*Team*"),"RTT/Casual",(IF(COUNTIF(I115,"*Double*"),"RTT/Casual","GT"))))))) -> GT | AG115: =O115&Q115 -> Soulblight GravelordsLumineth Realm-lords | AH115: =MONTH(J115) -> 7 | AI115: =((COUNTIFS(I:I,I115))/AE115)*2 -> 25.2 | AJ115: =VLOOKUP(I115,Battleplans!A:F,Matches!B115+1,FALSE) -> Shifting Objectives
A116: 576162 | B116: 4 | C116: Scott Dielman | D116: Vlad Kokorev | E116: 0 | F116: 1 | G116: 8 | H116: 12 | I116: Age of Sigmar Grand Tournament- "Theatre of War" | J116: 2024-07-13T13:30:00 | K116: 2024-07-14T23:00:00 | L116: United States | M116: FALSE | N116: 2023 | O116: Seraphon | P116: Shadowstrike Starhost | Q116: Slaves to Darkness | R116: Godswrath Warband | U116: bcp | V116: =IFERROR((IF(SUMPRODUCT(MAX(ROW($C$2:$C115)*($C116=$C$2:$C115))-1)>SUMPRODUCT(MAX(ROW($D$2:$D115)*($C116=$D$2:$D115))-1),INDEX($X$2:$X115,SUMPRODUCT(MAX(ROW($C$2:$C115)*($C116=$C$2:$C115))-1)),INDEX($Y$2:$Y115,SUMPRODUCT(MAX(ROW($D$2:$D115)*($C116=$D$2:$D115))-1)))),_xlfn.IFNA(IF(VLOOKUP(C116,'30th June Rankings (Values)'!A:D,4,FALSE)>0,VLOOKUP(C116,'30th June Rankings (Values)'!A:D,4,FALSE),400),400)) -> 450.0281263 | W116: =IFERROR((IF(SUMPRODUCT(MAX(ROW($D$2:$D115)*($D116=$D$2:$D115))-1)>SUMPRODUCT(MAX(ROW($C$2:$C115)*($D116=$C$2:$C115))-1),INDEX($Y$2:$Y115,SUMPRODUCT(MAX(ROW($D$2:$D115)*($D116=$D$2:$D115))-1)),INDEX($X$2:$X115,SUMPRODUCT(MAX(ROW($C$2:$C115)*($D116=$C$2:$C115))-1)))),_xlfn.IFNA(IF(VLOOKUP(D116,'30th June Rankings (Values)'!A:D,4,FALSE)>0,VLOOKUP(D116,'30th June Rankings (Values)'!A:D,4,FALSE),400),400)) -> 410.7212234 | X116: =20*(E116-(1/(1+(10^((W116-V116)/400)))))+V116 -> 438.9015849 | Y116: =20*(F116-(1/(1+(10^((V116-W116)/400)))))+W116 -> 421.8477648 | Z116: =C116&D116 -> Scott DielmanVlad Kokorev | AA116: =VLOOKUP(L116,Countries!A:B,2,FALSE) -> USA | AB116: =IF(O116="","Y",(IF(Q116="","Y","N"))) -> N | AC116: =IF(O116=Q116,"Y","N") -> N | AD116: =IF(J116<(TODAY()-60),"N","Y") -> Y | AE116: =_xlfn.MAXIFS(B:B,I:I,I116) -> 5 | AF116: =IF(AE116<5,"RTT/Casual",(IF(M116="TRUE","RTT/Casual",(IF(COUNTIF(I116,"*Team*"),"RTT/Casual",(IF(COUNTIF(I116,"*Double*"),"RTT/Casual","GT"))))))) -> GT | AG116: =O116&Q116 -> SeraphonSlaves to Darkness | AH116: =MONTH(J116) -> 7 | AI116: =((COUNTIFS(I:I,I116))/AE116)*2 -> 25.2 | AJ116: =VLOOKUP(I116,Battleplans!A:F,Matches!B116+1,FALSE) -> Border War
A117: 576190 | B117: 4 | C117: Harry Isaksson | D117: David Manley | E117: 1 | F117: 0 | G117: 15 | H117: 5 | I117: Age of Sigmar Grand Tournament- "Theatre of War" | J117: 2024-07-13T13:30:00 | K117: 2024-07-14T23:00:00 | L117: United States | M117: FALSE | N117: 2023 | O117: Seraphon | P117: Sunclaw Starhost | Q117: Sons of Behemat | R117: Breaker Tribe | U117: bcp | V117: =IFERROR((IF(SUMPRODUCT(MAX(ROW($C$2:$C116)*($C117=$C$2:$C116))-1)>SUMPRODUCT(MAX(ROW($D$2:$D116)*($C117=$D$2:$D116))-1),INDEX($X$2:$X116,SUMPRODUCT(MAX(ROW($C$2:$C116)*($C117=$C$2:$C116))-1)),INDEX($Y$2:$Y116,SUMPRODUCT(MAX(ROW($D$2:$D116)*($C117=$D$2:$D116))-1)))),_xlfn.IFNA(IF(VLOOKUP(C117,'30th June Rankings (Values)'!A:D,4,FALSE)>0,VLOOKUP(C117,'30th June Rankings (Values)'!A:D,4,FALSE),400),400)) -> 449.6472953 | W117: =IFERROR((IF(SUMPRODUCT(MAX(ROW($D$2:$D116)*($D117=$D$2:$D116))-1)>SUMPRODUCT(MAX(ROW($C$2:$C116)*($D117=$C$2:$C116))-1),INDEX($Y$2:$Y116,SUMPRODUCT(MAX(ROW($D$2:$D116)*($D117=$D$2:$D116))-1)),INDEX($X$2:$X116,SUMPRODUCT(MAX(ROW($C$2:$C116)*($D117=$C$2:$C116))-1)))),_xlfn.IFNA(IF(VLOOKUP(D117,'30th June Rankings (Values)'!A:D,4,FALSE)>0,VLOOKUP(D117,'30th June Rankings (Values)'!A:D,4,FALSE),400),400)) -> 380.1264825 | X117: =20*(E117-(1/(1+(10^((W117-V117)/400)))))+V117 -> 457.6726101 | Y117: =20*(F117-(1/(1+(10^((V117-W117)/400)))))+W117 -> 372.1011678 | Z117: =C117&D117 -> Harry IsakssonDavid Manley | AA117: =VLOOKUP(L117,Countries!A:B,2,FALSE) -> USA | AB117: =IF(O117="","Y",(IF(Q117="","Y","N"))) -> N | AC117: =IF(O117=Q117,"Y","N") -> N | AD117: =IF(J117<(TODAY()-60),"N","Y") -> Y | AE117: =_xlfn.MAXIFS(B:B,I:I,I117) -> 5 | AF117: =IF(AE117<5,"RTT/Casual",(IF(M117="TRUE","RTT/Casual",(IF(COUNTIF(I117,"*Team*"),"RTT/Casual",(IF(COUNTIF(I117,"*Double*"),"RTT/Casual","GT"))))))) -> GT | AG117: =O117&Q117 -> SeraphonSons of Behemat | AH117: =MONTH(J117) -> 7 | AI117: =((COUNTIFS(I:I,I117))/AE117)*2 -> 25.2 | AJ117: =VLOOKUP(I117,Battleplans!A:F,Matches!B117+1,FALSE) -> Border War
A118: 576223 | B118: 4 | C118: Charlie Mahoney | D118: Alex Frederick | E118: 1 | F118: 0 | G118: 18 | H118: 2 | I118: Age of Sigmar Grand Tournament- "Theatre of War" | J118: 2024-07-13T13:30:00 | K118: 2024-07-14T23:00:00 | L118: United States | M118: FALSE | N118: 2023 | O118: Fyreslayers | P118: Warrior Kinband | Q118: Stormcast Eternals | R118: Prayers of the Stormhosts | U118: bcp | V118: =IFERROR((IF(SUMPRODUCT(MAX(ROW($C$2:$C117)*($C118=$C$2:$C117))-1)>SUMPRODUCT(MAX(ROW($D$2:$D117)*($C118=$D$2:$D117))-1),INDEX($X$2:$X117,SUMPRODUCT(MAX(ROW($C$2:$C117)*($C118=$C$2:$C117))-1)),INDEX($Y$2:$Y117,SUMPRODUCT(MAX(ROW($D$2:$D117)*($C118=$D$2:$D117))-1)))),_xlfn.IFNA(IF(VLOOKUP(C118,'30th June Rankings (Values)'!A:D,4,FALSE)>0,VLOOKUP(C118,'30th June Rankings (Values)'!A:D,4,FALSE),400),400)) -> 324.4877764 | W118: =IFERROR((IF(SUMPRODUCT(MAX(ROW($D$2:$D117)*($D118=$D$2:$D117))-1)>SUMPRODUCT(MAX(ROW($C$2:$C117)*($D118=$C$2:$C117))-1),INDEX($Y$2:$Y117,SUMPRODUCT(MAX(ROW($D$2:$D117)*($D118=$D$2:$D117))-1)),INDEX($X$2:$X117,SUMPRODUCT(MAX(ROW($C$2:$C117)*($D118=$C$2:$C117))-1)))),_xlfn.IFNA(IF(VLOOKUP(D118,'30th June Rankings (Values)'!A:D,4,FALSE)>0,VLOOKUP(D118,'30th June Rankings (Values)'!A:D,4,FALSE),400),400)) -> 364.8338539 | X118: =20*(E118-(1/(1+(10^((W118-V118)/400)))))+V118 -> 335.643838 | Y118: =20*(F118-(1/(1+(10^((V118-W118)/400)))))+W118 -> 353.6777923 | Z118: =C118&D118 -> Charlie MahoneyAlex Frederick | AA118: =VLOOKUP(L118,Countries!A:B,2,FALSE) -> USA | AB118: =IF(O118="","Y",(IF(Q118="","Y","N"))) -> N | AC118: =IF(O118=Q118,"Y","N") -> N | AD118: =IF(J118<(TODAY()-60),"N","Y") -> Y | AE118: =_xlfn.MAXIFS(B:B,I:I,I118) -> 5 | AF118: =IF(AE118<5,"RTT/Casual",(IF(M118="TRUE","RTT/Casual",(IF(COUNTIF(I118,"*Team*"),"RTT/Casual",(IF(COUNTIF(I118,"*Double*"),"RTT/Casual","GT"))))))) -> GT | AG118: =O118&Q118 -> FyreslayersStormcast Eternals | AH118: =MONTH(J118) -> 7 | AI118: =((COUNTIFS(I:I,I118))/AE118)*2 -> 25.2 | AJ118: =VLOOKUP(I118,Battleplans!A:F,Matches!B118+1,FALSE) -> Border War
A119: 576253 | B119: 4 | C119: Gary Keeler | D119: Josh Kale | E119: 0.5 | F119: 0.5 | G119: 10 | H119: 10 | I119: Age of Sigmar Grand Tournament- "Theatre of War" | J119: 2024-07-13T13:30:00 | K119: 2024-07-14T23:00:00 | L119: United States | M119: FALSE | N119: 2023 | O119: Hedonites of Slaanesh | P119: Lore of Extravagance | U119: bcp | V119: =IFERROR((IF(SUMPRODUCT(MAX(ROW($C$2:$C118)*($C119=$C$2:$C118))-1)>SUMPRODUCT(MAX(ROW($D$2:$D118)*($C119=$D$2:$D118))-1),INDEX($X$2:$X118,SUMPRODUCT(MAX(ROW($C$2:$C118)*($C119=$C$2:$C118))-1)),INDEX($Y$2:$Y118,SUMPRODUCT(MAX(ROW($D$2:$D118)*($C119=$D$2:$D118))-1)))),_xlfn.IFNA(IF(VLOOKUP(C119,'30th June Rankings (Values)'!A:D,4,FALSE)>0,VLOOKUP(C119,'30th June Rankings (Values)'!A:D,4,FALSE),400),400)) -> 400.484453 | W119: =IFERROR((IF(SUMPRODUCT(MAX(ROW($D$2:$D118)*($D119=$D$2:$D118))-1)>SUMPRODUCT(MAX(ROW($C$2:$C118)*($D119=$C$2:$C118))-1),INDEX($Y$2:$Y118,SUMPRODUCT(MAX(ROW($D$2:$D118)*($D119=$D$2:$D118))-1)),INDEX($X$2:$X118,SUMPRODUCT(MAX(ROW($C$2:$C118)*($D119=$C$2:$C118))-1)))),_xlfn.IFNA(IF(VLOOKUP(D119,'30th June Rankings (Values)'!A:D,4,FALSE)>0,VLOOKUP(D119,'30th June Rankings (Values)'!A:D,4,FALSE),400),400)) -> 386.3765427 | X119: =20*(E119-(1/(1+(10^((W119-V119)/400)))))+V119 -> 400.0786177 | Y119: =20*(F119-(1/(1+(10^((V119-W119)/400)))))+W119 -> 386.782378 | Z119: =C119&D119 -> Gary KeelerJosh Kale | AA119: =VLOOKUP(L119,Countries!A:B,2,FALSE) -> USA | AB119: =IF(O119="","Y",(IF(Q119="","Y","N"))) -> Y | AC119: =IF(O119=Q119,"Y","N") -> N | AD119: =IF(J119<(TODAY()-60),"N","Y") -> Y | AE119: =_xlfn.MAXIFS(B:B,I:I,I119) -> 5 | AF119: =IF(AE119<5,"RTT/Casual",(IF(M119="TRUE","RTT/Casual",(IF(COUNTIF(I119,"*Team*"),"RTT/Casual",(IF(COUNTIF(I119,"*Double*"),"RTT/Casual","GT"))))))) -> GT | AG119: =O119&Q119 -> Hedonites of Slaanesh | AH119: =MONTH(J119) -> 7 | AI119: =((COUNTIFS(I:I,I119))/AE119)*2 -> 25.2 | AJ119: =VLOOKUP(I119,Battleplans!A:F,Matches!B119+1,FALSE) -> Border War
A120: 576281 | B120: 4 | C120: Andrew Martin | D120: Zak Frederick | E120: 0 | F120: 1 | G120: 3 | H120: 17 | I120: Age of Sigmar Grand Tournament- "Theatre of War" | J120: 2024-07-13T13:30:00 | K120: 2024-07-14T23:00:00 | L120: United States | M120: FALSE | N120: 2023 | O120: Beasts of Chaos | P120: Hungering Warherd | Q120: Ironjawz | U120: bcp | V120: =IFERROR((IF(SUMPRODUCT(MAX(ROW($C$2:$C119)*($C120=$C$2:$C119))-1)>SUMPRODUCT(MAX(ROW($D$2:$D119)*($C120=$D$2:$D119))-1),INDEX($X$2:$X119,SUMPRODUCT(MAX(ROW($C$2:$C119)*($C120=$C$2:$C119))-1)),INDEX($Y$2:$Y119,SUMPRODUCT(MAX(ROW($D$2:$D119)*($C120=$D$2:$D119))-1)))),_xlfn.IFNA(IF(VLOOKUP(C120,'30th June Rankings (Values)'!A:D,4,FALSE)>0,VLOOKUP(C120,'30th June Rankings (Values)'!A:D,4,FALSE),400),400)) -> 330.9705777 | W120: =IFERROR((IF(SUMPRODUCT(MAX(ROW($D$2:$D119)*($D120=$D$2:$D119))-1)>SUMPRODUCT(MAX(ROW($C$2:$C119)*($D120=$C$2:$C119))-1),INDEX($Y$2:$Y119,SUMPRODUCT(MAX(ROW($D$2:$D119)*($D120=$D$2:$D119))-1)),INDEX($X$2:$X119,SUMPRODUCT(MAX(ROW($C$2:$C119)*($D120=$C$2:$C119))-1)))),_xlfn.IFNA(IF(VLOOKUP(D120,'30th June Rankings (Values)'!A:D,4,FALSE)>0,VLOOKUP(D120,'30th June Rankings (Values)'!A:D,4,FALSE),400),400)) -> 476.9797511 | X120: =20*(E120-(1/(1+(10^((W120-V120)/400)))))+V120 -> 324.9419726 | Y120: =20*(F120-(1/(1+(10^((V120-W120)/400)))))+W120 -> 483.0083562 | Z120: =C120&D120 -> Andrew MartinZak Frederick | AA120: =VLOOKUP(L120,Countries!A:B,2,FALSE) -> USA | AB120: =IF(O120="","Y",(IF(Q120="","Y","N"))) -> N | AC120: =IF(O120=Q120,"Y","N") -> N | AD120: =IF(J120<(TODAY()-60),"N","Y") -> Y | AE120: =_xlfn.MAXIFS(B:B,I:I,I120) -> 5 | AF120: =IF(AE120<5,"RTT/Casual",(IF(M120="TRUE","RTT/Casual",(IF(COUNTIF(I120,"*Team*"),"RTT/Casual",(IF(COUNTIF(I120,"*Double*"),"RTT/Casual","GT"))))))) -> GT | AG120: =O120&Q120 -> Beasts of ChaosIronjawz | AH120: =MONTH(J120) -> 7 | AI120: =((COUNTIFS(I:I,I120))/AE120)*2 -> 25.2 | AJ120: =VLOOKUP(I120,Battleplans!A:F,Matches!B120+1,FALSE) -> Border War
A121: 576304 | B121: 4 | C121: Andrew Hoffmann | D121: Nick Rau | E121: 0 | F121: 1 | G121: 6 | H121: 14 | I121: Age of Sigmar Grand Tournament- "Theatre of War" | J121: 2024-07-13T13:30:00 | K121: 2024-07-14T23:00:00 | L121: United States | M121: FALSE | N121: 2023 | O121: Nighthaunt | P121: Death Stalkers | Q121: Lumineth Realm-lords | R121: Vanari Battlehost | U121: bcp | V121: =IFERROR((IF(SUMPRODUCT(MAX(ROW($C$2:$C120)*($C121=$C$2:$C120))-1)>SUMPRODUCT(MAX(ROW($D$2:$D120)*($C121=$D$2:$D120))-1),INDEX($X$2:$X120,SUMPRODUCT(MAX(ROW($C$2:$C120)*($C121=$C$2:$C120))-1)),INDEX($Y$2:$Y120,SUMPRODUCT(MAX(ROW($D$2:$D120)*($C121=$D$2:$D120))-1)))),_xlfn.IFNA(IF(VLOOKUP(C121,'30th June Rankings (Values)'!A:D,4,FALSE)>0,VLOOKUP(C121,'30th June Rankings (Values)'!A:D,4,FALSE),400),400)) -> 423.8324158 | W121: =IFERROR((IF(SUMPRODUCT(MAX(ROW($D$2:$D120)*($D121=$D$2:$D120))-1)>SUMPRODUCT(MAX(ROW($C$2:$C120)*($D121=$C$2:$C120))-1),INDEX($Y$2:$Y120,SUMPRODUCT(MAX(ROW($D$2:$D120)*($D121=$D$2:$D120))-1)),INDEX($X$2:$X120,SUMPRODUCT(MAX(ROW($C$2:$C120)*($D121=$C$2:$C120))-1)))),_xlfn.IFNA(IF(VLOOKUP(D121,'30th June Rankings (Values)'!A:D,4,FALSE)>0,VLOOKUP(D121,'30th June Rankings (Values)'!A:D,4,FALSE),400),400)) -> 505.2988148 | X121: =20*(E121-(1/(1+(10^((W121-V121)/400)))))+V121 -> 416.1351592 | Y121: =20*(F121-(1/(1+(10^((V121-W121)/400)))))+W121 -> 512.9960714 | Z121: =C121&D121 -> Andrew HoffmannNick Rau | AA121: =VLOOKUP(L121,Countries!A:B,2,FALSE) -> USA | AB121: =IF(O121="","Y",(IF(Q121="","Y","N"))) -> N | AC121: =IF(O121=Q121,"Y","N") -> N | AD121: =IF(J121<(TODAY()-60),"N","Y") -> Y | AE121: =_xlfn.MAXIFS(B:B,I:I,I121) -> 5 | AF121: =IF(AE121<5,"RTT/Casual",(IF(M121="TRUE","RTT/Casual",(IF(COUNTIF(I121,"*Team*"),"RTT/Casual",(IF(COUNTIF(I121,"*Double*"),"RTT/Casual","GT"))))))) -> GT | AG121: =O121&Q121 -> NighthauntLumineth Realm-lords | AH121: =MONTH(J121) -> 7 | AI121: =((COUNTIFS(I:I,I121))/AE121)*2 -> 25.2 | AJ121: =VLOOKUP(I121,Battleplans!A:F,Matches!B121+1,FALSE) -> Border War
A122: 576332 | B122: 4 | C122: Corry Wiggins | D122: Adrian Ybarra | E122: 1 | F122: 0 | G122: 13 | H122: 7 | I122: Age of Sigmar Grand Tournament- "Theatre of War" | J122: 2024-07-13T13:30:00 | K122: 2024-07-14T23:00:00 | L122: United States | M122: FALSE | N122: 2023 | O122: Slaves to Darkness | P122: Godswrath Warband | Q122: Seraphon | R122: Sunclaw Starhost | U122: bcp | V122: =IFERROR((IF(SUMPRODUCT(MAX(ROW($C$2:$C121)*($C122=$C$2:$C121))-1)>SUMPRODUCT(MAX(ROW($D$2:$D121)*($C122=$D$2:$D121))-1),INDEX($X$2:$X121,SUMPRODUCT(MAX(ROW($C$2:$C121)*($C122=$C$2:$C121))-1)),INDEX($Y$2:$Y121,SUMPRODUCT(MAX(ROW($D$2:$D121)*($C122=$D$2:$D121))-1)))),_xlfn.IFNA(IF(VLOOKUP(C122,'30th June Rankings (Values)'!A:D,4,FALSE)>0,VLOOKUP(C122,'30th June Rankings (Values)'!A:D,4,FALSE),400),400)) -> 511.0883795 | W122: =IFERROR((IF(SUMPRODUCT(MAX(ROW($D$2:$D121)*($D122=$D$2:$D121))-1)>SUMPRODUCT(MAX(ROW($C$2:$C121)*($D122=$C$2:$C121))-1),INDEX($Y$2:$Y121,SUMPRODUCT(MAX(ROW($D$2:$D121)*($D122=$D$2:$D121))-1)),INDEX($X$2:$X121,SUMPRODUCT(MAX(ROW($C$2:$C121)*($D122=$C$2:$C121))-1)))),_xlfn.IFNA(IF(VLOOKUP(D122,'30th June Rankings (Values)'!A:D,4,FALSE)>0,VLOOKUP(D122,'30th June Rankings (Values)'!A:D,4,FALSE),400),400)) -> 515.6061625 | X122: =20*(E122-(1/(1+(10^((W122-V122)/400)))))+V122 -> 521.2184045 | Y122: =20*(F122-(1/(1+(10^((V122-W122)/400)))))+W122 -> 505.4761376 | Z122: =C122&D122 -> Corry WigginsAdrian Ybarra | AA122: =VLOOKUP(L122,Countries!A:B,2,FALSE) -> USA | AB122: =IF(O122="","Y",(IF(Q122="","Y","N"))) -> N | AC122: =IF(O122=Q122,"Y","N") -> N | AD122: =IF(J122<(TODAY()-60),"N","Y") -> Y | AE122: =_xlfn.MAXIFS(B:B,I:I,I122) -> 5 | AF122: =IF(AE122<5,"RTT/Casual",(IF(M122="TRUE","RTT/Casual",(IF(COUNTIF(I122,"*Team*"),"RTT/Casual",(IF(COUNTIF(I122,"*Double*"),"RTT/Casual","GT"))))))) -> GT | AG122: =O122&Q122 -> Slaves to DarknessSeraphon | AH122: =MONTH(J122) -> 7 | AI122: =((COUNTIFS(I:I,I122))/AE122)*2 -> 25.2 | AJ122: =VLOOKUP(I122,Battleplans!A:F,Matches!B122+1,FALSE) -> Border War
A123: 576362 | B123: 4 | C123: Caroline Kimbles | D123: Nick R | E123: 1 | F123: 0 | G123: 12 | H123: 8 | I123: Age of Sigmar Grand Tournament- "Theatre of War" | J123: 2024-07-13T13:30:00 | K123: 2024-07-14T23:00:00 | L123: United States | M123: FALSE | N123: 2023 | O123: Gloomspite Gitz | P123: Troggherd | Q123: Nighthaunt | R123: Death Stalkers | U123: bcp | V123: =IFERROR((IF(SUMPRODUCT(MAX(ROW($C$2:$C122)*($C123=$C$2:$C122))-1)>SUMPRODUCT(MAX(ROW($D$2:$D122)*($C123=$D$2:$D122))-1),INDEX($X$2:$X122,SUMPRODUCT(MAX(ROW($C$2:$C122)*($C123=$C$2:$C122))-1)),INDEX($Y$2:$Y122,SUMPRODUCT(MAX(ROW($D$2:$D122)*($C123=$D$2:$D122))-1)))),_xlfn.IFNA(IF(VLOOKUP(C123,'30th June Rankings (Values)'!A:D,4,FALSE)>0,VLOOKUP(C123,'30th June Rankings (Values)'!A:D,4,FALSE),400),400)) -> 353.687591 | W123: =IFERROR((IF(SUMPRODUCT(MAX(ROW($D$2:$D122)*($D123=$D$2:$D122))-1)>SUMPRODUCT(MAX(ROW($C$2:$C122)*($D123=$C$2:$C122))-1),INDEX($Y$2:$Y122,SUMPRODUCT(MAX(ROW($D$2:$D122)*($D123=$D$2:$D122))-1)),INDEX($X$2:$X122,SUMPRODUCT(MAX(ROW($C$2:$C122)*($D123=$C$2:$C122))-1)))),_xlfn.IFNA(IF(VLOOKUP(D123,'30th June Rankings (Values)'!A:D,4,FALSE)>0,VLOOKUP(D123,'30th June Rankings (Values)'!A:D,4,FALSE),400),400)) -> 370.2700288 | X123: =20*(E123-(1/(1+(10^((W123-V123)/400)))))+V123 -> 364.1645099 | Y123: =20*(F123-(1/(1+(10^((V123-W123)/400)))))+W123 -> 359.7931099 | Z123: =C123&D123 -> Caroline KimblesNick R | AA123: =VLOOKUP(L123,Countries!A:B,2,FALSE) -> USA | AB123: =IF(O123="","Y",(IF(Q123="","Y","N"))) -> N | AC123: =IF(O123=Q123,"Y","N") -> N | AD123: =IF(J123<(TODAY()-60),"N","Y") -> Y | AE123: =_xlfn.MAXIFS(B:B,I:I,I123) -> 5 | AF123: =IF(AE123<5,"RTT/Casual",(IF(M123="TRUE","RTT/Casual",(IF(COUNTIF(I123,"*Team*"),"RTT/Casual",(IF(COUNTIF(I123,"*Double*"),"RTT/Casual","GT"))))))) -> GT | AG123: =O123&Q123 -> Gloomspite GitzNighthaunt | AH123: =MONTH(J123) -> 7 | AI123: =((COUNTIFS(I:I,I123))/AE123)*2 -> 25.2 | AJ123: =VLOOKUP(I123,Battleplans!A:F,Matches!B123+1,FALSE) -> Border War
A124: 576392 | B124: 4 | C124: Nik Greymaster | D124: Bill Keeler | E124: 0 | F124: 1 | G124: 8 | H124: 12 | I124: Age of Sigmar Grand Tournament- "Theatre of War" | J124: 2024-07-13T13:30:00 | K124: 2024-07-14T23:00:00 | L124: United States | M124: FALSE | N124: 2023 | O124: Lumineth Realm-lords | P124: Alarith Temple | Q124: Ironjawz | R124: Ironfist | U124: bcp | V124: =IFERROR((IF(SUMPRODUCT(MAX(ROW($C$2:$C123)*($C124=$C$2:$C123))-1)>SUMPRODUCT(MAX(ROW($D$2:$D123)*($C124=$D$2:$D123))-1),INDEX($X$2:$X123,SUMPRODUCT(MAX(ROW($C$2:$C123)*($C124=$C$2:$C123))-1)),INDEX($Y$2:$Y123,SUMPRODUCT(MAX(ROW($D$2:$D123)*($C124=$D$2:$D123))-1)))),_xlfn.IFNA(IF(VLOOKUP(C124,'30th June Rankings (Values)'!A:D,4,FALSE)>0,VLOOKUP(C124,'30th June Rankings (Values)'!A:D,4,FALSE),400),400)) -> 393.3138254 | W124: =IFERROR((IF(SUMPRODUCT(MAX(ROW($D$2:$D123)*($D124=$D$2:$D123))-1)>SUMPRODUCT(MAX(ROW($C$2:$C123)*($D124=$C$2:$C123))-1),INDEX($Y$2:$Y123,SUMPRODUCT(MAX(ROW($D$2:$D123)*($D124=$D$2:$D123))-1)),INDEX($X$2:$X123,SUMPRODUCT(MAX(ROW($C$2:$C123)*($D124=$C$2:$C123))-1)))),_xlfn.IFNA(IF(VLOOKUP(D124,'30th June Rankings (Values)'!A:D,4,FALSE)>0,VLOOKUP(D124,'30th June Rankings (Values)'!A:D,4,FALSE),400),400)) -> 514.1430199 | X124: =20*(E124-(1/(1+(10^((W124-V124)/400)))))+V124 -> 386.6578281 | Y124: =20*(F124-(1/(1+(10^((V124-W124)/400)))))+W124 -> 520.7990172 | Z124: =C124&D124 -> Nik GreymasterBill Keeler | AA124: =VLOOKUP(L124,Countries!A:B,2,FALSE) -> USA | AB124: =IF(O124="","Y",(IF(Q124="","Y","N"))) -> N | AC124: =IF(O124=Q124,"Y","N") -> N | AD124: =IF(J124<(TODAY()-60),"N","Y") -> Y | AE124: =_xlfn.MAXIFS(B:B,I:I,I124) -> 5 | AF124: =IF(AE124<5,"RTT/Casual",(IF(M124="TRUE","RTT/Casual",(IF(COUNTIF(I124,"*Team*"),"RTT/Casual",(IF(COUNTIF(I124,"*Double*"),"RTT/Casual","GT"))))))) -> GT | AG124: =O124&Q124 -> Lumineth Realm-lordsIronjawz | AH124: =MONTH(J124) -> 7 | AI124: =((COUNTIFS(I:I,I124))/AE124)*2 -> 25.2 | AJ124: =VLOOKUP(I124,Battleplans!A:F,Matches!B124+1,FALSE) -> Border War
A125: 576425 | B125: 4 | C125: Rye Anderson | D125: Alex Shaffer | E125: 1 | F125: 0 | G125: 12 | H125: 8 | I125: Age of Sigmar Grand Tournament- "Theatre of War" | J125: 2024-07-13T13:30:00 | K125: 2024-07-14T23:00:00 | L125: United States | M125: FALSE | N125: 2023 | O125: Soulblight Gravelords | P125: Tide of Bones & Blades | Q125: Maggotkin of Nurgle | R125: Affliction Cyst | U125: bcp | V125: =IFERROR((IF(SUMPRODUCT(MAX(ROW($C$2:$C124)*($C125=$C$2:$C124))-1)>SUMPRODUCT(MAX(ROW($D$2:$D124)*($C125=$D$2:$D124))-1),INDEX($X$2:$X124,SUMPRODUCT(MAX(ROW($C$2:$C124)*($C125=$C$2:$C124))-1)),INDEX($Y$2:$Y124,SUMPRODUCT(MAX(ROW($D$2:$D124)*($C125=$D$2:$D124))-1)))),_xlfn.IFNA(IF(VLOOKUP(C125,'30th June Rankings (Values)'!A:D,4,FALSE)>0,VLOOKUP(C125,'30th June Rankings (Values)'!A:D,4,FALSE),400),400)) -> 571.7196755 | W125: =IFERROR((IF(SUMPRODUCT(MAX(ROW($D$2:$D124)*($D125=$D$2:$D124))-1)>SUMPRODUCT(MAX(ROW($C$2:$C124)*($D125=$C$2:$C124))-1),INDEX($Y$2:$Y124,SUMPRODUCT(MAX(ROW($D$2:$D124)*($D125=$D$2:$D124))-1)),INDEX($X$2:$X124,SUMPRODUCT(MAX(ROW($C$2:$C124)*($D125=$C$2:$C124))-1)))),_xlfn.IFNA(IF(VLOOKUP(D125,'30th June Rankings (Values)'!A:D,4,FALSE)>0,VLOOKUP(D125,'30th June Rankings (Values)'!A:D,4,FALSE),400),400)) -> 400.1567244 | X125: =20*(E125-(1/(1+(10^((W125-V125)/400)))))+V125 -> 577.14742 | Y125: =20*(F125-(1/(1+(10^((V125-W125)/400)))))+W125 -> 394.7289798 | Z125: =C125&D125 -> Rye AndersonAlex Shaffer | AA125: =VLOOKUP(L125,Countries!A:B,2,FALSE) -> USA | AB125: =IF(O125="","Y",(IF(Q125="","Y","N"))) -> N | AC125: =IF(O125=Q125,"Y","N") -> N | AD125: =IF(J125<(TODAY()-60),"N","Y") -> Y | AE125: =_xlfn.MAXIFS(B:B,I:I,I125) -> 5 | AF125: =IF(AE125<5,"RTT/Casual",(IF(M125="TRUE","RTT/Casual",(IF(COUNTIF(I125,"*Team*"),"RTT/Casual",(IF(COUNTIF(I125,"*Double*"),"RTT/Casual","GT"))))))) -> GT | AG125: =O125&Q125 -> Soulblight GravelordsMaggotkin of Nurgle | AH125: =MONTH(J125) -> 7 | AI125: =((COUNTIFS(I:I,I125))/AE125)*2 -> 25.2 | AJ125: =VLOOKUP(I125,Battleplans!A:F,Matches!B125+1,FALSE) -> Border War
A126: 576456 | B126: 4 | C126: Adam Schank | D126: Christopher Gosselin | E126: 0 | F126: 1 | G126: 6 | H126: 14 | I126: Age of Sigmar Grand Tournament- "Theatre of War" | J126: 2024-07-13T13:30:00 | K126: 2024-07-14T23:00:00 | L126: United States | M126: FALSE | N126: 2023 | O126: Hedonites of Slaanesh | P126: Seeker Cavalcade | Q126: Lumineth Realm-lords | U126: bcp | V126: =IFERROR((IF(SUMPRODUCT(MAX(ROW($C$2:$C125)*($C126=$C$2:$C125))-1)>SUMPRODUCT(MAX(ROW($D$2:$D125)*($C126=$D$2:$D125))-1),INDEX($X$2:$X125,SUMPRODUCT(MAX(ROW($C$2:$C125)*($C126=$C$2:$C125))-1)),INDEX($Y$2:$Y125,SUMPRODUCT(MAX(ROW($D$2:$D125)*($C126=$D$2:$D125))-1)))),_xlfn.IFNA(IF(VLOOKUP(C126,'30th June Rankings (Values)'!A:D,4,FALSE)>0,VLOOKUP(C126,'30th June Rankings (Values)'!A:D,4,FALSE),400),400)) -> 418.2038279 | W126: =IFERROR((IF(SUMPRODUCT(MAX(ROW($D$2:$D125)*($D126=$D$2:$D125))-1)>SUMPRODUCT(MAX(ROW($C$2:$C125)*($D126=$C$2:$C125))-1),INDEX($Y$2:$Y125,SUMPRODUCT(MAX(ROW($D$2:$D125)*($D126=$D$2:$D125))-1)),INDEX($X$2:$X125,SUMPRODUCT(MAX(ROW($C$2:$C125)*($D126=$C$2:$C125))-1)))),_xlfn.IFNA(IF(VLOOKUP(D126,'30th June Rankings (Values)'!A:D,4,FALSE)>0,VLOOKUP(D126,'30th June Rankings (Values)'!A:D,4,FALSE),400),400)) -> 409.6672166 | X126: =20*(E126-(1/(1+(10^((W126-V126)/400)))))+V126 -> 407.9581739 | Y126: =20*(F126-(1/(1+(10^((V126-W126)/400)))))+W126 -> 419.9128706 | Z126: =C126&D126 -> Adam SchankChristopher Gosselin | AA126: =VLOOKUP(L126,Countries!A:B,2,FALSE) -> USA | AB126: =IF(O126="","Y",(IF(Q126="","Y","N"))) -> N | AC126: =IF(O126=Q126,"Y","N") -> N | AD126: =IF(J126<(TODAY()-60),"N","Y") -> Y | AE126: =_xlfn.MAXIFS(B:B,I:I,I126) -> 5 | AF126: =IF(AE126<5,"RTT/Casual",(IF(M126="TRUE","RTT/Casual",(IF(COUNTIF(I126,"*Team*"),"RTT/Casual",(IF(COUNTIF(I126,"*Double*"),"RTT/Casual","GT"))))))) -> GT | AG126: =O126&Q126 -> Hedonites of SlaaneshLumineth Realm-lords | AH126: =MONTH(J126) -> 7 | AI126: =((COUNTIFS(I:I,I126))/AE126)*2 -> 25.2 | AJ126: =VLOOKUP(I126,Battleplans!A:F,Matches!B126+1,FALSE) -> Border War
A127: 576483 | B127: 4 | C127: Michael Giroux | D127: Don Leuschner | E127: 0 | F127: 1 | G127: 9 | H127: 11 | I127: Age of Sigmar Grand Tournament- "Theatre of War" | J127: 2024-07-13T13:30:00 | K127: 2024-07-14T23:00:00 | L127: United States | M127: FALSE | N127: 2023 | O127: Blades of Khorne | P127: Blades of Khorne | Q127: Gloomspite Gitz | R127: Troggherd | U127: bcp | V127: =IFERROR((IF(SUMPRODUCT(MAX(ROW($C$2:$C126)*($C127=$C$2:$C126))-1)>SUMPRODUCT(MAX(ROW($D$2:$D126)*($C127=$D$2:$D126))-1),INDEX($X$2:$X126,SUMPRODUCT(MAX(ROW($C$2:$C126)*($C127=$C$2:$C126))-1)),INDEX($Y$2:$Y126,SUMPRODUCT(MAX(ROW($D$2:$D126)*($C127=$D$2:$D126))-1)))),_xlfn.IFNA(IF(VLOOKUP(C127,'30th June Rankings (Values)'!A:D,4,FALSE)>0,VLOOKUP(C127,'30th June Rankings (Values)'!A:D,4,FALSE),400),400)) -> 345.3564892 | W127: =IFERROR((IF(SUMPRODUCT(MAX(ROW($D$2:$D126)*($D127=$D$2:$D126))-1)>SUMPRODUCT(MAX(ROW($C$2:$C126)*($D127=$C$2:$C126))-1),INDEX($Y$2:$Y126,SUMPRODUCT(MAX(ROW($D$2:$D126)*($D127=$D$2:$D126))-1)),INDEX($X$2:$X126,SUMPRODUCT(MAX(ROW($C$2:$C126)*($D127=$C$2:$C126))-1)))),_xlfn.IFNA(IF(VLOOKUP(D127,'30th June Rankings (Values)'!A:D,4,FALSE)>0,VLOOKUP(D127,'30th June Rankings (Values)'!A:D,4,FALSE),400),400)) -> 298.6322459 | X127: =20*(E127-(1/(1+(10^((W127-V127)/400)))))+V127 -> 334.0197066 | Y127: =20*(F127-(1/(1+(10^((V127-W127)/400)))))+W127 -> 309.9690285 | Z127: =C127&D127 -> Michael GirouxDon Leuschner | AA127: =VLOOKUP(L127,Countries!A:B,2,FALSE) -> USA | AB127: =IF(O127="","Y",(IF(Q127="","Y","N"))) -> N | AC127: =IF(O127=Q127,"Y","N") -> N | AD127: =IF(J127<(TODAY()-60),"N","Y") -> Y | AE127: =_xlfn.MAXIFS(B:B,I:I,I127) -> 5 | AF127: =IF(AE127<5,"RTT/Casual",(IF(M127="TRUE","RTT/Casual",(IF(COUNTIF(I127,"*Team*"),"RTT/Casual",(IF(COUNTIF(I127,"*Double*"),"RTT/Casual","GT"))))))) -> GT | AG127: =O127&Q127 -> Blades of KhorneGloomspite Gitz | AH127: =MONTH(J127) -> 7 | AI127: =((COUNTIFS(I:I,I127))/AE127)*2 -> 25.2 | AJ127: =VLOOKUP(I127,Battleplans!A:F,Matches!B127+1,FALSE) -> Border War
A128: 576522 | B128: 5 | C128: Michael Giroux | D128: Alex Frederick | E128: 1 | F128: 0 | G128: 12 | H128: 8 | I128: Age of Sigmar Grand Tournament- "Theatre of War" | J128: 2024-07-13T13:30:00 | K128: 2024-07-14T23:00:00 | L128: United States | M128: FALSE | N128: 2023 | O128: Blades of Khorne | P128: Blades of Khorne | Q128: Stormcast Eternals | R128: Prayers of the Stormhosts | U128: bcp | V128: =IFERROR((IF(SUMPRODUCT(MAX(ROW($C$2:$C127)*($C128=$C$2:$C127))-1)>SUMPRODUCT(MAX(ROW($D$2:$D127)*($C128=$D$2:$D127))-1),INDEX($X$2:$X127,SUMPRODUCT(MAX(ROW($C$2:$C127)*($C128=$C$2:$C127))-1)),INDEX($Y$2:$Y127,SUMPRODUCT(MAX(ROW($D$2:$D127)*($C128=$D$2:$D127))-1)))),_xlfn.IFNA(IF(VLOOKUP(C128,'30th June Rankings (Values)'!A:D,4,FALSE)>0,VLOOKUP(C128,'30th June Rankings (Values)'!A:D,4,FALSE),400),400)) -> 334.0197066 | W128: =IFERROR((IF(SUMPRODUCT(MAX(ROW($D$2:$D127)*($D128=$D$2:$D127))-1)>SUMPRODUCT(MAX(ROW($C$2:$C127)*($D128=$C$2:$C127))-1),INDEX($Y$2:$Y127,SUMPRODUCT(MAX(ROW($D$2:$D127)*($D128=$D$2:$D127))-1)),INDEX($X$2:$X127,SUMPRODUCT(MAX(ROW($C$2:$C127)*($D128=$C$2:$C127))-1)))),_xlfn.IFNA(IF(VLOOKUP(D128,'30th June Rankings (Values)'!A:D,4,FALSE)>0,VLOOKUP(D128,'30th June Rankings (Values)'!A:D,4,FALSE),400),400)) -> 353.6777923 | X128: =20*(E128-(1/(1+(10^((W128-V128)/400)))))+V128 -> 344.5849087 | Y128: =20*(F128-(1/(1+(10^((V128-W128)/400)))))+W128 -> 343.1125901 | Z128: =C128&D128 -> Michael GirouxAlex Frederick | AA128: =VLOOKUP(L128,Countries!A:B,2,FALSE) -> USA | AB128: =IF(O128="","Y",(IF(Q128="","Y","N"))) -> N | AC128: =IF(O128=Q128,"Y","N") -> N | AD128: =IF(J128<(TODAY()-60),"N","Y") -> Y | AE128: =_xlfn.MAXIFS(B:B,I:I,I128) -> 5 | AF128: =IF(AE128<5,"RTT/Casual",(IF(M128="TRUE","RTT/Casual",(IF(COUNTIF(I128,"*Team*"),"RTT/Casual",(IF(COUNTIF(I128,"*Double*"),"RTT/Casual","GT"))))))) -> GT | AG128: =O128&Q128 -> Blades of KhorneStormcast Eternals | AH128: =MONTH(J128) -> 7 | AI128: =((COUNTIFS(I:I,I128))/AE128)*2 -> 25.2 | AJ128: =VLOOKUP(I128,Battleplans!A:F,Matches!B128+1,FALSE) -> Feral Foray
A129: 576553 | B129: 5 | C129: Nik Greymaster | D129: Caroline Kimbles | E129: 1 | F129: 0 | G129: 12 | H129: 8 | I129: Age of Sigmar Grand Tournament- "Theatre of War" | J129: 2024-07-13T13:30:00 | K129: 2024-07-14T23:00:00 | L129: United States | M129: FALSE | N129: 2023 | O129: Lumineth Realm-lords | P129: Alarith Temple | Q129: Gloomspite Gitz | R129: Troggherd | U129: bcp | V129: =IFERROR((IF(SUMPRODUCT(MAX(ROW($C$2:$C128)*($C129=$C$2:$C128))-1)>SUMPRODUCT(MAX(ROW($D$2:$D128)*($C129=$D$2:$D128))-1),INDEX($X$2:$X128,SUMPRODUCT(MAX(ROW($C$2:$C128)*($C129=$C$2:$C128))-1)),INDEX($Y$2:$Y128,SUMPRODUCT(MAX(ROW($D$2:$D128)*($C129=$D$2:$D128))-1)))),_xlfn.IFNA(IF(VLOOKUP(C129,'30th June Rankings (Values)'!A:D,4,FALSE)>0,VLOOKUP(C129,'30th June Rankings (Values)'!A:D,4,FALSE),400),400)) -> 386.6578281 | W129: =IFERROR((IF(SUMPRODUCT(MAX(ROW($D$2:$D128)*($D129=$D$2:$D128))-1)>SUMPRODUCT(MAX(ROW($C$2:$C128)*($D129=$C$2:$C128))-1),INDEX($Y$2:$Y128,SUMPRODUCT(MAX(ROW($D$2:$D128)*($D129=$D$2:$D128))-1)),INDEX($X$2:$X128,SUMPRODUCT(MAX(ROW($C$2:$C128)*($D129=$C$2:$C128))-1)))),_xlfn.IFNA(IF(VLOOKUP(D129,'30th June Rankings (Values)'!A:D,4,FALSE)>0,VLOOKUP(D129,'30th June Rankings (Values)'!A:D,4,FALSE),400),400)) -> 364.1645099 | X129: =20*(E129-(1/(1+(10^((W129-V129)/400)))))+V129 -> 396.0113214 | Y129: =20*(F129-(1/(1+(10^((V129-W129)/400)))))+W129 -> 354.8110166 | Z129: =C129&D129 -> Nik GreymasterCaroline Kimbles | AA129: =VLOOKUP(L129,Countries!A:B,2,FALSE) -> USA | AB129: =IF(O129="","Y",(IF(Q129="","Y","N"))) -> N | AC129: =IF(O129=Q129,"Y","N") -> N | AD129: =IF(J129<(TODAY()-60),"N","Y") -> Y | AE129: =_xlfn.MAXIFS(B:B,I:I,I129) -> 5 | AF129: =IF(AE129<5,"RTT/Casual",(IF(M129="TRUE","RTT/Casual",(IF(COUNTIF(I129,"*Team*"),"RTT/Casual",(IF(COUNTIF(I129,"*Double*"),"RTT/Casual","GT"))))))) -> GT | AG129: =O129&Q129 -> Lumineth Realm-lordsGloomspite Gitz | AH129: =MONTH(J129) -> 7 | AI129: =((COUNTIFS(I:I,I129))/AE129)*2 -> 25.2 | AJ129: =VLOOKUP(I129,Battleplans!A:F,Matches!B129+1,FALSE) -> Feral Foray
A130: 576581 | B130: 5 | C130: Christopher Gosselin | D130: Harry Isaksson | E130: 0 | F130: 1 | G130: 8 | H130: 12 | I130: Age of Sigmar Grand Tournament- "Theatre of War" | J130: 2024-07-13T13:30:00 | K130: 2024-07-14T23:00:00 | L130: United States | M130: FALSE | N130: 2023 | O130: Lumineth Realm-lords | Q130: Seraphon | R130: Sunclaw Starhost | U130: bcp | V130: =IFERROR((IF(SUMPRODUCT(MAX(ROW($C$2:$C129)*($C130=$C$2:$C129))-1)>SUMPRODUCT(MAX(ROW($D$2:$D129)*($C130=$D$2:$D129))-1),INDEX($X$2:$X129,SUMPRODUCT(MAX(ROW($C$2:$C129)*($C130=$C$2:$C129))-1)),INDEX($Y$2:$Y129,SUMPRODUCT(MAX(ROW($D$2:$D129)*($C130=$D$2:$D129))-1)))),_xlfn.IFNA(IF(VLOOKUP(C130,'30th June Rankings (Values)'!A:D,4,FALSE)>0,VLOOKUP(C130,'30th June Rankings (Values)'!A:D,4,FALSE),400),400)) -> 419.9128706 | W130: =IFERROR((IF(SUMPRODUCT(MAX(ROW($D$2:$D129)*($D130=$D$2:$D129))-1)>SUMPRODUCT(MAX(ROW($C$2:$C129)*($D130=$C$2:$C129))-1),INDEX($Y$2:$Y129,SUMPRODUCT(MAX(ROW($D$2:$D129)*($D130=$D$2:$D129))-1)),INDEX($X$2:$X129,SUMPRODUCT(MAX(ROW($C$2:$C129)*($D130=$C$2:$C129))-1)))),_xlfn.IFNA(IF(VLOOKUP(D130,'30th June Rankings (Values)'!A:D,4,FALSE)>0,VLOOKUP(D130,'30th June Rankings (Values)'!A:D,4,FALSE),400),400)) -> 457.6726101 | X130: =20*(E130-(1/(1+(10^((W130-V130)/400)))))+V130 -> 410.9954244 | Y130: =20*(F130-(1/(1+(10^((V130-W130)/400)))))+W130 -> 466.5900563 | Z130: =C130&D130 -> Christopher GosselinHarry Isaksson | AA130: =VLOOKUP(L130,Countries!A:B,2,FALSE) -> USA | AB130: =IF(O130="","Y",(IF(Q130="","Y","N"))) -> N | AC130: =IF(O130=Q130,"Y","N") -> N | AD130: =IF(J130<(TODAY()-60),"N","Y") -> Y | AE130: =_xlfn.MAXIFS(B:B,I:I,I130) -> 5 | AF130: =IF(AE130<5,"RTT/Casual",(IF(M130="TRUE","RTT/Casual",(IF(COUNTIF(I130,"*Team*"),"RTT/Casual",(IF(COUNTIF(I130,"*Double*"),"RTT/Casual","GT"))))))) -> GT | AG130: =O130&Q130 -> Lumineth Realm-lordsSeraphon | AH130: =MONTH(J130) -> 7 | AI130: =((COUNTIFS(I:I,I130))/AE130)*2 -> 25.2 | AJ130: =VLOOKUP(I130,Battleplans!A:F,Matches!B130+1,FALSE) -> Feral Foray
A131: 576608 | B131: 5 | C131: Nick Rau | D131: Adrian Ybarra | E131: 1 | F131: 0 | G131: 11 | H131: 9 | I131: Age of Sigmar Grand Tournament- "Theatre of War" | J131: 2024-07-13T13:30:00 | K131: 2024-07-14T23:00:00 | L131: United States | M131: FALSE | N131: 2023 | O131: Lumineth Realm-lords | P131: Vanari Battlehost | Q131: Seraphon | R131: Sunclaw Starhost | U131: bcp | V131: =IFERROR((IF(SUMPRODUCT(MAX(ROW($C$2:$C130)*($C131=$C$2:$C130))-1)>SUMPRODUCT(MAX(ROW($D$2:$D130)*($C131=$D$2:$D130))-1),INDEX($X$2:$X130,SUMPRODUCT(MAX(ROW($C$2:$C130)*($C131=$C$2:$C130))-1)),INDEX($Y$2:$Y130,SUMPRODUCT(MAX(ROW($D$2:$D130)*($C131=$D$2:$D130))-1)))),_xlfn.IFNA(IF(VLOOKUP(C131,'30th June Rankings (Values)'!A:D,4,FALSE)>0,VLOOKUP(C131,'30th June Rankings (Values)'!A:D,4,FALSE),400),400)) -> 512.9960714 | W131: =IFERROR((IF(SUMPRODUCT(MAX(ROW($D$2:$D130)*($D131=$D$2:$D130))-1)>SUMPRODUCT(MAX(ROW($C$2:$C130)*($D131=$C$2:$C130))-1),INDEX($Y$2:$Y130,SUMPRODUCT(MAX(ROW($D$2:$D130)*($D131=$D$2:$D130))-1)),INDEX($X$2:$X130,SUMPRODUCT(MAX(ROW($C$2:$C130)*($D131=$C$2:$C130))-1)))),_xlfn.IFNA(IF(VLOOKUP(D131,'30th June Rankings (Values)'!A:D,4,FALSE)>0,VLOOKUP(D131,'30th June Rankings (Values)'!A:D,4,FALSE),400),400)) -> 505.4761376 | X131: =20*(E131-(1/(1+(10^((W131-V131)/400)))))+V131 -> 522.7796641 | Y131: =20*(F131-(1/(1+(10^((V131-W131)/400)))))+W131 -> 495.6925449 | Z131: =C131&D131 -> Nick RauAdrian Ybarra | AA131: =VLOOKUP(L131,Countries!A:B,2,FALSE) -> USA | AB131: =IF(O131="","Y",(IF(Q131="","Y","N"))) -> N | AC131: =IF(O131=Q131,"Y","N") -> N | AD131: =IF(J131<(TODAY()-60),"N","Y") -> Y | AE131: =_xlfn.MAXIFS(B:B,I:I,I131) -> 5 | AF131: =IF(AE131<5,"RTT/Casual",(IF(M131="TRUE","RTT/Casual",(IF(COUNTIF(I131,"*Team*"),"RTT/Casual",(IF(COUNTIF(I131,"*Double*"),"RTT/Casual","GT"))))))) -> GT | AG131: =O131&Q131 -> Lumineth Realm-lordsSeraphon | AH131: =MONTH(J131) -> 7 | AI131: =((COUNTIFS(I:I,I131))/AE131)*2 -> 25.2 | AJ131: =VLOOKUP(I131,Battleplans!A:F,Matches!B131+1,FALSE) -> Feral Foray
A132: 576635 | B132: 5 | C132: Scott Dielman | D132: Nick R | E132: 1 | F132: 0 | G132: 19 | H132: 1 | I132: Age of Sigmar Grand Tournament- "Theatre of War" | J132: 2024-07-13T13:30:00 | K132: 2024-07-14T23:00:00 | L132: United States | M132: FALSE | N132: 2023 | O132: Seraphon | P132: Shadowstrike Starhost | Q132: Nighthaunt | R132: Death Stalkers | U132: bcp | V132: =IFERROR((IF(SUMPRODUCT(MAX(ROW($C$2:$C131)*($C132=$C$2:$C131))-1)>SUMPRODUCT(MAX(ROW($D$2:$D131)*($C132=$D$2:$D131))-1),INDEX($X$2:$X131,SUMPRODUCT(MAX(ROW($C$2:$C131)*($C132=$C$2:$C131))-1)),INDEX($Y$2:$Y131,SUMPRODUCT(MAX(ROW($D$2:$D131)*($C132=$D$2:$D131))-1)))),_xlfn.IFNA(IF(VLOOKUP(C132,'30th June Rankings (Values)'!A:D,4,FALSE)>0,VLOOKUP(C132,'30th June Rankings (Values)'!A:D,4,FALSE),400),400)) -> 438.9015849 | W132: =IFERROR((IF(SUMPRODUCT(MAX(ROW($D$2:$D131)*($D132=$D$2:$D131))-1)>SUMPRODUCT(MAX(ROW($C$2:$C131)*($D132=$C$2:$C131))-1),INDEX($Y$2:$Y131,SUMPRODUCT(MAX(ROW($D$2:$D131)*($D132=$D$2:$D131))-1)),INDEX($X$2:$X131,SUMPRODUCT(MAX(ROW($C$2:$C131)*($D132=$C$2:$C131))-1)))),_xlfn.IFNA(IF(VLOOKUP(D132,'30th June Rankings (Values)'!A:D,4,FALSE)>0,VLOOKUP(D132,'30th June Rankings (Values)'!A:D,4,FALSE),400),400)) -> 359.7931099 | X132: =20*(E132-(1/(1+(10^((W132-V132)/400)))))+V132 -> 446.663209 | Y132: =20*(F132-(1/(1+(10^((V132-W132)/400)))))+W132 -> 352.0314859 | Z132: =C132&D132 -> Scott DielmanNick R | AA132: =VLOOKUP(L132,Countries!A:B,2,FALSE) -> USA | AB132: =IF(O132="","Y",(IF(Q132="","Y","N"))) -> N | AC132: =IF(O132=Q132,"Y","N") -> N | AD132: =IF(J132<(TODAY()-60),"N","Y") -> Y | AE132: =_xlfn.MAXIFS(B:B,I:I,I132) -> 5 | AF132: =IF(AE132<5,"RTT/Casual",(IF(M132="TRUE","RTT/Casual",(IF(COUNTIF(I132,"*Team*"),"RTT/Casual",(IF(COUNTIF(I132,"*Double*"),"RTT/Casual","GT"))))))) -> GT | AG132: =O132&Q132 -> SeraphonNighthaunt | AH132: =MONTH(J132) -> 7 | AI132: =((COUNTIFS(I:I,I132))/AE132)*2 -> 25.2 | AJ132: =VLOOKUP(I132,Battleplans!A:F,Matches!B132+1,FALSE) -> Feral Foray
A133: 576666 | B133: 5 | C133: Corry Wiggins | D133: Rye Anderson | E133: 0 | F133: 1 | G133: 5 | H133: 15 | I133: Age of Sigmar Grand Tournament- "Theatre of War" | J133: 2024-07-13T13:30:00 | K133: 2024-07-14T23:00:00 | L133: United States | M133: FALSE | N133: 2023 | O133: Slaves to Darkness | P133: Godswrath Warband | Q133: Soulblight Gravelords | R133: Tide of Bones & Blades | U133: bcp | V133: =IFERROR((IF(SUMPRODUCT(MAX(ROW($C$2:$C132)*($C133=$C$2:$C132))-1)>SUMPRODUCT(MAX(ROW($D$2:$D132)*($C133=$D$2:$D132))-1),INDEX($X$2:$X132,SUMPRODUCT(MAX(ROW($C$2:$C132)*($C133=$C$2:$C132))-1)),INDEX($Y$2:$Y132,SUMPRODUCT(MAX(ROW($D$2:$D132)*($C133=$D$2:$D132))-1)))),_xlfn.IFNA(IF(VLOOKUP(C133,'30th June Rankings (Values)'!A:D,4,FALSE)>0,VLOOKUP(C133,'30th June Rankings (Values)'!A:D,4,FALSE),400),400)) -> 521.2184045 | W133: =IFERROR((IF(SUMPRODUCT(MAX(ROW($D$2:$D132)*($D133=$D$2:$D132))-1)>SUMPRODUCT(MAX(ROW($C$2:$C132)*($D133=$C$2:$C132))-1),INDEX($Y$2:$Y132,SUMPRODUCT(MAX(ROW($D$2:$D132)*($D133=$D$2:$D132))-1)),INDEX($X$2:$X132,SUMPRODUCT(MAX(ROW($C$2:$C132)*($D133=$C$2:$C132))-1)))),_xlfn.IFNA(IF(VLOOKUP(D133,'30th June Rankings (Values)'!A:D,4,FALSE)>0,VLOOKUP(D133,'30th June Rankings (Values)'!A:D,4,FALSE),400),400)) -> 577.14742 | X133: =20*(E133-(1/(1+(10^((W133-V133)/400)))))+V133 -> 512.8144087 | Y133: =20*(F133-(1/(1+(10^((V133-W133)/400)))))+W133 -> 585.5514158 | Z133: =C133&D133 -> Corry WigginsRye Anderson | AA133: =VLOOKUP(L133,Countries!A:B,2,FALSE) -> USA | AB133: =IF(O133="","Y",(IF(Q133="","Y","N"))) -> N | AC133: =IF(O133=Q133,"Y","N") -> N | AD133: =IF(J133<(TODAY()-60),"N","Y") -> Y | AE133: =_xlfn.MAXIFS(B:B,I:I,I133) -> 5 | AF133: =IF(AE133<5,"RTT/Casual",(IF(M133="TRUE","RTT/Casual",(IF(COUNTIF(I133,"*Team*"),"RTT/Casual",(IF(COUNTIF(I133,"*Double*"),"RTT/Casual","GT"))))))) -> GT | AG133: =O133&Q133 -> Slaves to DarknessSoulblight Gravelords | AH133: =MONTH(J133) -> 7 | AI133: =((COUNTIFS(I:I,I133))/AE133)*2 -> 25.2 | AJ133: =VLOOKUP(I133,Battleplans!A:F,Matches!B133+1,FALSE) -> Feral Foray
A134: 576695 | B134: 5 | C134: Josh Kale | D134: Bill Keeler | E134: 0 | F134: 1 | G134: 7 | H134: 13 | I134: Age of Sigmar Grand Tournament- "Theatre of War" | J134: 2024-07-13T13:30:00 | K134: 2024-07-14T23:00:00 | L134: United States | M134: FALSE | N134: 2023 | Q134: Ironjawz | R134: Ironfist | U134: bcp | V134: =IFERROR((IF(SUMPRODUCT(MAX(ROW($C$2:$C133)*($C134=$C$2:$C133))-1)>SUMPRODUCT(MAX(ROW($D$2:$D133)*($C134=$D$2:$D133))-1),INDEX($X$2:$X133,SUMPRODUCT(MAX(ROW($C$2:$C133)*($C134=$C$2:$C133))-1)),INDEX($Y$2:$Y133,SUMPRODUCT(MAX(ROW($D$2:$D133)*($C134=$D$2:$D133))-1)))),_xlfn.IFNA(IF(VLOOKUP(C134,'30th June Rankings (Values)'!A:D,4,FALSE)>0,VLOOKUP(C134,'30th June Rankings (Values)'!A:D,4,FALSE),400),400)) -> 386.782378 | W134: =IFERROR((IF(SUMPRODUCT(MAX(ROW($D$2:$D133)*($D134=$D$2:$D133))-1)>SUMPRODUCT(MAX(ROW($C$2:$C133)*($D134=$C$2:$C133))-1),INDEX($Y$2:$Y133,SUMPRODUCT(MAX(ROW($D$2:$D133)*($D134=$D$2:$D133))-1)),INDEX($X$2:$X133,SUMPRODUCT(MAX(ROW($C$2:$C133)*($D134=$C$2:$C133))-1)))),_xlfn.IFNA(IF(VLOOKUP(D134,'30th June Rankings (Values)'!A:D,4,FALSE)>0,VLOOKUP(D134,'30th June Rankings (Values)'!A:D,4,FALSE),400),400)) -> 520.7990172 | X134: =20*(E134-(1/(1+(10^((W134-V134)/400)))))+V134 -> 380.4591185 | Y134: =20*(F134-(1/(1+(10^((V134-W134)/400)))))+W134 -> 527.1222767 | Z134: =C134&D134 -> Josh KaleBill Keeler | AA134: =VLOOKUP(L134,Countries!A:B,2,FALSE) -> USA | AB134: =IF(O134="","Y",(IF(Q134="","Y","N"))) -> Y | AC134: =IF(O134=Q134,"Y","N") -> N | AD134: =IF(J134<(TODAY()-60),"N","Y") -> Y | AE134: =_xlfn.MAXIFS(B:B,I:I,I134) -> 5 | AF134: =IF(AE134<5,"RTT/Casual",(IF(M134="TRUE","RTT/Casual",(IF(COUNTIF(I134,"*Team*"),"RTT/Casual",(IF(COUNTIF(I134,"*Double*"),"RTT/Casual","GT"))))))) -> GT | AG134: =O134&Q134 -> Ironjawz | AH134: =MONTH(J134) -> 7 | AI134: =((COUNTIFS(I:I,I134))/AE134)*2 -> 25.2 | AJ134: =VLOOKUP(I134,Battleplans!A:F,Matches!B134+1,FALSE) -> Feral Foray
A135: 576719 | B135: 5 | C135: Vlad Kokorev | D135: David Manley | E135: 1 | F135: 0 | G135: 18 | H135: 2 | I135: Age of Sigmar Grand Tournament- "Theatre of War" | J135: 2024-07-13T13:30:00 | K135: 2024-07-14T23:00:00 | L135: United States | M135: FALSE | N135: 2023 | O135: Slaves to Darkness | P135: Godsworn Warband | Q135: Sons of Behemat | R135: Breaker Tribe | U135: bcp | V135: =IFERROR((IF(SUMPRODUCT(MAX(ROW($C$2:$C134)*($C135=$C$2:$C134))-1)>SUMPRODUCT(MAX(ROW($D$2:$D134)*($C135=$D$2:$D134))-1),INDEX($X$2:$X134,SUMPRODUCT(MAX(ROW($C$2:$C134)*($C135=$C$2:$C134))-1)),INDEX($Y$2:$Y134,SUMPRODUCT(MAX(ROW($D$2:$D134)*($C135=$D$2:$D134))-1)))),_xlfn.IFNA(IF(VLOOKUP(C135,'30th June Rankings (Values)'!A:D,4,FALSE)>0,VLOOKUP(C135,'30th June Rankings (Values)'!A:D,4,FALSE),400),400)) -> 421.8477648 | W135: =IFERROR((IF(SUMPRODUCT(MAX(ROW($D$2:$D134)*($D135=$D$2:$D134))-1)>SUMPRODUCT(MAX(ROW($C$2:$C134)*($D135=$C$2:$C134))-1),INDEX($Y$2:$Y134,SUMPRODUCT(MAX(ROW($D$2:$D134)*($D135=$D$2:$D134))-1)),INDEX($X$2:$X134,SUMPRODUCT(MAX(ROW($C$2:$C134)*($D135=$C$2:$C134))-1)))),_xlfn.IFNA(IF(VLOOKUP(D135,'30th June Rankings (Values)'!A:D,4,FALSE)>0,VLOOKUP(D135,'30th June Rankings (Values)'!A:D,4,FALSE),400),400)) -> 372.1011678 | X135: =20*(E135-(1/(1+(10^((W135-V135)/400)))))+V135 -> 430.4256477 | Y135: =20*(F135-(1/(1+(10^((V135-W135)/400)))))+W135 -> 363.5232848 | Z135: =C135&D135 -> Vlad KokorevDavid Manley | AA135: =VLOOKUP(L135,Countries!A:B,2,FALSE) -> USA | AB135: =IF(O135="","Y",(IF(Q135="","Y","N"))) -> N | AC135: =IF(O135=Q135,"Y","N") -> N | AD135: =IF(J135<(TODAY()-60),"N","Y") -> Y | AE135: =_xlfn.MAXIFS(B:B,I:I,I135) -> 5 | AF135: =IF(AE135<5,"RTT/Casual",(IF(M135="TRUE","RTT/Casual",(IF(COUNTIF(I135,"*Team*"),"RTT/Casual",(IF(COUNTIF(I135,"*Double*"),"RTT/Casual","GT"))))))) -> GT | AG135: =O135&Q135 -> Slaves to DarknessSons of Behemat | AH135: =MONTH(J135) -> 7 | AI135: =((COUNTIFS(I:I,I135))/AE135)*2 -> 25.2 | AJ135: =VLOOKUP(I135,Battleplans!A:F,Matches!B135+1,FALSE) -> Feral Foray
A136: 576740 | B136: 5 | C136: Gary Keeler | D136: Alex Shaffer | E136: 1 | F136: 0 | G136: 11 | H136: 9 | I136: Age of Sigmar Grand Tournament- "Theatre of War" | J136: 2024-07-13T13:30:00 | K136: 2024-07-14T23:00:00 | L136: United States | M136: FALSE | N136: 2023 | O136: Hedonites of Slaanesh | P136: Lore of Extravagance | Q136: Maggotkin of Nurgle | R136: Affliction Cyst | U136: bcp | V136: =IFERROR((IF(SUMPRODUCT(MAX(ROW($C$2:$C135)*($C136=$C$2:$C135))-1)>SUMPRODUCT(MAX(ROW($D$2:$D135)*($C136=$D$2:$D135))-1),INDEX($X$2:$X135,SUMPRODUCT(MAX(ROW($C$2:$C135)*($C136=$C$2:$C135))-1)),INDEX($Y$2:$Y135,SUMPRODUCT(MAX(ROW($D$2:$D135)*($C136=$D$2:$D135))-1)))),_xlfn.IFNA(IF(VLOOKUP(C136,'30th June Rankings (Values)'!A:D,4,FALSE)>0,VLOOKUP(C136,'30th June Rankings (Values)'!A:D,4,FALSE),400),400)) -> 400.0786177 | W136: =IFERROR((IF(SUMPRODUCT(MAX(ROW($D$2:$D135)*($D136=$D$2:$D135))-1)>SUMPRODUCT(MAX(ROW($C$2:$C135)*($D136=$C$2:$C135))-1),INDEX($Y$2:$Y135,SUMPRODUCT(MAX(ROW($D$2:$D135)*($D136=$D$2:$D135))-1)),INDEX($X$2:$X135,SUMPRODUCT(MAX(ROW($C$2:$C135)*($D136=$C$2:$C135))-1)))),_xlfn.IFNA(IF(VLOOKUP(D136,'30th June Rankings (Values)'!A:D,4,FALSE)>0,VLOOKUP(D136,'30th June Rankings (Values)'!A:D,4,FALSE),400),400)) -> 394.7289798 | X136: =20*(E136-(1/(1+(10^((W136-V136)/400)))))+V136 -> 409.9246549 | Y136: =20*(F136-(1/(1+(10^((V136-W136)/400)))))+W136 -> 384.8829426 | Z136: =C136&D136 -> Gary KeelerAlex Shaffer | AA136: =VLOOKUP(L136,Countries!A:B,2,FALSE) -> USA | AB136: =IF(O136="","Y",(IF(Q136="","Y","N"))) -> N | AC136: =IF(O136=Q136,"Y","N") -> N | AD136: =IF(J136<(TODAY()-60),"N","Y") -> Y | AE136: =_xlfn.MAXIFS(B:B,I:I,I136) -> 5 | AF136: =IF(AE136<5,"RTT/Casual",(IF(M136="TRUE","RTT/Casual",(IF(COUNTIF(I136,"*Team*"),"RTT/Casual",(IF(COUNTIF(I136,"*Double*"),"RTT/Casual","GT"))))))) -> GT | AG136: =O136&Q136 -> Hedonites of SlaaneshMaggotkin of Nurgle | AH136: =MONTH(J136) -> 7 | AI136: =((COUNTIFS(I:I,I136))/AE136)*2 -> 25.2 | AJ136: =VLOOKUP(I136,Battleplans!A:F,Matches!B136+1,FALSE) -> Feral Foray
A137: 576779 | B137: 5 | C137: Charlie Mahoney | D137: Andrew Martin | E137: 0 | F137: 1 | G137: 9 | H137: 11 | I137: Age of Sigmar Grand Tournament- "Theatre of War" | J137: 2024-07-13T13:30:00 | K137: 2024-07-14T23:00:00 | L137: United States | M137: FALSE | N137: 2023 | O137: Fyreslayers | P137: Warrior Kinband | Q137: Beasts of Chaos | R137: Hungering Warherd | U137: bcp | V137: =IFERROR((IF(SUMPRODUCT(MAX(ROW($C$2:$C136)*($C137=$C$2:$C136))-1)>SUMPRODUCT(MAX(ROW($D$2:$D136)*($C137=$D$2:$D136))-1),INDEX($X$2:$X136,SUMPRODUCT(MAX(ROW($C$2:$C136)*($C137=$C$2:$C136))-1)),INDEX($Y$2:$Y136,SUMPRODUCT(MAX(ROW($D$2:$D136)*($C137=$D$2:$D136))-1)))),_xlfn.IFNA(IF(VLOOKUP(C137,'30th June Rankings (Values)'!A:D,4,FALSE)>0,VLOOKUP(C137,'30th June Rankings (Values)'!A:D,4,FALSE),400),400)) -> 335.643838 | W137: =IFERROR((IF(SUMPRODUCT(MAX(ROW($D$2:$D136)*($D137=$D$2:$D136))-1)>SUMPRODUCT(MAX(ROW($C$2:$C136)*($D137=$C$2:$C136))-1),INDEX($Y$2:$Y136,SUMPRODUCT(MAX(ROW($D$2:$D136)*($D137=$D$2:$D136))-1)),INDEX($X$2:$X136,SUMPRODUCT(MAX(ROW($C$2:$C136)*($D137=$C$2:$C136))-1)))),_xlfn.IFNA(IF(VLOOKUP(D137,'30th June Rankings (Values)'!A:D,4,FALSE)>0,VLOOKUP(D137,'30th June Rankings (Values)'!A:D,4,FALSE),400),400)) -> 324.9419726 | X137: =20*(E137-(1/(1+(10^((W137-V137)/400)))))+V137 -> 325.3359109 | Y137: =20*(F137-(1/(1+(10^((V137-W137)/400)))))+W137 -> 335.2498997 | Z137: =C137&D137 -> Charlie MahoneyAndrew Martin | AA137: =VLOOKUP(L137,Countries!A:B,2,FALSE) -> USA | AB137: =IF(O137="","Y",(IF(Q137="","Y","N"))) -> N | AC137: =IF(O137=Q137,"Y","N") -> N | AD137: =IF(J137<(TODAY()-60),"N","Y") -> Y | AE137: =_xlfn.MAXIFS(B:B,I:I,I137) -> 5 | AF137: =IF(AE137<5,"RTT/Casual",(IF(M137="TRUE","RTT/Casual",(IF(COUNTIF(I137,"*Team*"),"RTT/Casual",(IF(COUNTIF(I137,"*Double*"),"RTT/Casual","GT"))))))) -> GT | AG137: =O137&Q137 -> FyreslayersBeasts of Chaos | AH137: =MONTH(J137) -> 7 | AI137: =((COUNTIFS(I:I,I137))/AE137)*2 -> 25.2 | AJ137: =VLOOKUP(I137,Battleplans!A:F,Matches!B137+1,FALSE) -> Feral Foray
A138: 576812 | B138: 5 | C138: Zak Frederick | D138: Don Leuschner | E138: 0 | F138: 1 | G138: 7 | H138: 13 | I138: Age of Sigmar Grand Tournament- "Theatre of War" | J138: 2024-07-13T13:30:00 | K138: 2024-07-14T23:00:00 | L138: United States | M138: FALSE | N138: 2023 | O138: Ironjawz | Q138: Gloomspite Gitz | R138: Troggherd | U138: bcp | V138: =IFERROR((IF(SUMPRODUCT(MAX(ROW($C$2:$C137)*($C138=$C$2:$C137))-1)>SUMPRODUCT(MAX(ROW($D$2:$D137)*($C138=$D$2:$D137))-1),INDEX($X$2:$X137,SUMPRODUCT(MAX(ROW($C$2:$C137)*($C138=$C$2:$C137))-1)),INDEX($Y$2:$Y137,SUMPRODUCT(MAX(ROW($D$2:$D137)*($C138=$D$2:$D137))-1)))),_xlfn.IFNA(IF(VLOOKUP(C138,'30th June Rankings (Values)'!A:D,4,FALSE)>0,VLOOKUP(C138,'30th June Rankings (Values)'!A:D,4,FALSE),400),400)) -> 483.0083562 | W138: =IFERROR((IF(SUMPRODUCT(MAX(ROW($D$2:$D137)*($D138=$D$2:$D137))-1)>SUMPRODUCT(MAX(ROW($C$2:$C137)*($D138=$C$2:$C137))-1),INDEX($Y$2:$Y137,SUMPRODUCT(MAX(ROW($D$2:$D137)*($D138=$D$2:$D137))-1)),INDEX($X$2:$X137,SUMPRODUCT(MAX(ROW($C$2:$C137)*($D138=$C$2:$C137))-1)))),_xlfn.IFNA(IF(VLOOKUP(D138,'30th June Rankings (Values)'!A:D,4,FALSE)>0,VLOOKUP(D138,'30th June Rankings (Values)'!A:D,4,FALSE),400),400)) -> 309.9690285 | X138: =20*(E138-(1/(1+(10^((W138-V138)/400)))))+V138 -> 468.402556 | Y138: =20*(F138-(1/(1+(10^((V138-W138)/400)))))+W138 -> 324.5748286 | Z138: =C138&D138 -> Zak FrederickDon Leuschner | AA138: =VLOOKUP(L138,Countries!A:B,2,FALSE) -> USA | AB138: =IF(O138="","Y",(IF(Q138="","Y","N"))) -> N | AC138: =IF(O138=Q138,"Y","N") -> N | AD138: =IF(J138<(TODAY()-60),"N","Y") -> Y | AE138: =_xlfn.MAXIFS(B:B,I:I,I138) -> 5 | AF138: =IF(AE138<5,"RTT/Casual",(IF(M138="TRUE","RTT/Casual",(IF(COUNTIF(I138,"*Team*"),"RTT/Casual",(IF(COUNTIF(I138,"*Double*"),"RTT/Casual","GT"))))))) -> GT | AG138: =O138&Q138 -> IronjawzGloomspite Gitz | AH138: =MONTH(J138) -> 7 | AI138: =((COUNTIFS(I:I,I138))/AE138)*2 -> 25.2 | AJ138: =VLOOKUP(I138,Battleplans!A:F,Matches!B138+1,FALSE) -> Feral Foray
A139: 576842 | B139: 5 | C139: Adam Schank | D139: Andrew Hoffmann | E139: 0 | F139: 1 | G139: 4 | H139: 16 | I139: Age of Sigmar Grand Tournament- "Theatre of War" | J139: 2024-07-13T13:30:00 | K139: 2024-07-14T23:00:00 | L139: United States | M139: FALSE | N139: 2023 | O139: Hedonites of Slaanesh | P139: Seeker Cavalcade | Q139: Nighthaunt | R139: Death Stalkers | U139: bcp | V139: =IFERROR((IF(SUMPRODUCT(MAX(ROW($C$2:$C138)*($C139=$C$2:$C138))-1)>SUMPRODUCT(MAX(ROW($D$2:$D138)*($C139=$D$2:$D138))-1),INDEX($X$2:$X138,SUMPRODUCT(MAX(ROW($C$2:$C138)*($C139=$C$2:$C138))-1)),INDEX($Y$2:$Y138,SUMPRODUCT(MAX(ROW($D$2:$D138)*($C139=$D$2:$D138))-1)))),_xlfn.IFNA(IF(VLOOKUP(C139,'30th June Rankings (Values)'!A:D,4,FALSE)>0,VLOOKUP(C139,'30th June Rankings (Values)'!A:D,4,FALSE),400),400)) -> 407.9581739 | W139: =IFERROR((IF(SUMPRODUCT(MAX(ROW($D$2:$D138)*($D139=$D$2:$D138))-1)>SUMPRODUCT(MAX(ROW($C$2:$C138)*($D139=$C$2:$C138))-1),INDEX($Y$2:$Y138,SUMPRODUCT(MAX(ROW($D$2:$D138)*($D139=$D$2:$D138))-1)),INDEX($X$2:$X138,SUMPRODUCT(MAX(ROW($C$2:$C138)*($D139=$C$2:$C138))-1)))),_xlfn.IFNA(IF(VLOOKUP(D139,'30th June Rankings (Values)'!A:D,4,FALSE)>0,VLOOKUP(D139,'30th June Rankings (Values)'!A:D,4,FALSE),400),400)) -> 416.1351592 | X139: =20*(E139-(1/(1+(10^((W139-V139)/400)))))+V139 -> 398.193483 | Y139: =20*(F139-(1/(1+(10^((V139-W139)/400)))))+W139 -> 425.8998501 | Z139: =C139&D139 -> Adam SchankAndrew Hoffmann | AA139: =VLOOKUP(L139,Countries!A:B,2,FALSE) -> USA | AB139: =IF(O139="","Y",(IF(Q139="","Y","N"))) -> N | AC139: =IF(O139=Q139,"Y","N") -> N | AD139: =IF(J139<(TODAY()-60),"N","Y") -> Y | AE139: =_xlfn.MAXIFS(B:B,I:I,I139) -> 5 | AF139: =IF(AE139<5,"RTT/Casual",(IF(M139="TRUE","RTT/Casual",(IF(COUNTIF(I139,"*Team*"),"RTT/Casual",(IF(COUNTIF(I139,"*Double*"),"RTT/Casual","GT"))))))) -> GT | AG139: =O139&Q139 -> Hedonites of SlaaneshNighthaunt | AH139: =MONTH(J139) -> 7 | AI139: =((COUNTIFS(I:I,I139))/AE139)*2 -> 25.2 | AJ139: =VLOOKUP(I139,Battleplans!A:F,Matches!B139+1,FALSE) -> Feral Foray
A140: 575635 | B140: 1 | C140: Andrew Nguyen | D140: Eric Tolar | E140: 0 | F140: 1 | G140: 12 | H140: 48 | I140: Vantastic GT | J140: 2024-07-13T14:00:00 | K140: 2024-07-15 | L140: US | M140: FALSE | N140: 2023 | O140: Cities of Sigmar | P140: Ironweld Guild Army | Q140: Stormcast Eternals | R140: Sent to chance | U140: bcp | V140: =IFERROR((IF(SUMPRODUCT(MAX(ROW($C$2:$C139)*($C140=$C$2:$C139))-1)>SUMPRODUCT(MAX(ROW($D$2:$D139)*($C140=$D$2:$D139))-1),INDEX($X$2:$X139,SUMPRODUCT(MAX(ROW($C$2:$C139)*($C140=$C$2:$C139))-1)),INDEX($Y$2:$Y139,SUMPRODUCT(MAX(ROW($D$2:$D139)*($C140=$D$2:$D139))-1)))),_xlfn.IFNA(IF(VLOOKUP(C140,'30th June Rankings (Values)'!A:D,4,FALSE)>0,VLOOKUP(C140,'30th June Rankings (Values)'!A:D,4,FALSE),400),400)) -> 403.7590484 | W140: =IFERROR((IF(SUMPRODUCT(MAX(ROW($D$2:$D139)*($D140=$D$2:$D139))-1)>SUMPRODUCT(MAX(ROW($C$2:$C139)*($D140=$C$2:$C139))-1),INDEX($Y$2:$Y139,SUMPRODUCT(MAX(ROW($D$2:$D139)*($D140=$D$2:$D139))-1)),INDEX($X$2:$X139,SUMPRODUCT(MAX(ROW($C$2:$C139)*($D140=$C$2:$C139))-1)))),_xlfn.IFNA(IF(VLOOKUP(D140,'30th June Rankings (Values)'!A:D,4,FALSE)>0,VLOOKUP(D140,'30th June Rankings (Values)'!A:D,4,FALSE),400),400)) -> 499.4596428 | X140: =20*(E140-(1/(1+(10^((W140-V140)/400)))))+V140 -> 396.4459215 | Y140: =20*(F140-(1/(1+(10^((V140-W140)/400)))))+W140 -> 506.7727697 | Z140: =C140&D140 -> Andrew NguyenEric Tolar | AA140: =VLOOKUP(L140,Countries!A:B,2,FALSE) -> USA | AB140: =IF(O140="","Y",(IF(Q140="","Y","N"))) -> N | AC140: =IF(O140=Q140,"Y","N") -> N | AD140: =IF(J140<(TODAY()-60),"N","Y") -> Y | AE140: =_xlfn.MAXIFS(B:B,I:I,I140) -> 5 | AF140: =IF(AE140<5,"RTT/Casual",(IF(M140="TRUE","RTT/Casual",(IF(COUNTIF(I140,"*Team*"),"RTT/Casual",(IF(COUNTIF(I140,"*Double*"),"RTT/Casual","GT"))))))) -> GT | AG140: =O140&Q140 -> Cities of SigmarStormcast Eternals | AH140: =MONTH(J140) -> 7 | AI140: =((COUNTIFS(I:I,I140))/AE140)*2 -> 18 | AJ140: =VLOOKUP(I140,Battleplans!A:F,Matches!B140+1,FALSE) -> The Vice
A141: 575660 | B141: 1 | C141: Schriever Bourgeois | D141: Adam Grant | E141: 0 | F141: 1 | G141: 18 | H141: 44 | I141: Vantastic GT | J141: 2024-07-13T14:00:00 | K141: 2024-07-15 | L141: US | M141: FALSE | N141: 2023 | Q141: Gloomspite Gitz | R141: Troggherd | U141: bcp | V141: =IFERROR((IF(SUMPRODUCT(MAX(ROW($C$2:$C140)*($C141=$C$2:$C140))-1)>SUMPRODUCT(MAX(ROW($D$2:$D140)*($C141=$D$2:$D140))-1),INDEX($X$2:$X140,SUMPRODUCT(MAX(ROW($C$2:$C140)*($C141=$C$2:$C140))-1)),INDEX($Y$2:$Y140,SUMPRODUCT(MAX(ROW($D$2:$D140)*($C141=$D$2:$D140))-1)))),_xlfn.IFNA(IF(VLOOKUP(C141,'30th June Rankings (Values)'!A:D,4,FALSE)>0,VLOOKUP(C141,'30th June Rankings (Values)'!A:D,4,FALSE),400),400)) -> 405.4995992 | W141: =IFERROR((IF(SUMPRODUCT(MAX(ROW($D$2:$D140)*($D141=$D$2:$D140))-1)>SUMPRODUCT(MAX(ROW($C$2:$C140)*($D141=$C$2:$C140))-1),INDEX($Y$2:$Y140,SUMPRODUCT(MAX(ROW($D$2:$D140)*($D141=$D$2:$D140))-1)),INDEX($X$2:$X140,SUMPRODUCT(MAX(ROW($C$2:$C140)*($D141=$C$2:$C140))-1)))),_xlfn.IFNA(IF(VLOOKUP(D141,'30th June Rankings (Values)'!A:D,4,FALSE)>0,VLOOKUP(D141,'30th June Rankings (Values)'!A:D,4,FALSE),400),400)) -> 418.0148488 | X141: =20*(E141-(1/(1+(10^((W141-V141)/400)))))+V141 -> 395.8596614 | Y141: =20*(F141-(1/(1+(10^((V141-W141)/400)))))+W141 -> 427.6547866 | Z141: =C141&D141 -> Schriever BourgeoisAdam Grant | AA141: =VLOOKUP(L141,Countries!A:B,2,FALSE) -> USA | AB141: =IF(O141="","Y",(IF(Q141="","Y","N"))) -> Y | AC141: =IF(O141=Q141,"Y","N") -> N | AD141: =IF(J141<(TODAY()-60),"N","Y") -> Y | AE141: =_xlfn.MAXIFS(B:B,I:I,I141) -> 5 | AF141: =IF(AE141<5,"RTT/Casual",(IF(M141="TRUE","RTT/Casual",(IF(COUNTIF(I141,"*Team*"),"RTT/Casual",(IF(COUNTIF(I141,"*Double*"),"RTT/Casual","GT"))))))) -> GT | AG141: =O141&Q141 -> Gloomspite Gitz | AH141: =MONTH(J141) -> 7 | AI141: =((COUNTIFS(I:I,I141))/AE141)*2 -> 18 | AJ141: =VLOOKUP(I141,Battleplans!A:F,Matches!B141+1,FALSE) -> The Vice
A142: 575691 | B142: 1 | C142: Jeremy Vines | D142: Kevin Moore | E142: 1 | F142: 0 | G142: 42 | H142: 32 | I142: Vantastic GT | J142: 2024-07-13T14:00:00 | K142: 2024-07-15 | L142: US | M142: FALSE | N142: 2023 | O142: Soulblight Gravelords | P142: Bacchanal of Blood | Q142: Ogor Mawtribes | R142: Prophets of the Gulping God | U142: bcp | V142: =IFERROR((IF(SUMPRODUCT(MAX(ROW($C$2:$C141)*($C142=$C$2:$C141))-1)>SUMPRODUCT(MAX(ROW($D$2:$D141)*($C142=$D$2:$D141))-1),INDEX($X$2:$X141,SUMPRODUCT(MAX(ROW($C$2:$C141)*($C142=$C$2:$C141))-1)),INDEX($Y$2:$Y141,SUMPRODUCT(MAX(ROW($D$2:$D141)*($C142=$D$2:$D141))-1)))),_xlfn.IFNA(IF(VLOOKUP(C142,'30th June Rankings (Values)'!A:D,4,FALSE)>0,VLOOKUP(C142,'30th June Rankings (Values)'!A:D,4,FALSE),400),400)) -> 387.7646387 | W142: =IFERROR((IF(SUMPRODUCT(MAX(ROW($D$2:$D141)*($D142=$D$2:$D141))-1)>SUMPRODUCT(MAX(ROW($C$2:$C141)*($D142=$C$2:$C141))-1),INDEX($Y$2:$Y141,SUMPRODUCT(MAX(ROW($D$2:$D141)*($D142=$D$2:$D141))-1)),INDEX($X$2:$X141,SUMPRODUCT(MAX(ROW($C$2:$C141)*($D142=$C$2:$C141))-1)))),_xlfn.IFNA(IF(VLOOKUP(D142,'30th June Rankings (Values)'!A:D,4,FALSE)>0,VLOOKUP(D142,'30th June Rankings (Values)'!A:D,4,FALSE),400),400)) -> 384.6984469 | X142: =20*(E142-(1/(1+(10^((W142-V142)/400)))))+V142 -> 397.6763889 | Y142: =20*(F142-(1/(1+(10^((V142-W142)/400)))))+W142 -> 374.7866967 | Z142: =C142&D142 -> Jeremy VinesKevin Moore | AA142: =VLOOKUP(L142,Countries!A:B,2,FALSE) -> USA | AB142: =IF(O142="","Y",(IF(Q142="","Y","N"))) -> N | AC142: =IF(O142=Q142,"Y","N") -> N | AD142: =IF(J142<(TODAY()-60),"N","Y") -> Y | AE142: =_xlfn.MAXIFS(B:B,I:I,I142) -> 5 | AF142: =IF(AE142<5,"RTT/Casual",(IF(M142="TRUE","RTT/Casual",(IF(COUNTIF(I142,"*Team*"),"RTT/Casual",(IF(COUNTIF(I142,"*Double*"),"RTT/Casual","GT"))))))) -> GT | AG142: =O142&Q142 -> Soulblight GravelordsOgor Mawtribes | AH142: =MONTH(J142) -> 7 | AI142: =((COUNTIFS(I:I,I142))/AE142)*2 -> 18 | AJ142: =VLOOKUP(I142,Battleplans!A:F,Matches!B142+1,FALSE) -> The Vice
A143: 575718 | B143: 1 | C143: Ian Gates | D143: Jeremey Lea | E143: 0 | F143: 1 | G143: 24 | H143: 38 | I143: Vantastic GT | J143: 2024-07-13T14:00:00 | K143: 2024-07-15 | L143: US | M143: FALSE | N143: 2023 | O143: Stormcast Eternals | P143: Sentinels of the Bleak Citadels | Q143: Stormcast Eternals | R143: Hammers of Sigmar | U143: bcp | V143: =IFERROR((IF(SUMPRODUCT(MAX(ROW($C$2:$C142)*($C143=$C$2:$C142))-1)>SUMPRODUCT(MAX(ROW($D$2:$D142)*($C143=$D$2:$D142))-1),INDEX($X$2:$X142,SUMPRODUCT(MAX(ROW($C$2:$C142)*($C143=$C$2:$C142))-1)),INDEX($Y$2:$Y142,SUMPRODUCT(MAX(ROW($D$2:$D142)*($C143=$D$2:$D142))-1)))),_xlfn.IFNA(IF(VLOOKUP(C143,'30th June Rankings (Values)'!A:D,4,FALSE)>0,VLOOKUP(C143,'30th June Rankings (Values)'!A:D,4,FALSE),400),400)) -> 334.2738324 | W143: =IFERROR((IF(SUMPRODUCT(MAX(ROW($D$2:$D142)*($D143=$D$2:$D142))-1)>SUMPRODUCT(MAX(ROW($C$2:$C142)*($D143=$C$2:$C142))-1),INDEX($Y$2:$Y142,SUMPRODUCT(MAX(ROW($D$2:$D142)*($D143=$D$2:$D142))-1)),INDEX($X$2:$X142,SUMPRODUCT(MAX(ROW($C$2:$C142)*($D143=$C$2:$C142))-1)))),_xlfn.IFNA(IF(VLOOKUP(D143,'30th June Rankings (Values)'!A:D,4,FALSE)>0,VLOOKUP(D143,'30th June Rankings (Values)'!A:D,4,FALSE),400),400)) -> 434.0698238 | X143: =20*(E143-(1/(1+(10^((W143-V143)/400)))))+V143 -> 327.0697204 | Y143: =20*(F143-(1/(1+(10^((V143-W143)/400)))))+W143 -> 441.2739357 | Z143: =C143&D143 -> Ian GatesJeremey Lea | AA143: =VLOOKUP(L143,Countries!A:B,2,FALSE) -> USA | AB143: =IF(O143="","Y",(IF(Q143="","Y","N"))) -> N | AC143: =IF(O143=Q143,"Y","N") -> Y | AD143: =IF(J143<(TODAY()-60),"N","Y") -> Y | AE143: =_xlfn.MAXIFS(B:B,I:I,I143) -> 5 | AF143: =IF(AE143<5,"RTT/Casual",(IF(M143="TRUE","RTT/Casual",(IF(COUNTIF(I143,"*Team*"),"RTT/Casual",(IF(COUNTIF(I143,"*Double*"),"RTT/Casual","GT"))))))) -> GT | AG143: =O143&Q143 -> Stormcast EternalsStormcast Eternals | AH143: =MONTH(J143) -> 7 | AI143: =((COUNTIFS(I:I,I143))/AE143)*2 -> 18 | AJ143: =VLOOKUP(I143,Battleplans!A:F,Matches!B143+1,FALSE) -> The Vice
A144: 575750 | B144: 1 | C144: Matthew Wilson | D144: Mike McAbee | E144: 0 | F144: 1 | G144: 6 | H144: 50 | I144: Vantastic GT | J144: 2024-07-13T14:00:00 | K144: 2024-07-15 | L144: US | M144: FALSE | N144: 2023 | O144: Daughters of Khaine | Q144: Lumineth Realm-lords | R144: Vanari Battlehost | U144: bcp | V144: =IFERROR((IF(SUMPRODUCT(MAX(ROW($C$2:$C143)*($C144=$C$2:$C143))-1)>SUMPRODUCT(MAX(ROW($D$2:$D143)*($C144=$D$2:$D143))-1),INDEX($X$2:$X143,SUMPRODUCT(MAX(ROW($C$2:$C143)*($C144=$C$2:$C143))-1)),INDEX($Y$2:$Y143,SUMPRODUCT(MAX(ROW($D$2:$D143)*($C144=$D$2:$D143))-1)))),_xlfn.IFNA(IF(VLOOKUP(C144,'30th June Rankings (Values)'!A:D,4,FALSE)>0,VLOOKUP(C144,'30th June Rankings (Values)'!A:D,4,FALSE),400),400)) -> 365.070887 | W144: =IFERROR((IF(SUMPRODUCT(MAX(ROW($D$2:$D143)*($D144=$D$2:$D143))-1)>SUMPRODUCT(MAX(ROW($C$2:$C143)*($D144=$C$2:$C143))-1),INDEX($Y$2:$Y143,SUMPRODUCT(MAX(ROW($D$2:$D143)*($D144=$D$2:$D143))-1)),INDEX($X$2:$X143,SUMPRODUCT(MAX(ROW($C$2:$C143)*($D144=$C$2:$C143))-1)))),_xlfn.IFNA(IF(VLOOKUP(D144,'30th June Rankings (Values)'!A:D,4,FALSE)>0,VLOOKUP(D144,'30th June Rankings (Values)'!A:D,4,FALSE),400),400)) -> 702.003329 | X144: =20*(E144-(1/(1+(10^((W144-V144)/400)))))+V144 -> 362.5569169 | Y144: =20*(F144-(1/(1+(10^((V144-W144)/400)))))+W144 -> 704.5172991 | Z144: =C144&D144 -> Matthew WilsonMike McAbee | AA144: =VLOOKUP(L144,Countries!A:B,2,FALSE) -> USA | AB144: =IF(O144="","Y",(IF(Q144="","Y","N"))) -> N | AC144: =IF(O144=Q144,"Y","N") -> N | AD144: =IF(J144<(TODAY()-60),"N","Y") -> Y | AE144: =_xlfn.MAXIFS(B:B,I:I,I144) -> 5 | AF144: =IF(AE144<5,"RTT/Casual",(IF(M144="TRUE","RTT/Casual",(IF(COUNTIF(I144,"*Team*"),"RTT/Casual",(IF(COUNTIF(I144,"*Double*"),"RTT/Casual","GT"))))))) -> GT | AG144: =O144&Q144 -> Daughters of KhaineLumineth Realm-lords | AH144: =MONTH(J144) -> 7 | AI144: =((COUNTIFS(I:I,I144))/AE144)*2 -> 18 | AJ144: =VLOOKUP(I144,Battleplans!A:F,Matches!B144+1,FALSE) -> The Vice
A145: 575784 | B145: 1 | C145: Jeff Hollingsworth | D145: Morgan Spink | E145: 1 | F145: 0 | G145: 36 | H145: 34 | I145: Vantastic GT | J145: 2024-07-13T14:00:00 | K145: 2024-07-15 | L145: US | M145: FALSE | N145: 2023 | O145: Kharadron Overlords | P145: Aether-Runners | Q145: Skaven | R145: Fleshmeld Menagerie | U145: bcp | V145: =IFERROR((IF(SUMPRODUCT(MAX(ROW($C$2:$C144)*($C145=$C$2:$C144))-1)>SUMPRODUCT(MAX(ROW($D$2:$D144)*($C145=$D$2:$D144))-1),INDEX($X$2:$X144,SUMPRODUCT(MAX(ROW($C$2:$C144)*($C145=$C$2:$C144))-1)),INDEX($Y$2:$Y144,SUMPRODUCT(MAX(ROW($D$2:$D144)*($C145=$D$2:$D144))-1)))),_xlfn.IFNA(IF(VLOOKUP(C145,'30th June Rankings (Values)'!A:D,4,FALSE)>0,VLOOKUP(C145,'30th June Rankings (Values)'!A:D,4,FALSE),400),400)) -> 350.3172749 | W145: =IFERROR((IF(SUMPRODUCT(MAX(ROW($D$2:$D144)*($D145=$D$2:$D144))-1)>SUMPRODUCT(MAX(ROW($C$2:$C144)*($D145=$C$2:$C144))-1),INDEX($Y$2:$Y144,SUMPRODUCT(MAX(ROW($D$2:$D144)*($D145=$D$2:$D144))-1)),INDEX($X$2:$X144,SUMPRODUCT(MAX(ROW($C$2:$C144)*($D145=$C$2:$C144))-1)))),_xlfn.IFNA(IF(VLOOKUP(D145,'30th June Rankings (Values)'!A:D,4,FALSE)>0,VLOOKUP(D145,'30th June Rankings (Values)'!A:D,4,FALSE),400),400)) -> 360.8927612 | X145: =20*(E145-(1/(1+(10^((W145-V145)/400)))))+V145 -> 360.6215679 | Y145: =20*(F145-(1/(1+(10^((V145-W145)/400)))))+W145 -> 350.5884682 | Z145: =C145&D145 -> Jeff HollingsworthMorgan Spink | AA145: =VLOOKUP(L145,Countries!A:B,2,FALSE) -> USA | AB145: =IF(O145="","Y",(IF(Q145="","Y","N"))) -> N | AC145: =IF(O145=Q145,"Y","N") -> N | AD145: =IF(J145<(TODAY()-60),"N","Y") -> Y | AE145: =_xlfn.MAXIFS(B:B,I:I,I145) -> 5 | AF145: =IF(AE145<5,"RTT/Casual",(IF(M145="TRUE","RTT/Casual",(IF(COUNTIF(I145,"*Team*"),"RTT/Casual",(IF(COUNTIF(I145,"*Double*"),"RTT/Casual","GT"))))))) -> GT | AG145: =O145&Q145 -> Kharadron OverlordsSkaven | AH145: =MONTH(J145) -> 7 | AI145: =((COUNTIFS(I:I,I145))/AE145)*2 -> 18 | AJ145: =VLOOKUP(I145,Battleplans!A:F,Matches!B145+1,FALSE) -> The Vice
A146: 575801 | B146: 1 | C146: Chance Crabtree | D146: Seth Hickman | E146: 0 | F146: 1 | G146: 20 | H146: 44 | I146: Vantastic GT | J146: 2024-07-13T14:00:00 | K146: 2024-07-15 | L146: US | M146: FALSE | N146: 2023 | Q146: Skaven | R146: Claw-Horde | U146: bcp | V146: =IFERROR((IF(SUMPRODUCT(MAX(ROW($C$2:$C145)*($C146=$C$2:$C145))-1)>SUMPRODUCT(MAX(ROW($D$2:$D145)*($C146=$D$2:$D145))-1),INDEX($X$2:$X145,SUMPRODUCT(MAX(ROW($C$2:$C145)*($C146=$C$2:$C145))-1)),INDEX($Y$2:$Y145,SUMPRODUCT(MAX(ROW($D$2:$D145)*($C146=$D$2:$D145))-1)))),_xlfn.IFNA(IF(VLOOKUP(C146,'30th June Rankings (Values)'!A:D,4,FALSE)>0,VLOOKUP(C146,'30th June Rankings (Values)'!A:D,4,FALSE),400),400)) -> 426.1324253 | W146: =IFERROR((IF(SUMPRODUCT(MAX(ROW($D$2:$D145)*($D146=$D$2:$D145))-1)>SUMPRODUCT(MAX(ROW($C$2:$C145)*($D146=$C$2:$C145))-1),INDEX($Y$2:$Y145,SUMPRODUCT(MAX(ROW($D$2:$D145)*($D146=$D$2:$D145))-1)),INDEX($X$2:$X145,SUMPRODUCT(MAX(ROW($C$2:$C145)*($D146=$C$2:$C145))-1)))),_xlfn.IFNA(IF(VLOOKUP(D146,'30th June Rankings (Values)'!A:D,4,FALSE)>0,VLOOKUP(D146,'30th June Rankings (Values)'!A:D,4,FALSE),400),400)) -> 517.1519103 | X146: =20*(E146-(1/(1+(10^((W146-V146)/400)))))+V146 -> 418.6938454 | Y146: =20*(F146-(1/(1+(10^((V146-W146)/400)))))+W146 -> 524.5904902 | Z146: =C146&D146 -> Chance CrabtreeSeth Hickman | AA146: =VLOOKUP(L146,Countries!A:B,2,FALSE) -> USA | AB146: =IF(O146="","Y",(IF(Q146="","Y","N"))) -> Y | AC146: =IF(O146=Q146,"Y","N") -> N | AD146: =IF(J146<(TODAY()-60),"N","Y") -> Y | AE146: =_xlfn.MAXIFS(B:B,I:I,I146) -> 5 | AF146: =IF(AE146<5,"RTT/Casual",(IF(M146="TRUE","RTT/Casual",(IF(COUNTIF(I146,"*Team*"),"RTT/Casual",(IF(COUNTIF(I146,"*Double*"),"RTT/Casual","GT"))))))) -> GT | AG146: =O146&Q146 -> Skaven | AH146: =MONTH(J146) -> 7 | AI146: =((COUNTIFS(I:I,I146))/AE146)*2 -> 18 | AJ146: =VLOOKUP(I146,Battleplans!A:F,Matches!B146+1,FALSE) -> The Vice
A147: 575830 | B147: 1 | C147: Ron Humphrey | D147: David Bourgeois | E147: 0 | F147: 1 | G147: 22 | H147: 32 | I147: Vantastic GT | J147: 2024-07-13T14:00:00 | K147: 2024-07-15 | L147: US | M147: FALSE | N147: 2023 | O147: Stormcast Eternals | P147: Scions of the Storm | U147: bcp | V147: =IFERROR((IF(SUMPRODUCT(MAX(ROW($C$2:$C146)*($C147=$C$2:$C146))-1)>SUMPRODUCT(MAX(ROW($D$2:$D146)*($C147=$D$2:$D146))-1),INDEX($X$2:$X146,SUMPRODUCT(MAX(ROW($C$2:$C146)*($C147=$C$2:$C146))-1)),INDEX($Y$2:$Y146,SUMPRODUCT(MAX(ROW($D$2:$D146)*($C147=$D$2:$D146))-1)))),_xlfn.IFNA(IF(VLOOKUP(C147,'30th June Rankings (Values)'!A:D,4,FALSE)>0,VLOOKUP(C147,'30th June Rankings (Values)'!A:D,4,FALSE),400),400)) -> 400 | W147: =IFERROR((IF(SUMPRODUCT(MAX(ROW($D$2:$D146)*($D147=$D$2:$D146))-1)>SUMPRODUCT(MAX(ROW($C$2:$C146)*($D147=$C$2:$C146))-1),INDEX($Y$2:$Y146,SUMPRODUCT(MAX(ROW($D$2:$D146)*($D147=$D$2:$D146))-1)),INDEX($X$2:$X146,SUMPRODUCT(MAX(ROW($C$2:$C146)*($D147=$C$2:$C146))-1)))),_xlfn.IFNA(IF(VLOOKUP(D147,'30th June Rankings (Values)'!A:D,4,FALSE)>0,VLOOKUP(D147,'30th June Rankings (Values)'!A:D,4,FALSE),400),400)) -> 351.4042224 | X147: =20*(E147-(1/(1+(10^((W147-V147)/400)))))+V147 -> 388.6103515 | Y147: =20*(F147-(1/(1+(10^((V147-W147)/400)))))+W147 -> 362.793871 | Z147: =C147&D147 -> Ron HumphreyDavid Bourgeois | AA147: =VLOOKUP(L147,Countries!A:B,2,FALSE) -> USA | AB147: =IF(O147="","Y",(IF(Q147="","Y","N"))) -> Y | AC147: =IF(O147=Q147,"Y","N") -> N | AD147: =IF(J147<(TODAY()-60),"N","Y") -> Y | AE147: =_xlfn.MAXIFS(B:B,I:I,I147) -> 5 | AF147: =IF(AE147<5,"RTT/Casual",(IF(M147="TRUE","RTT/Casual",(IF(COUNTIF(I147,"*Team*"),"RTT/Casual",(IF(COUNTIF(I147,"*Double*"),"RTT/Casual","GT"))))))) -> GT | AG147: =O147&Q147 -> Stormcast Eternals | AH147: =MONTH(J147) -> 7 | AI147: =((COUNTIFS(I:I,I147))/AE147)*2 -> 18 | AJ147: =VLOOKUP(I147,Battleplans!A:F,Matches!B147+1,FALSE) -> The Vice
A148: 575855 | B148: 1 | C148: Matthew Dickerson | D148: Kenneth King | E148: 0 | F148: 1 | G148: 34 | H148: 42 | I148: Vantastic GT | J148: 2024-07-13T14:00:00 | K148: 2024-07-15 | L148: US | M148: FALSE | N148: 2023 | Q148: Sons of Behemat | R148: Breaker Tribe | U148: bcp | V148: =IFERROR((IF(SUMPRODUCT(MAX(ROW($C$2:$C147)*($C148=$C$2:$C147))-1)>SUMPRODUCT(MAX(ROW($D$2:$D147)*($C148=$D$2:$D147))-1),INDEX($X$2:$X147,SUMPRODUCT(MAX(ROW($C$2:$C147)*($C148=$C$2:$C147))-1)),INDEX($Y$2:$Y147,SUMPRODUCT(MAX(ROW($D$2:$D147)*($C148=$D$2:$D147))-1)))),_xlfn.IFNA(IF(VLOOKUP(C148,'30th June Rankings (Values)'!A:D,4,FALSE)>0,VLOOKUP(C148,'30th June Rankings (Values)'!A:D,4,FALSE),400),400)) -> 427.6180553 | W148: =IFERROR((IF(SUMPRODUCT(MAX(ROW($D$2:$D147)*($D148=$D$2:$D147))-1)>SUMPRODUCT(MAX(ROW($C$2:$C147)*($D148=$C$2:$C147))-1),INDEX($Y$2:$Y147,SUMPRODUCT(MAX(ROW($D$2:$D147)*($D148=$D$2:$D147))-1)),INDEX($X$2:$X147,SUMPRODUCT(MAX(ROW($C$2:$C147)*($D148=$C$2:$C147))-1)))),_xlfn.IFNA(IF(VLOOKUP(D148,'30th June Rankings (Values)'!A:D,4,FALSE)>0,VLOOKUP(D148,'30th June Rankings (Values)'!A:D,4,FALSE),400),400)) -> 423.0833266 | X148: =20*(E148-(1/(1+(10^((W148-V148)/400)))))+V148 -> 417.4875427 | Y148: =20*(F148-(1/(1+(10^((V148-W148)/400)))))+W148 -> 433.2138391 | Z148: =C148&D148 -> Matthew DickersonKenneth King | AA148: =VLOOKUP(L148,Countries!A:B,2,FALSE) -> USA | AB148: =IF(O148="","Y",(IF(Q148="","Y","N"))) -> Y | AC148: =IF(O148=Q148,"Y","N") -> N | AD148: =IF(J148<(TODAY()-60),"N","Y") -> Y | AE148: =_xlfn.MAXIFS(B:B,I:I,I148) -> 5 | AF148: =IF(AE148<5,"RTT/Casual",(IF(M148="TRUE","RTT/Casual",(IF(COUNTIF(I148,"*Team*"),"RTT/Casual",(IF(COUNTIF(I148,"*Double*"),"RTT/Casual","GT"))))))) -> GT | AG148: =O148&Q148 -> Sons of Behemat | AH148: =MONTH(J148) -> 7 | AI148: =((COUNTIFS(I:I,I148))/AE148)*2 -> 18 | AJ148: =VLOOKUP(I148,Battleplans!A:F,Matches!B148+1,FALSE) -> The Vice
A149: 575891 | B149: 2 | C149: Jeff Hollingsworth | D149: David Bourgeois | E149: 1 | F149: 0 | G149: 39 | H149: 38 | I149: Vantastic GT | J149: 2024-07-13T14:00:00 | K149: 2024-07-15 | L149: US | M149: FALSE | N149: 2023 | O149: Kharadron Overlords | P149: Aether-Runners | U149: bcp | V149: =IFERROR((IF(SUMPRODUCT(MAX(ROW($C$2:$C148)*($C149=$C$2:$C148))-1)>SUMPRODUCT(MAX(ROW($D$2:$D148)*($C149=$D$2:$D148))-1),INDEX($X$2:$X148,SUMPRODUCT(MAX(ROW($C$2:$C148)*($C149=$C$2:$C148))-1)),INDEX($Y$2:$Y148,SUMPRODUCT(MAX(ROW($D$2:$D148)*($C149=$D$2:$D148))-1)))),_xlfn.IFNA(IF(VLOOKUP(C149,'30th June Rankings (Values)'!A:D,4,FALSE)>0,VLOOKUP(C149,'30th June Rankings (Values)'!A:D,4,FALSE),400),400)) -> 360.6215679 | W149: =IFERROR((IF(SUMPRODUCT(MAX(ROW($D$2:$D148)*($D149=$D$2:$D148))-1)>SUMPRODUCT(MAX(ROW($C$2:$C148)*($D149=$C$2:$C148))-1),INDEX($Y$2:$Y148,SUMPRODUCT(MAX(ROW($D$2:$D148)*($D149=$D$2:$D148))-1)),INDEX($X$2:$X148,SUMPRODUCT(MAX(ROW($C$2:$C148)*($D149=$C$2:$C148))-1)))),_xlfn.IFNA(IF(VLOOKUP(D149,'30th June Rankings (Values)'!A:D,4,FALSE)>0,VLOOKUP(D149,'30th June Rankings (Values)'!A:D,4,FALSE),400),400)) -> 362.793871 | X149: =20*(E149-(1/(1+(10^((W149-V149)/400)))))+V149 -> 370.684091 | Y149: =20*(F149-(1/(1+(10^((V149-W149)/400)))))+W149 -> 352.7313479 | Z149: =C149&D149 -> Jeff HollingsworthDavid Bourgeois | AA149: =VLOOKUP(L149,Countries!A:B,2,FALSE) -> USA | AB149: =IF(O149="","Y",(IF(Q149="","Y","N"))) -> Y | AC149: =IF(O149=Q149,"Y","N") -> N | AD149: =IF(J149<(TODAY()-60),"N","Y") -> Y | AE149: =_xlfn.MAXIFS(B:B,I:I,I149) -> 5 | AF149: =IF(AE149<5,"RTT/Casual",(IF(M149="TRUE","RTT/Casual",(IF(COUNTIF(I149,"*Team*"),"RTT/Casual",(IF(COUNTIF(I149,"*Double*"),"RTT/Casual","GT"))))))) -> GT | AG149: =O149&Q149 -> Kharadron Overlords | AH149: =MONTH(J149) -> 7 | AI149: =((COUNTIFS(I:I,I149))/AE149)*2 -> 18 | AJ149: =VLOOKUP(I149,Battleplans!A:F,Matches!B149+1,FALSE) -> Feral Foray
A150: 575927 | B150: 2 | C150: Adam Grant | D150: Kenneth King | E150: 0 | F150: 1 | G150: 34 | H150: 38 | I150: Vantastic GT | J150: 2024-07-13T14:00:00 | K150: 2024-07-15 | L150: US | M150: FALSE | N150: 2023 | O150: Gloomspite Gitz | P150: Troggherd | Q150: Sons of Behemat | R150: Breaker Tribe | U150: bcp | V150: =IFERROR((IF(SUMPRODUCT(MAX(ROW($C$2:$C149)*($C150=$C$2:$C149))-1)>SUMPRODUCT(MAX(ROW($D$2:$D149)*($C150=$D$2:$D149))-1),INDEX($X$2:$X149,SUMPRODUCT(MAX(ROW($C$2:$C149)*($C150=$C$2:$C149))-1)),INDEX($Y$2:$Y149,SUMPRODUCT(MAX(ROW($D$2:$D149)*($C150=$D$2:$D149))-1)))),_xlfn.IFNA(IF(VLOOKUP(C150,'30th June Rankings (Values)'!A:D,4,FALSE)>0,VLOOKUP(C150,'30th June Rankings (Values)'!A:D,4,FALSE),400),400)) -> 427.6547866 | W150: =IFERROR((IF(SUMPRODUCT(MAX(ROW($D$2:$D149)*($D150=$D$2:$D149))-1)>SUMPRODUCT(MAX(ROW($C$2:$C149)*($D150=$C$2:$C149))-1),INDEX($Y$2:$Y149,SUMPRODUCT(MAX(ROW($D$2:$D149)*($D150=$D$2:$D149))-1)),INDEX($X$2:$X149,SUMPRODUCT(MAX(ROW($C$2:$C149)*($D150=$C$2:$C149))-1)))),_xlfn.IFNA(IF(VLOOKUP(D150,'30th June Rankings (Values)'!A:D,4,FALSE)>0,VLOOKUP(D150,'30th June Rankings (Values)'!A:D,4,FALSE),400),400)) -> 433.2138391 | X150: =20*(E150-(1/(1+(10^((W150-V150)/400)))))+V150 -> 417.8147754 | Y150: =20*(F150-(1/(1+(10^((V150-W150)/400)))))+W150 -> 443.0538504 | Z150: =C150&D150 -> Adam GrantKenneth King | AA150: =VLOOKUP(L150,Countries!A:B,2,FALSE) -> USA | AB150: =IF(O150="","Y",(IF(Q150="","Y","N"))) -> N | AC150: =IF(O150=Q150,"Y","N") -> N | AD150: =IF(J150<(TODAY()-60),"N","Y") -> Y | AE150: =_xlfn.MAXIFS(B:B,I:I,I150) -> 5 | AF150: =IF(AE150<5,"RTT/Casual",(IF(M150="TRUE","RTT/Casual",(IF(COUNTIF(I150,"*Team*"),"RTT/Casual",(IF(COUNTIF(I150,"*Double*"),"RTT/Casual","GT"))))))) -> GT | AG150: =O150&Q150 -> Gloomspite GitzSons of Behemat | AH150: =MONTH(J150) -> 7 | AI150: =((COUNTIFS(I:I,I150))/AE150)*2 -> 18 | AJ150: =VLOOKUP(I150,Battleplans!A:F,Matches!B150+1,FALSE) -> Feral Foray
A151: 575958 | B151: 2 | C151: Kevin Moore | D151: Ian Gates | E151: 0 | F151: 1 | G151: 38 | H151: 44 | I151: Vantastic GT | J151: 2024-07-13T14:00:00 | K151: 2024-07-15 | L151: US | M151: FALSE | N151: 2023 | O151: Ogor Mawtribes | P151: Prophets of the Gulping God | Q151: Stormcast Eternals | R151: Sentinels of the Bleak Citadels | U151: bcp | V151: =IFERROR((IF(SUMPRODUCT(MAX(ROW($C$2:$C150)*($C151=$C$2:$C150))-1)>SUMPRODUCT(MAX(ROW($D$2:$D150)*($C151=$D$2:$D150))-1),INDEX($X$2:$X150,SUMPRODUCT(MAX(ROW($C$2:$C150)*($C151=$C$2:$C150))-1)),INDEX($Y$2:$Y150,SUMPRODUCT(MAX(ROW($D$2:$D150)*($C151=$D$2:$D150))-1)))),_xlfn.IFNA(IF(VLOOKUP(C151,'30th June Rankings (Values)'!A:D,4,FALSE)>0,VLOOKUP(C151,'30th June Rankings (Values)'!A:D,4,FALSE),400),400)) -> 374.7866967 | W151: =IFERROR((IF(SUMPRODUCT(MAX(ROW($D$2:$D150)*($D151=$D$2:$D150))-1)>SUMPRODUCT(MAX(ROW($C$2:$C150)*($D151=$C$2:$C150))-1),INDEX($Y$2:$Y150,SUMPRODUCT(MAX(ROW($D$2:$D150)*($D151=$D$2:$D150))-1)),INDEX($X$2:$X150,SUMPRODUCT(MAX(ROW($C$2:$C150)*($D151=$C$2:$C150))-1)))),_xlfn.IFNA(IF(VLOOKUP(D151,'30th June Rankings (Values)'!A:D,4,FALSE)>0,VLOOKUP(D151,'30th June Rankings (Values)'!A:D,4,FALSE),400),400)) -> 327.0697204 | X151: =20*(E151-(1/(1+(10^((W151-V151)/400)))))+V151 -> 363.4218623 | Y151: =20*(F151-(1/(1+(10^((V151-W151)/400)))))+W151 -> 338.4345548 | Z151: =C151&D151 -> Kevin MooreIan Gates | AA151: =VLOOKUP(L151,Countries!A:B,2,FALSE) -> USA | AB151: =IF(O151="","Y",(IF(Q151="","Y","N"))) -> N | AC151: =IF(O151=Q151,"Y","N") -> N | AD151: =IF(J151<(TODAY()-60),"N","Y") -> Y | AE151: =_xlfn.MAXIFS(B:B,I:I,I151) -> 5 | AF151: =IF(AE151<5,"RTT/Casual",(IF(M151="TRUE","RTT/Casual",(IF(COUNTIF(I151,"*Team*"),"RTT/Casual",(IF(COUNTIF(I151,"*Double*"),"RTT/Casual","GT"))))))) -> GT | AG151: =O151&Q151 -> Ogor MawtribesStormcast Eternals | AH151: =MONTH(J151) -> 7 | AI151: =((COUNTIFS(I:I,I151))/AE151)*2 -> 18 | AJ151: =VLOOKUP(I151,Battleplans!A:F,Matches!B151+1,FALSE) -> Feral Foray
A152: 575983 | B152: 2 | C152: Matthew Wilson | D152: Eric Tolar | E152: 0 | F152: 1 | G152: 33 | H152: 34 | I152: Vantastic GT | J152: 2024-07-13T14:00:00 | K152: 2024-07-15 | L152: US | M152: FALSE | N152: 2023 | O152: Daughters of Khaine | Q152: Stormcast Eternals | R152: Sent to chance | U152: bcp | V152: =IFERROR((IF(SUMPRODUCT(MAX(ROW($C$2:$C151)*($C152=$C$2:$C151))-1)>SUMPRODUCT(MAX(ROW($D$2:$D151)*($C152=$D$2:$D151))-1),INDEX($X$2:$X151,SUMPRODUCT(MAX(ROW($C$2:$C151)*($C152=$C$2:$C151))-1)),INDEX($Y$2:$Y151,SUMPRODUCT(MAX(ROW($D$2:$D151)*($C152=$D$2:$D151))-1)))),_xlfn.IFNA(IF(VLOOKUP(C152,'30th June Rankings (Values)'!A:D,4,FALSE)>0,VLOOKUP(C152,'30th June Rankings (Values)'!A:D,4,FALSE),400),400)) -> 362.5569169 | W152: =IFERROR((IF(SUMPRODUCT(MAX(ROW($D$2:$D151)*($D152=$D$2:$D151))-1)>SUMPRODUCT(MAX(ROW($C$2:$C151)*($D152=$C$2:$C151))-1),INDEX($Y$2:$Y151,SUMPRODUCT(MAX(ROW($D$2:$D151)*($D152=$D$2:$D151))-1)),INDEX($X$2:$X151,SUMPRODUCT(MAX(ROW($C$2:$C151)*($D152=$C$2:$C151))-1)))),_xlfn.IFNA(IF(VLOOKUP(D152,'30th June Rankings (Values)'!A:D,4,FALSE)>0,VLOOKUP(D152,'30th June Rankings (Values)'!A:D,4,FALSE),400),400)) -> 506.7727697 | X152: =20*(E152-(1/(1+(10^((W152-V152)/400)))))+V152 -> 356.4847478 | Y152: =20*(F152-(1/(1+(10^((V152-W152)/400)))))+W152 -> 512.8449388 | Z152: =C152&D152 -> Matthew WilsonEric Tolar | AA152: =VLOOKUP(L152,Countries!A:B,2,FALSE) -> USA | AB152: =IF(O152="","Y",(IF(Q152="","Y","N"))) -> N | AC152: =IF(O152=Q152,"Y","N") -> N | AD152: =IF(J152<(TODAY()-60),"N","Y") -> Y | AE152: =_xlfn.MAXIFS(B:B,I:I,I152) -> 5 | AF152: =IF(AE152<5,"RTT/Casual",(IF(M152="TRUE","RTT/Casual",(IF(COUNTIF(I152,"*Team*"),"RTT/Casual",(IF(COUNTIF(I152,"*Double*"),"RTT/Casual","GT"))))))) -> GT | AG152: =O152&Q152 -> Daughters of KhaineStormcast Eternals | AH152: =MONTH(J152) -> 7 | AI152: =((COUNTIFS(I:I,I152))/AE152)*2 -> 18 | AJ152: =VLOOKUP(I152,Battleplans!A:F,Matches!B152+1,FALSE) -> Feral Foray
A153: 576017 | B153: 2 | C153: Jeremy Vines | D153: Jeremey Lea | E153: 0 | F153: 1 | G153: 36 | H153: 48 | I153: Vantastic GT | J153: 2024-07-13T14:00:00 | K153: 2024-07-15 | L153: US | M153: FALSE | N153: 2023 | O153: Soulblight Gravelords | P153: Bacchanal of Blood | Q153: Stormcast Eternals | R153: Hammers of Sigmar | U153: bcp | V153: =IFERROR((IF(SUMPRODUCT(MAX(ROW($C$2:$C152)*($C153=$C$2:$C152))-1)>SUMPRODUCT(MAX(ROW($D$2:$D152)*($C153=$D$2:$D152))-1),INDEX($X$2:$X152,SUMPRODUCT(MAX(ROW($C$2:$C152)*($C153=$C$2:$C152))-1)),INDEX($Y$2:$Y152,SUMPRODUCT(MAX(ROW($D$2:$D152)*($C153=$D$2:$D152))-1)))),_xlfn.IFNA(IF(VLOOKUP(C153,'30th June Rankings (Values)'!A:D,4,FALSE)>0,VLOOKUP(C153,'30th June Rankings (Values)'!A:D,4,FALSE),400),400)) -> 397.6763889 | W153: =IFERROR((IF(SUMPRODUCT(MAX(ROW($D$2:$D152)*($D153=$D$2:$D152))-1)>SUMPRODUCT(MAX(ROW($C$2:$C152)*($D153=$C$2:$C152))-1),INDEX($Y$2:$Y152,SUMPRODUCT(MAX(ROW($D$2:$D152)*($D153=$D$2:$D152))-1)),INDEX($X$2:$X152,SUMPRODUCT(MAX(ROW($C$2:$C152)*($D153=$C$2:$C152))-1)))),_xlfn.IFNA(IF(VLOOKUP(D153,'30th June Rankings (Values)'!A:D,4,FALSE)>0,VLOOKUP(D153,'30th June Rankings (Values)'!A:D,4,FALSE),400),400)) -> 441.2739357 | X153: =20*(E153-(1/(1+(10^((W153-V153)/400)))))+V153 -> 388.9246821 | Y153: =20*(F153-(1/(1+(10^((V153-W153)/400)))))+W153 -> 450.0256425 | Z153: =C153&D153 -> Jeremy VinesJeremey Lea | AA153: =VLOOKUP(L153,Countries!A:B,2,FALSE) -> USA | AB153: =IF(O153="","Y",(IF(Q153="","Y","N"))) -> N | AC153: =IF(O153=Q153,"Y","N") -> N | AD153: =IF(J153<(TODAY()-60),"N","Y") -> Y | AE153: =_xlfn.MAXIFS(B:B,I:I,I153) -> 5 | AF153: =IF(AE153<5,"RTT/Casual",(IF(M153="TRUE","RTT/Casual",(IF(COUNTIF(I153,"*Team*"),"RTT/Casual",(IF(COUNTIF(I153,"*Double*"),"RTT/Casual","GT"))))))) -> GT | AG153: =O153&Q153 -> Soulblight GravelordsStormcast Eternals | AH153: =MONTH(J153) -> 7 | AI153: =((COUNTIFS(I:I,I153))/AE153)*2 -> 18 | AJ153: =VLOOKUP(I153,Battleplans!A:F,Matches!B153+1,FALSE) -> Feral Foray
A154: 576042 | B154: 2 | C154: Ron Humphrey | D154: Chance Crabtree | E154: 1 | F154: 0 | G154: 4 | H154: 0 | I154: Vantastic GT | J154: 2024-07-13T14:00:00 | K154: 2024-07-15 | L154: US | M154: FALSE | N154: 2023 | O154: Stormcast Eternals | P154: Scions of the Storm | U154: bcp | V154: =IFERROR((IF(SUMPRODUCT(MAX(ROW($C$2:$C153)*($C154=$C$2:$C153))-1)>SUMPRODUCT(MAX(ROW($D$2:$D153)*($C154=$D$2:$D153))-1),INDEX($X$2:$X153,SUMPRODUCT(MAX(ROW($C$2:$C153)*($C154=$C$2:$C153))-1)),INDEX($Y$2:$Y153,SUMPRODUCT(MAX(ROW($D$2:$D153)*($C154=$D$2:$D153))-1)))),_xlfn.IFNA(IF(VLOOKUP(C154,'30th June Rankings (Values)'!A:D,4,FALSE)>0,VLOOKUP(C154,'30th June Rankings (Values)'!A:D,4,FALSE),400),400)) -> 388.6103515 | W154: =IFERROR((IF(SUMPRODUCT(MAX(ROW($D$2:$D153)*($D154=$D$2:$D153))-1)>SUMPRODUCT(MAX(ROW($C$2:$C153)*($D154=$C$2:$C153))-1),INDEX($Y$2:$Y153,SUMPRODUCT(MAX(ROW($D$2:$D153)*($D154=$D$2:$D153))-1)),INDEX($X$2:$X153,SUMPRODUCT(MAX(ROW($C$2:$C153)*($D154=$C$2:$C153))-1)))),_xlfn.IFNA(IF(VLOOKUP(D154,'30th June Rankings (Values)'!A:D,4,FALSE)>0,VLOOKUP(D154,'30th June Rankings (Values)'!A:D,4,FALSE),400),400)) -> 418.6938454 | X154: =20*(E154-(1/(1+(10^((W154-V154)/400)))))+V154 -> 399.4740666 | Y154: =20*(F154-(1/(1+(10^((V154-W154)/400)))))+W154 -> 407.8301303 | Z154: =C154&D154 -> Ron HumphreyChance Crabtree | AA154: =VLOOKUP(L154,Countries!A:B,2,FALSE) -> USA | AB154: =IF(O154="","Y",(IF(Q154="","Y","N"))) -> Y | AC154: =IF(O154=Q154,"Y","N") -> N | AD154: =IF(J154<(TODAY()-60),"N","Y") -> Y | AE154: =_xlfn.MAXIFS(B:B,I:I,I154) -> 5 | AF154: =IF(AE154<5,"RTT/Casual",(IF(M154="TRUE","RTT/Casual",(IF(COUNTIF(I154,"*Team*"),"RTT/Casual",(IF(COUNTIF(I154,"*Double*"),"RTT/Casual","GT"))))))) -> GT | AG154: =O154&Q154 -> Stormcast Eternals | AH154: =MONTH(J154) -> 7 | AI154: =((COUNTIFS(I:I,I154))/AE154)*2 -> 18 | AJ154: =VLOOKUP(I154,Battleplans!A:F,Matches!B154+1,FALSE) -> Feral Foray
A155: 576070 | B155: 2 | C155: Matthew Dickerson | D155: Morgan Spink | E155: 1 | F155: 0 | G155: 50 | H155: 22 | I155: Vantastic GT | J155: 2024-07-13T14:00:00 | K155: 2024-07-15 | L155: US | M155: FALSE | N155: 2023 | Q155: Skaven | R155: Fleshmeld Menagerie | U155: bcp | V155: =IFERROR((IF(SUMPRODUCT(MAX(ROW($C$2:$C154)*($C155=$C$2:$C154))-1)>SUMPRODUCT(MAX(ROW($D$2:$D154)*($C155=$D$2:$D154))-1),INDEX($X$2:$X154,SUMPRODUCT(MAX(ROW($C$2:$C154)*($C155=$C$2:$C154))-1)),INDEX($Y$2:$Y154,SUMPRODUCT(MAX(ROW($D$2:$D154)*($C155=$D$2:$D154))-1)))),_xlfn.IFNA(IF(VLOOKUP(C155,'30th June Rankings (Values)'!A:D,4,FALSE)>0,VLOOKUP(C155,'30th June Rankings (Values)'!A:D,4,FALSE),400),400)) -> 417.4875427 | W155: =IFERROR((IF(SUMPRODUCT(MAX(ROW($D$2:$D154)*($D155=$D$2:$D154))-1)>SUMPRODUCT(MAX(ROW($C$2:$C154)*($D155=$C$2:$C154))-1),INDEX($Y$2:$Y154,SUMPRODUCT(MAX(ROW($D$2:$D154)*($D155=$D$2:$D154))-1)),INDEX($X$2:$X154,SUMPRODUCT(MAX(ROW($C$2:$C154)*($D155=$C$2:$C154))-1)))),_xlfn.IFNA(IF(VLOOKUP(D155,'30th June Rankings (Values)'!A:D,4,FALSE)>0,VLOOKUP(D155,'30th June Rankings (Values)'!A:D,4,FALSE),400),400)) -> 350.5884682 | X155: =20*(E155-(1/(1+(10^((W155-V155)/400)))))+V155 -> 425.5854816 | Y155: =20*(F155-(1/(1+(10^((V155-W155)/400)))))+W155 -> 342.4905294 | Z155: =C155&D155 -> Matthew DickersonMorgan Spink | AA155: =VLOOKUP(L155,Countries!A:B,2,FALSE) -> USA | AB155: =IF(O155="","Y",(IF(Q155="","Y","N"))) -> Y | AC155: =IF(O155=Q155,"Y","N") -> N | AD155: =IF(J155<(TODAY()-60),"N","Y") -> Y | AE155: =_xlfn.MAXIFS(B:B,I:I,I155) -> 5 | AF155: =IF(AE155<5,"RTT/Casual",(IF(M155="TRUE","RTT/Casual",(IF(COUNTIF(I155,"*Team*"),"RTT/Casual",(IF(COUNTIF(I155,"*Double*"),"RTT/Casual","GT"))))))) -> GT | AG155: =O155&Q155 -> Skaven | AH155: =MONTH(J155) -> 7 | AI155: =((COUNTIFS(I:I,I155))/AE155)*2 -> 18 | AJ155: =VLOOKUP(I155,Battleplans!A:F,Matches!B155+1,FALSE) -> Feral Foray
A156: 576098 | B156: 2 | C156: Schriever Bourgeois | D156: Andrew Nguyen | E156: 1 | F156: 0 | G156: 44 | H156: 32 | I156: Vantastic GT | J156: 2024-07-13T14:00:00 | K156: 2024-07-15 | L156: US | M156: FALSE | N156: 2023 | Q156: Cities of Sigmar | R156: Ironweld Guild Army | U156: bcp | V156: =IFERROR((IF(SUMPRODUCT(MAX(ROW($C$2:$C155)*($C156=$C$2:$C155))-1)>SUMPRODUCT(MAX(ROW($D$2:$D155)*($C156=$D$2:$D155))-1),INDEX($X$2:$X155,SUMPRODUCT(MAX(ROW($C$2:$C155)*($C156=$C$2:$C155))-1)),INDEX($Y$2:$Y155,SUMPRODUCT(MAX(ROW($D$2:$D155)*($C156=$D$2:$D155))-1)))),_xlfn.IFNA(IF(VLOOKUP(C156,'30th June Rankings (Values)'!A:D,4,FALSE)>0,VLOOKUP(C156,'30th June Rankings (Values)'!A:D,4,FALSE),400),400)) -> 395.8596614 | W156: =IFERROR((IF(SUMPRODUCT(MAX(ROW($D$2:$D155)*($D156=$D$2:$D155))-1)>SUMPRODUCT(MAX(ROW($C$2:$C155)*($D156=$C$2:$C155))-1),INDEX($Y$2:$Y155,SUMPRODUCT(MAX(ROW($D$2:$D155)*($D156=$D$2:$D155))-1)),INDEX($X$2:$X155,SUMPRODUCT(MAX(ROW($C$2:$C155)*($D156=$C$2:$C155))-1)))),_xlfn.IFNA(IF(VLOOKUP(D156,'30th June Rankings (Values)'!A:D,4,FALSE)>0,VLOOKUP(D156,'30th June Rankings (Values)'!A:D,4,FALSE),400),400)) -> 396.4459215 | X156: =20*(E156-(1/(1+(10^((W156-V156)/400)))))+V156 -> 405.8765353 | Y156: =20*(F156-(1/(1+(10^((V156-W156)/400)))))+W156 -> 386.4290476 | Z156: =C156&D156 -> Schriever BourgeoisAndrew Nguyen | AA156: =VLOOKUP(L156,Countries!A:B,2,FALSE) -> USA | AB156: =IF(O156="","Y",(IF(Q156="","Y","N"))) -> Y | AC156: =IF(O156=Q156,"Y","N") -> N | AD156: =IF(J156<(TODAY()-60),"N","Y") -> Y | AE156: =_xlfn.MAXIFS(B:B,I:I,I156) -> 5 | AF156: =IF(AE156<5,"RTT/Casual",(IF(M156="TRUE","RTT/Casual",(IF(COUNTIF(I156,"*Team*"),"RTT/Casual",(IF(COUNTIF(I156,"*Double*"),"RTT/Casual","GT"))))))) -> GT | AG156: =O156&Q156 -> Cities of Sigmar | AH156: =MONTH(J156) -> 7 | AI156: =((COUNTIFS(I:I,I156))/AE156)*2 -> 18 | AJ156: =VLOOKUP(I156,Battleplans!A:F,Matches!B156+1,FALSE) -> Feral Foray
A157: 576127 | B157: 2 | C157: Mike McAbee | D157: Seth Hickman | E157: 1 | F157: 0 | G157: 44 | H157: 10 | I157: Vantastic GT | J157: 2024-07-13T14:00:00 | K157: 2024-07-15 | L157: US | M157: FALSE | N157: 2023 | O157: Lumineth Realm-lords | P157: Vanari Battlehost | Q157: Skaven | R157: Claw-Horde | U157: bcp | V157: =IFERROR((IF(SUMPRODUCT(MAX(ROW($C$2:$C156)*($C157=$C$2:$C156))-1)>SUMPRODUCT(MAX(ROW($D$2:$D156)*($C157=$D$2:$D156))-1),INDEX($X$2:$X156,SUMPRODUCT(MAX(ROW($C$2:$C156)*($C157=$C$2:$C156))-1)),INDEX($Y$2:$Y156,SUMPRODUCT(MAX(ROW($D$2:$D156)*($C157=$D$2:$D156))-1)))),_xlfn.IFNA(IF(VLOOKUP(C157,'30th June Rankings (Values)'!A:D,4,FALSE)>0,VLOOKUP(C157,'30th June Rankings (Values)'!A:D,4,FALSE),400),400)) -> 704.5172991 | W157: =IFERROR((IF(SUMPRODUCT(MAX(ROW($D$2:$D156)*($D157=$D$2:$D156))-1)>SUMPRODUCT(MAX(ROW($C$2:$C156)*($D157=$C$2:$C156))-1),INDEX($Y$2:$Y156,SUMPRODUCT(MAX(ROW($D$2:$D156)*($D157=$D$2:$D156))-1)),INDEX($X$2:$X156,SUMPRODUCT(MAX(ROW($C$2:$C156)*($D157=$C$2:$C156))-1)))),_xlfn.IFNA(IF(VLOOKUP(D157,'30th June Rankings (Values)'!A:D,4,FALSE)>0,VLOOKUP(D157,'30th June Rankings (Values)'!A:D,4,FALSE),400),400)) -> 524.5904902 | X157: =20*(E157-(1/(1+(10^((W157-V157)/400)))))+V157 -> 709.7567475 | Y157: =20*(F157-(1/(1+(10^((V157-W157)/400)))))+W157 -> 519.3510418 | Z157: =C157&D157 -> Mike McAbeeSeth Hickman | AA157: =VLOOKUP(L157,Countries!A:B,2,FALSE) -> USA | AB157: =IF(O157="","Y",(IF(Q157="","Y","N"))) -> N | AC157: =IF(O157=Q157,"Y","N") -> N | AD157: =IF(J157<(TODAY()-60),"N","Y") -> Y | AE157: =_xlfn.MAXIFS(B:B,I:I,I157) -> 5 | AF157: =IF(AE157<5,"RTT/Casual",(IF(M157="TRUE","RTT/Casual",(IF(COUNTIF(I157,"*Team*"),"RTT/Casual",(IF(COUNTIF(I157,"*Double*"),"RTT/Casual","GT"))))))) -> GT | AG157: =O157&Q157 -> Lumineth Realm-lordsSkaven | AH157: =MONTH(J157) -> 7 | AI157: =((COUNTIFS(I:I,I157))/AE157)*2 -> 18 | AJ157: =VLOOKUP(I157,Battleplans!A:F,Matches!B157+1,FALSE) -> Feral Foray
